Workbook

Sheet Introduction
F12: Utility-Scale Solar, 2022 Edition
F14: Mark Bolinger1, Joachim Seel1, Cody Warner, Dana Robson
F17: Lawrence Berkeley National Laboratory
F18: 1 Corresponding authors
F20: September 2022
F24: For additional details and related products, see: utilityscalesolar.lbl.gov
F26: Contact the corresponding authors: Mark Bolinger (mabolinger@lbl.gov) and Joachim Seel (jseel@lbl.gov)
A28: Photo source: Enel Green Power - Roadrunner Solar Project
A30: Purpose, Scope, and Data
A31: Summarize publicly available data on key trends in the U.S. utility-scale solar power sector. Focus on ground-mounted projects >5 MWAC in size (projects below this capacity threshold, as well as rooftop projects, are covered under LBNL's Tracking the Sun series). Focus on historical data, with some emphasis on the most recent year. Data sources include EIA, FERC, SEC, trade press, developers/owners.
A33: Outline of Data File
A34: • Deployment and technology trends
A35: • Installed costs
A36: • Performance (capacity factors)
A37: • Power purchase agreement (PPA) prices and LCOE
A38: • Wholesale market value
A39: • PV, PV+battery, and concentrating solar thermal power (CSP) plants
A40: • Capacity in interconnection queues
A42: Acknowledgments
A43: This material is based upon work supported by the U.S. Department of Energy’s Office of Energy Efficiency and Renewable Energy (EERE) under Solar Energy Technologies Office (SETO) Agreement Number 38444 and Contract No. DE-AC02-05CH11231. The authors thank Ammar Qusaibaty, Juan Botero, Michele Boyd, and Becca Jones-Albertus of the U.S. Department of Energy Solar Energy Technologies Office for supporting this work. The authors are solely responsible for any omissions or errors contained herein.
A45: Disclaimer
A46: This document was prepared as an account of work sponsored by the United States Government. While this document is believed to contain correct information, neither the United States Government nor any agency thereof, nor The Regents of the University of California, nor any of their employees, makes any warranty, express or implied, or assumes any legal responsibility for the accuracy, completeness, or usefulness of any information, apparatus, product, or process disclosed, or represents that its use would not infringe privately owned rights. Reference herein to any specific commercial product, process, or service by its trade name, trademark, manufacturer, or otherwise, does not necessarily constitute or imply its endorsement, recommendation, or favoring by the United States Government or any agency thereof, or The Regents of the University of California. The views and opinions of authors expressed herein do not necessarily state or reflect those of the United States Government or any agency thereof, or The Regents of the University of California.
A48: Ernest Orlando Lawrence Berkeley National Laboratory is an equal opportunity employer.
A50: Copyright Notice
A51: This manuscript has been authored by an author at Lawrence Berkeley National Laboratory under Contract No. DE-AC02-05CH11231 with the U.S. Department of Energy. The U.S. Government retains, and the publisher, by accepting the article for publication, acknowledges, that the U.S. Government retains a non-exclusive, paid-up, irrevocable, worldwide license to publish or reproduce the published form of this manuscript, or allow others to do so, for U.S. Government purposes.

Sheet Table of Contents
B2: Table of Contents
B4: # | C4: Sheet Name
B5: 1 | C5: Introduction
B6: 2 | C6: Regional Definitions
B7: 3 | C7: PV Capacity by Sector
B8: 4 | C8: Capacity Additions by Type
B9: 5 | C9: State Solar Market Penetration
B10: 6 | C10: Solar Capacity&Generation by BA
B11: 7 | C11: PV Capacity by Region
B12: 8 | C12: PV+Storage Capacity by Region
B13: 9 | C13: PV Capacity by Technology
B14: 10 | C14: PV Capacity by Develop-Offtaker
B15: 11 | C15: PV Irradiance
B16: 12 | C16: PV ILR
B17: 13 | C17: CapEx Trend (PV-only)
B18: 14 | C18: CapEx by Size (PV-only)
B19: 15 | C19: CapEx Trend by Mount Type (PV)
B20: 16 | C20: CapEx Trend by Region (PV only)
B21: 17 | C21: CapEx Trend by State (PV only)
B22: 18 | C22: PV+Storage CapEx
B23: 19 | C23: CSP CapEx
B24: 20 | C24: O&M Cost Time Trend
B25: 21 | C25: O&M Cost by Project Age
B26: 22 | C26: CF by GHI, Mount, ILR
B27: 23 | C27: CF by Region
B28: 24 | C28: CF by Project Vintage
B29: 25 | C29: CF for CSP Plants
B30: 26 | C30: PPA Price by Project (PV only)
B31: 27 | C31: PPA Price for CSP Plants
B32: 28 | C32: Annual Average PPA Price
B33: 29 | C33: LevelTen Solar PPA Prices
B34: 30 | C34: PV+Battery Hybrid PPA Price
B35: 31 | C35: LCOE of Utility-Scale PV
B36: 32 | C36: LCOE vs. PPA Price
B37: 33 | C37: PV & Wind PPAs vs. Gas
B38: 34 | C38: Recent PV PPAs vs. Gas Forecast
B39: 35 | C39: PV Curtailment
B40: 36 | C40: Energy and Capacity Value
B41: 37 | C41: Solar Value vs. PPA Prices
B42: 38 | C42: Value Factor vs. Penetration
B43: 39 | C43: Value Difference vs. Flat Block
B44: 40 | C44: All Capacity in Queues
B45: 41 | C45: Solar GW in Queues by Region
B46: 42 | C46: All Hybrid Capacity in Queues
B47: 43 | C47: Individual_Project_Data

Sheet Regional Definitions
A1: Regional boundaries overlaid on a map of average annual global horizontal irradiance (GHI)
A32: Sources: National Renewable Energy Laboratory (NREL)

Sheet PV Capacity by Sector
A1: Historical and projected PV and CSP capacity by sector in the United States
A23: Sources: Total U.S. PV capacity additions are based on Wood Mackenzie and SEIA (2010 - 2021), IREC's data collection, LBNL's Tracking the Sun Database and LBNL's Utility-Scale Solar Database.
A24: Note: Wood Mackenzie and SEIA's definition of utility-scale PV capacity differs from LBNL both in size threshholds and treatment of project phase completion.
A25: We used Woodmac's 2022.03 projection assuming an ITC extension of the Build Back Better bill.
A27: Installation Year | B27: Residential PV | D27: Commercial PV | F27: Utility PV | H27: Utility CSP
B28: Annual Capacity MWDC | C28: Cumulative Capacity MWDC | D28: Annual Capacity MWDC | E28: Cumulative Capacity MWDC | F28: Annual Capacity MWDC | G28: Cumulative Capacity MWDC | H28: Annual Capacity MWAC | I28: Cumulative Capacity MWAC
A29: 2007 | B29: 58 | C29: 191.1279753 | D29: 93 | E29: 263.74 | F29: 9 | G29: 13.66 | H29: 68.5 | I29: 425.1
A30: 2008 | B30: 77 | C30: =B30+C29 -> 268.1279753 | D30: 190 | E30: =E29+D30 -> 453.74 | F30: 21.5 | G30: =G29+F30 -> 35.16 | H30: 0 | I30: =I29+H30 -> 425.1
A31: 2009 | B31: 157 | C31: =B31+C30 -> 425.1279753 | D31: 208 | E31: =E30+D31 -> 661.74 | F31: 69.5 | G31: =G30+F31 -> 104.66 | H31: 0 | I31: =I30+H31 -> 425.1
A32: 2010 | B32: 245.5368856 | C32: 670.6648609 | D32: 336.801075 | E32: 998.541075 | F32: 266.5 | G32: 371.16 | H32: 75 | I32: 500.1
A33: 2011 | B33: 305.1750616 | C33: 975.8399225 | D33: 849.9675328 | E33: 1848.508608 | F33: 785.59461 | G33: 1156.75461 | H33: 0 | I33: 500.1
A34: 2012 | B34: 495.5294727 | C34: 1471.369395 | D34: 1075.149534 | E34: 2923.658142 | F34: 1803.176 | G34: 2959.93061 | H34: 0 | I34: 500.1
A35: 2013 | B35: 798.950417 | C35: 2270.319812 | D35: 1109.341613 | E35: 4032.999755 | F35: 2857.51 | G35: 5817.44061 | H35: 250 | I35: 750.1
A36: 2014 | B36: 1267.734564 | C36: 3538.054376 | D36: 1055.174005 | E36: 5088.17376 | F36: 3921.941 | G36: 9739.38161 | H36: 877 | I36: 1627.1
A37: 2015 | B37: 2171.399164 | C37: 5709.453541 | D37: 1069.678716 | E37: 6157.852476 | F37: 4267.98 | G37: 14007.36161 | H37: 110 | I37: 1737.1
A38: 2016 | B38: 2638.464713 | C38: 8347.918253 | D38: 1714.847998 | E38: 7872.700474 | F38: 10750.84843 | G38: 24758.21004 | H38: 0 | I38: 1737.1
A39: 2017 | B39: 2239.175514 | C39: 10587.09377 | D39: 2365.708375 | E39: 10238.40885 | F39: 6475.562176 | G39: 31233.77221 | H39: 0 | I39: 1737.1
A40: 2018 | B40: 2418.298837 | C40: 13005.3926 | D40: 2196.18949 | E40: 12434.59834 | F40: 6118.775097 | G40: 37352.54731 | H40: 0 | I40: 1737.1
A41: 2019 | B41: 2865.356561 | C41: 15870.74917 | D41: 2184.259434 | E41: 14618.85777 | F41: 8462.272038 | G41: 45814.81935 | H41: 0 | I41: 1737.1
A42: 2020 | B42: 3242.017905 | C42: 19112.76707 | D42: 2346.877828 | E42: 16965.7356 | F42: 14260.58169 | G42: 60075.40103 | H42: 0 | I42: =I41 -> 1737.1
A43: 2021 | B43: 4205.855393 | C43: 23318.62246 | D43: 2392.364241 | E43: 19358.09984 | F43: 16966.40917 | G43: 77041.8102 | H43: 0 | I43: 1737.1
A44: 2022e | B44: 4731.638622 | C44: 28050.26109 | D44: 2492.465341 | E44: 21850.56518 | F44: 14669.04309 | G44: 91710.85329 | I44: 1737.1
A45: 2023e | B45: 4758.098166 | C45: 32808.35925 | D45: 3120.076348 | E45: 24970.64153 | F45: 23694.0359 | G45: 115404.8892 | I45: 1737.1
A46: 2024e | B46: 5289.79543 | C46: 38098.15468 | D46: 3236.316159 | E46: 28206.95769 | F46: 26552.68138 | G46: 141957.5706 | I46: 1737.1
A47: 2025e | B47: 5830.344762 | C47: 43928.49944 | D47: 2955.006859 | E47: 31161.96455 | F47: 32405.93296 | G47: 174363.5035 | I47: 1737.1
A48: 2026e | B48: 6340.286564 | C48: 50268.78601 | D48: 2926.709079 | E48: 34088.67363 | F48: 34375.56529 | G48: 208739.0688 | I48: 1737.1
A49: 2027e | B49: 6871.160454 | C49: 57139.94646 | D49: 3308.218716 | E49: 37396.89234 | F49: 40370.96409 | G49: 249110.0329 | I49: 1737.1
A50: 2028e | B50: 7524.970518 | C50: 64664.91698 | D50: 3742.952085 | E50: 41139.84443 | F50: 46892.63681 | G50: 296002.6697 | I50: 1737.1
A51: 2029e | B51: 8330.35298 | C51: 72995.26996 | D51: 4149.851414 | E51: 45289.69584 | F51: 53008.19651 | G51: 349010.8662 | I51: 1737.1
A52: 2030e | B52: 9056.419538 | C52: 82051.6895 | D52: 4533.54075 | E52: 49823.23659 | F52: 59084.71934 | G52: 408095.5856 | I52: 1737.1
A53: 2031e | B53: 9700.203918 | C53: 91751.89341 | D53: 4843.858068 | E53: 54667.09466 | F53: 60758.37884 | G53: 468853.9644 | I53: 1737.1
A54: 2032e | B54: 10077.11687 | C54: 101829.0103 | D54: 5080.461167 | E54: 59747.55583 | F54: 61843.79436 | G54: 530697.7588 | I54: 1737.1

Sheet Capacity Additions by Type
A1: Annual capacity additions of different resources
A21: Sources: ABB, AWEA WindIQ, Wood Mackenzie, Berkeley Lab
B23: Nameplate Capacity Additions (GW-AC)
A24: Resource Type | B24: 1998 | C24: 1999 | D24: 2000 | E24: 2001 | F24: 2002 | G24: 2003 | H24: 2004 | I24: 2005 | J24: 2006 | K24: 2007 | L24: 2008 | M24: 2009 | N24: 2010 | O24: 2011 | P24: 2012 | Q24: 2013 | R24: 2014 | S24: 2015 | T24: 2016 | U24: 2017 | V24: 2018 | W24: 2019 | X24: 2020 | Y24: 2021
A25: Wind | B25: 0.14232 | C25: 0.88527 | D25: 0.070855 | E25: 1.690456 | F25: 0.410608 | G25: 1.664856 | H25: 0.396398 | I25: 2.374415 | J25: 2.45345 | K25: 5.2525 | L25: 8.362435 | M25: 10.005193 | N25: 5.21999 | O25: 6.81955 | P25: 13.01107 | Q25: 1.08651 | R25: 4.853838 | S25: 8.59454 | T25: 8.202622 | U25: 7.01652 | V25: 7.588385 | W25: 9.13205 | X25: 17.203 | Y25: 13.422005
A26: Utility-Scale Solar | B26: 0 | C26: 0 | D26: 0 | E26: 0 | F26: 0 | G26: 0 | H26: 0 | I26: 0 | J26: 0 | K26: 0.07172886486 | L26: 0.0137402042 | M26: 0.06180824022 | N26: 0.2989133133 | O26: 0.6279 | P26: 1.4624 | Q26: 2.5365 | R26: 3.219 | S26: 3.328 | T26: 8.092322 | U26: 4.731724 | V26: 4.429047 | W26: 5.175398 | X26: 9.60196 | Y26: 12.408853
A27: Distributed Solar | B27: 0.00161169192 | C27: 0.002457953912 | D27: 0.003392273543 | E27: 0.00987426228 | F27: 0.01977209941 | G27: 0.03949361604 | H27: 0.05021548487 | I27: 0.06887647383 | J27: 0.09203530139 | K27: 0.13137 | L27: 0.24534 | M27: 0.32799 | N27: 0.50895 | O27: 1.272282 | P27: 1.576491 | Q27: 2.360105 | R27: 1.614948 | S27: 2.991318 | T27: 3.295298 | U27: 3.980295 | V27: 3.920558 | W27: 4.548006 | X27: 5.377451 | Y27: 6.526045
A28: Storage | B28: 0 | C28: 0 | D28: 0 | E28: 0 | F28: 0.328 | G28: 0.04 | H28: 0 | I28: 0 | J28: 0 | K28: 0 | L28: 0 | M28: 0 | N28: 0.004 | O28: 0.037 | P28: 0.127 | Q28: 0.2974 | R28: 0.0313 | S28: 0.2976 | T28: 0.24007 | U28: 0.156805 | V28: 0.354718 | W28: 0.337371 | X28: 0.719828 | Y28: 3.601382
A29: Other RE | B29: 0.349387 | C29: 0.40942 | D29: 0.17577 | E29: 0.62334 | F29: 0.421315 | G29: 0.33204 | H29: 0.208315 | I29: 0.1147 | J29: 0.41684 | K29: 0.552695 | L29: 0.469208 | M29: 0.69136 | N29: 0.421086 | O29: 0.804604 | P29: 1.165798 | Q29: 1.457747 | R29: 0.681575 | S29: 0.497537 | T29: 0.515588 | U29: 0.526833 | V29: 0.3791 | W29: 0.296273 | X29: 0.33481 | Y29: 0.087218
A30: Gas | B30: 3.0109 | C30: 10.600925 | D30: 29.300833 | E30: 49.2064 | F30: 71.423945 | G30: 55.029326 | H30: 27.16383 | I30: 19.47869 | J30: 10.77298 | K30: 8.404816 | L30: 10.548152 | M30: 12.027625 | N30: 7.362112 | O30: 12.063777 | P30: 9.750338 | Q30: 7.872298 | R30: 9.01301 | S30: 6.5611 | T30: 9.4532 | U30: 12.39382 | V30: 21.831292 | W30: 8.888407 | X30: 7.60686 | Y30: 6.216204
A31: Coal | B31: 0.0705 | C31: 0.3712 | D31: 0.1805 | E31: 0 | F31: 0.5242 | G31: 0.09 | H31: 0.742 | I31: 0.3727 | J31: 0.6047 | K31: 1.513504 | L31: 1.591 | M31: 3.5987 | N31: 6.014298 | O31: 1.734999 | P31: 4.76 | Q31: 1.8125 | R31: 0.1062 | S31: 0.0055 | T31: 0 | U31: 0 | V31: 0 | W31: 0.017 | X31: 0 | Y31: 0
A32: Other non-RE | B32: 0.22756 | C32: 0.301923 | D32: 1.334601 | E32: 0.821 | F32: 1.18155 | G32: 0.4059 | H32: 0.5244 | I32: 0.25767 | J32: 0.344598 | K32: 0.372985 | L32: 0.144401 | M32: 0.253185 | N32: 1.21899 | O32: 0.847275 | P32: 0.30758 | Q32: 0.14269 | R32: 0.191448 | S32: 0.1889 | T32: 1.4272 | U32: 0.11105 | V32: 0.0909 | W32: 0.0943 | X32: 0.0486 | Y32: 0.04199
A33: Total | B33: =SUM(B25:B32) -> 3.802278692 | C33: =SUM(C25:C32) -> 12.57119595 | D33: 31.06595127 | E33: 52.35107026 | F33: 74.3093901 | G33: 57.60161562 | H33: 29.08515848 | I33: 22.66705147 | J33: 14.6846033 | K33: 16.29959886 | L33: 21.3742762 | M33: 26.96586124 | N33: 21.04833931 | O33: 24.207387 | P33: 32.160677 | Q33: 17.56575 | R33: 19.711319 | S33: 22.464495 | T33: 31.2263 | U33: 28.917047 | V33: 38.594 | W33: =SUM(W25:W32) -> 28.488805 | X33: =SUM(X25:X32) -> 40.892509 | Y33: 42.303697
A34: Utility-Scale Solar % of Total | B34: =B26/B33 -> 0 | C34: =C26/C33 -> 0 | D34: 0 | E34: 0 | F34: 0 | G34: 0 | H34: 0 | I34: 0 | J34: 0 | K34: 0.004400652155 | L34: 0.0006428383384 | M34: 0.0022920922 | N34: 0.01420127778 | O34: 0.02593836336 | P34: 0.04547167959 | Q34: 0.1444003245 | R34: 0.1633071841 | S34: 0.1481448837 | T34: 0.259150844 | U34: 0.1636309544 | V34: 0.1147599886 | W34: =W26/W33 -> 0.1816642713 | X34: =X26/X33 -> 0.2348097545 | Y34: 0.2933278621
A35: Distributed Solar % of Total | B35: =B27/B33 -> 0.0004238752733 | C35: =C27/C33 -> 0.0001955226791 | D35: 0.0001091958689 | E35: 0.0001886162447 | F35: 0.0002660780741 | G35: 0.0006856338249 | H35: 0.001726498582 | I35: 0.003038616377 | J35: 0.006267469369 | K35: 0.008059707548 | L35: 0.01147828341 | M35: 0.01216315686 | N35: 0.02418005489 | O35: 0.05255759327 | P35: 0.04901921063 | Q35: 0.1343583394 | R35: 0.08192998145 | S35: 0.1331575893 | T35: 0.1055295696 | U35: 0.1376452789 | V35: 0.1015846505 | W35: =W27/W33 -> 0.1596418663 | X35: =X27/X33 -> 0.1315021047 | Y35: 0.1542665408
A36: Total Solar % of Total | B36: =SUM(B26:B27)/B33 -> 0.0004238752733 | C36: =SUM(C26:C27)/C33 -> 0.0001955226791 | D36: 0.0001091958689 | E36: 0.0001886162447 | F36: 0.0002660780741 | G36: 0.0006856338249 | H36: 0.001726498582 | I36: 0.003038616377 | J36: 0.006267469369 | K36: 0.0124603597 | L36: 0.01212112175 | M36: 0.01445524906 | N36: 0.03838133267 | O36: 0.07849595663 | P36: 0.09449089023 | Q36: 0.2787586639 | R36: 0.2452371655 | S36: 0.2813024731 | T36: 0.3646804136 | U36: 0.3012762334 | V36: 0.2163446391 | W36: =SUM(W26:W27)/W33 -> 0.3413061376 | X36: =SUM(X26:X27)/X33 -> 0.3663118592 | Y36: 0.4475944029

Sheet State Solar Market Penetration
A1: U.S. solar penetration rankings in 2021: the top 20 states | I1: U.S. solar penetration rankings in 2021: all 50 states
A3: State | B3: Solar generation as a % of in-state generation | D3: Solar generation as a % of in-state load | I3: State | J3: Solar generation as a % of in-state generation | L3: Solar generation as a % of in-state load
B5: All Solar | C5: Utility-Scale Solar Only | D5: All Solar | E5: Utility-Scale Solar Only | J5: All Solar | K5: Utility-Scale Solar Only | L5: All Solar | M5: Utility-Scale Solar Only
A7: California | B7: 0.2497610307 | C7: 0.1581999954 | D7: 0.2199364837 | E7: 0.1393089651 | I7: California | J7: 0.2497610307 | K7: 0.1581999954 | L7: 0.2199364837 | M7: 0.1393089651
A8: Massachusetts | B8: 0.1966112532 | C8: 0.08111070515 | D8: 0.08498835235 | E8: 0.03506139693 | I8: Massachusetts | J8: 0.1966112532 | K8: 0.08111070515 | L8: 0.08498835235 | M8: 0.03506139693
A9: Nevada | B9: 0.179678223 | C9: 0.1547882372 | D9: 0.196691645 | E9: 0.1694448692 | I9: Nevada | J9: 0.179678223 | K9: 0.1547882372 | L9: 0.196691645 | M9: 0.1694448692
A10: Hawaii | B10: 0.1713029347 | C10: 0.04961284772 | D10: 0.2006718925 | E10: 0.05811870101 | I10: Hawaii | J10: 0.1713029347 | K10: 0.04961284772 | L10: 0.2006718925 | M10: 0.05811870101
A11: Vermont | B11: 0.1605995717 | C11: 0.08051391863 | D11: 0.06922650914 | E11: 0.03470555658 | I11: Vermont | J11: 0.1605995717 | K11: 0.08051391863 | L11: 0.06922650914 | M11: 0.03470555658
A12: Utah | B12: 0.09528757129 | C12: 0.08018748124 | D12: 0.1270471617 | E12: 0.1069141731 | I12: Utah | J12: 0.09528757129 | K12: 0.08018748124 | L12: 0.1270471617 | M12: 0.1069141731
A13: Arizona | B13: 0.08968874202 | C13: 0.05971508954 | D13: 0.1238850714 | E13: 0.08248312957 | I13: Arizona | J13: 0.08968874202 | K13: 0.05971508954 | L13: 0.1238850714 | M13: 0.08248312957
A14: Rhode Island | B14: 0.08553100499 | C14: 0.04003326206 | D14: 0.09781279717 | E14: 0.04578182312 | I14: Rhode Island | J14: 0.08553100499 | K14: 0.04003326206 | L14: 0.09781279717 | M14: 0.04578182312
A15: North Carolina | B15: 0.07875396693 | C15: 0.07532988141 | D15: 0.07612093638 | E15: 0.07281133045 | I15: North Carolina | J15: 0.07875396693 | K15: 0.07532988141 | L15: 0.07612093638 | M15: 0.07281133045
A16: New Jersey | B16: 0.06576154806 | C16: 0.02372034956 | D16: 0.05805767191 | E16: 0.02094154279 | I16: New Jersey | J16: 0.06576154806 | K16: 0.02372034956 | L16: 0.05805767191 | M16: 0.02094154279
A17: New Mexico | B17: 0.0622673719 | C17: 0.04933814681 | D17: 0.08642454846 | E17: 0.06847931637 | I17: New Mexico | J17: 0.0622673719 | K17: 0.04933814681 | L17: 0.08642454846 | M17: 0.06847931637
A18: Delaware | B18: 0.04832535885 | C18: 0.01483253589 | D18: 0.01759581882 | E18: 0.005400696864 | I18: Delaware | J18: 0.04832535885 | K18: 0.01483253589 | L18: 0.01759581882 | M18: 0.005400696864
A19: Colorado | B19: 0.04829329087 | C19: 0.03039534723 | D19: 0.04904114886 | E19: 0.03086604208 | I19: Colorado | J19: 0.04829329087 | K19: 0.03039534723 | L19: 0.04904114886 | M19: 0.03086604208
A20: Florida | B20: 0.04358498157 | C20: 0.03679832244 | D20: 0.04449081353 | E20: 0.03756310643 | I20: Florida | J20: 0.04358498157 | K20: 0.03679832244 | L20: 0.04449081353 | M20: 0.03756310643
A21: Maryland | B21: 0.04168813642 | C21: 0.01626794258 | D21: 0.02860413826 | E21: 0.01116217991 | I21: Maryland | J21: 0.04168813642 | K21: 0.01626794258 | L21: 0.02860413826 | M21: 0.01116217991
A22: Georgia | B22: 0.04082999716 | C22: 0.03798505816 | D22: 0.03765945848 | E22: 0.03503543522 | I22: Georgia | J22: 0.04082999716 | K22: 0.03798505816 | L22: 0.03765945848 | M22: 0.03503543522
A23: Idaho | B23: 0.04007499414 | C23: 0.03310288259 | D23: 0.02715471039 | E23: 0.02243042598 | I23: Idaho | J23: 0.04007499414 | K23: 0.03310288259 | L23: 0.02715471039 | M23: 0.02243042598
A24: Virginia | B24: 0.03883997929 | C24: 0.03556368171 | D24: 0.02966724252 | E24: 0.02716469961 | I24: Virginia | J24: 0.03883997929 | K24: 0.03556368171 | L24: 0.02966724252 | M24: 0.02716469961
A25: Minnesota | B25: 0.03514638755 | C25: 0.03213670641 | D25: 0.03189294168 | E25: 0.02916186199 | I25: Minnesota | J25: 0.03514638755 | K25: 0.03213670641 | L25: 0.03189294168 | M25: 0.02916186199
A26: Texas | B26: 0.03368540663 | C26: 0.0291011118 | D26: 0.03836811254 | E26: 0.03314654162 | I26: Texas | J26: 0.03368540663 | K26: 0.0291011118 | L26: 0.03836811254 | M26: 0.03314654162
A27: Rest of U.S. | B27: 0.0086692073 | C27: 0.004799765007 | D27: 0.01046108097 | E27: 0.00579184793 | I27: New York | J27: 0.03069201664 | K27: 0.009662591075 | L27: 0.02784179958 | M27: 0.008765273631
A28: TOTAL U.S. | B28: 0.03930875904 | C28: 0.02753658963 | D28: 0.04314202233 | E28: 0.03022186897 | I28: Oregon | J28: 0.02951813117 | K28: 0.02456586192 | L28: 0.03492608084 | M28: 0.02906651761
I29: Maine | J29: 0.02831634954 | K29: 0.01605194337 | L29: 0.02733286908 | M29: 0.01549442897
A30: Source: EIA | I30: South Carolina | J30: 0.02695511798 | K30: 0.02269013074 | L30: 0.03372481548 | M30: 0.02838868941
I31: Connecticut | J31: 0.02556464521 | K31: 0.006446736617 | L31: 0.0416274524 | M31: 0.01049735756
I32: New Hampshire | J32: 0.01117540277 | K32: 0.0002269117313 | L32: 0.01812994662 | M32: 0.0003681207436
I33: Arkansas | J33: 0.009824224251 | K33: 0.00767051573 | L33: 0.01218059321 | M33: 0.009510311396
I34: Indiana | J34: 0.009379121169 | K34: 0.00705807881 | L34: 0.008859434949 | M34: 0.006666998854
I35: Wisconsin | J35: 0.008847670824 | K35: 0.005984741194 | L35: 0.008369587139 | M35: 0.005661355844
I36: Illinois | J36: 0.007922135475 | K36: 0.002888734483 | L36: 0.01065748121 | M36: 0.003886153371
I37: Ohio | J37: 0.00756392936 | K37: 0.005314974962 | L37: 0.006302407722 | M37: 0.004428536763
I38: Iowa | J38: 0.007156955808 | K38: 0.003420271512 | L38: 0.008977848341 | M38: 0.00429046647
I39: Missouri | J39: 0.006991040732 | K39: 0.001533683524 | L39: 0.006971172227 | M39: 0.001529324803
I40: Mississippi | J40: 0.006547359232 | K40: 0.00630001455 | L40: 0.009321015784 | M40: 0.008968888521
I41: Michigan | J41: 0.005643399116 | K41: 0.00394005609 | L41: 0.006599332019 | M41: 0.004607460464
I42: Tennessee | J42: 0.005198180637 | K42: 0.004119312957 | L42: 0.004232339466 | M42: 0.003353929388
I43: Wyoming | J43: 0.004511209325 | K43: 0.00409901761 | L43: 0.01242588621 | M43: 0.01129052605
I44: Louisiana | J44: 0.00437294065 | K44: 0.001627140707 | L44: 0.004705418892 | M44: 0.001750853541
I45: Pennsylvania | J45: 0.003981992317 | K45: 0.001122385399 | L45: 0.006735816395 | M45: 0.001898592808
I46: Alabama | J46: 0.003581120779 | K46: 0.003462216378 | L46: 0.005978444904 | M46: 0.00577994185
I47: Washington | J47: 0.003307929894 | K47: 0.0004660343221 | L47: 0.004129780049 | M47: 0.0005818198412
I48: Montana | J48: 0.003100775194 | K48: 0.001346389229 | L48: 0.005096908323 | M48: 0.002213131245
I49: Kansas | J49: 0.002182791156 | K49: 0.001091395578 | L49: 0.003050430504 | M49: 0.001525215252
I50: Nebraska | J50: 0.002094647013 | K50: 0.001448151021 | L50: 0.002540538845 | M50: 0.001756421918
I51: Alaska | J51: 0.002014775017 | K51: 0 | L51: 0.002017145739 | M51: 0
I52: Oklahoma | J52: 0.00166226291 | K52: 0.00106682545 | L52: 0.00206726319 | M52: 0.001326751003
I53: Kentucky | J53: 0.001543472104 | K53: 0.000608892665 | L53: 0.001450741342 | M53: 0.0005723108047
I54: West Virginia | J54: 0.0003350951213 | K54: 0 | L54: 0.0006711409396 | M54: 0
I55: South Dakota | J55: 0.0002242529573 | K55: 0.0001121264787 | L55: 0.0003070310101 | M55: 0.0001535155051
I56: North Dakota | J56: 2.341591345e-05 | K56: 0 | L56: 4.352557127e-05 | M56: 0
I57: TOTAL U.S. | J57: 0.03930875904 | K57: 0.02753658963 | L57: 0.04314202233 | M57: 0.03022186897
I59: Source: EIA

Sheet Solar Capacity&Generation by BA
A1: Annual solar capacity and generation by balancing authority
A22: Sources: Capacity Information: EIA 860/861, DPV Generation: EIA 861, Utility-Scale Generation: Berkeley Lab hourly modeling
A23: Notes: Capacity penetration based on reported peak load, not including coincident hourly DPV generation. Generation penetration based on annual load, including annual DPV generation. Curtailment based on ISO reports.
A27: Region | B27: BA | C27: Date | D27: Capacity (MWAC) | G27: Generation (MWh)
D28: DPV | E28: Utility-Scale | F28: Penetration (right axis) | G28: DPV | H28: Utility-Scale | I28: Curtailment | J28: Penetration (right axis)
A29: ISOs | B29: CAISO | C29: 2012 | D29: 1354.68 | E29: 1147.62 | F29: 0.05514224641 | G29: 2114401.72 | H29: 1500354.969 | I29: 0 | J29: 0.0147
C30: 2013 | D30: 1887.49 | E30: 2433.42 | F30: 0.09614628068 | G30: 2944520.13 | H30: 3655219.492 | I30: 0 | J30: 0.0229
C31: 2014 | D31: 2586.72 | E31: 5716.47 | F31: 0.185778628 | G31: 4253413.26 | H31: 10896156.71 | I31: 0 | J31: 0.043
C32: 2015 | D32: 3588.03 | E32: 7222.83 | F32: 0.2366650613 | G32: 5533132.23 | H32: 16652466.15 | I32: 130976.5126 | J32: 0.0825
C33: 2016 | D33: 4837.22 | E33: 10374.82 | F33: 0.3328309813 | G33: 7571800.92 | H33: 21229923.06 | I33: 232936.2077 | J33: 0.1067
C34: 2017 | D34: 6088.37 | E34: 10984.61 | F34: 0.3733594297 | G34: 9756830.75 | H34: 26331739.76 | I34: 347795.6786 | J34: 0.1489
C35: 2018 | D35: 7239.73 | E35: 11875.11 | F35: 0.4178107104 | G35: 11885158.4 | H35: 28441455.65 | I35: 421968.0342 | J35: 0.1679
C36: 2019 | D36: 8418.77 | E36: 12903.91 | F36: 0.4830146109 | G36: 13948585.72 | H36: 28767419.56 | I36: 1053506.947 | J36: 0.184
C37: 2020 | D37: 9702.67 | E37: 14712.51 | F37: 0.534202258 | G37: 16014711.81 | H37: 31362324.39 | I37: 1661767.579 | J37: 0.2027
C38: 2021 | D38: 11224 | E38: 15999.41 | F38: 0.6216951746 | G38: 18241796.89 | H38: 35457331.93 | I38: 1425583.114 | J38: 0.2287
B39: ERCOT | C39: 2012 | D39: 31.4 | E39: 75.6 | F39: 0.00160309232 | G39: 44898.34 | H39: 123639.0234 | I39: 0 | J39: 0.0004
C40: 2013 | D40: 43.63 | E40: 126.3 | F40: 0.002513906148 | G40: 65848.2 | H40: 163149.1828 | I40: 269.0673131 | J40: 0.0006
C41: 2014 | D41: 105.58 | E41: 170.3 | F41: 0.004134148534 | G41: 155498.9 | H41: 286364.0019 | I41: 201.1407026 | J41: 0.0012
C42: 2015 | D42: 136.87 | E42: 304.16 | F42: 0.006334817581 | G42: 207839.03 | H42: 396179.7816 | I42: 545.8859257 | J42: 0.0015
C43: 2016 | D43: 209.82 | E43: 574.06 | F43: 0.01102612072 | G43: 306376.1 | H43: 708231.893 | I43: 1809.658371 | J43: 0.0026
C44: 2017 | D44: 272.04 | E44: 1243.31 | F44: 0.02180485208 | G44: 419177.26 | H44: 2150933.199 | I44: 40793.89524 | J44: 0.0048
C45: 2018 | D45: 412.95 | E45: 1901.91 | F45: 0.03157718121 | G45: 622628 | H45: 3115154.687 | I45: 268566.9312 | J45: 0.0092
C46: 2019 | D46: 583.29 | E46: 2401.31 | F46: 0.03997267833 | G46: 870841.25 | H46: 4228178.036 | I46: 265693.4015 | J46: 0.0137
C47: 2020 | D47: 938.65 | E47: 4896.71 | F47: 0.07850823377 | G47: 1372067.32 | H47: 8019673.298 | I47: 611141.917 | J47: 0.0193
C48: 2021 | D48: 1267.97 | E48: 8853.95 | F48: 0.1374316587 | G48: 1892696.47 | H48: 15685964.24 | I48: 1876158.838 | J48: 0.0349
B49: SPP | C49: 2012 | D49: 6.56 | E49: 0 | F49: 0.0001295648911 | G49: 8634.71 | H49: 122400.6256 | I49: 0 | J49: 0.0005
C50: 2013 | D50: 22.21 | E50: 52.96 | F50: 0.001670110422 | G50: 26575.75 | H50: 124118.3704 | I50: 0 | J50: 0.0006
C51: 2014 | D51: 61.18 | E51: 60.66 | F51: 0.002693191866 | G51: 84645.33 | H51: 130009.228 | I51: 0 | J51: 0.0009
C52: 2015 | D52: 66.35 | E52: 69.96 | F52: 0.002752903161 | G52: 102429.68 | H52: 134344.4815 | I52: 0 | J52: 0.0009
C53: 2016 | D53: 87.98 | E53: 253.66 | F53: 0.006749431028 | G53: 137049.29 | H53: 193249.8492 | I53: 0 | J53: 0.0009
C54: 2017 | D54: 113.8 | E54: 307.44 | F54: 0.008335114172 | G54: 176469.16 | H54: 615148.4692 | I54: 0 | J54: 0.0029
C55: 2018 | D55: 148.8 | E55: 328.14 | F55: 0.009614175133 | G55: 228112.54 | H55: 739002.0222 | I55: 0 | J55: 0.0034
C56: 2019 | D56: 200.75 | E56: 351.64 | F56: 0.01091356102 | G56: 296534.16 | H56: 705071.6446 | I56: 0 | J56: 0.0037
C57: 2020 | D57: 249.23 | E57: 387.54 | F57: 0.01305980289 | G57: 398051.01 | H57: 826536.0822 | I57: 0 | J57: 0.0044
C58: 2021 | D58: 349.38 | E58: 404.24 | F58: 0.01484300726 | G58: 510059.29 | H58: 891835.3974 | I58: 0 | J58: 0.0051
B59: MISO | C59: 2012 | D59: 35.85 | E59: 11.3 | F59: 0.0004872428154 | G59: 43993.63 | H59: 7848.005853 | I59: 0 | J59: 0.0001
C60: 2013 | D60: 59.16 | E60: 56.8 | F60: 0.001229418687 | G60: 71887.55 | H60: 40479.88053 | I60: 0 | J60: 0.0002
C61: 2014 | D61: 215.65 | E61: 100.81 | F61: 0.002787727165 | G61: 278673.24 | H61: 113166.0074 | I61: 0 | J61: 0.0006
C62: 2015 | D62: 271.81 | E62: 143.81 | F62: 0.003512321266 | G62: 381430.52 | H62: 170175.033 | I62: 0 | J62: 0.0008
C63: 2016 | D63: 333.62 | E63: 438.41 | F63: 0.006461042765 | G63: 479566.2 | H63: 263920.7208 | I63: 0 | J63: 0.0011
C64: 2017 | D64: 454.37 | E64: 847.4 | F64: 0.0109013181 | G64: 614205.89 | H64: 979027.0502 | I64: 0 | J64: 0.002
C65: 2018 | D65: 579.79 | E65: 1204.92 | F65: 0.01485723086 | G65: 818357.72 | H65: 1792330.082 | I65: 0 | J65: 0.0033
C66: 2019 | D66: 786.39 | E66: 1437.02 | F66: 0.0185969153 | G66: 1033830.01 | H66: 2008397.21 | I66: 0 | J66: 0.0044
C67: 2020 | D67: 1058.35 | E67: 2052.82 | F67: 0.02690229751 | G67: 1394099.52 | H67: 2622858.438 | I67: 0 | J67: 0.006
C68: 2021 | D68: 1410.48 | E68: 3179.22 | F68: 0.03901578585 | G68: 1890423.04 | H68: 4152026.088 | I68: 0 | J68: 0.0084
B69: PJM | C69: 2012 | D69: 1009.1 | E69: 479.27 | F69: 0.009643512009 | G69: 1188182.49 | H69: 565040.0372 | I69: 0 | J69: 0.0021
C70: 2013 | D70: 1296.03 | E70: 610.37 | F70: 0.01226177053 | G70: 1671317.04 | H70: 840525.3185 | I70: 0 | J70: 0.003
C71: 2014 | D71: 1467.09 | E71: 775.73 | F71: 0.01583041198 | G71: 2165773.26 | H71: 968837.1223 | I71: 0 | J71: 0.0038
C72: 2015 | D72: 1750.88 | E72: 1148.13 | F72: 0.0201834087 | G72: 2357187.98 | H72: 1317681.537 | I72: 0 | J72: 0.0048
C73: 2016 | D73: 2022.12 | E73: 1640.26 | F73: 0.02406654083 | G73: 2562752.66 | H73: 2177930.722 | I73: 0 | J73: 0.0056
C74: 2017 | D74: 2520.2 | E74: 2254.65 | F74: 0.03278596785 | G74: 3234425.09 | H74: 2913878.17 | I74: 0 | J74: 0.0075
C75: 2018 | D75: 2913.07 | E75: 2728.75 | F75: 0.03744487954 | G75: 3768780.47 | H75: 3870071.477 | I75: 0 | J75: 0.0091
C76: 2019 | D76: 3460.92 | E76: 3300.87 | F76: 0.04461166458 | G76: 4446073.12 | H76: 4844572.021 | I76: 0 | J76: 0.0115
C77: 2020 | D77: 4056.71 | E77: 4544.22 | F77: 0.05948578029 | G77: 5189919.92 | H77: 6055481.718 | I77: 0 | J77: 0.0141
C78: 2021 | D78: 4699.69 | E78: 6376.62 | F78: 0.07445240265 | G78: 6013620.9 | H78: 9866658.76 | I78: 0 | J78: 0.0183
B79: NYISO | C79: 2012 | D79: 106.73 | E79: 43.5 | F79: 0.004761950044 | G79: 120676.73 | H79: 59548.45724 | I79: 0 | J79: 0.0011
C80: 2013 | D80: 164.96 | E80: 47.1 | F80: 0.006717562088 | G80: 190025.97 | H80: 66936.15191 | I80: 0 | J80: 0.0016
C81: 2014 | D81: 321.59 | E81: 58 | F81: 0.01274561816 | G81: 350159.19 | H81: 75354.74423 | I81: 0 | J81: 0.0026
C82: 2015 | D82: 536.74 | E82: 85.2 | F82: 0.01997366562 | G82: 588516.52 | H82: 98839.67474 | I82: 0 | J82: 0.0042
C83: 2016 | D83: 727.84 | E83: 122.4 | F83: 0.02701146869 | G83: 873428.91 | H83: 151936.8359 | I83: 0 | J83: 0.0062
C84: 2017 | D84: 983.54 | E84: 168.1 | F84: 0.0387770632 | G84: 1181575.57 | H84: 187054.4065 | I84: 0 | J84: 0.0086
C85: 2018 | D85: 1227.1 | E85: 306.8 | F85: 0.0485334599 | G85: 1496725.1 | H85: 317680.0443 | I85: 0 | J85: 0.0107
C86: 2019 | D86: 1515.29 | E86: 528.8 | F86: 0.06724643879 | G86: 1852105.73 | H86: 542278.5052 | I86: 0 | J86: 0.0147
C87: 2020 | D87: 1811.61 | E87: 667.6 | F87: 0.08086138291 | G87: 2290435.34 | H87: 897747.7172 | I87: 0 | J87: 0.0204
C88: 2021 | D88: 2205.93 | E88: 838.8 | F88: 0.09847440085 | G88: 2689763.11 | H88: 1164952.417 | I88: 0 | J88: 0.0246
B89: ISO-NE | C89: 2012 | D89: 196.69 | E89: 72.7 | F89: 0.01066933344 | G89: 199715.98 | H89: 54205.69575 | I89: 0 | J89: 0.0017
C90: 2013 | D90: 396 | E90: 204.6 | F90: 0.02385794868 | G90: 424032.46 | H90: 149157.3777 | I90: 0 | J90: 0.0041
C91: 2014 | D91: 701.35 | E91: 382.45 | F91: 0.04433989281 | G91: 823192.49 | H91: 420144.0084 | I91: 0 | J91: 0.0088
C92: 2015 | D92: 1034.03 | E92: 451.35 | F92: 0.06078405696 | G92: 1171252.62 | H92: 601055.928 | I92: 0 | J92: 0.0134
C93: 2016 | D93: 1344.11 | E93: 611.36 | F93: 0.07733409792 | G93: 1705874.88 | H93: 747698.5586 | I93: 0 | J93: 0.019
C94: 2017 | D94: 1791.72 | E94: 866.36 | F94: 0.1109012016 | G94: 2216909.46 | H94: 999117.6877 | I94: 0 | J94: 0.0251
C95: 2018 | D95: 2308.98 | E95: 1076.55 | F95: 0.1342611834 | G95: 2972212.61 | H95: 1310864.205 | I95: 0 | J95: 0.0332
C96: 2019 | D96: 2563.57 | E96: 1302.83 | F96: 0.1589541194 | G96: 3255324.47 | H96: 1691288.023 | I96: 0 | J96: 0.0397
C97: 2020 | D97: 2893.37 | E97: 1523.71 | F97: 0.175958252 | G97: 3776045.52 | H97: 2036832.524 | I97: 0 | J97: 0.0476
C98: 2021 | D98: 3290.66 | E98: 1909.31 | F98: 0.2059475623 | G98: 4286790.58 | H98: 2448994.283 | I98: 0 | J98: 0.0533
A101: Region | B101: BA | C101: Date | D101: Capacity (GWAC) | G101: Generation (TWh)
D102: DPV | E102: Utility-Scale | F102: Penetration (right axis) | G102: DPV | H102: Utility-Scale | I102: Curtailment | J102: Penetration (right axis)
A103: West | B103: AZPS | C103: 2012 | D103: 186.22 | E103: 152.5 | F103: 0.04577297297 | G103: 300013.65 | H103: 239444.9572 | I103: 0 | J103: 0.0154
C104: 2013 | D104: 287.24 | E104: 614.14 | F104: 0.1266210779 | G104: 485450.21 | H104: 694005.1818 | I104: 0 | J104: 0.0268
C105: 2014 | D105: 381.5 | E105: 651.26 | F105: 0.1436783528 | G105: 682815 | H105: 1581052.107 | I105: 0 | J105: 0.0696
C106: 2015 | D106: 453.68 | E106: 679.36 | F106: 0.1547868852 | G106: 808346.03 | H106: 1645684.352 | I106: 0 | J106: 0.0754
C107: 2016 | D107: 549.26 | E107: 679.36 | F107: 0.1688824742 | G107: 1010155.26 | H107: 1679528.362 | I107: 0 | J107: 0.0849
C108: 2017 | D108: 651.83 | E108: 719.36 | F108: 0.1861765105 | G108: 1154434.71 | H108: 1751240.005 | I108: 0 | J108: 0.0891
C109: 2018 | D109: 788.33 | E109: 725.96 | F109: 0.2086373657 | G109: 1427082.67 | H109: 1741116.247 | I109: 0 | J109: 0.1007
C110: 2019 | D110: 946.03 | E110: 727.76 | F110: 0.2380924609 | G110: 1697240.67 | H110: 1761912.457 | I110: 0 | J110: 0.1102
C111: 2020 | D111: 1088.19 | E111: 727.76 | F111: 0.2385954539 | G111: 1921951.86 | H111: 1775219.584 | I111: 0 | J111: 0.1128
C112: 2021 | D112: 1291.13 | E112: 727.76 | F112: 0.266520132 | G112: 2214787.92 | H112: 1688307.755 | I112: 0 | J112: 0.1181
B113: NEVP | C113: 2012 | D113: 36.05 | E113: 175.3 | F113: 0.02593888071 | G113: 62760.99 | H113: 312479.7356 | I113: 0 | J113: 0.0064
C114: 2013 | D114: 43.52 | E114: 208.6 | F114: 0.03093496933 | G114: 75792.61 | H114: 420728.1904 | I114: 0 | J114: 0.013
C115: 2014 | D115: 59.06 | E115: 246.09 | F115: 0.03926273803 | G115: 103524.74 | H115: 532677.1279 | I115: 0 | J115: 0.0161
C116: 2015 | D116: 151.41 | E116: 394.49 | F116: 0.06685035513 | G116: 186237.19 | H116: 614422.3689 | I116: 0 | J116: 0.0207
C117: 2016 | D117: 209.53 | E117: 761.39 | F117: 0.1154482759 | G117: 372148.41 | H117: 1034707.172 | I117: 0 | J117: 0.0352
C118: 2017 | D118: 227.3 | E118: 1065.03 | F118: 0.1526313925 | G118: 412005.82 | H118: 2387318.603 | I118: 0 | J118: 0.0615
C119: 2018 | D119: 301.55 | E119: 1088.13 | F119: 0.164537059 | G119: 496071.72 | H119: 2761996.784 | I119: 0 | J119: 0.0837
C120: 2019 | D120: 413.75 | E120: 1405.43 | F120: 0.2193897733 | G120: 680498.05 | H120: 3000494.822 | I120: 0 | J120: 0.0906
C121: 2020 | D121: 516.95 | E121: 1560.03 | F121: 0.2451581681 | G121: 872340.55 | H121: 3541824.365 | I121: 0 | J121: 0.1141
C122: 2021 | D122: 636.73 | E122: 2013.03 | F122: 0.2887707062 | G122: 1069251.13 | H122: 4575420.503 | I122: 0 | J122: 0.121
B123: PACE | C123: 2012 | D123: 21.38 | E123: 1.3 | F123: 0.002306873119 | G123: 26263.23 | H123: 1619 | I123: 0 | J123: 0.0004
C124: 2013 | D124: 28.4 | E124: 1.3 | F124: 0.002826665448 | G124: 37815.19 | H124: 2100 | I124: 0 | J124: 0.0007
C125: 2014 | D125: 58.26 | E125: 1.3 | F125: 0.005774943957 | G125: 78929.59 | H125: 2235 | I125: 0 | J125: 0.0014
C126: 2015 | D126: 88 | E126: 166.4 | F126: 0.02013614057 | G126: 113613.68 | H126: 21870.85676 | I126: 0 | J126: 0.0017
C127: 2016 | D127: 175.09 | E127: 855.88 | F127: 0.08521821789 | G127: 225224.6 | H127: 1016234.088 | I127: 0 | J127: 0.0089
C128: 2017 | D128: 258.67 | E128: 855.88 | F128: 0.09062118871 | G128: 377890.58 | H128: 2211105 | I128: 0 | J128: 0.0362
C129: 2018 | D129: 316.56 | E129: 937.88 | F129: 0.09929866223 | G129: 497615.29 | H129: 2155383.942 | I129: 0 | J129: 0.0369
C130: 2019 | D130: 367.06 | E130: 995.48 | F130: 0.1107215992 | G130: 582946.36 | H130: 2344424.475 | I130: 0 | J130: 0.0406
C131: 2020 | D131: 431.97 | E131: 1274.48 | F131: 0.1345993059 | G131: 690921.18 | H131: 2632535.371 | I131: 0 | J131: 0.0458
C132: 2021 | D132: 524.37 | E132: 1534.58 | F132: 0.1608052171 | G132: 829306.99 | H132: 3470140.498 | I132: 0 | J132: 0.054
B133: PNM | C133: 2012 | D133: 18.61 | E133: 18 | F133: 0.01815972222 | G133: 30928.69 | H133: 36624.3877 | I133: 0 | J133: 0.0058
C134: 2013 | D134: 30.58 | E134: 54.5 | F134: 0.0423916293 | G134: 49265.96 | H134: 68088.65126 | I134: 0 | J134: 0.008
C135: 2014 | D135: 47.87 | E135: 62.08 | F135: 0.05584052819 | G135: 89763.98 | H135: 126134.2752 | I135: 0 | J135: 0.0204
C136: 2015 | D136: 58.47 | E136: 122.6 | F136: 0.09224146714 | G136: 108241.65 | H136: 177695.6984 | I136: 0 | J136: 0.0232
C137: 2016 | D137: 69.58 | E137: 122.6 | F137: 0.09628256513 | G137: 123910.03 | H137: 286653.4654 | I137: 0 | J137: 0.0398
C138: 2017 | D138: 94.05 | E138: 162.6 | F138: 0.133741532 | G138: 165484.85 | H138: 351401.0978 | I138: 0 | J138: 0.0461
C139: 2018 | D139: 111.19 | E139: 196.6 | F139: 0.1573568507 | G139: 205354.57 | H139: 459775.5143 | I139: 0 | J139: 0.0616
C140: 2019 | D140: 139.78 | E140: 306.3 | F140: 0.2302942695 | G140: 249527.66 | H140: 508609.4524 | I140: 0 | J140: 0.0716
C141: 2020 | D141: 169.36 | E141: 368.4 | F141: 0.2724214792 | G141: 299467.49 | H141: 838322.4921 | I141: 0 | J141: 0.1062
C142: 2021 | D142: 216.56 | E142: 368.4 | F142: 0.2972357724 | G142: 378629.49 | H142: 903830.4572 | I142: 0 | J142: 0.1233
B143: PSCO | C143: 2012 | D143: 142.44 | E143: 101.2 | F143: 0.03070834384 | G143: 219202.57 | H143: 216228.2499 | I143: 0 | J143: 0.0092
C144: 2013 | D144: 184.25 | E144: 102.2 | F144: 0.03682349916 | G144: 282373.11 | H144: 227784.1525 | I144: 0 | J144: 0.0123
C145: 2014 | D145: 195.61 | E145: 106.9 | F145: 0.04058902455 | G145: 325033.64 | H145: 231669.0451 | I145: 0 | J145: 0.014
C146: 2015 | D146: 225.63 | E146: 162.8 | F146: 0.04870595611 | G146: 352100.53 | H146: 222334.2957 | I146: 0 | J146: 0.013
C147: 2016 | D147: 250.18 | E147: 372.23 | F147: 0.07403473296 | G147: 410300.63 | H147: 480820.2716 | I147: 0 | J147: 0.0175
C148: 2017 | D148: 287.98 | E148: 408.83 | F148: 0.08168933177 | G148: 466960.08 | H148: 862234.182 | I148: 0 | J148: 0.0298
C149: 2018 | D149: 303.88 | E149: 472.33 | F149: 0.089901552 | G149: 501635.76 | H149: 988703.6134 | I149: 0 | J149: 0.0329
C150: 2019 | D150: 313.21 | E150: 506.33 | F150: 0.09373895518 | G150: 513082.9 | H150: 1104379.449 | I150: 0 | J150: 0.0328
C151: 2020 | D151: 364.84 | E151: 518.13 | F151: 0.1009210069 | G151: 560548.46 | H151: 1156056.577 | I151: 0 | J151: 0.0343
C152: 2021 | D152: 574.39 | E152: 884.23 | F152: 0.1666613346 | G152: 827513.28 | H152: 1331623.412 | I152: 0 | J152: 0.0391
A153: Southeast | B153: TVA | C153: 2012 | D153: 0 | E153: 11.8 | F153: 0.0003794456235 | G153: 0 | H153: 5995.895719 | I153: 0 | J153: 0
C154: 2013 | D154: 0 | E154: 11.8 | F154: 0.0004107776927 | G154: 0 | H154: 20394 | I154: 0 | J154: 0.0001
C155: 2014 | D155: 0 | E155: 43.48 | F155: 0.001325528931 | G155: 0 | H155: 25792.40864 | I155: 0 | J155: 0.0001
C156: 2015 | D156: 0 | E156: 43.48 | F156: 0.001327593051 | G156: 0 | H156: 76147 | I156: 0 | J156: 0.0005
C157: 2016 | D157: 0 | E157: 146.68 | F157: 0.004918186695 | G157: 0 | H157: 109842.6098 | I157: 0 | J157: 0.0005
C158: 2017 | D158: 0 | E158: 175.68 | F158: 0.005875781799 | G158: 0 | H158: 237206.5037 | I158: 0 | J158: 0.0015
C159: 2018 | D159: 0 | E159: 280.38 | F159: 0.008624688548 | G159: 0 | H159: 335935.32 | I159: 0 | J159: 0.002
C160: 2019 | D160: 0 | E160: 289.58 | F160: 0.009793364672 | G160: 0 | H160: 525886.6469 | I160: 0 | J160: 0.0033
C161: 2020 | D161: 0 | E161: 291.28 | F161: 0.01006809305 | G161: 0 | H161: 514731.1102 | I161: 0 | J161: 0.0033
C162: 2021 | D162: 0 | E162: 527.28 | F162: 0.01733960341 | G162: 0 | H162: 649000.4041 | I162: 0 | J162: 0.0035
B163: SOCO | C163: 2012 | D163: 18.58 | E163: 2 | F163: 0.0004891730646 | G163: 25277.97 | H163: 2466.182433 | I163: 0 | J163: 0.0001
C164: 2013 | D164: 22.94 | E164: 60.85 | F164: 0.002123200892 | G164: 35475.19 | H164: 9676.770997 | I164: 0 | J164: 0.0002
C165: 2014 | D165: 61.74 | E165: 70.95 | F165: 0.002893434222 | G165: 104471.35 | H165: 123097.8735 | I165: 0 | J165: 0.001
C166: 2015 | D166: 110.21 | E166: 228.18 | F166: 0.007560436123 | G166: 149090.79 | H166: 140776.5567 | I166: 0 | J166: 0.0012
C167: 2016 | D167: 113.56 | E167: 957.9 | F167: 0.02472561961 | G167: 192683.82 | H167: 796570.7802 | I167: 0 | J167: 0.003
C168: 2017 | D168: 154.71 | E168: 1289.4 | F168: 0.03421575131 | G168: 232112.15 | H168: 2110064.246 | I168: 0 | J168: 0.0097
C169: 2018 | D169: 177.74 | E169: 1331.36 | F169: 0.03448898437 | G169: 287022.36 | H169: 2666769.284 | I169: 0 | J169: 0.0124
C170: 2019 | D170: 201.1 | E170: 1826.86 | F170: 0.04555063902 | G170: 331081.43 | H170: 2697153.002 | I170: 0 | J170: 0.013
C171: 2020 | D171: 244.13 | E171: 2629.56 | F171: 0.06702171327 | G171: 402759.97 | H171: 4419168.468 | I171: 0 | J171: 0.0186
C172: 2021 | D172: 266.21 | E172: 3465.26 | F172: 0.08278909301 | G172: 439396.02 | H172: 5536544.88 | I172: 0 | J172: 0.0249
B173: DUK | C173: 2012 | D173: 6.75 | E173: 31.1 | F173: 0.001943716941 | G173: 10450.58 | H173: 35481.47838 | I173: 0 | J173: 0.0005
C174: 2013 | D174: 23.13 | E174: 134.2 | F174: 0.008626021163 | G174: 33083.25 | H174: 114842.2064 | I174: 0 | J174: 0.0008
C175: 2014 | D175: 27.03 | E175: 246.6 | F175: 0.01315592096 | G175: 34394.47 | H175: 289678.8299 | I175: 0 | J175: 0.0027
C176: 2015 | D176: 40.62 | E176: 625.66 | F176: 0.0315757547 | G176: 50688.38 | H176: 488521.0556 | I176: 0 | J176: 0.0048
C177: 2016 | D177: 79.33 | E177: 1051.16 | F177: 0.05468966185 | G177: 104925.31 | H177: 1321443.793 | I177: 0 | J177: 0.0122
C178: 2017 | D178: 111.96 | E178: 1536.44 | F178: 0.08192842942 | G178: 152928.38 | H178: 2356374.599 | I178: 0 | J178: 0.0208
C179: 2018 | D179: 156.76 | E179: 1871.34 | F179: 0.0938066605 | G179: 215962.25 | H179: 2964406.734 | I179: 0 | J179: 0.0285
C180: 2019 | D180: 194.36 | E180: 1976.34 | F180: 0.1053891343 | G180: 283442.2 | H180: 3418358.337 | I180: 0 | J180: 0.0344
C181: 2020 | D181: 237.23 | E181: 2092.04 | F181: 0.1141910972 | G181: 346513.15 | H181: 3497214.046 | I181: 0 | J181: 0.0376
C182: 2021 | D182: 286.73 | E182: 2351.64 | F182: 0.1299049729 | G182: 418482 | H182: 3958735.654 | I182: 0 | J182: 0.0399
B183: CPLE | C183: 2012 | D183: 31.38 | E183: 83.2 | F183: 0.008684908664 | G183: 48705.12 | H183: 81190.78106 | I183: 0 | J183: 0.0009
C184: 2013 | D184: 26.98 | E184: 193.6 | F184: 0.01761399026 | G184: 38664.1 | H184: 198379.6598 | I184: 0 | J184: 0.0029
C185: 2014 | D185: 31.45 | E185: 370.3 | F185: 0.02826239887 | G185: 39944.53 | H185: 437893.2298 | I185: 0 | J185: 0.0058
C186: 2015 | D186: 29.2 | E186: 656.3 | F186: 0.04667710745 | G186: 36437.23 | H186: 752289.3546 | I186: 0 | J186: 0.0105
C187: 2016 | D187: 51.39 | E187: 840.66 | F187: 0.06708151602 | G187: 77742.98 | H187: 1330690.017 | I187: 0 | J187: 0.0187
C188: 2017 | D188: 64.87 | E188: 1137.44 | F188: 0.08272395762 | G188: 101037.98 | H188: 1724742.029 | I188: 0 | J188: 0.0251
C189: 2018 | D189: 86.04 | E189: 1312.04 | F189: 0.09548422347 | G189: 125982.4 | H189: 2133409.704 | I189: 0 | J189: 0.0324
C190: 2019 | D190: 104.25 | E190: 1433.04 | F190: 0.1124654327 | G190: 154769.27 | H190: 2450097.877 | I190: 0 | J190: 0.0377
C191: 2020 | D191: 132.92 | E191: 1515.06 | F191: 0.1245356306 | G191: 198707.43 | H191: 2514063.901 | I191: 0 | J191: 0.0416
C192: 2021 | D192: 165.68 | E192: 1739.86 | F192: 0.155948932 | G192: 246278.79 | H192: 2802150.298 | I192: 0 | J192: 0.0472
B193: FPL | C193: 2012 | D193: 14.53 | E193: 0 | F193: 0.0006789085132 | G193: 20389.59 | H193: 70556 | I193: 0 | J193: 0.0008
C194: 2013 | D194: 23.68 | E194: 0 | F194: 0.001098024668 | G194: 34432.64 | H194: 67996 | I194: 0 | J194: 0.0009
C195: 2014 | D195: 32.62 | E195: 0 | F195: 0.001426322693 | G195: 51158.78 | H195: 64972 | I195: 0 | J195: 0.001
C196: 2015 | D196: 44.17 | E196: 36 | F196: 0.003508226851 | G196: 65534.1 | H196: 68074.54207 | I196: 0 | J196: 0.0011
C197: 2016 | D197: 53.08 | E197: 262.5 | F197: 0.01330158061 | G197: 81955.3 | H197: 72851.5891 | I197: 0 | J197: 0.0012
C198: 2017 | D198: 71.16 | E198: 262.5 | F198: 0.01435035052 | G198: 108272.39 | H198: 567446.8408 | I198: 0 | J198: 0.0056
C199: 2018 | D199: 98.59 | E199: 858.5 | F199: 0.04147016768 | G199: 150291.22 | H199: 1708963.789 | I199: 0 | J199: 0.0062
C200: 2019 | D200: 152.52 | E200: 1156.5 | F200: 0.05428689918 | G200: 213435.84 | H200: 2365188.077 | I200: 0 | J200: 0.0163
C201: 2020 | D201: 225.35 | E201: 2274 | F201: 0.1022982155 | G201: 324040.18 | H201: 3630467.207 | I201: 0 | J201: 0.0212
C202: 2021 | D202: 327.69 | E202: 2944.5 | F202: 0.1364948067 | G202: 484300.64 | H202: 5468374.81 | I202: 0 | J202: 0.0407

Sheet PV Capacity by Region
A1: Annual and cumulative utility-scale PV capacity by region
A23: Sources: Berkeley Lab: Capacity Information, NREL: Long-Term Annual Average Solar Resource
B25: Annual Capacity Additions (MWAC) | N25: State-level Statistics (MWAC)
A26: Solar COD | B26: CAISO | C26: ERCOT | D26: HI | E26: ISO-NE | F26: MISO | G26: NYISO | H26: PJM | I26: SPP | J26: Southeast (non-ISO) | K26: West (non-ISO) | L26: Total | N26: State | O26: Cumulative Capacity | P26: 2021 Annual Capacity | Q26: 2021 Annual New Project Count
A27: 2007 | K27: 18.9 | L27: 18.9 | N27: CA | O27: 13579.1 | P27: 1242.3 | Q27: 14
A28: 2008 | B28: 10 | L28: 10 | N28: TX | O28: 8819.97 | P28: 3945.34 | Q28: 20
A29: 2009 | B29: 21 | J29: 25 | L29: 46 | N29: FL | O29: 4823.26 | P29: 1103.8 | Q29: 15
A30: 2010 | B30: 48 | C30: 13.9 | H30: 23.43 | J30: 40.1 | K30: 49.64 | L30: 175.07 | N30: NC | O30: 3224.62 | P30: 522 | Q30: 10
A31: 2011 | B31: 95 | C31: 30 | G31: 31.5 | H31: 73.58 | I31: 49.86 | J31: 5.5 | K31: 199.71 | L31: 485.15 | N31: GA | O31: 2953.46 | P31: 866 | Q31: 8
A32: 2012 | B32: 425.42 | C32: 30.4 | D32: 5.76 | H32: 107.4 | J32: 40.1 | K32: 352.06 | L32: 961.14 | N32: NV | O32: 2907.13 | P32: 631 | Q32: 4
A33: 2013 | B33: 900.1 | C33: 50.7 | F33: 38.8 | H33: 17.3 | J33: 43.65 | K33: 293.24 | L33: 1343.79 | N33: AZ | O33: 2360.34 | P33: 380 | Q33: 3
A34: 2014 | B34: 2676.44 | C34: 39.6 | D34: 12 | E34: 20.25 | F34: 16.71 | H34: 102.45 | J34: 61.68 | K34: 254.95 | L34: 3184.08 | N34: VA | O34: 2179.7 | P34: 886.6 | Q34: 15
A35: 2015 | B35: 1337.16 | C35: 130.26 | D35: 22.2 | F35: 20.4 | H35: 246.15 | J35: 415.1 | K35: 715.41 | L35: 2886.68 | N35: UT | O35: 1407.06 | P35: 260 | Q35: 3
A36: 2016 | B36: 3102.19 | C36: 269.5 | D36: 6.5 | E36: 26.61 | F36: 110.6 | G36: 9.5 | H36: 368.79 | I36: 165 | J36: 1334.89 | K36: 2047.78 | L36: 7441.36 | N36: SC | O36: 1016.39 | P36: 10 | Q36: 1
A37: 2017 | B37: 528.89 | C37: 660.75 | D37: 45.6 | E37: 27.2 | F37: 273.29 | G37: 15 | H37: 472.79 | I37: 18.68 | J37: 1200.68 | K37: 835.84 | L37: 4078.72 | N37: CO | O37: 898.83 | P37: 351 | Q37: 4
A38: 2018 | B38: 835.8 | C38: 646 | D38: 20 | E38: 64.59 | F38: 111.62 | G38: 32.6 | H38: 360.9 | I38: 18.4 | J38: 1377.3 | K38: 494.9 | L38: 3962.12 | N38: NM | O38: 665.3
A39: 2019 | B39: 978.8 | C39: 497.7 | D39: 129.35 | E39: 110.48 | F39: 13.2 | G39: 65 | H39: 492.13 | I39: 16 | J39: 1548.2 | K39: 755.3 | L39: 4606.16 | N39: OR | O39: 562.4 | P39: 116.2 | Q39: 3
A40: 2020 | B40: 1754.7 | C40: 2495.4 | D40: 14 | E40: 106 | F40: 440.9 | G40: 22 | H40: 1131.95 | I40: 30 | J40: 2815.39 | K40: 815.7 | L40: 9626.04 | N40: NJ | O40: 513.85 | P40: 21.3 | Q40: 1
A41: 2021 | B41: 1232.3 | C41: 3945.34 | E41: 287.31 | F41: 998 | G41: 30 | H41: 1706.9 | I41: 5 | J41: 2567.8 | K41: 1748.2 | L41: 12520.86 | N41: IN | O41: 494.37 | P41: 321.4 | Q41: 8
N42: IL | O42: 446.15 | P42: 417.9 | Q42: 5
B43: Cumulative Capacity (MWAC) | N43: WI | O43: 434 | P43: 270 | Q43: 3
A44: Solar COD | B44: CAISO | C44: ERCOT | D44: HI | E44: ISO-NE | F44: MISO | G44: NYISO | H44: PJM | I44: SPP | J44: Southeast (non-ISO) | K44: West (non-ISO) | L44: Total | N44: AL | O44: 425.1 | P44: 227 | Q44: 1
A45: 2007 | K45: 18.9 | L45: 18.9 | N45: OH | O45: 420.58 | P45: 363.5 | Q45: 3
A46: 2008 | B46: 10 | K46: 18.9 | L46: 28.9 | N46: MI | O46: 294.03 | P46: 116.9 | Q46: 2
A47: 2009 | B47: 31 | J47: 25 | K47: 18.9 | L47: 74.9 | N47: MN | O47: 270.08 | P47: 7.3 | Q47: 1
A48: 2010 | B48: 79 | C48: 13.9 | H48: 23.43 | J48: 65.1 | K48: 68.54 | L48: 249.97 | N48: HI | O48: 255.41
A49: 2011 | B49: 174 | C49: 43.9 | G49: 31.5 | H49: 97.01 | I49: 49.86 | J49: 70.6 | K49: 268.25 | L49: 735.12 | N49: ID | O49: 240
A50: 2012 | B50: 599.42 | C50: 74.3 | D50: 5.76 | G50: 31.5 | H50: 204.41 | I50: 49.86 | J50: 110.7 | K50: 620.31 | L50: 1696.26 | N50: MD | O50: 238.7 | P50: 20 | Q50: 1
A51: 2013 | B51: 1499.52 | C51: 125 | D51: 5.76 | F51: 38.8 | G51: 31.5 | H51: 221.71 | I51: 49.86 | J51: 154.35 | K51: 913.55 | L51: 3040.05 | N51: AR | O51: 208.5 | P51: 5 | Q51: 1
A52: 2014 | B52: 4175.96 | C52: 164.6 | D52: 17.76 | E52: 20.25 | F52: 55.51 | G52: 31.5 | H52: 324.16 | I52: 49.86 | J52: 216.03 | K52: 1168.5 | L52: 6224.14 | N52: MS | O52: 207.1
A53: 2015 | B53: 5513.12 | C53: 294.86 | D53: 39.96 | E53: 20.25 | F53: 75.91 | G53: 31.5 | H53: 570.32 | I53: 49.86 | J53: 631.13 | K53: 1883.91 | L53: 9110.82 | N53: NY | O53: 205.61 | P53: 30 | Q53: 3
A54: 2016 | B54: 8615.31 | C54: 564.36 | D54: 46.46 | E54: 46.86 | F54: 186.51 | G54: 41 | H54: 939.11 | I54: 214.86 | J54: 1966.01 | K54: 3931.69 | L54: 16552.18 | N54: ME | O54: 172.7 | P54: 113.4 | Q54: 4
A55: 2017 | B55: 9144.2 | C55: 1225.11 | D55: 92.06 | E55: 74.06 | F55: 459.8 | G55: 56 | H55: 1411.9 | I55: 233.54 | J55: 3166.69 | K55: 4767.52 | L55: 20630.9 | N55: TN | O55: 171.28 | P55: 9 | Q55: 1
A56: 2018 | B56: 9980 | C56: 1871.11 | D56: 112.06 | E56: 138.65 | F56: 571.43 | G56: 88.6 | H56: 1772.8 | I56: 251.94 | J56: 4543.99 | K56: 5262.42 | L56: 24593.02 | N56: MA | O56: 166.08 | P56: 70.01 | Q56: 14
A57: 2019 | B57: 10958.8 | C57: 2368.81 | D57: 241.41 | E57: 249.13 | F57: 584.63 | G57: 153.6 | H57: 2264.93 | I57: 267.94 | J57: 6092.2 | K57: 6017.72 | L57: 29199.18 | N57: CT | O57: 151.5 | P57: 65.5 | Q57: 2
A58: 2020 | B58: 12713.5 | C58: 4864.21 | D58: 255.41 | E58: 355.14 | F58: 1025.53 | G58: 175.6 | H58: 3396.88 | I58: 297.95 | J58: 8907.58 | K58: 6833.42 | L58: 38825.22 | N58: RI | O58: 122.58 | P58: 38.4 | Q58: 4
A59: 2021 | B59: 13945.8 | C59: 8809.55 | D59: 255.41 | E59: 642.45 | F59: 2023.53 | G59: 205.61 | H59: 5103.78 | I59: 302.95 | J59: 11475.38 | K59: 8581.62 | L59: 51346.08 | N59: IA | O59: 100 | P59: 100 | Q59: 1
N60: PA | O60: 88.5
B61: Annual Capacity Additions (MWDC) | N61: WY | O61: 80
A62: Solar COD | B62: CAISO | C62: ERCOT | D62: HI | E62: ISO-NE | F62: MISO | G62: NYISO | H62: PJM | I62: SPP | J62: Southeast (non-ISO) | K62: West (non-ISO) | L62: Total | N62: LA | O62: 70
A63: 2007 | K63: 22.28 | L63: 22.28 | N63: VT | O63: 29.59
A64: 2008 | B64: 12.14 | L64: 12.14 | N64: MO | O64: 26.32 | P64: 10 | Q64: 1
A65: 2009 | B65: 25.2 | J65: 27.6 | L65: 52.8 | N65: KS | O65: 26
A66: 2010 | B66: 60.5 | C66: 16.6 | H66: 28.17 | J66: 48.3 | K66: 57.15 | L66: 210.72 | N66: OK | O66: 25
A67: 2011 | B67: 118.41 | C67: 34.99 | G67: 37.69 | H67: 85.32 | I67: 54 | J67: 5.92 | K67: 242.82 | L67: 579.15 | N67: DE | O67: 22
A68: 2012 | B68: 560.55 | C68: 35.43 | D68: 7.2 | H68: 133.73 | J68: 49.31 | K68: 431.2 | L68: 1217.42 | N68: WA | O68: 19.2
A69: 2013 | B69: 1171.33 | C69: 61.67 | F69: 52.27 | H69: 21.36 | J69: 55 | K69: 392.52 | L69: 1754.16 | N69: KY | O69: 18.5
A70: 2014 | B70: 3462.85 | C70: 48.1 | D70: 14.26 | E70: 24.66 | F70: 22.06 | H70: 139.33 | J70: 78.6 | K70: 322.1 | L70: 4111.96 | N70: NE | O70: 5.76
A71: 2015 | B71: 1697.12 | C71: 162.37 | D71: 28.83 | F71: 27.27 | H71: 332.86 | J71: 563.24 | K71: 939.58 | L71: 3751.27
A72: 2016 | B72: 3981.58 | C72: 344.1 | D72: 8.13 | E72: 36.54 | F72: 152.15 | G72: 14.25 | H72: 469.58 | I72: 223.6 | J72: 1794.3 | K72: 2647.55 | L72: 9671.78
A73: 2017 | B73: 700.85 | C73: 855.63 | D73: 63.59 | E73: 34.56 | F73: 385.09 | G73: 19.02 | H73: 621.27 | I73: 24.73 | J73: 1628.3 | K73: 1091.58 | L73: 5424.62
A74: 2018 | B74: 1120.33 | C74: 854.69 | D74: 28.19 | E74: 87.95 | F74: 119.14 | G74: 42.4 | H74: 506.69 | I74: 24.07 | J74: 1959.88 | K74: 655.38 | L74: 5398.72
A75: 2019 | B75: 1222.86 | C75: 647.44 | D75: 137.6 | E75: 155.5 | F75: 16.67 | G75: 87.2 | H75: 672.25 | I75: 19.27 | J75: 2158.37 | K75: 980.45 | L75: 6097.6
A76: 2020 | B76: 2277.73 | C76: 3246.09 | D76: 19.3 | E76: 147.27 | F76: 626.48 | G76: 28.71 | H76: 1513.15 | I76: 39.7 | J76: 3858.09 | K76: 1055.44 | L76: 12811.97
A77: 2021 | B77: 1607.3 | C77: 5263.8 | E77: 407.42 | F77: 1319.03 | G77: 41.43 | H77: 2251.81 | I77: 6.42 | J77: 3516.4 | K77: 2270.57 | L77: 16684.18
B79: Cumulative Capacity (MWDC)
A80: Solar COD | B80: CAISO | C80: ERCOT | D80: HI | E80: ISO-NE | F80: MISO | G80: NYISO | H80: PJM | I80: SPP | J80: Southeast (non-ISO) | K80: West (non-ISO) | L80: Total
A81: 2007 | K81: 22.28 | L81: 22.28
A82: 2008 | B82: 12.14 | K82: 22.28 | L82: 34.42
A83: 2009 | B83: 37.34 | J83: 27.6 | K83: 22.28 | L83: 87.22
A84: 2010 | B84: 97.84 | C84: 16.6 | H84: 28.17 | J84: 75.9 | K84: 79.43 | L84: 297.94
A85: 2011 | B85: 216.25 | C85: 51.59 | G85: 37.69 | H85: 113.5 | I85: 54 | J85: 81.81 | K85: 322.25 | L85: 877.09
A86: 2012 | B86: 776.79 | C86: 87.02 | D86: 7.2 | G86: 37.69 | H86: 247.23 | I86: 54 | J86: 131.13 | K86: 753.45 | L86: 2094.51
A87: 2013 | B87: 1948.13 | C87: 148.7 | D87: 7.2 | F87: 52.27 | G87: 37.69 | H87: 268.59 | I87: 54 | J87: 186.13 | K87: 1145.97 | L87: 3848.68
A88: 2014 | B88: 5410.98 | C88: 196.8 | D88: 21.46 | E88: 24.66 | F88: 74.33 | G88: 37.69 | H88: 407.92 | I88: 54 | J88: 264.73 | K88: 1468.07 | L88: 7960.64
A89: 2015 | B89: 7108.1 | C89: 359.17 | D89: 50.29 | E89: 24.66 | F89: 101.6 | G89: 37.69 | H89: 740.78 | I89: 54 | J89: 827.97 | K89: 2407.66 | L89: 11711.92
A90: 2016 | B90: 11089.69 | C90: 703.27 | D90: 58.42 | E90: 61.2 | F90: 253.75 | G90: 51.94 | H90: 1210.36 | I90: 277.6 | J90: 2622.27 | K90: 5055.21 | L90: 21383.7
A91: 2017 | B91: 11790.53 | C91: 1558.9 | D91: 122.01 | E91: 95.76 | F91: 638.84 | G91: 70.96 | H91: 1831.63 | I91: 302.33 | J91: 4250.57 | K91: 6146.79 | L91: 26808.32
A92: 2018 | B92: 12910.86 | C92: 2413.59 | D92: 150.2 | E92: 183.72 | F92: 757.98 | G92: 113.36 | H92: 2338.32 | I92: 326.4 | J92: 6210.45 | K92: 6802.17 | L92: 32207.04
A93: 2019 | B93: 14133.71 | C93: 3061.03 | D93: 287.8 | E93: 339.22 | F93: 774.65 | G93: 200.56 | H93: 3010.57 | I93: 345.67 | J93: 8368.81 | K93: 7782.62 | L93: 38304.64
A94: 2020 | B94: 16411.44 | C94: 6307.12 | D94: 307.1 | E94: 486.48 | F94: 1401.13 | G94: 229.27 | H94: 4523.72 | I94: 385.37 | J94: 12226.9 | K94: 8838.06 | L94: 51116.6
A95: 2021 | B95: 18018.74 | C95: 11570.92 | D95: 307.1 | E95: 893.9 | F95: 2720.16 | G95: 270.7 | H95: 6775.53 | I95: 391.79 | J95: 15743.3 | K95: 11108.63 | L95: 67800.78
B97: Annual New Project Count
A98: Solar COD | B98: CAISO | C98: ERCOT | D98: HI | E98: ISO-NE | F98: MISO | G98: NYISO | H98: PJM | I98: SPP | J98: Southeast (non-ISO) | K98: West (non-ISO) | L98: Total
A99: 2007 | K99: 2 | L99: 2
A100: 2008 | B100: 1 | L100: 1
A101: 2009 | B101: 1 | J101: 1 | L101: 2
A102: 2010 | B102: 1 | C102: 1 | H102: 3 | J102: 3 | K102: 2 | L102: 10
A103: 2011 | B103: 6 | C103: 1 | G103: 1 | H103: 7 | I103: 5 | J103: 1 | K103: 14 | L103: 35
A104: 2012 | B104: 10 | C104: 3 | D104: 1 | H104: 9 | J104: 3 | K104: 18 | L104: 44
A105: 2013 | B105: 16 | C105: 2 | F105: 4 | H105: 2 | J105: 3 | K105: 11 | L105: 38
A106: 2014 | B106: 32 | C106: 1 | D106: 1 | E106: 2 | F106: 2 | H106: 9 | J106: 3 | K106: 15 | L106: 65
A107: 2015 | B107: 34 | C107: 3 | D107: 2 | F107: 3 | H107: 13 | J107: 16 | K107: 18 | L107: 89
A108: 2016 | B108: 45 | C108: 2 | D108: 1 | E108: 2 | F108: 3 | G108: 1 | H108: 23 | I108: 3 | J108: 30 | K108: 42 | L108: 152
A109: 2017 | B109: 24 | C109: 15 | D109: 3 | E109: 4 | F109: 17 | G109: 2 | H109: 23 | I109: 3 | J109: 47 | K109: 28 | L109: 166
A110: 2018 | B110: 7 | C110: 10 | D110: 1 | E110: 4 | F110: 4 | G110: 2 | H110: 15 | I110: 2 | J110: 29 | K110: 22 | L110: 96
A111: 2019 | B111: 11 | C111: 9 | D111: 4 | E111: 9 | F111: 2 | G111: 5 | H111: 20 | I111: 3 | J111: 26 | K111: 22 | L111: 111
A112: 2020 | B112: 19 | C112: 16 | D112: 1 | E112: 7 | F112: 11 | G112: 4 | H112: 34 | I112: 3 | J112: 45 | K112: 24 | L112: 164
A113: 2021 | B113: 14 | C113: 20 | E113: 24 | F113: 16 | G113: 3 | H113: 29 | I113: 1 | J113: 32 | K113: 17 | L113: 156
B115: Cumulative Project Count
A116: Solar COD | B116: CAISO | C116: ERCOT | D116: HI | E116: ISO-NE | F116: MISO | G116: NYISO | H116: PJM | I116: SPP | J116: Southeast (non-ISO) | K116: West (non-ISO) | L116: Total
A117: 2007 | K117: 2 | L117: 2
A118: 2008 | B118: 1 | K118: 2 | L118: 3
A119: 2009 | B119: 2 | J119: 1 | K119: 2 | L119: 5
A120: 2010 | B120: 3 | C120: 1 | H120: 3 | J120: 4 | K120: 4 | L120: 15
A121: 2011 | B121: 9 | C121: 2 | G121: 1 | H121: 10 | I121: 5 | J121: 5 | K121: 18 | L121: 50
A122: 2012 | B122: 19 | C122: 5 | D122: 1 | G122: 1 | H122: 19 | I122: 5 | J122: 8 | K122: 36 | L122: 94
A123: 2013 | B123: 35 | C123: 7 | D123: 1 | F123: 4 | G123: 1 | H123: 21 | I123: 5 | J123: 11 | K123: 47 | L123: 132
A124: 2014 | B124: 67 | C124: 8 | D124: 2 | E124: 2 | F124: 6 | G124: 1 | H124: 30 | I124: 5 | J124: 14 | K124: 62 | L124: 197
A125: 2015 | B125: 101 | C125: 11 | D125: 4 | E125: 2 | F125: 9 | G125: 1 | H125: 43 | I125: 5 | J125: 30 | K125: 80 | L125: 286
A126: 2016 | B126: 146 | C126: 13 | D126: 5 | E126: 4 | F126: 12 | G126: 2 | H126: 66 | I126: 8 | J126: 60 | K126: 122 | L126: 438
A127: 2017 | B127: 170 | C127: 28 | D127: 8 | E127: 8 | F127: 29 | G127: 4 | H127: 89 | I127: 11 | J127: 107 | K127: 150 | L127: 604
A128: 2018 | B128: 177 | C128: 38 | D128: 9 | E128: 12 | F128: 33 | G128: 6 | H128: 104 | I128: 13 | J128: 136 | K128: 172 | L128: 700
A129: 2019 | B129: 188 | C129: 47 | D129: 13 | E129: 21 | F129: 35 | G129: 11 | H129: 124 | I129: 16 | J129: 162 | K129: 194 | L129: 811
A130: 2020 | B130: 207 | C130: 63 | D130: 14 | E130: 28 | F130: 46 | G130: 15 | H130: 158 | I130: 19 | J130: 207 | K130: 218 | L130: 975
A131: 2021 | B131: 221 | C131: 83 | D131: 14 | E131: 52 | F131: 62 | G131: 18 | H131: 187 | I131: 20 | J131: 239 | K131: 235 | L131: 1131

Sheet PV+Storage Capacity by Region
A1: Annual and cumulative storage capacity that is coupled with utility-scale PV by region | O1: Annual and cumulative utility-scale PV capacity with/without hybrid capabilities
A23: Sources: Berkeley Lab: Capacity Information, NREL: Long-Term Annual Average Solar Resource
B25: Annual Capacity Additions (Storage MW) | O25: Installation Year | P25: PV standalone | V25: PV-storage hybrid
A26: Storage COD | B26: CAISO | C26: ERCOT | D26: HI | E26: ISO-NE | F26: MISO | G26: NYISO | H26: PJM | I26: SPP | J26: Southeast (non-ISO) | K26: West (non-ISO) | L26: Total | P26: Annual New Project Count | Q26: Annual Retrofit Project Count | R26: Cumulative Net Project Count | S26: Annual New Solar Capacity GWAC | T26: Annual Retrofit Solar Capacity GWAC | U26: Cumulative Net Solar Capacity GWAC | V26: Annual New Project Count | W26: Annual Retrofit Project Count | X26: Cumulative Project Count | Y26: Annual New Solar Capacity GWAC | Z26: Annual Retrofit Solar Capacity GWAC | AA26: Cumulative Solar Capacity GWAC
A27: 2012 | D27: 3 | L27: 3 | O27: 2007 | P27: 2 | R27: 2 | S27: 0.02 | U27: 0.02
A28: 2013 | H28: 33 | L28: 33 | O28: 2008 | P28: 1 | R28: 3 | S28: 0.01 | U28: 0.03
A29: 2016 | C29: 1 | L29: 1 | O29: 2009 | P29: 2 | R29: 5 | S29: 0.05 | U29: 0.07
A30: 2017 | D30: 13.6 | J30: 1 | L30: 14.6 | O30: 2010 | P30: 10 | R30: 15 | S30: 0.18 | U30: 0.25
A31: 2018 | D31: 20 | F31: 9 | J31: 14 | K31: 46 | L31: 89 | O31: 2011 | P31: 35 | R31: 50 | S31: 0.49 | U31: 0.74
A32: 2019 | C32: 20 | E32: 13.3 | I32: 12 | J32: 2 | K32: 1.5 | L32: 48.8 | O32: 2012 | P32: 43 | R32: 93 | S32: 0.96 | U32: 1.69 | V32: 1 | X32: 1 | Y32: 0.01 | AA32: 0.01
A33: 2020 | E33: 4.1 | G33: 5.82 | L33: 9.92 | O33: 2013 | P33: 38 | Q33: -1 | R33: 130 | S33: 1.34 | T33: -0.02 | U33: 3.01 | W33: 1 | X33: 2 | Z33: 0.02 | AA33: 0.03
A34: 2021 | B34: 1221.95 | C34: 185 | D34: 14 | E34: 50.88 | G34: 13.5 | H34: 10 | J34: 577 | K34: 146 | L34: 2218.33 | O34: 2014 | P34: 65 | R34: 195 | S34: 3.18 | U34: 6.2
O35: 2015 | P35: 88 | R35: 283 | S35: 2.88 | U35: 9.07
B36: Cumulative Capacity (Storage MW) | O36: 2016 | P36: 151 | Q36: -1 | R36: 433 | S36: 7.39 | T36: -0.04 | U36: 16.43 | W36: 1 | X36: 3 | Z36: 0.04 | AA36: 0.07
A37: Storage COD | B37: CAISO | C37: ERCOT | D37: HI | E37: ISO-NE | F37: MISO | G37: NYISO | H37: PJM | I37: SPP | J37: Southeast (non-ISO) | K37: West (non-ISO) | L37: Total | O37: 2017 | P37: 162 | R37: 595 | S37: 4.04 | U37: 20.46 | V37: 2 | X37: 5 | Y37: 0.02 | AA37: 0.09
A38: 2012 | D38: 3 | L38: 3 | O38: 2018 | P38: 92 | Q38: -3 | R38: 684 | S38: 3.91 | T38: -0.2 | U38: 24.16 | V38: 3 | W38: 3 | X38: 11 | Y38: 0.05 | Z38: 0.2 | AA38: 0.34
A39: 2013 | D39: 3 | H39: 33 | L39: 36 | O39: 2019 | P39: 98 | Q39: -3 | R39: 779 | S39: 4.42 | T39: -0.19 | U39: 28.39 | V39: 8 | W39: 3 | X39: 22 | Y39: 0.13 | Z39: 0.19 | AA39: 0.66
A40: 2016 | C40: 1 | D40: 3 | H40: 33 | L40: 37 | O40: 2020 | P40: 155 | Q40: -1 | R40: 933 | S40: 9.55 | T40: -0.01 | U40: 37.94 | V40: 3 | W40: 1 | X40: 26 | Y40: 0.02 | Z40: 0.01 | AA40: 0.68
A41: 2017 | C41: 1 | D41: 16.6 | H41: 33 | J41: 1 | L41: 51.6 | O41: 2021 | P41: 127 | Q41: -18 | R41: 1042 | S41: 10.72 | T41: -1.73 | U41: 46.93 | V41: 29 | W41: 18 | X41: 73 | Y41: 1.8 | Z41: 1.73 | AA41: 4.21
A42: 2018 | C42: 1 | D42: 36.6 | F42: 9 | H42: 33 | J42: 15 | K42: 46 | L42: 140.6
A43: 2019 | C43: 21 | D43: 36.6 | E43: 13.3 | F43: 9 | H43: 33 | I43: 12 | J43: 17 | K43: 47.5 | L43: 189.4
A44: 2020 | C44: 21 | D44: 36.6 | E44: 17.4 | F44: 9 | G44: 5.82 | H44: 33 | I44: 12 | J44: 17 | K44: 47.5 | L44: 199.32
A45: 2021 | B45: 1221.95 | C45: 206 | D45: 50.6 | E45: 68.28 | F45: 9 | G45: 19.32 | H45: 43 | I45: 12 | J45: 594 | K45: 193.5 | L45: 2417.65
B47: Annual Energy Additions (Storage MWh)
A48: Storage COD | B48: CAISO | C48: ERCOT | D48: HI | E48: ISO-NE | F48: MISO | G48: NYISO | H48: PJM | I48: SPP | J48: Southeast (non-ISO) | K48: West (non-ISO) | L48: Total | O48: State-level Hybrid Statistics
A49: 2012 | D49: 2.01 | L49: 2.01 | O49: State | P49: 2021 Annual New Project Count | Q49: 2021 Annual Capacity MW | R49: Cumulative Capacity MW | S49: 2021 Annual Energy MWh | T49: Cumulative Energy MWh
A50: 2013 | H50: 13.5 | L50: 13.5 | O50: CA | P50: 14 | Q50: 1221.95 | R50: 1259.45 | S50: 4799.4 | T50: 4818.9
A51: 2016 | C51: 0.25 | L51: 0.25 | O51: FL | P51: 4 | Q51: 487 | R51: 503 | S51: 1086 | T51: 1146
A52: 2017 | D52: 57.12 | J52: 2 | L52: 59.12 | O52: TX | P52: 3 | Q52: 185 | R52: 206 | S52: 231 | T52: 283.25
A53: 2018 | D53: 100 | F53: 18 | J53: 56 | K53: 58 | L53: 232 | O53: NV | P53: 2 | Q53: 115 | R53: 115 | S53: 460 | T53: 460
A54: 2019 | C54: 52 | E54: 35.2 | I54: 26.2 | J54: 4 | K54: 1.5 | L54: 118.9 | O54: MA | P54: 14 | Q54: 50.88 | R54: 64.62 | S54: 142.88 | T54: 166.78
A55: 2020 | E55: 8.5 | G55: 13.2 | L55: 21.7 | O55: HI | P55: 1 | Q55: 14 | R55: 56.6 | S55: 70 | T55: 233.76
A56: 2021 | B56: 4799.4 | C56: 231 | D56: 70 | E56: 142.88 | G56: 37.6 | H56: 10 | J56: 1166 | K56: 492 | L56: 6948.88 | O56: SC | P56: 1 | Q56: 50 | R56: 50 | S56: 0 | T56: 0
O57: AZ | P57: 1 | Q57: 30 | R57: 40 | S57: 30 | T57: 70
B58: Cumulative Energy (Storage MWh) | O58: GA | P58: 1 | Q58: 40 | R58: 40 | S58: 80 | T58: 80
A59: Storage COD | B59: CAISO | C59: ERCOT | D59: HI | E59: ISO-NE | F59: MISO | G59: NYISO | H59: PJM | I59: SPP | J59: Southeast (non-ISO) | K59: West (non-ISO) | L59: Total | O59: IL | R59: 33 | T59: 13.5
A60: 2012 | D60: 2.01 | L60: 2.01 | O60: NY | P60: 4 | Q60: 13.5 | R60: 19.32 | S60: 37.6 | T60: 46.4
A61: 2013 | D61: 2.01 | H61: 13.5 | L61: 15.51 | O61: AR | R61: 12 | T61: 26.2
A62: 2016 | C62: 0.25 | D62: 2.01 | H62: 13.5 | L62: 15.76 | O62: NC | P62: 1 | Q62: 10 | R62: 10 | S62: 10 | T62: 10
A63: 2017 | C63: 0.25 | D63: 59.13 | H63: 13.5 | J63: 2 | L63: 74.88 | O63: MN | R63: 9 | T63: 18
A64: 2018 | C64: 0.25 | D64: 159.13 | F64: 18 | H64: 13.5 | J64: 58 | K64: 58 | L64: 306.88 | O64: VT | R64: 4 | T64: 16
A65: 2019 | C65: 52.25 | D65: 159.13 | E65: 35.2 | F65: 18 | H65: 13.5 | I65: 26.2 | J65: 62 | K65: 59.5 | L65: 425.78 | O65: CO | P65: 1 | Q65: 1 | R65: 1 | S65: 2 | T65: 2
A66: 2020 | C66: 52.25 | D66: 159.13 | E66: 43.7 | F66: 18 | G66: 13.2 | H66: 13.5 | I66: 26.2 | J66: 62 | K66: 59.5 | L66: 447.48 | O66: AL | R66: 1 | T66: 2
A67: 2021 | B67: 4799.4 | C67: 283.25 | D67: 229.13 | E67: 186.58 | F67: 18 | G67: 50.8 | H67: 23.5 | I67: 26.2 | J67: 1228 | K67: 551.5 | L67: 7396.36
B69: Annual New Project Count
A70: Storage COD | B70: CAISO | C70: ERCOT | D70: HI | E70: ISO-NE | F70: MISO | G70: NYISO | H70: PJM | I70: SPP | J70: Southeast (non-ISO) | K70: West (non-ISO) | L70: Total
A71: 2012 | D71: 1 | L71: 1
A72: 2013 | H72: 1 | L72: 1
A73: 2016 | C73: 1 | L73: 1
A74: 2017 | D74: 1 | J74: 1 | L74: 2
A75: 2018 | D75: 1 | F75: 1 | J75: 2 | K75: 2 | L75: 6
A76: 2019 | C76: 2 | E76: 5 | I76: 2 | J76: 1 | K76: 1 | L76: 11
A77: 2020 | E77: 2 | G77: 2 | L77: 4
A78: 2021 | B78: 14 | C78: 3 | D78: 1 | E78: 14 | G78: 4 | H78: 1 | J78: 6 | K78: 4 | L78: 47
B80: Cumulative Project Count
A81: Storage COD | B81: CAISO | C81: ERCOT | D81: HI | E81: ISO-NE | F81: MISO | G81: NYISO | H81: PJM | I81: SPP | J81: Southeast (non-ISO) | K81: West (non-ISO) | L81: Total
A82: 2012 | D82: 1 | L82: 1
A83: 2013 | D83: 1 | H83: 1 | L83: 2
A84: 2016 | C84: 1 | D84: 1 | H84: 1 | L84: 3
A85: 2017 | C85: 1 | D85: 2 | H85: 1 | J85: 1 | L85: 5
A86: 2018 | C86: 1 | D86: 3 | F86: 1 | H86: 1 | J86: 3 | K86: 2 | L86: 11
A87: 2019 | C87: 3 | D87: 3 | E87: 5 | F87: 1 | H87: 1 | I87: 2 | J87: 4 | K87: 3 | L87: 22
A88: 2020 | C88: 3 | D88: 3 | E88: 7 | F88: 1 | G88: 2 | H88: 1 | I88: 2 | J88: 4 | K88: 3 | L88: 26
A89: 2021 | B89: 14 | C89: 6 | D89: 4 | E89: 21 | F89: 1 | G89: 6 | H89: 2 | I89: 2 | J89: 10 | K89: 7 | L89: 73
O496: State | P496: 2021 Annual New Project Count | Q496: 2021 Annual Capacity MW | R496: Cumulative Capacity MW | S496: 2021 Annual Energy MWh | T496: Cumulative Energy MWh
O497: CA | P497: 14 | Q497: 1221.95 | R497: 1259.45 | S497: 4799.4 | T497: 4818.9
O498: FL | P498: 4 | Q498: 487 | R498: 503 | S498: 1086 | T498: 1146
O499: TX | P499: 3 | Q499: 185 | R499: 206 | S499: 231 | T499: 283.25
O500: NV | P500: 2 | Q500: 115 | R500: 115 | S500: 460 | T500: 460
O501: MA | P501: 14 | Q501: 50.88 | R501: 64.28 | S501: 142.88 | T501: 170.58
O502: HI | P502: 1 | Q502: 14 | R502: 56.6 | S502: 70 | T502: 233.76
O503: SC | P503: 1 | Q503: 50 | R503: 50 | S503: 0 | T503: 0
O504: AZ | P504: 1 | Q504: 30 | R504: 40 | S504: 30 | T504: 70
O505: GA | P505: 1 | Q505: 40 | R505: 40 | S505: 80 | T505: 80
O506: IL | R506: 33 | T506: 13.5
O507: NY | P507: 4 | Q507: 13.5 | R507: 19.32 | S507: 37.6 | T507: 50.8
O508: AR | R508: 12 | T508: 26.2
O509: NC | P509: 1 | Q509: 10 | R509: 10 | S509: 10 | T509: 10
O510: MN | R510: 9 | T510: 18
O511: VT | R511: 4 | T511: 16
O512: CO | P512: 1 | Q512: 1 | R512: 1 | S512: 2 | T512: 2
O513: AL | R513: 1 | T513: 2

Sheet PV Capacity by Technology
A1: Annual and cumulative utility-scale PV capacity by module and/or mounting type | J1: Annual and cumulative utility-scale PV capacity by mounting type | T1: Annual and cumulative utility-scale PV capacity by module type | AE1: 2021 utility-scale PV capacity by module manufacturer
A23: Sources: Berkeley Lab
A24: Installation Year | B24: Tracking c-Si | F24: Fixed-Tilt c-Si | J24: Tracking Thin-Film | N24: Fixed-Tilt Thin-Film | R24: Total Tracking | V24: Total Fixed-Tilt | Z24: Total c-Si | AD24: Total Thin-Film
B25: Annual Project Count | C25: Cumulative Project Count | D25: Annual Capacity GWAC | E25: Cumulative Capacity GWAC | F25: Annual Project Count | G25: Cumulative Project Count | H25: Annual Capacity GWAC | I25: Cumulative Capacity GWAC | J25: Annual Project Count | K25: Cumulative Project Count | L25: Annual Capacity GWAC | M25: Cumulative Capacity GWAC | N25: Annual Project Count | O25: Cumulative Project Count | P25: Annual Capacity GWAC | Q25: Cumulative Capacity GWAC | R25: Annual Project Count | S25: Cumulative Project Count | T25: Annual Capacity GWAC | U25: Cumulative Capacity GWAC | V25: Annual Project Count | W25: Cumulative Project Count | X25: Annual Capacity GWAC | Y25: Cumulative Capacity GWAC | Z25: Annual Project Count | AA25: Cumulative Project Count | AB25: Annual Capacity GWAC | AC25: Cumulative Capacity GWAC | AD25: Annual Project Count | AE25: Cumulative Project Count | AF25: Annual Capacity GWAC | AG25: Cumulative Capacity GWAC
A26: 2007 | B26: 1 | C26: 1 | D26: 0.01 | E26: 0.01 | R26: 1 | S26: 1 | T26: 0.01 | U26: 0.01 | Z26: 1 | AA26: 1 | AB26: 0.01 | AC26: 0.01
A27: 2008 | C27: 1 | E27: 0.01 | N27: 1 | O27: 1 | P27: 0.01 | Q27: 0.01 | S27: 1 | U27: 0.01 | V27: 1 | W27: 1 | X27: 0.01 | Y27: 0.01 | AA27: 1 | AC27: 0.01 | AD27: 1 | AE27: 1 | AF27: 0.01 | AG27: 0.01
A28: 2009 | B28: 1 | C28: 2 | D28: 0.02 | E28: 0.04 | N28: 1 | O28: 2 | P28: 0.02 | Q28: 0.03 | R28: 1 | S28: 2 | T28: 0.02 | U28: 0.04 | V28: 1 | W28: 2 | X28: 0.02 | Y28: 0.03 | Z28: 1 | AA28: 2 | AB28: 0.02 | AC28: 0.04 | AD28: 1 | AE28: 2 | AF28: 0.02 | AG28: 0.03
A29: 2010 | B29: 3 | C29: 5 | D29: 0.04 | E29: 0.08 | F29: 2 | G29: 2 | H29: 0.02 | I29: 0.02 | N29: 5 | O29: 7 | P29: 0.12 | Q29: 0.15 | R29: 3 | S29: 5 | T29: 0.04 | U29: 0.08 | V29: 7 | W29: 9 | X29: 0.13 | Y29: 0.16 | Z29: 5 | AA29: 7 | AB29: 0.06 | AC29: 0.1 | AD29: 5 | AE29: 7 | AF29: 0.12 | AG29: 0.15
A30: 2011 | B30: 17 | C30: 22 | D30: 0.23 | E30: 0.31 | F30: 9 | G30: 11 | H30: 0.14 | I30: 0.15 | J30: 1 | K30: 1 | L30: 0.02 | M30: 0.02 | N30: 7 | O30: 14 | P30: 0.1 | Q30: 0.24 | R30: 19 | S30: 24 | T30: 0.25 | U30: 0.33 | V30: 16 | W30: 25 | X30: 0.23 | Y30: 0.39 | Z30: 26 | AA30: 33 | AB30: 0.36 | AC30: 0.46 | AD30: 8 | AE30: 15 | AF30: 0.12 | AG30: 0.26
A31: 2012 | B31: 21 | C31: 43 | D31: 0.35 | E31: 0.66 | F31: 15 | G31: 26 | H31: 0.35 | I31: 0.5 | J31: 1 | K31: 2 | L31: 0.03 | M31: 0.05 | N31: 6 | O31: 20 | P31: 0.2 | Q31: 0.44 | R31: 23 | S31: 47 | T31: 0.41 | U31: 0.74 | V31: 21 | W31: 46 | X31: 0.55 | Y31: 0.95 | Z31: 36 | AA31: 69 | AB31: 0.7 | AC31: 1.16 | AD31: 7 | AE31: 22 | AF31: 0.23 | AG31: 0.49
A32: 2013 | B32: 20 | C32: 63 | D32: 0.74 | E32: 1.4 | F32: 10 | G32: 36 | H32: 0.11 | I32: 0.61 | K32: 2 | M32: 0.05 | N32: 8 | O32: 28 | P32: 0.5 | Q32: 0.94 | R32: 20 | S32: 67 | T32: 0.74 | U32: 1.48 | V32: 18 | W32: 64 | X32: 0.61 | Y32: 1.55 | Z32: 30 | AA32: 99 | AB32: 0.85 | AC32: 2.01 | AD32: 8 | AE32: 30 | AF32: 0.5 | AG32: 0.99
A33: 2014 | B33: 29 | C33: 92 | D33: 0.75 | E33: 2.14 | F33: 18 | G33: 54 | H33: 0.2 | I33: 0.82 | J33: 11 | K33: 13 | L33: 0.53 | M33: 0.58 | N33: 5 | O33: 33 | P33: 1.68 | Q33: 2.62 | R33: 41 | S33: 108 | T33: 1.29 | U33: 2.77 | V33: 23 | W33: 87 | X33: 1.88 | Y33: 3.44 | Z33: 47 | AA33: 146 | AB33: 0.95 | AC33: 2.96 | AD33: 16 | AE33: 46 | AF33: 2.22 | AG33: 3.2
A34: 2015 | B34: 43 | C34: 135 | D34: 1.66 | E34: 3.8 | F34: 26 | G34: 80 | H34: 0.67 | I34: 1.48 | J34: 12 | K34: 25 | L34: 0.34 | M34: 0.92 | N34: 7 | O34: 40 | P34: 0.21 | Q34: 2.83 | R34: 56 | S34: 164 | T34: 2.01 | U34: 4.78 | V34: 33 | W34: 120 | X34: 0.87 | Y34: 4.31 | Z34: 69 | AA34: 215 | AB34: 2.33 | AC34: 5.29 | AD34: 19 | AE34: 65 | AF34: 0.54 | AG34: 3.74
A35: 2016 | B35: 93 | C35: 228 | D35: 4.79 | E35: 8.59 | F35: 38 | G35: 118 | H35: 0.92 | I35: 2.41 | J35: 15 | K35: 40 | L35: 1.11 | M35: 2.02 | N35: 6 | O35: 46 | P35: 0.62 | Q35: 3.45 | R35: 108 | S35: 272 | T35: 5.9 | U35: 10.68 | V35: 44 | W35: 164 | X35: 1.54 | Y35: 5.86 | Z35: 131 | AA35: 346 | AB35: 5.71 | AC35: 11 | AD35: 21 | AE35: 86 | AF35: 1.73 | AG35: 5.47
A36: 2017 | B36: 105 | C36: 333 | D36: 2.54 | E36: 11.13 | F36: 36 | G36: 154 | H36: 0.62 | I36: 3.03 | J36: 16 | K36: 56 | L36: 0.65 | M36: 2.68 | N36: 9 | O36: 55 | P36: 0.26 | Q36: 3.71 | R36: 121 | S36: 393 | T36: 3.2 | U36: 13.87 | V36: 45 | W36: 209 | X36: 0.88 | Y36: 6.74 | Z36: 141 | AA36: 487 | AB36: 3.17 | AC36: 14.17 | AD36: 25 | AE36: 111 | AF36: 0.91 | AG36: 6.38
A37: 2018 | B37: 41 | C37: 374 | D37: 1.75 | E37: 12.89 | F37: 33 | G37: 187 | H37: 1.22 | I37: 4.26 | J37: 21 | K37: 77 | L37: 0.94 | M37: 3.62 | N37: 1 | O37: 56 | P37: 0.05 | Q37: 3.76 | R37: 62 | S37: 455 | T37: 2.69 | U37: 16.56 | V37: 34 | W37: 243 | X37: 1.27 | Y37: 8.01 | Z37: 74 | AA37: 561 | AB37: 2.98 | AC37: 17.14 | AD37: 22 | AE37: 133 | AF37: 0.99 | AG37: 7.37
A38: 2019 | B38: 61 | C38: 435 | D38: 2.4 | E38: 15.29 | F38: 28 | G38: 215 | H38: 0.56 | I38: 4.82 | J38: 21 | K38: 98 | L38: 1.6 | M38: 5.21 | N38: 1 | O38: 57 | P38: 0.04 | Q38: 3.8 | R38: 82 | S38: 537 | T38: 4 | U38: 20.56 | V38: 29 | W38: 272 | X38: 0.61 | Y38: 8.62 | Z38: 89 | AA38: 650 | AB38: 2.97 | AC38: 20.11 | AD38: 22 | AE38: 155 | AF38: 1.64 | AG38: 9.01
A39: 2020 | B39: 100 | C39: 535 | D39: 6.07 | E39: 21.35 | F39: 26 | G39: 241 | H39: 0.76 | I39: 5.58 | J39: 34 | K39: 132 | L39: 2.63 | M39: 7.84 | N39: 4 | O39: 61 | P39: 0.17 | Q39: 3.97 | R39: 134 | S39: 671 | T39: 8.69 | U39: 29.25 | V39: 30 | W39: 302 | X39: 0.93 | Y39: 9.55 | Z39: 126 | AA39: 776 | AB39: 6.82 | AC39: 26.93 | AD39: 38 | AE39: 193 | AF39: 2.8 | AG39: 11.81 | AI39: =R39/(R39+V39) -> 0.8170731707
A40: 2021 | B40: 84 | C40: 619 | D40: 7.36 | E40: 28.71 | F40: 39 | G40: 280 | H40: 1.29 | I40: 6.87 | J40: 33 | K40: 165 | L40: 3.87 | M40: 11.71 | O40: 61 | Q40: 3.97 | R40: 117 | S40: 788 | T40: 11.23 | U40: 40.48 | V40: 39 | W40: 341 | X40: 1.29 | Y40: 10.84 | Z40: 123 | AA40: 899 | AB40: 8.65 | AC40: 35.58 | AD40: 33 | AE40: 226 | AF40: 3.87 | AG40: 15.68 | AI40: =R40/(R40+V40) -> 0.75
A46: Installation Year | B46: Project Capacity MWAC by Module Manufacturer
B47: 2007 | C47: 2008 | D47: 2009 | E47: 2010 | F47: 2011 | G47: 2012 | H47: 2013 | I47: 2014 | J47: 2015 | K47: 2016 | L47: 2017 | M47: 2018 | N47: 2019 | O47: 2020 | P47: 2021
A48: ASE | I48: 14
A49: AUO | I49: 6
A50: Adani | M50: 20
A51: Amonix | F51: 5 | G51: 30
A52: Astroenergy | G52: 5 | N52: 16 | P52: 330
A53: BP Solar | F53: 32 | I53: 14
A54: BYD | I54: 49 | J54: 79 | K54: 166 | L54: 28
A55: Bosch | G55: 12
A56: Boviet | M56: 10 | N56: 23 | O56: 77
A57: CSUN | K57: 6 | M57: 7 | N57: 9 | O57: 8
A58: Canadian Solar | G58: 82 | H58: 55 | I58: 175 | J58: 113 | K58: 826 | L58: 175 | M58: 295 | N58: 400 | O58: 200 | P58: 704
A59: Chaori | K59: 7
A60: ET Solar | G60: 6 | I60: 30 | K60: 39 | M60: 6 | O60: 65
A61: EcoSolargy | K61: 7
A62: First Solar | C62: 10 | D62: 21 | E62: 115 | F62: 72 | G62: 203 | H62: 469 | I62: 2229 | J62: 496 | K62: 1682 | L62: 882 | M62: 819 | N62: 1394 | O62: 2420 | P62: 3050
A63: Flextronics | L63: 5
A64: GCL | L64: 50
A65: GE | G65: 20 | H65: 10 | J65: 10
A66: GES | H66: 10 | J66: 10
A67: Gloria Solar | I67: 14
A68: Hanwha | G68: 39 | I68: 8 | J68: 100 | K68: 259 | L68: 459 | M68: 877 | N68: 215 | O68: 439 | P68: 313
A69: Hyundai | H69: 129 | K69: 15 | L69: 28 | P69: 14
A70: JA Solar | G70: 8 | H70: 9 | I70: 40 | J70: 30 | K70: 80 | L70: 63 | M70: 57 | N70: 110 | O70: 21 | P70: 451
A71: Jinko Solar | H71: 29 | I71: 143 | J71: 495 | K71: 912 | L71: 542 | M71: 316 | N71: 230 | O71: 659 | P71: 1246
A72: Kyocera | H72: 129
A73: LDK | F73: 12 | G73: 6 | I73: 8
A74: LG | K74: 12 | L74: 13 | M74: 9 | N74: 30
A75: LG Solar | N75: 14
A76: LONGi | N76: 400 | O76: 221 | P76: 567
A77: Lightway | I77: 7
A78: MEMC | F78: 20 | G78: 67 | H78: 30
A79: Mission Solar Energy | J79: 100 | L79: 160 | M79: 50
A80: Phono Solar | K80: 20
A81: REC | J81: 12 | K81: 265 | L81: 20 | M81: 12 | N81: 20 | P81: 5
A82: Renesola | I82: 59 | J82: 14 | K82: 14
A83: Risen Energy | M83: 122 | O83: 100 | P83: 100
A84: S-Energy | K84: 62
A85: SAAE | N85: 13
A86: Seraphim | L86: 10 | M86: 10
A87: Sharp | F87: 45 | H87: 38
A88: Soitec | I88: 6
A89: Solar Frontier | H89: 110 | J89: 45 | K89: 45 | L89: 30 | M89: 168
A90: SolarWorld | G90: 16 | H90: 20 | J90: 13 | K90: 56 | L90: 55
A91: Solarfun Power | F91: 20
A92: Solon | B92: 7 | F92: 32
A93: SunEdison | I93: 131 | J93: 20 | K93: 245
A94: SunModule | K94: 12
A95: SunPower | B95: 12 | D95: 25 | E95: 37 | F95: 74 | G95: 57 | H95: 296 | J95: 794 | K95: 429 | L95: 151 | M95: 30 | N95: 46 | O95: 30
A96: Suniva | H96: 16 | I96: 12 | K96: 5 | L96: 48
A97: Suntech Power | F97: 68 | G97: 253 | H97: 37 | I97: 6 | J97: 27
A98: Talesun | M98: 75
A99: Topoint | I99: 7
A100: Trina | F100: 50 | G100: 90 | H100: 14 | I100: 37 | J100: 596 | K100: 1220 | L100: 299 | M100: 56 | N100: 80 | O100: 400 | P100: 40
A101: VSUN | P101: 130
A102: Vikram | P102: 5
A103: Waaree Solar | P103: 290
A104: Yes! Solar | F104: 10
A105: Yingli | E105: 5 | F105: 20 | G105: 67 | H105: 110 | I105: 262 | J105: 85 | K105: 381 | M105: 65 | P105: 16
A106: Unknown | E106: 18 | F106: 25 | G106: 82 | H106: 131 | I106: 157 | J106: 135 | K106: 864 | L106: 1185 | M106: 958 | N106: 2021 | O106: 5236 | P106: 5919
A107: All PV Projects | B107: 19 | C107: 10 | D107: 46 | E107: 175 | F107: 485 | G107: 961 | H107: 1344 | I107: 3184 | J107: 2887 | K107: 7441 | L107: 4079 | M107: 3962 | N107: 4606 | O107: 9626 | P107: 12521
A108: Note: Some projects are assigned to multiple modules manufacturers. The sum of the annual project capacity may thus exceed the capacity of "All PV Projects".
B111: 2021
A112: Other | B112: 80
A113: Risen Energy | B113: 100
A114: VSUN | B114: 130
A115: Waaree Solar | B115: 290
A116: Hanwha | B116: 313
A117: Astroenergy | B117: 330
A118: JA Solar | B118: 451
A119: LONGi | B119: 567
A120: Canadian Solar | B120: 704
A121: Jinko Solar | B121: 1246
A122: First Solar | B122: 3050
A123: Unknown | B123: 5919

Sheet PV Capacity by Develop-Offtaker
A1: Developers of utility-scale solar project capacity coming online in 2021 | I1: PPA Offtakers of utility-scale solar project capacity coming online in 2021
A27: Installation Year | B27: Project Capacity MWAC by Developer
B28: 2007 | C28: 2008 | D28: 2009 | E28: 2010 | F28: 2011 | G28: 2012 | H28: 2013 | I28: 2014 | J28: 2015 | K28: 2016 | L28: 2017 | M28: 2018 | N28: 2019 | O28: 2020 | P28: 2021 | Q28: Total | V28: 2021
A29: SunEnergy1 | O29: 25 | P29: 80 | Q29: 105 | U29: Duke Energy Carolinas | V29: 69
A30: Duke Energy Carolinas | K30: 15 | M30: 6 | O30: 25 | P30: 69 | Q30: 116 | U30: Gulf Power | V30: 74
A31: Geronimo Energy | L31: 76 | O31: 40 | Q31: 116 | U31: SunEnergy1 | V31: 80
A32: Energix | O32: 67 | P32: 49 | Q32: 116 | U32: Dominion Resources | V32: 88
A33: NJR Clean Energy | F33: 12 | I33: 8 | K33: 6 | L33: 18 | M33: 44 | N33: 15 | O33: 17 | Q33: 119 | U33: Clenera | V33: 100
A34: NRG Energy | F34: 20 | G34: 26 | H34: 26 | I34: 6 | K34: 20 | L34: 21 | Q34: 120 | U34: DEPCOM Power | V34: 102
A35: McCarthy | P35: 135 | Q35: 135 | U35: Idemitsu Renewables | V35: 120
A36: RWE Renewables | I36: 18 | J36: 19 | N36: 100 | Q36: 136 | U36: Belltown Power | V36: 124
A37: Terra Gen | P37: 141 | Q37: 141 | U37: Southern Company | V37: 128
A38: Gulf Power | O38: 74 | P38: 74 | Q38: 149 | U38: Tampa Electric | V38: 134
A39: Florida Municipal Power Agency | O39: 149 | Q39: 149 | U39: McCarthy | V39: 135
A40: Sun Streams 2 LLC | P40: 150 | Q40: 150 | U40: Terra Gen | V40: 141
A41: Ecoplexus | J41: 20 | K41: 20 | L41: 49 | N41: 10 | O41: 59 | Q41: 158 | U41: Sun Streams 2 LLC | V41: 150
A42: Lendlease Energy | P42: 160 | Q42: 160 | U42: Lendlease Energy | V42: 160
A43: Scatec Solar | J43: 80 | K43: 80 | Q43: 160 | U43: Skylar Resources | V43: 180
A44: Skylar Resources | P44: 180 | Q44: 180 | U44: Community Energy | V44: 180
A45: D.E. Shaw | O45: 180 | Q45: 180 | U45: ConEdison Development | V45: 181
A46: GCL New Energy | G46: 70 | H46: 20 | L46: 60 | M46: 38 | Q46: 188 | U46: Canadian Solar | V46: 194
A47: ConEdison Development | O47: 10 | P47: 181 | Q47: 191 | U47: National Grid Renewables | V47: 200
A48: Canadian Solar | P48: 194 | Q48: 194 | U48: EDP Renewables | V48: 200
A49: National Grid Renewables | P49: 200 | Q49: 200 | U49: Innergex Renewable Energy | V49: 200
A50: RES Americas | F50: 30 | L50: 102 | N50: 73 | Q50: 205 | U50: Swinerton | V50: 203
A51: PNM | J51: 20 | L51: 10 | M51: 20 | N51: 100 | O51: 55 | Q51: 205 | U51: Ranger Power | V51: 209
A52: Abengoa | I52: 207 | Q52: 207 | U52: BayWa RE | V52: 223
A53: Hecate | K53: 126 | L53: 86 | Q53: 212 | U53: Duke Energy Florida | V53: 224
A54: EDP Renewables | I54: 30 | P54: 200 | Q54: 230 | U54: Cypress Creek Renewables/ Pine Gate Renewables | V54: 245
A55: Copenhagen Infrastructure Partners | O55: 240 | Q55: 240 | U55: Longroad Energy | V55: 250
A56: Belltown Power | O56: 120 | P56: 124 | Q56: 243 | U56: CIM Group | V56: 250
A57: Skyline Renewables | P57: 250 | Q57: 250 | U57: Skyline Renewables | V57: 250
A58: CIM Group | P58: 250 | Q58: 250 | U58: Recurrent | V58: 250
A59: OnPeak | P59: 255 | Q59: 255 | U59: Consolidated Edison | V59: 250
A60: 7X Energy | P60: 255 | Q60: 255 | U60: EDF Renewables | V60: 253
A61: Ranger Power | O61: 50 | P61: 209 | Q61: 259 | U61: 7X Energy | V61: 255
A62: SunPin / Intersect Power | P62: 260 | Q62: 260 | U62: OnPeak | V62: 255
A63: Urban Grid Solar | N63: 142 | O63: 98 | P63: 20 | Q63: 260 | U63: SunPin | V63: 260
A64: LS Power Group | H64: 129 | I64: 170 | Q64: 299 | U64: SunPin / Intersect Power | V64: 260
A65: Signal Energy / Intersect Power | P65: 300 | Q65: 300 | U65: Silicon Ranch Corporation | V65: 277
A66: Swinerton | I66: 18 | J66: 55 | K66: 30 | P66: 203 | Q66: 306 | U66: Engie | V66: 300
A67: Juwi | E67: 37 | G67: 31 | H67: 15 | I67: 10 | J67: 70 | K67: 145 | Q67: 308 | U67: Signal Energy / Intersect Power | V67: 300
A68: Strata Solar | I68: 32 | J68: 65 | K68: 22 | L68: 146 | M68: 25 | O68: 12 | P68: 20 | Q68: 322 | U68: AES | V68: 345
A69: DEPCOM Power | J69: 15 | K69: 40 | L69: 55 | M69: 52 | O69: 70 | P69: 102 | Q69: 334 | U69: LightSource BP | V69: 367
A70: Dominion Resources | H70: 36 | K70: 20 | M70: 20 | N70: 20 | O70: 160 | P70: 88 | Q70: 345 | U70: Enel Green Power | V70: 371
A71: Coronal Energy | J71: 40 | K71: 94 | L71: 140 | M71: 67 | N71: 10 | Q71: 351 | U71: Unknown | V71: 501
A72: Southern Company | J72: 54 | K72: 90 | L72: 7 | M72: 31 | O72: 50 | P72: 128 | Q72: 361 | U72: Invenergy | V72: 526
A73: Idemitsu Renewables | K73: 20 | L73: 30 | M73: 70 | O73: 150 | P73: 120 | Q73: 390 | U73: Orsted | V73: 647
A74: SunPin | M74: 75 | O74: 75 | P74: 260 | Q74: 410 | U74: Other | V74: 732
A75: BayWa RE | L75: 56 | N75: 40 | O75: 100 | P75: 223 | Q75: 419 | U75: Intersect Power | V75: 940
A76: Innergex Renewable Energy | N76: 250 | P76: 200 | Q76: 450 | U76: NextEra | V76: 1511
A77: Duke Energy Florida | K77: 5 | M77: 75 | N77: 75 | O77: 74 | P77: 224 | Q77: 454
A78: Clearway | M78: 154 | N78: 109 | O78: 192 | P78: 5 | Q78: 460
A79: Sunenergy1 | G79: 12 | I79: 40 | J79: 128 | K79: 75 | L79: 60 | M79: 80 | O79: 80 | Q79: 475
A80: OCI Solar Power | H80: 41 | I80: 40 | J80: 100 | K80: 112 | L80: 160 | M80: 50 | Q80: 503
A81: Origis Energy | H81: 16 | L81: 144 | M81: 18 | N81: 42 | O81: 304 | Q81: 524
A82: Duke Energy Renewables | F82: 6 | J82: 105 | K82: 45 | L82: 28 | N82: 121 | O82: 260 | Q82: 564
A83: Engie | L83: 50 | M83: 7 | O83: 225 | P83: 300 | Q83: 582
A84: Orsted | P84: 647 | Q84: 647
A85: Tampa Electric | L85: 19 | M85: 145 | N85: 203 | O85: 149 | P85: 134 | Q85: 650
A86: Longroad Energy | O86: 403 | P86: 250 | Q86: 653
A87: LightSource BP | N87: 14 | O87: 287 | P87: 367 | Q87: 668
A88: Clenera | I88: 29 | J88: 20 | K88: 160 | L88: 113 | M88: 80 | N88: 200 | P88: 100 | Q88: 702
A89: Community Energy | I89: 7 | J89: 15 | K89: 403 | L89: 104 | N89: 8 | P89: 180 | Q89: 716
A90: 174 Power Global | G90: 30 | I90: 8 | L90: 7 | M90: 182 | N90: 300 | O90: 280 | Q90: 807
A91: Enel Green Power | G91: 22 | M91: 40 | O91: 410 | P91: 371 | Q91: 843
A92: Silicon Ranch Corporation | I92: 30 | J92: 34 | K92: 96 | L92: 32 | M92: 69 | N92: 195 | O92: 186 | P92: 277 | Q92: 918
A93: Intersect Power | P93: 940 | Q93: 940
A94: Invenergy | G94: 20 | J94: 20 | L94: 50 | M94: 25 | N94: 155 | O94: 171 | P94: 526 | Q94: 967
A95: Sempra | G95: 170 | J95: 316 | K95: 348 | M95: 200 | Q95: 1034
A96: EDF Renewables | H96: 130 | I96: 20 | J96: 42 | M96: 111 | N96: 111 | O96: 375 | P96: 253 | Q96: 1043
A97: Consolidated Edison | F97: 26 | J97: 40 | K97: 96 | L97: 193 | M97: 320 | O97: 152 | P97: 250 | Q97: 1078
A98: SunEdison | B98: 7 | E98: 18 | F98: 76 | G98: 132 | H98: 44 | I98: 337 | J98: 40 | K98: 545 | Q98: 1199
A99: Unknown | H99: 10 | I99: 20 | J99: 91 | K99: 5 | L99: 239 | M99: 21 | N99: 313 | O99: 36 | P99: 501 | Q99: 1235
A100: 8 Minute Solar Energy | I100: 207 | J100: 58 | K100: 260 | L100: 20 | M100: 252 | N100: 90 | O100: 408 | Q100: 1295
A101: AES | I101: 26 | J101: 153 | K101: 335 | L101: 91 | M101: 125 | N101: 140 | O101: 374 | P101: 345 | Q101: 1589
A102: Recurrent | F102: 24 | G102: 60 | H102: 35 | I102: 225 | K102: 905 | L102: 71 | M102: 95 | P102: 250 | Q102: 1664
A103: Cypress Creek Renewables/ Pine Gate Renewables | J103: 22 | K103: 207 | L103: 445 | M103: 265 | N103: 183 | O103: 449 | P103: 245 | Q103: 1817
A104: SunPower | B104: 12 | D104: 25 | E104: 37 | F104: 66 | G104: 57 | H104: 270 | J104: 822 | K104: 429 | L104: 151 | M104: 10 | O104: 30 | Q104: 1910
A105: Other | B105: 0 | C105: 0 | D105: 0 | E105: 0 | F105: 235 | G105: 164 | H105: 263 | I105: 217 | J105: 210 | K105: 481 | L105: 552 | M105: 460 | N105: 313 | O105: 688 | P105: 639 | Q105: 4221
A106: First Solar | C106: 10 | D106: 21 | E106: 79 | F106: 34 | G106: 177 | H106: 359 | I106: 1911 | J106: 205 | K106: 1105 | L106: 600 | N106: 592 | O106: 446 | Q106: 5539
A107: NextEra | E107: 5 | F107: 5 | I107: 20 | J107: 47 | K107: 1189 | L107: 122 | M107: 807 | N107: 682 | O107: 1975 | P107: 1511 | Q107: 6363
A108: All PV Projects | B108: 19 | C108: 10 | D108: 46 | E108: 175 | F108: 485 | G108: 961 | H108: 1344 | I108: 3184 | J108: 2887 | K108: 7441 | L108: 4079 | M108: 3962 | N108: 4606 | O108: 9626 | P108: 12521 | Q108: 51346
A109: Note: Some projects are assigned to multiple developers. The sum of annual project capacity may thus exceed the capacity of "All PV Projects".
A112: Installation Year | B112: Project Capacity MWAC by Offtaker Type
B113: 2007 | C113: 2008 | D113: 2009 | E113: 2010 | F113: 2011 | G113: 2012 | H113: 2013 | I113: 2014 | J113: 2015 | K113: 2016 | L113: 2017 | M113: 2018 | N113: 2019 | O113: 2020 | P113: 2021 | Q113: Total | V113: 2021
A114: Other | G114: 21 | I114: 15 | J114: 45 | K114: 38 | M114: 121 | N114: 100 | O114: 123 | Q114: 463 | U114: Military | V114: 128
A115: Education | G115: 18 | H115: 8 | I115: 34 | J115: 46 | K115: 60 | L115: 20 | M115: 32 | N115: 19 | O115: 71 | P115: 247 | Q115: 555 | U115: Education | V115: 247
A116: Military | B116: 12 | G116: 11 | I116: 30 | J116: 41 | K116: 170 | L116: 116 | M116: 88 | O116: 70 | P116: 128 | Q116: 665 | U116: Monopoly Investor-owned Utility | V116: 1725
A117: Unknown | H117: 10 | K117: 58 | L117: 74 | M117: 38 | N117: 354 | O117: 1070 | P117: 2932 | Q117: 4537 | U117: Investor-owned Utility | V117: 2264
A118: Corporate | F118: 20 | G118: 28 | H118: 10 | I118: 13 | J118: 112 | K118: 411 | L118: 841 | M118: 405 | N118: 584 | O118: 2282 | P118: 3937 | Q118: 8642 | U118: Public Utilities (Munis, Coops...) | V118: 2743
A119: Monopoly Investor-owned Utility | D119: 25 | E119: 28 | F119: 92 | G119: 34 | H119: 133 | I119: 110 | J119: 478 | K119: 1193 | L119: 1026 | M119: 1325 | N119: 1525 | O119: 2543 | P119: 1725 | Q119: 10236 | U119: Unknown | V119: 2932
A120: Public Utilities (Munis, Coops...) | E120: 57 | F120: 147 | G120: 204 | H120: 77 | I120: 119 | J120: 336 | K120: 1991 | L120: 1177 | M120: 935 | N120: 734 | O120: 1769 | P120: 2743 | Q120: 10288 | U120: Corporate | V120: 3937
A121: Investor-owned Utility | B121: 7 | C121: 10 | D121: 46 | E121: 118 | F121: 318 | G121: 679 | H121: 1240 | I121: 2973 | J121: 2307 | K121: 4714 | L121: 1852 | M121: 2429 | N121: 2815 | O121: 4050 | P121: 2264 | Q121: 25820
A122: All PV Projects | B122: 19 | C122: 10 | D122: 46 | E122: 175 | F122: 485 | G122: 961 | H122: 1344 | I122: 3184 | J122: 2887 | K122: 7441 | L122: 4079 | M122: 3962 | N122: 4606 | O122: 9626 | P122: 12521 | Q122: 51346
A123: Note: Some projects are assigned to multiple offtakers. The sum of annual project capacity may thus exceed the capacity of "All PV Projects".

Sheet PV Irradiance
A1: Global horizontal irradiance by mounting type and installation year
K2: Graph Support | L2: Fixed-Tilt | M2: Tracking | N2: x-Axis | O2: Fixed Tilt 20th Perc Error | P2: Fixed Tilt 80th Perc Error | Q2: Tracking 20th Perc Error | R2: Tracking 80th Perc Error
K3: 2010 | L3: 0.55 | M3: 1.3 | N3: =A30&" n="&B30&" "&TEXT(ROUND(C30/1000,1),"0#.##")&" GW" -> 2010 n=10 0.2 GW | O3: 0.62 | P3: 0.5 | Q3: 0.35 | R3: 0.53
K4: 2011 | L4: =L3+2 -> 2.55 | M4: =M3+2 -> 3.3 | N4: =A31&" n="&B31&" "&TEXT(ROUND(C31/1000,1),"0#.##")&" GW" -> 2011 n=35 0.5 GW | O4: 1.32 | P4: 0.04 | Q4: 0.72 | R4: 0.2
K5: 2012 | L5: =L4+2 -> 4.55 | M5: 5.3 | N5: =A32&" n="&B32&" "&TEXT(ROUND(C32/1000,1),"#.0##")&" GW" -> 2012 n=44 1.0 GW | O5: 1.23 | P5: 0.25 | Q5: 0.44 | R5: 0.45
K6: 2013 | L6: 6.55 | M6: 7.3 | N6: =A33&" n="&B33&" "&TEXT(ROUND(C33/1000,1),"#.##")&" GW" -> 2013 n=38 1.3 GW | O6: 1.31 | P6: 0.33 | Q6: 0.49 | R6: 0.05
K7: 2014 | L7: 8.55 | M7: 9.3 | N7: 2014 n=65 3.2 GW | O7: 0.4 | P7: 1.34 | Q7: 0.31 | R7: 0.15
K8: 2015 | L8: 10.55 | M8: 11.3 | N8: 2015 n=89 2.9 GW | O8: 0.29 | P8: 0.98 | Q8: 0.47 | R8: 0.41
K9: 2016 | L9: 12.55 | M9: 13.3 | N9: 2016 n=152 7.4 GW | O9: 0.48 | P9: 0.34 | Q9: 0.75 | R9: 0.45
K10: 2017 | L10: 14.55 | M10: 15.3 | N10: 2017 n=166 4.1 GW | O10: 0.49 | P10: 0.23 | Q10: 0.28 | R10: 0.8
K11: 2018 | L11: 16.55 | M11: 17.3 | N11: 2018 n=96 4. GW | O11: 0.48 | P11: 0.49 | Q11: 0.3 | R11: 0.91
K12: 2019 | L12: 18.55 | M12: 19.3 | N12: 2019 n=111 4.6 GW | O12: 0.12 | P12: 0.82 | Q12: 0.4 | R12: 0.59
K13: 2020 | L13: 20.55 | M13: 21.3 | N13: 2020 n=164 9.6 GW | O13: 0.56 | P13: 0.55 | Q13: 0.35 | R13: 0.66
K14: 2021 | L14: 22.55 | M14: 23.3 | N14: =A41&" n="&B41&" "&TEXT(ROUND(C41/1000,1),"#")&" GW" -> 2021 n=156 13 GW | O14: 0.05 | P14: 0.68 | Q14: 0.54 | R14: 0.67
A23: Sources: Berkeley Lab: Project Information, NREL: Long-Term Annual Average Solar Resource
D25: Long-Term Average Global Horizontal Irradiance (kWh/m2/day)
A26: Installation Year | B26: All Count | C26: All Capacity MWAC | D26: All Median | E26: All 20th Percentile | F26: All 80th Percentile | G26: Fixed Tilt Median | H26: Fixed Tilt 20th Percentile | I26: Fixed Tilt 80th Percentile | J26: Tracking Median | K26: Tracking 20th Percentile | L26: Tracking 80th Percentile
A27: 2007 | B27: 2 | C27: 18.9 | D27: 5.5 | E27: 5.42 | F27: 5.57 | J27: 5.62 | K27: 5.62 | L27: 5.62
A28: 2008 | B28: 1 | C28: 10 | D28: 5.66 | E28: 5.66 | F28: 5.66 | G28: 5.66 | H28: 5.66 | I28: 5.66
A29: 2009 | B29: 2 | C29: 46 | D29: 5.36 | E29: 5.17 | F29: 5.55 | G29: 5.68 | H29: 5.68 | I29: 5.68 | J29: 5.04 | K29: 5.04 | L29: 5.04
A30: 2010 | B30: 10 | C30: 175.07 | D30: 4.76 | E30: 4 | F30: 5.36 | G30: 4.79 | H30: 4.16 | I30: 5.29 | J30: 4.48 | K30: 4.13 | L30: 5.02
A31: 2011 | B31: 35 | C31: 485.15 | D31: 5.35 | E31: 4.15 | F31: 5.65 | G31: 5.32 | H31: 4 | I31: 5.36 | J31: 5.58 | K31: 4.86 | L31: 5.78
A32: 2012 | B32: 44 | C32: 961.14 | D32: 5.32 | E32: 4.28 | F32: 5.79 | G32: 5.27 | H32: 4.04 | I32: 5.51 | J32: 5.34 | K32: 4.9 | L32: 5.8
A33: 2013 | B33: 38 | C33: 1343.79 | D33: 5.62 | E33: 4.72 | F33: 5.82 | G33: 5.35 | H33: 4.03 | I33: 5.68 | J33: 5.8 | K33: 5.31 | L33: 5.85
A34: 2014 | B34: 65 | C34: 3184.08 | D34: 5.55 | E34: 4.43 | F34: 5.84 | G34: 4.37 | H34: 3.98 | I34: 5.71 | J34: 5.69 | K34: 5.38 | L34: 5.84
A35: 2015 | B35: 89 | C35: 2886.68 | D35: 5.28 | E35: 4.43 | F35: 5.64 | G35: 4.48 | H35: 4.19 | I35: 5.47 | J35: 5.36 | K35: 4.89 | L35: 5.78
A36: 2016 | B36: 152 | C36: 7441.36 | D36: 5.06 | E36: 4.41 | F36: 5.76 | G36: 4.45 | H36: 3.97 | I36: 4.79 | J36: 5.33 | K36: 4.58 | L36: 5.78
A37: 2017 | B37: 166 | C37: 4078.72 | D37: 4.63 | E37: 4.26 | F37: 5.37 | G37: 4.44 | H37: 3.95 | I37: 4.68 | J37: 4.68 | K37: 4.4 | L37: 5.48
A38: 2018 | B38: 96 | C38: 3962.12 | D38: 4.63 | E38: 4.24 | F38: 5.3 | G38: 4.43 | H38: 3.95 | I38: 4.92 | J38: 4.69 | K38: 4.39 | L38: 5.6
A39: 2019 | B39: 111 | C39: 4606.16 | D39: 4.74 | E39: 3.98 | F39: 5.44 | G39: 3.93 | H39: 3.81 | I39: 4.75 | J39: 4.89 | K39: 4.5 | L39: 5.48
A40: 2020 | B40: 164 | C40: 9626.04 | D40: 4.65 | E40: 4.08 | F40: 5.27 | G40: 4.41 | H40: 3.85 | I40: 4.95 | J40: 4.67 | K40: 4.32 | L40: 5.33
A41: 2021 | B41: 156 | C41: 12520.86 | D41: 4.45 | E41: 3.87 | F41: 5.08 | G41: 3.88 | H41: 3.83 | I41: 4.56 | J41: 4.68 | K41: 4.14 | L41: 5.35
A42: Total | B42: 1131 | C42: 51346.08

Sheet PV ILR
A1: Inverter loading ratio by mounting type and installation year
K2: Graph Support | L2: Fixed-Tilt | M2: Tracking | N2: x-Axis | O2: Fixed Tilt 20th Perc Error | P2: Fixed Tilt 80th Perc Error | Q2: Tracking 20th Perc Error | R2: Tracking 80th Perc Error
K3: 2010 | L3: 0.55 | M3: 1.3 | N3: =A30&" n="&B30&" "&TEXT(ROUND(C30/1000,1),"0#.##")&" GW" -> 2010 n=10 0.2 GW | O3: 0 | P3: 0.01 | Q3: 0.08 | R3: 0.04
K4: 2011 | L4: =L3+2 -> 2.55 | M4: =M3+2 -> 3.3 | N4: =A31&" n="&B31&" "&TEXT(ROUND(C31/1000,1),"0#.##")&" GW" -> 2011 n=35 0.5 GW | O4: 0.06 | P4: 0.05 | Q4: 0.06 | R4: 0.07
K5: 2012 | L5: =L4+2 -> 4.55 | M5: 5.3 | N5: =A32&" n="&B32&" "&TEXT(ROUND(C32/1000,1),"#.0##")&" GW" -> 2012 n=44 1.0 GW | O5: 0.05 | P5: 0.05 | Q5: 0.09 | R5: 0.06
K6: 2013 | L6: 6.55 | M6: 7.3 | N6: =A33&" n="&B33&" "&TEXT(ROUND(C33/1000,1),"#.##")&" GW" -> 2013 n=38 1.3 GW | O6: 0.03 | P6: 0.08 | Q6: 0.03 | R6: 0.07
K7: 2014 | L7: 8.55 | M7: 9.3 | N7: 2014 n=65 3.2 GW | O7: 0.06 | P7: 0.06 | Q7: 0.05 | R7: 0.07
K8: 2015 | L8: 10.55 | M8: 11.3 | N8: 2015 n=89 2.9 GW | O8: 0.04 | P8: 0.08 | Q8: 0.06 | R8: 0.07
K9: 2016 | L9: 12.55 | M9: 13.3 | N9: 2016 n=150 7.4 GW | O9: 0.08 | P9: 0.12 | Q9: 0.06 | R9: 0.05
K10: 2017 | L10: 14.55 | M10: 15.3 | N10: 2017 n=166 4.1 GW | O10: 0.06 | P10: 0.13 | Q10: 0.08 | R10: 0.08
K11: 2018 | L11: 16.55 | M11: 17.3 | N11: 2018 n=96 4. GW | O11: 0.12 | P11: 0.14 | Q11: 0.06 | R11: 0.11
K12: 2019 | L12: 18.55 | M12: 19.3 | N12: 2019 n=111 4.6 GW | O12: 0.05 | P12: 0.18 | Q12: 0.12 | R12: 0.1
K13: 2020 | L13: 20.55 | M13: 21.3 | N13: 2020 n=164 9.6 GW | O13: 0.11 | P13: 0.13 | Q13: 0.08 | R13: 0.1
K14: 2021 | L14: 22.55 | M14: 23.3 | N14: =A41&" n="&B41&" "&TEXT(ROUND(C41/1000,1),"#")&" GW" -> 2021 n=156 13 GW | O14: 0.07 | P14: 0.13 | Q14: 0.06 | R14: 0.08
A23: Sources: Berkeley Lab
A24: Notes: The Inverter Loading Ratio describes the ratio of project capacity measured in MWDC at the inverter to the nominal inverter capacity measured in MWAC
D25: Inverter Loading Ratio
A26: Installation Year | B26: All Count | C26: All Capacity MWAC | D26: All Median | E26: All 20th Percentile | F26: All 80th Percentile | G26: Fixed Tilt Median | H26: Fixed Tilt 20th Percentile | I26: Fixed Tilt 80th Percentile | J26: Tracking Median | K26: Tracking 20th Percentile | L26: Tracking 80th Percentile
A27: 2007 | B27: 2 | C27: 18.9 | D27: 1.18 | E27: 1.18 | F27: 1.19 | J27: 1.17 | K27: 1.17 | L27: 1.17
A28: 2008 | B28: 1 | C28: 10 | D28: 1.21 | E28: 1.21 | F28: 1.21 | G28: 1.21 | H28: 1.21 | I28: 1.21
A29: 2009 | B29: 2 | C29: 46 | D29: 1.15 | E29: 1.12 | F29: 1.18 | G29: 1.2 | H29: 1.2 | I29: 1.2 | J29: 1.1 | K29: 1.1 | L29: 1.1
A30: 2010 | B30: 10 | C30: 175.07 | D30: 1.2 | E30: 1.17 | F30: 1.22 | G30: 1.19 | H30: 1.19 | I30: 1.21 | J30: 1.21 | K30: 1.13 | L30: 1.25
A31: 2011 | B31: 35 | C31: 485.15 | D31: 1.18 | E31: 1.11 | F31: 1.25 | G31: 1.23 | H31: 1.17 | I31: 1.28 | J31: 1.15 | K31: 1.09 | L31: 1.22
A32: 2012 | B32: 44 | C32: 961.14 | D32: 1.24 | E32: 1.16 | F32: 1.29 | G32: 1.24 | H32: 1.2 | I32: 1.29 | J32: 1.22 | K32: 1.13 | L32: 1.29
A33: 2013 | B33: 38 | C33: 1343.79 | D33: 1.29 | E33: 1.25 | F33: 1.36 | G33: 1.3 | H33: 1.26 | I33: 1.37 | J33: 1.29 | K33: 1.25 | L33: 1.35
A34: 2014 | B34: 65 | C34: 3184.08 | D34: 1.28 | E34: 1.22 | F34: 1.34 | G34: 1.26 | H34: 1.2 | I34: 1.33 | J34: 1.29 | K34: 1.24 | L34: 1.36
A35: 2015 | B35: 89 | C35: 2886.68 | D35: 1.3 | E35: 1.24 | F35: 1.38 | G35: 1.3 | H35: 1.26 | I35: 1.38 | J35: 1.29 | K35: 1.23 | L35: 1.36
A36: 2016 | B36: 150 | C36: 7380.9 | D36: 1.31 | E36: 1.25 | F36: 1.37 | G36: 1.3 | H36: 1.23 | I36: 1.43 | J36: 1.31 | K36: 1.25 | L36: 1.35
A37: 2017 | B37: 166 | C37: 4078.72 | D37: 1.33 | E37: 1.24 | F37: 1.41 | G37: 1.27 | H37: 1.21 | I37: 1.4 | J37: 1.33 | K37: 1.25 | L37: 1.42
A38: 2018 | B38: 96 | C38: 3962.12 | D38: 1.33 | E38: 1.26 | F38: 1.46 | G38: 1.38 | H38: 1.26 | I38: 1.52 | J38: 1.32 | K38: 1.26 | L38: 1.43
A39: 2019 | B39: 111 | C39: 4606.16 | D39: 1.32 | E39: 1.21 | F39: 1.43 | G39: 1.31 | H39: 1.26 | I39: 1.49 | J39: 1.32 | K39: 1.19 | L39: 1.41
A40: 2020 | B40: 164 | C40: 9626.04 | D40: 1.34 | E40: 1.26 | F40: 1.45 | G40: 1.33 | H40: 1.22 | I40: 1.46 | J40: 1.34 | K40: 1.26 | L40: 1.43
A41: 2021 | B41: 156 | C41: 12520.86 | D41: 1.34 | E41: 1.27 | F41: 1.42 | G41: 1.37 | H41: 1.3 | I41: 1.5 | J41: 1.33 | K41: 1.27 | L41: 1.41
A42: Total | B42: 1129 | C42: 51285.62

Sheet CapEx Trend (PV-only)
A1: Installed costs by year (in both DC and AC terms)
A23: Sources: Berkeley Lab, Energy Information Administration
A26: Installed Costs 2021 $/WAC
A27: Commercial Operation Year | B27: All Count | C27: All Capacity (MWAC) | D27: All Capacity-weighted Mean | E27: All Median | F27: All 20th Percentile | G27: All 80th Percentile
A28: 2007 | B28: 2 | C28: 18.9 | D28: 10.83 | E28: 10.9 | F28: 10.76 | G28: 11.04
A29: 2008 | B29: 1 | C29: 10 | D29: 5.02 | E29: 5.02 | F29: 5.02 | G29: 5.02
A30: 2009 | B30: 2 | C30: 46 | D30: 5.57 | E30: 5.41 | F30: 4.31 | G30: 6.51
A31: 2010 | B31: 10 | C31: 175.07 | D31: 5.19 | E31: 5.61 | F31: 4.96 | G31: 7.19
A32: 2011 | B32: 29 | C32: 427.79 | D32: 4.9 | E32: 4.92 | F32: 4.25 | G32: 5.55
A33: 2012 | B33: 41 | C33: 929.64 | D33: 4 | E33: 4.55 | F33: 3.84 | G33: 5.02
A34: 2013 | B34: 38 | C34: 1343.79 | D34: 4.33 | E34: 4.05 | F34: 3.49 | G34: 4.79
A35: 2014 | B35: 65 | C35: 3184.08 | D35: 4.18 | E35: 3.44 | F35: 2.85 | G35: 4.6
A36: 2015 | B36: 87 | C36: 2869.68 | D36: 3.43 | E36: 3.08 | F36: 2.43 | G36: 3.78
A37: 2016 | B37: 146 | C37: 7389.29 | D37: 2.61 | E37: 2.55 | F37: 2.2 | G37: 3.01
A38: 2017 | B38: 163 | C38: 4045.82 | D38: 2.4 | E38: 2.36 | F38: 1.83 | G38: 2.99
A39: 2018 | B39: 94 | C39: 3949.42 | D39: 2.03 | E39: 1.91 | F39: 1.55 | G39: 2.79
A40: 2019 | B40: 103 | C40: 4532.66 | D40: 1.73 | E40: 1.65 | F40: 1.33 | G40: 2.34
A41: 2020 | B41: 159 | C41: 9494.54 | D41: 1.54 | E41: 1.68 | F41: 1.37 | G41: 2.37
A42: 2021 | B42: 62 | C42: 5383.34 | D42: 1.32 | E42: 1.35 | F42: 1.08 | G42: 1.55
A43: Total | B43: 1002 | C43: 43800.04
A45: Installed Costs 2021 $/WDC
A46: Commercial Operation Year | B46: All Count | C46: All Capacity (MWDC) | D46: All Capacity-weighted Mean | E46: All Median | F46: All 20th Percentile | G46: All 80th Percentile
A47: 2007 | B47: 2 | C47: 22.28 | D47: 9.19 | E47: 9.22 | F47: 9.15 | G47: 9.29
A48: 2008 | B48: 1 | C48: 12.14 | D48: 4.14 | E48: 4.14 | F48: 4.14 | G48: 4.14
A49: 2009 | B49: 2 | C49: 52.8 | D49: 4.85 | E49: 4.77 | F49: 3.7 | G49: 5.84
A50: 2010 | B50: 10 | C50: 210.72 | D50: 4.31 | E50: 4.86 | F50: 4.15 | G50: 5.83
A51: 2011 | B51: 29 | C51: 516.7 | D51: 4.06 | E51: 4.05 | F51: 3.57 | G51: 4.63
A52: 2012 | B52: 41 | C52: 1181.41 | D52: 3.15 | E52: 3.68 | F52: 2.97 | G52: 4.07
A53: 2013 | B53: 38 | C53: 1754.16 | D53: 3.32 | E53: 3.17 | F53: 2.71 | G53: 3.66
A54: 2014 | B54: 65 | C54: 4111.96 | D54: 3.23 | E54: 2.68 | F54: 2.17 | G54: 3.61
A55: 2015 | B55: 87 | C55: 3728.47 | D55: 2.64 | E55: 2.34 | F55: 1.82 | G55: 3.01
A56: 2016 | B56: 145 | C56: 9618.47 | D56: 2 | E56: 1.96 | F56: 1.66 | G56: 2.34
A57: 2017 | B57: 163 | C57: 5381.9 | D57: 1.81 | E57: 1.79 | F57: 1.43 | G57: 2.1
A58: 2018 | B58: 94 | C58: 5382.32 | D58: 1.49 | E58: 1.41 | F58: 1.18 | G58: 2.13
A59: 2019 | B59: 103 | C59: 5998.6 | D59: 1.31 | E59: 1.29 | F59: 1.05 | G59: 1.71
A60: 2020 | B60: 159 | C60: 12588.57 | D60: 1.16 | E60: 1.27 | F60: 1.01 | G60: 1.79
A61: 2021 | B61: 62 | C61: 7208.24 | D61: 0.99 | E61: 1.02 | F61: 0.8 | G61: 1.18
A62: Total | B62: 1001 | C62: 57768.74
A67: Graph Support | B67: x-Axis | C67: DC-Annual | D67: AC
A68: 2010 | B68: =A32&" n="&B32&" "&TEXT(ROUND(C32/1000,1),"0#.##")&" GW" -> 2011 n=29 0.4 GW | C68: 0.7 | D68: =C68+0.6 -> 1.3
A69: 2011 | B69: =A33&" n="&B33&" "&TEXT(ROUND(C33/1000,1),"0#.##")&" GW" -> 2012 n=41 0.9 GW | C69: =C68+2 -> 2.7 | D69: =C69+0.6 -> 3.3
A70: 2012 | B70: =A34&" n="&B34&" "&TEXT(ROUND(C34/1000,1),"0#.##")&" GW" -> 2013 n=38 01.3 GW | C70: =C69+2 -> 4.7 | D70: 5.3
A71: 2013 | B71: =A35&" n="&B35&" "&TEXT(ROUND(C35/1000,1),"#.##")&" GW" -> 2014 n=65 3.2 GW | C71: 6.7 | D71: 7.3
A72: 2014 | B72: 2015 n=87 2.9 GW | C72: 8.7 | D72: 9.3
A73: 2015 | B73: 2016 n=146 7.4 GW | C73: 10.7 | D73: 11.3
A74: 2016 | B74: 2017 n=163 4. GW | C74: 12.7 | D74: 13.3
A75: 2017 | B75: 2018 n=94 3.9 GW | C75: 14.7 | D75: 15.3
A76: 2018 | B76: 2019 n=103 4.5 GW | C76: 16.7 | D76: 17.3
A77: 2019 | B77: 2020 n=159 9.5 GW | C77: 18.7 | D77: 19.3
A78: 2020 | B78: 2021 n=62 5.4 GW | C78: 20.7 | D78: 21.3
A79: 2021 | B79: Total n=1002 43.8 GW | C79: 22.7 | D79: 23.3

Sheet CapEx by Size (PV-only)
A1: Installed costs by project size in 2021
A23: Sources: Berkeley Lab
B25: Installed Costs in $2021/WAC
A26: Project Size Bin | B26: Project Count in 2020 | C26: Project Capacity MWAC | D26: Median | E26: 20th Percentile | F26: 80th Percentile | G26: 20th Error | H26: 80th Error | I26: x-Axis
A27: 5-20 MW | B27: 9 | C27: 90.8 | D27: 1.54 | E27: 1.35 | F27: 2.05 | G27: 0.19 | H27: 0.51 | I27: =A27&" n="&B27&" "&TEXT(C27,"0#")&" MW" -> 5-20 MW n=9 91 MW
A28: 20-50 MW | B28: 6 | C28: 169.4 | D28: 1.43 | E28: 1.24 | F28: 1.76 | G28: 0.19 | H28: 0.33 | I28: =A28&" n="&B28&" "&TEXT(C28,"0#")&" MW" -> 20-50 MW n=6 169 MW
A29: 50-100 MW | B29: 29 | C29: 2141.5 | D29: 1.22 | E29: 1.05 | F29: 1.49 | G29: 0.17 | H29: 0.27 | I29: =A29&" n="&B29&" "&TEXT(C29,"0#")&" MW" -> 50-100 MW n=29 2142 MW
A30: 100-300 MW | B30: 18 | C30: 2981.64 | D30: 1.31 | E30: 1.11 | F30: 1.52 | G30: 0.2 | H30: 0.21 | I30: =A30&" n="&B30&" "&TEXT(C30,"0#")&" MW" -> 100-300 MW n=18 2982 MW
B32: Installed Costs in $2021/WDC
A33: Project Size Bin | B33: Project Count in 2020 | C33: Project Capacity MWDC | D33: Median | E33: 20th Percentile | F33: 80th Percentile | G33: 20th Error | H33: 80th Error | I33: x-Axis
A34: 5-20 MW | B34: 8 | C34: 91.94 | D34: 1.14 | E34: 1.04 | F34: 1.58 | G34: 0.09 | H34: 0.45 | I34: =A34&" n="&B34&" "&TEXT(C34,"0#")&" MW" -> 5-20 MW n=8 92 MW
A35: 20-50 MW | B35: 5 | C35: 136.7 | D35: 0.95 | E35: 0.87 | F35: 1.14 | G35: 0.07 | H35: 0.19 | I35: =A35&" n="&B35&" "&TEXT(C35,"0#")&" MW" -> 20-50 MW n=5 137 MW
A36: 50-100 MW | B36: 15 | C36: 1236.1 | D36: 1.06 | E36: 0.83 | F36: 1.19 | G36: 0.23 | H36: 0.13 | I36: =A36&" n="&B36&" "&TEXT(C36,"0#")&" MW" -> 50-100 MW n=15 1236 MW
A37: 100-400 MW | B37: 34 | C37: 5743.5 | D37: 1 | E37: 0.76 | F37: 1.12 | G37: 0.24 | H37: 0.12 | I37: =A37&" n="&B37&" "&TEXT(C37,"0#")&" MW" -> 100-400 MW n=34 5744 MW

Sheet CapEx Trend by Mount Type (PV)
A1: Installed costs by mounting type and installation year | X1: $/WAC
T2: Graph Support | U2: Fixed-Tilt | V2: Tracking | W2: x-Axis | X2: Fixed Tilt 20th Perc Error | Y2: Fixed Tilt 80th Perc Error | Z2: Tracking 20th Perc Error | AA2: Tracking 80th Perc Error
T3: 2010 | U3: 0.55 | V3: 1.3 | W3: =A30&" n="&B30&" "&TEXT(ROUND(C30/1000,1),"0#.##")&" GW" -> 2010 n=10 0.2 GW | X3: 1.02 | Y3: 0.55 | Z3: 0.96 | AA3: 1.3
T4: 2011 | U4: =U3+2 -> 2.55 | V4: =V3+2 -> 3.3 | W4: =A31&" n="&B31&" "&TEXT(ROUND(C31/1000,1),"0#.##")&" GW" -> 2011 n=29 0.4 GW | X4: 0.8 | Y4: 0.58 | Z4: 0.5 | AA4: 0.65
T5: 2012 | U5: =U4+2 -> 4.55 | V5: 5.3 | W5: =A32&" n="&B32&" "&TEXT(ROUND(C32/1000,1),"0#.0##")&" GW" -> 2012 n=41 0.9 GW | X5: 0.55 | Y5: 0.85 | Z5: 0.1 | AA5: 0.62
T6: 2013 | U6: 6.55 | V6: 7.3 | W6: =A33&" n="&B33&" "&TEXT(ROUND(C33/1000,1),"#.##")&" GW" -> 2013 n=38 1.3 GW | X6: 0.71 | Y6: 0.69 | Z6: 0.47 | AA6: 0.59
T7: 2014 | U7: 8.55 | V7: 9.3 | W7: 2014 n=65 3.2 GW | X7: 0.55 | Y7: 0.93 | Z7: 0.69 | AA7: 1.1
T8: 2015 | U8: 10.55 | V8: 11.3 | W8: 2015 n=87 2.9 GW | X8: 0.53 | Y8: 0.81 | Z8: 0.66 | AA8: 0.71
T9: 2016 | U9: 12.55 | V9: 13.3 | W9: 2016 n=146 7.4 GW | X9: 0.4 | Y9: 1.07 | Z9: 0.32 | AA9: 0.37
T10: 2017 | U10: 14.55 | V10: 15.3 | W10: =A37&" n="&B37&" "&TEXT(ROUND(C37/1000,1),"#.0")&" GW" -> 2017 n=163 4.0 GW | X10: 0.43 | Y10: 0.42 | Z10: 0.58 | AA10: 0.67
T11: 2018 | U11: 16.55 | V11: 17.3 | W11: 2018 n=94 3.9 GW | X11: 0.64 | Y11: 0.91 | Z11: 0.28 | AA11: 0.77
T12: 2019 | U12: 18.55 | V12: 19.3 | W12: 2019 n=103 4.5 GW | X12: 0.49 | Y12: 0.93 | Z12: 0.29 | AA12: 0.4
T13: 2020 | U13: 20.55 | V13: 21.3 | W13: 2020 n=159 9.5 GW | X13: 0.67 | Y13: 0.63 | Z13: 0.29 | AA13: 0.56
T14: 2021 | U14: 22.55 | V14: 23.3 | W14: 2021 n=62 5.4 GW | X14: 0.19 | Y14: 0.41 | Z14: 0.3 | AA14: 0.15
X19: $/WDC
W20: x-Axis | X20: Fixed Tilt 20th Perc Error | Y20: Fixed Tilt 80th Perc Error | Z20: Tracking 20th Perc Error | AA20: Tracking 80th Perc Error
T21: =A49&" n="&B49&" "&TEXT(ROUND(C49/1000,1),"0#.##")&" GW" -> 2010 n=10 0.2 GW | U21: 1.02 | V21: 0.55 | W21: 0.96 | X21: 1.02 | Y21: 0.55 | Z21: 0.96 | AA21: 1.3
T22: =A50&" n="&B50&" "&TEXT(ROUND(C50/1000,1),"#.##")&" GW" -> 2011 n=29 .5 GW | U22: 0.8 | V22: 0.58 | W22: 0.5 | X22: 0.8 | Y22: 0.58 | Z22: 0.5 | AA22: 0.65
A23: Sources: Berkeley Lab, Energy Information Administration | T23: 2012 n=41 1.2 GW | U23: 0.55 | V23: 0.85 | W23: 0.1 | X23: 0.55 | Y23: 0.85 | Z23: 0.1 | AA23: 0.62
A24: Note: | T24: 2013 n=38 1.8 GW | U24: 0.71 | V24: 0.69 | W24: 0.47 | X24: 0.71 | Y24: 0.69 | Z24: 0.47 | AA24: 0.59
D25: Installed Costs 2021 $/WAC | T25: 2014 n=65 4.1 GW | U25: 0.55 | V25: 0.93 | W25: 0.69 | X25: 0.55 | Y25: 0.93 | Z25: 0.69 | AA25: 1.1
A26: Commercial Operation Year | B26: All Count | C26: All Capacity (MWAC) | D26: All Capacity-weighted Mean | E26: All Median | F26: All 20th Percentile | G26: All 80th Percentile | H26: Fixed-Tilt Capacity-weighted Mean | I26: Fixed Tilt Median | J26: Fixed Tilt 20th Percentile | K26: Fixed Tilt 80th Percentile | L26: Tracking Capacity-weighted Mean | M26: Tracking Median | N26: Tracking 20th Percentile | O26: Tracking 80th Percentile | T26: =A54&" n="&B54&" "&TEXT(ROUND(C54/1000,1),"#.##")&" GW" -> 2015 n=87 3.7 GW | U26: 0.53 | V26: 0.81 | W26: 0.66 | X26: 0.53 | Y26: 0.81 | Z26: 0.66 | AA26: 0.71
A27: 2007 | B27: 2 | C27: 18.9 | D27: 10.83 | E27: 10.9 | F27: 10.76 | G27: 11.04 | L27: 10.66 | M27: 10.66 | N27: 10.66 | O27: 10.66 | T27: =A55&" n="&B55&" "&TEXT(ROUND(C55/1000,1),"#.##")&" GW" -> 2016 n=145 9.6 GW | U27: 0.4 | V27: 1.07 | W27: 0.33 | X27: 0.4 | Y27: 1.07 | Z27: 0.32 | AA27: 0.37
A28: 2008 | B28: 1 | C28: 10 | D28: 5.02 | E28: 5.02 | F28: 5.02 | G28: 5.02 | H28: 5.02 | I28: 5.02 | J28: 5.02 | K28: 5.02 | T28: =A56&" n="&B56&" "&TEXT(ROUND(C56/1000,1),"#.##")&" GW" -> 2017 n=163 5.4 GW | U28: 0.43 | V28: 0.42 | W28: 0.58 | X28: 0.43 | Y28: 0.42 | Z28: 0.58 | AA28: 0.67
A29: 2009 | B29: 2 | C29: 46 | D29: 5.57 | E29: 5.41 | F29: 4.31 | G29: 6.51 | H29: 3.58 | I29: 3.58 | J29: 3.58 | K29: 3.58 | L29: 7.24 | M29: 7.24 | N29: 7.24 | O29: 7.24 | T29: =A57&" n="&B57&" "&TEXT(ROUND(C57/1000,1),"#.##")&" GW" -> 2018 n=94 5.4 GW | U29: 0.64 | V29: 0.91 | W29: 0.28 | X29: 0.64 | Y29: 0.91 | Z29: 0.28 | AA29: 0.77
A30: 2010 | B30: 10 | C30: 175.07 | D30: 5.19 | E30: 5.61 | F30: 4.96 | G30: 7.19 | H30: 4.63 | I30: 5.28 | J30: 4.26 | K30: 5.83 | L30: 6.8 | M30: 7.08 | N30: 6.12 | O30: 8.39 | T30: 2019 n=103 6. GW | U30: 0.5 | V30: 0.96 | W30: 0.28 | X30: 0.49 | Y30: 0.93 | Z30: 0.29 | AA30: 0.4
A31: 2011 | B31: 29 | C31: 427.79 | D31: 4.9 | E31: 4.92 | F31: 4.25 | G31: 5.55 | H31: 4.84 | I31: 4.92 | J31: 4.11 | K31: 5.5 | L31: 4.97 | M31: 4.9 | N31: 4.4 | O31: 5.55 | T31: 2020 n=159 12.6 GW | U31: 0.21 | V31: 0.34 | W31: 0.23 | X31: 0.67 | Y31: 0.63 | Z31: 0.29 | AA31: 0.56
A32: 2012 | B32: 41 | C32: 929.64 | D32: 4 | E32: 4.55 | F32: 3.84 | G32: 5.02 | H32: 3.48 | I32: 3.98 | J32: 3.43 | K32: 4.83 | L32: 4.77 | M32: 4.63 | N32: 4.54 | O32: 5.25 | T32: 2021 n=62 7.2 GW | U32: 0.18 | V32: 0.25 | W32: 0.31 | X32: 0.19 | Y32: 0.41 | Z32: 0.3 | AA32: 0.15
A33: 2013 | B33: 38 | C33: 1343.79 | D33: 4.33 | E33: 4.05 | F33: 3.49 | G33: 4.79 | H33: 4.12 | I33: 4.02 | J33: 3.32 | K33: 4.71 | L33: 4.5 | M33: 4.2 | N33: 3.73 | O33: 4.79
A34: 2014 | B34: 65 | C34: 3184.08 | D34: 4.18 | E34: 3.44 | F34: 2.85 | G34: 4.6 | H34: 4.18 | I34: 3.42 | J34: 2.87 | K34: 4.36 | L34: 4.15 | M34: 3.54 | N34: 2.84 | O34: 4.64
A35: 2015 | B35: 87 | C35: 2869.68 | D35: 3.43 | E35: 3.08 | F35: 2.43 | G35: 3.78 | H35: 2.71 | I35: 2.75 | J35: 2.23 | K35: 3.56 | L35: 3.75 | M35: 3.21 | N35: 2.55 | O35: 3.92
A36: 2016 | B36: 146 | C36: 7389.29 | D36: 2.61 | E36: 2.55 | F36: 2.2 | G36: 3.01 | H36: 2.95 | I36: 2.49 | J36: 2.09 | K36: 3.57 | L36: 2.53 | M36: 2.56 | N36: 2.24 | O36: 2.92
A37: 2017 | B37: 163 | C37: 4045.82 | D37: 2.4 | E37: 2.36 | F37: 1.83 | G37: 2.99 | H37: 2.45 | I37: 2.36 | J37: 1.94 | K37: 2.78 | L37: 2.39 | M37: 2.36 | N37: 1.78 | O37: 3.03
A38: 2018 | B38: 94 | C38: 3949.42 | D38: 2.03 | E38: 1.91 | F38: 1.55 | G38: 2.79 | H38: 1.7 | I38: 1.89 | J38: 1.26 | K38: 2.8 | L38: 2.18 | M38: 1.94 | N38: 1.66 | O38: 2.71
A39: 2019 | B39: 103 | C39: 4532.66 | D39: 1.73 | E39: 1.65 | F39: 1.33 | G39: 2.34 | H39: 1.57 | I39: 1.76 | J39: 1.27 | K39: 2.69 | L39: 1.75 | M39: 1.62 | N39: 1.33 | O39: 2.02
A40: 2020 | B40: 159 | C40: 9494.54 | D40: 1.54 | E40: 1.68 | F40: 1.37 | G40: 2.37 | H40: 1.57 | I40: 1.99 | J40: 1.32 | K40: 2.62 | L40: 1.54 | M40: 1.67 | N40: 1.37 | O40: 2.23
A41: 2021 | B41: 62 | C41: 5383.34 | D41: 1.32 | E41: 1.35 | F41: 1.08 | G41: 1.55 | H41: 1.42 | I41: 1.26 | J41: 1.07 | K41: 1.66 | L41: 1.3 | M41: 1.39 | N41: 1.09 | O41: 1.54
A42: Total | B42: 1002 | C42: 43800.04
D44: Installed Costs 2021 $/WDC
A45: Commercial Operation Year | B45: All Count | C45: All Capacity (MWDC) | D45: All Capacity-weighted Mean | E45: All Median | F45: All 20th Percentile | G45: All 80th Percentile | H45: Fixed-Tilt Capacity-weighted Mean | I45: Fixed Tilt Median | J45: Fixed Tilt 20th Percentile | K45: Fixed Tilt 80th Percentile | L45: Tracking Capacity-weighted Mean | M45: Tracking Median | N45: Tracking 20th Percentile | O45: Tracking 80th Percentile
A46: 2007 | B46: 2 | C46: 22.28 | D46: 9.19 | E46: 9.22 | F46: 9.15 | G46: 9.29 | L46: 9.1 | M46: 9.1 | N46: 9.1 | O46: 9.1
A47: 2008 | B47: 1 | C47: 12.14 | D47: 4.14 | E47: 4.14 | F47: 4.14 | G47: 4.14 | H47: 4.14 | I47: 4.14 | J47: 4.14 | K47: 4.14
A48: 2009 | B48: 2 | C48: 52.8 | D48: 4.85 | E48: 4.77 | F48: 3.7 | G48: 5.84 | H48: 2.98 | I48: 2.98 | J48: 2.98 | K48: 2.98 | L48: 6.56 | M48: 6.56 | N48: 6.56 | O48: 6.56
A49: 2010 | B49: 10 | C49: 210.72 | D49: 4.31 | E49: 4.86 | F49: 4.15 | G49: 5.83 | H49: 3.82 | I49: 4.37 | J49: 3.55 | K49: 4.89 | L49: 5.78 | M49: 5.56 | N49: 5.29 | O49: 6.8
A50: 2011 | B50: 29 | C50: 516.7 | D50: 4.06 | E50: 4.05 | F50: 3.57 | G50: 4.63 | H50: 3.96 | I50: 3.97 | J50: 3.3 | K50: 4.66 | L50: 4.17 | M50: 4.14 | N50: 3.85 | O50: 4.54
A51: 2012 | B51: 41 | C51: 1181.41 | D51: 3.15 | E51: 3.68 | F51: 2.97 | G51: 4.07 | H51: 2.7 | I51: 3.14 | J51: 2.83 | K51: 3.86 | L51: 3.83 | M51: 3.91 | N51: 3.59 | O51: 4.18
A52: 2013 | B52: 38 | C52: 1754.16 | D52: 3.32 | E52: 3.17 | F52: 2.71 | G52: 3.66 | H52: 3.13 | I52: 3.04 | J52: 2.43 | K52: 3.58 | L52: 3.48 | M52: 3.22 | N52: 2.87 | O52: 3.67
A53: 2014 | B53: 65 | C53: 4111.96 | D53: 3.23 | E53: 2.68 | F53: 2.17 | G53: 3.61 | H53: 3.22 | I53: 2.65 | J53: 2.1 | K53: 3.43 | L53: 3.23 | M53: 2.7 | N53: 2.19 | O53: 3.61
A54: 2015 | B54: 87 | C54: 3728.47 | D54: 2.64 | E54: 2.34 | F54: 1.82 | G54: 3.01 | H54: 2.04 | I54: 2.04 | J54: 1.77 | K54: 2.63 | L54: 2.91 | M54: 2.5 | N54: 1.97 | O54: 3.11
A55: 2016 | B55: 145 | C55: 9618.47 | D55: 2 | E55: 1.96 | F55: 1.66 | G55: 2.34 | H55: 2.19 | I55: 1.93 | J55: 1.57 | K55: 2.76 | L55: 1.95 | M55: 1.96 | N55: 1.71 | O55: 2.31
A56: 2017 | B56: 163 | C56: 5381.9 | D56: 1.81 | E56: 1.79 | F56: 1.43 | G56: 2.1 | H56: 1.81 | I56: 1.82 | J56: 1.56 | K56: 2.15 | L56: 1.81 | M56: 1.79 | N56: 1.41 | O56: 2.1
A57: 2018 | B57: 94 | C57: 5382.32 | D57: 1.49 | E57: 1.41 | F57: 1.18 | G57: 2.13 | H57: 1.2 | I57: 1.31 | J57: 0.83 | K57: 2.21 | L57: 1.63 | M57: 1.44 | N57: 1.22 | O57: 2.09
A58: 2019 | B58: 103 | C58: 5998.6 | D58: 1.31 | E58: 1.29 | F58: 1.05 | G58: 1.71 | H58: 1.08 | I58: 1.36 | J58: 1.01 | K58: 1.91 | L58: 1.34 | M58: 1.27 | N58: 1.05 | O58: 1.57
A59: 2020 | B59: 159 | C59: 12588.57 | D59: 1.16 | E59: 1.27 | F59: 1.01 | G59: 1.79 | H59: 1.13 | I59: 1.45 | J59: 0.95 | K59: 2.12 | L59: 1.17 | M59: 1.25 | N59: 1.02 | O59: 1.68
A60: 2021 | B60: 62 | C60: 7208.24 | D60: 0.99 | E60: 1.02 | F60: 0.8 | G60: 1.18 | H60: 1.03 | I60: 0.94 | J60: 0.76 | K60: 1.23 | L60: 0.98 | M60: 1.04 | N60: 0.81 | O60: 1.17
A61: Total | B61: 1001 | C61: 57768.74

Sheet CapEx Trend by Region (PV only)
A1: Installed costs by region and installation year
A3: Sources: Berkeley Lab (some data points suppressed to protect confidentiality), Energy Information Administration
B5: Median Project Cost (2021 $/WAC) | O5: Median Project Cost (2021 $/WDC)
A6: Commercial Operation Year | B6: National | C6: CAISO | D6: ERCOT | E6: Hawaii | F6: ISO-NE | G6: MISO | H6: NYISO | I6: PJM | J6: SPP | K6: Southeast (non-ISO) | L6: West (non-ISO) | N6: Commercial Operation Year | O6: National | P6: CAISO | Q6: ERCOT | R6: HI | S6: ISO-NE | T6: MISO | U6: NYISO | V6: PJM | W6: SPP | X6: Southeast (non-ISO) | Y6: West (non-ISO)
A7: 2007 | B7: 10.9 | N7: 2007 | O7: 9.22
A8: 2008 | B8: 5.02 | N8: 2008 | O8: 4.14
A9: 2009 | B9: 5.41 | N9: 2009 | O9: 4.77
A10: 2010 | B10: 5.61 | I10: 5.73 | K10: 7.08 | N10: 2010 | O10: 4.86 | V10: 4.81 | X10: 5.56
A11: 2011 | B11: 4.92 | C11: 4.63 | I11: 5.31 | L11: 4.61 | N11: 2011 | O11: 4.05 | P11: 3.76 | V11: 4.69 | Y11: 4
A12: 2012 | B12: 4.55 | C12: 3.84 | D12: 4.56 | I12: 4.64 | K12: 3.95 | L12: 4.62 | N12: 2012 | O12: 3.68 | P12: 2.97 | Q12: 3.91 | V12: 3.71 | X12: 3.13 | Y12: 3.7
A13: 2013 | B13: 4.05 | C13: 4.17 | G13: 3.37 | K13: 4.01 | L13: 3.82 | N13: 2013 | O13: 3.17 | P13: 3.22 | T13: 2.44 | X13: 3.16 | Y13: 2.86
A14: 2014 | B14: 3.44 | C14: 3.59 | I14: 3.1 | K14: 2.25 | L14: 3.39 | N14: 2014 | O14: 2.68 | P14: 2.76 | V14: 2.43 | X14: 1.78 | Y14: 2.48
A15: 2015 | B15: 3.08 | C15: 3.29 | D15: 3.61 | G15: 4.13 | I15: 2.98 | K15: 2.47 | L15: 3.08 | N15: 2015 | O15: 2.34 | P15: 2.54 | Q15: 2.91 | T15: 3.1 | V15: 2.18 | X15: 1.81 | Y15: 2.26
A16: 2016 | B16: 2.55 | C16: 2.67 | G16: 2.61 | I16: 2.76 | J16: 2.2 | K16: 2.3 | L16: 2.41 | N16: 2016 | O16: 1.96 | P16: 2.04 | T16: 1.94 | V16: 2.14 | W16: 1.61 | X16: 1.74 | Y16: 1.95
A17: 2017 | B17: 2.36 | C17: 2.81 | D17: 2.14 | E17: 4.41 | F17: 2.67 | G17: 3.16 | I17: 2.24 | J17: 2.4 | K17: 2.11 | L17: 2.46 | N17: 2017 | O17: 1.79 | P17: 2.07 | Q17: 1.58 | R17: 3.09 | S17: 2.11 | T17: 2.07 | V17: 1.71 | W17: 1.71 | X17: 1.58 | Y17: 1.85
A18: 2018 | B18: 1.91 | C18: 3.04 | D18: 1.66 | F18: 2.48 | G18: 1.57 | I18: 2.39 | K18: 1.59 | L18: 2.12 | N18: 2018 | O18: 1.41 | P18: 2.26 | Q18: 1.22 | S18: 1.78 | T18: 1.32 | V18: 2.11 | X18: 1.2 | Y18: 1.63
A19: 2019 | B19: 1.65 | C19: 1.77 | D19: 1.69 | E19: 3.02 | F19: 2.48 | H19: 1.93 | I19: 1.81 | J19: 1.32 | K19: 1.5 | L19: 1.46 | N19: 2019 | O19: 1.29 | P19: 1.42 | Q19: 1.21 | R19: 3.01 | S19: 1.67 | U19: 1.37 | V19: 1.35 | W19: 1.14 | X19: 1.06 | Y19: 1.13
A20: 2020 | B20: 1.68 | C20: 1.73 | D20: 1.33 | F20: 2.53 | G20: 1.61 | H20: 2.62 | I20: 2.07 | J20: 1.59 | K20: 1.43 | L20: 1.96 | N20: 2020 | O20: 1.27 | P20: 1.27 | Q20: 0.99 | S20: 1.98 | T20: 1.27 | U20: 1.98 | V20: 1.59 | W20: 1.3 | X20: 1.03 | Y20: 1.56
A21: 2021 | B21: 1.35 | D21: 1.41 | F21: 1.49 | G21: 1.49 | I21: 1.46 | K21: 1.16 | L21: 1.12 | N21: 2021 | O21: 1.02 | Q21: 1.04 | S21: 1.09 | T21: 1.12 | V21: 1.07 | X21: 0.9 | Y21: 0.86
B23: $/WAC Cost Sample Project Capacity | O23: $/WDC Cost Sample Project Capacity
A24: Commercial Operation Year | B24: National | C24: CAISO | D24: ERCOT | E24: Hawaii | F24: ISO-NE | G24: MISO | H24: NYISO | I24: PJM | J24: SPP | K24: Southeast (non-ISO) | L24: West (non-ISO) | N24: Commercial Operation Year | O24: National | P24: CAISO | Q24: ERCOT | R24: Hawaii | S24: ISO-NE | T24: MISO | U24: NYISO | V24: PJM | W24: SPP | X24: Southeast (non-ISO) | Y24: West (non-ISO)
A25: 2007 | B25: 19 | N25: 2007 | O25: 22
A26: 2008 | B26: 10 | N26: 2008 | O26: 12
A27: 2009 | B27: 46 | N27: 2009 | O27: 53
A28: 2010 | B28: 175 | I28: 23 | K28: 40 | N28: 2010 | O28: 211 | V28: 28 | X28: 48
A29: 2011 | B29: 428 | C29: 95 | I29: 66 | L29: 200 | N29: 2011 | O29: 517 | P29: 118 | V29: 77 | Y29: 243
A30: 2012 | B30: 930 | C30: 419 | D30: 30 | I30: 107 | K30: 40 | L30: 327 | N30: 2012 | O30: 1181 | P30: 553 | Q30: 35 | V30: 134 | X30: 49 | Y30: 403
A31: 2013 | B31: 1344 | C31: 900 | G31: 39 | K31: 44 | L31: 293 | N31: 2013 | O31: 1754 | P31: 1171 | T31: 52 | X31: 55 | Y31: 393
A32: 2014 | B32: 3184 | C32: 2676 | I32: 102 | K32: 62 | L32: 255 | N32: 2014 | O32: 4112 | P32: 3463 | V32: 139 | X32: 79 | Y32: 322
A33: 2015 | B33: 2870 | C33: 1337 | D33: 130 | G33: 20 | I33: 239 | K33: 415 | L33: 715 | N33: 2015 | O33: 3728 | P33: 1697 | Q33: 162 | T33: 27 | V33: 324 | X33: 563 | Y33: 940
A34: 2016 | B34: 7389 | C34: 3102 | G34: 111 | I34: 327 | J34: 165 | K34: 1335 | L34: 2038 | N34: 2016 | O34: 9618 | P34: 3982 | T34: 152 | V34: 430 | W34: 224 | X34: 1794 | Y34: 2634
A35: 2017 | B35: 4046 | C35: 529 | D35: 651 | E35: 46 | F35: 27 | G35: 273 | I35: 464 | J35: 19 | K35: 1201 | L35: 822 | N35: 2017 | O35: 5382 | P35: 701 | Q35: 841 | R35: 64 | S35: 35 | T35: 385 | V35: 610 | W35: 25 | X35: 1628 | Y35: 1074
A36: 2018 | B36: 3949 | C36: 836 | D36: 646 | F36: 60 | G36: 112 | I36: 361 | K36: 1377 | L36: 495 | N36: 2018 | O36: 5382 | P36: 1120 | Q36: 855 | S36: 82 | T36: 119 | V36: 507 | X36: 1960 | Y36: 655
A37: 2019 | B37: 4533 | C37: 979 | D37: 488 | E37: 129 | F37: 94 | H37: 65 | I37: 456 | J37: 16 | K37: 1548 | L37: 743 | N37: 2019 | O37: 5999 | P37: 1223 | Q37: 633 | R37: 138 | S37: 134 | U37: 87 | V37: 625 | W37: 19 | X37: 2158 | Y37: 964
A38: 2020 | B38: 9495 | C38: 1755 | D38: 2495 | F38: 89 | G38: 441 | H38: 22 | I38: 1052 | J38: 30 | K38: 2795 | L38: 816 | N38: 2020 | O38: 12589 | P38: 2278 | Q38: 3246 | S38: 124 | T38: 626 | U38: 29 | V38: 1363 | W38: 40 | X38: 3828 | Y38: 1055
A39: 2021 | B39: 5383 | D39: 1314 | F39: 163 | G39: 528 | I39: 865 | K39: 1659 | L39: 790 | N39: 2021 | O39: 7208 | Q39: 1747 | S39: 228 | T39: 710 | V39: 1152 | X39: 2257 | Y39: 1030
B41: $/WAC Cost Sample Project Count | O41: $/WDC Cost Sample Project Count
A42: Commercial Operation Year | B42: National | C42: CAISO | D42: ERCOT | E42: Hawaii | F42: ISO-NE | G42: MISO | H42: NYISO | I42: PJM | J42: SPP | K42: Southeast (non-ISO) | L42: West (non-ISO) | N42: Commercial Operation Year | O42: National | P42: CAISO | Q42: ERCOT | R42: Hawaii | S42: ISO-NE | T42: MISO | U42: NYISO | V42: PJM | W42: SPP | X42: Southeast (non-ISO) | Y42: West (non-ISO)
A43: 2007 | B43: 2 | L43: 2 | N43: 2007 | O43: 2 | Y43: 2
A44: 2008 | B44: 1 | C44: 1 | N44: 2008 | O44: 1 | P44: 1
A45: 2009 | B45: 2 | C45: 1 | K45: 1 | N45: 2009 | O45: 2 | P45: 1 | X45: 1
A46: 2010 | B46: 10 | C46: 1 | D46: 1 | I46: 3 | K46: 3 | L46: 2 | N46: 2010 | O46: 10 | P46: 1 | Q46: 1 | V46: 3 | X46: 3 | Y46: 2
A47: 2011 | B47: 29 | C47: 6 | D47: 1 | H47: 1 | I47: 6 | K47: 1 | L47: 14 | N47: 2011 | O47: 29 | P47: 6 | Q47: 1 | U47: 1 | V47: 6 | X47: 1 | Y47: 14
A48: 2012 | B48: 41 | C48: 9 | D48: 3 | E48: 1 | I48: 9 | K48: 3 | L48: 16 | N48: 2012 | O48: 41 | P48: 9 | Q48: 3 | R48: 1 | V48: 9 | X48: 3 | Y48: 16
A49: 2013 | B49: 38 | C49: 16 | D49: 2 | G49: 4 | I49: 2 | K49: 3 | L49: 11 | N49: 2013 | O49: 38 | P49: 16 | Q49: 2 | T49: 4 | V49: 2 | X49: 3 | Y49: 11
A50: 2014 | B50: 65 | C50: 32 | D50: 1 | E50: 1 | F50: 2 | G50: 2 | I50: 9 | K50: 3 | L50: 15 | N50: 2014 | O50: 65 | P50: 32 | Q50: 1 | R50: 1 | S50: 2 | T50: 2 | V50: 9 | X50: 3 | Y50: 15
A51: 2015 | B51: 87 | C51: 34 | D51: 3 | E51: 1 | G51: 3 | I51: 12 | K51: 16 | L51: 18 | N51: 2015 | O51: 87 | P51: 34 | Q51: 3 | R51: 1 | T51: 3 | V51: 12 | X51: 16 | Y51: 18
A52: 2016 | B52: 146 | C52: 45 | D52: 2 | E52: 1 | F52: 2 | G52: 3 | H52: 1 | I52: 18 | J52: 3 | K52: 30 | L52: 41 | N52: 2016 | O52: 145 | P52: 45 | Q52: 2 | R52: 1 | S52: 2 | T52: 3 | U52: 1 | V52: 18 | W52: 3 | X52: 29 | Y52: 41
A53: 2017 | B53: 163 | C53: 24 | D53: 14 | E53: 3 | F53: 4 | G53: 17 | H53: 2 | I53: 22 | J53: 3 | K53: 47 | L53: 27 | N53: 2017 | O53: 163 | P53: 24 | Q53: 14 | R53: 3 | S53: 4 | T53: 17 | U53: 2 | V53: 22 | W53: 3 | X53: 47 | Y53: 27
A54: 2018 | B54: 94 | C54: 7 | D54: 10 | E54: 1 | F54: 3 | G54: 4 | H54: 1 | I54: 15 | J54: 2 | K54: 29 | L54: 22 | N54: 2018 | O54: 94 | P54: 7 | Q54: 10 | R54: 1 | S54: 3 | T54: 4 | U54: 1 | V54: 15 | W54: 2 | X54: 29 | Y54: 22
A55: 2019 | B55: 103 | C55: 11 | D55: 8 | E55: 4 | F55: 8 | G55: 2 | H55: 5 | I55: 16 | J55: 3 | K55: 26 | L55: 20 | N55: 2019 | O55: 103 | P55: 11 | Q55: 8 | R55: 4 | S55: 8 | T55: 2 | U55: 5 | V55: 16 | W55: 3 | X55: 26 | Y55: 20
A56: 2020 | B56: 159 | C56: 19 | D56: 16 | F56: 5 | G56: 11 | H56: 4 | I56: 33 | J56: 3 | K56: 44 | L56: 24 | N56: 2020 | O56: 159 | P56: 19 | Q56: 16 | S56: 5 | T56: 11 | U56: 4 | V56: 33 | W56: 3 | X56: 44 | Y56: 24
A57: 2021 | B57: 62 | C57: 1 | D57: 7 | F57: 5 | G57: 7 | H57: 1 | I57: 13 | J57: 1 | K57: 21 | L57: 6 | N57: 2021 | O57: 62 | P57: 1 | Q57: 7 | S57: 5 | T57: 7 | U57: 1 | V57: 13 | W57: 1 | X57: 21 | Y57: 6

Sheet CapEx Trend by State (PV only)
A1: Installed costs by state and installation year
A3: Sources: Berkeley Lab (some data points suppressed to protect confidentiality), Energy Information Administration
B6: Median Project Cost (2021 $/WAC) | AV6: Median Project Cost (2021 $/WDC)
A7: Solar COD | B7: National | C7: AL | D7: AR | E7: AZ | F7: CA | G7: CO | H7: CT | I7: DE | J7: FL | K7: GA | L7: HI | M7: ID | N7: IL | O7: IN | P7: KS | Q7: KY | R7: LA | S7: MA | T7: MD | U7: ME | V7: MI | W7: MN | X7: MO | Y7: MS | Z7: NC | AA7: NE | AB7: NJ | AC7: NM | AD7: NV | AE7: NY | AF7: OH | AG7: OK | AH7: OR | AI7: PA | AJ7: RI | AK7: SC | AL7: TN | AM7: TX | AN7: UT | AO7: VA | AP7: VT | AQ7: WA | AR7: WI | AS7: WY | AU7: Solar COD | AV7: National | AW7: AL | AX7: AR | AY7: AZ | AZ7: CA | BA7: CO | BB7: CT | BC7: DE | BD7: FL | BE7: GA | BF7: HI | BG7: ID | BH7: IL | BI7: IN | BJ7: KS | BK7: KY | BL7: LA | BM7: MA | BN7: MD | BO7: ME | BP7: MI | BQ7: MN | BR7: MO | BS7: MS | BT7: NC | BU7: NE | BV7: NJ | BW7: NM | BX7: NV | BY7: NY | BZ7: OH | CA7: OK | CB7: OR | CC7: PA | CD7: RI | CE7: SC | CF7: TN | CG7: TX | CH7: UT | CI7: VA | CJ7: VT | CK7: WA | CL7: WI | CM7: WY
A8: 2007 | B8: 10.9 | AU8: 2007 | AV8: 9.22
A9: 2008 | B9: 5.02 | AU9: 2008 | AV9: 4.14
A10: 2009 | B10: 5.41 | AU10: 2009 | AV10: 4.77
A11: 2010 | B11: 5.61 | AU11: 2010 | AV11: 4.86
A12: 2011 | B12: 4.92 | E12: 5.29 | F12: 4.72 | AB12: 5.52 | AC12: 4.26 | AU12: 2011 | AV12: 4.05 | AY12: 4.12 | AZ12: 3.78 | BV12: 4.69 | BW12: 3.47
A13: 2012 | B13: 4.55 | E13: 4.53 | F13: 4.52 | T13: 4.25 | AB13: 4.97 | AD13: 3.96 | AM13: 4.56 | AU13: 2012 | AV13: 3.68 | AY13: 3.55 | AZ13: 3.47 | BN13: 3.52 | BV13: 3.98 | BX13: 3.27 | CG13: 3.91
A14: 2013 | B14: 4.05 | E14: 4.08 | F14: 4.17 | O14: 3.37 | AU14: 2013 | AV14: 3.17 | AY14: 2.99 | AZ14: 3.22 | BI14: 2.44
A15: 2014 | B15: 3.44 | E15: 4.32 | F15: 3.59 | Z15: 2.96 | AB15: 3.17 | AC15: 2.34 | AU15: 2014 | AV15: 2.68 | AY15: 3.29 | AZ15: 2.78 | BT15: 2.11 | BV15: 2.62 | BW15: 1.91
A16: 2015 | B16: 3.08 | E16: 3.18 | F16: 3.37 | K16: 2.54 | O16: 4.13 | Z16: 2.68 | AB16: 3.47 | AC16: 2.12 | AD16: 2.99 | AM16: 3.61 | AU16: 2015 | AV16: 2.34 | AY16: 2.29 | AZ16: 2.6 | BE16: 1.76 | BI16: 3.1 | BT16: 1.89 | BV16: 2.67 | BW16: 1.72 | BX16: 2.38 | CG16: 2.91
A17: 2016 | B17: 2.55 | E17: 2.22 | F17: 2.71 | G17: 2.36 | J17: 2.06 | K17: 2.39 | O17: 2.61 | T17: 2.84 | Z17: 2.31 | AB17: 3.29 | AC17: 2.2 | AD17: 2.63 | AH17: 2.56 | AN17: 2.07 | AO17: 2.61 | AU17: 2016 | AV17: 1.96 | AY17: 1.74 | AZ17: 2.11 | BA17: 1.82 | BD17: 1.25 | BE17: 1.79 | BI17: 1.94 | BN17: 2.17 | BT17: 1.77 | BV17: 2.85 | BW17: 1.61 | BX17: 2.03 | CB17: 1.96 | CH17: 1.61 | CI17: 1.95
A18: 2017 | B18: 2.36 | C18: 3.04 | E18: 2.42 | F18: 2.77 | J18: 2.51 | L18: 4.41 | M18: 2.71 | O18: 1.68 | S18: 2.65 | W18: 3.16 | Y18: 2.14 | Z18: 2.2 | AB18: 2.98 | AD18: 2.58 | AH18: 2.27 | AK18: 1.56 | AM18: 2.14 | AO18: 2.11 | AU18: 2017 | AV18: 1.79 | AW18: 2.46 | AY18: 1.74 | AZ18: 2.06 | BD18: 1.87 | BF18: 3.09 | BG18: 2.03 | BI18: 1.36 | BM18: 2.26 | BQ18: 2.07 | BS18: 1.59 | BT18: 1.64 | BV18: 2.45 | BX18: 1.93 | CB18: 1.69 | CE18: 1.12 | CG18: 1.58 | CI18: 1.57
A19: 2018 | B19: 1.91 | F19: 2.94 | J19: 1.25 | Z19: 1.95 | AB19: 2.8 | AC19: 1.74 | AH19: 2.09 | AK19: 1.75 | AM19: 1.66 | AO19: 1.91 | AU19: 2018 | AV19: 1.41 | AZ19: 2.22 | BD19: 0.82 | BT19: 1.33 | BV19: 2.26 | BW19: 1.41 | CB19: 1.6 | CE19: 1.2 | CG19: 1.22 | CI19: 1.49
A20: 2019 | B20: 1.65 | F20: 1.77 | J20: 1.53 | K20: 1.18 | L20: 3.02 | O20: 1.56 | Z20: 1.74 | AB20: 3.05 | AC20: 1.33 | AD20: 1.63 | AE20: 1.93 | AH20: 2.37 | AJ20: 1.76 | AK20: 1.55 | AM20: 1.69 | AU20: 2019 | AV20: 1.29 | AZ20: 1.4 | BD20: 1.11 | BE20: 0.82 | BF20: 3.01 | BI20: 1.2 | BT20: 1.29 | BV20: 2.32 | BW20: 1.05 | BX20: 1.24 | BY20: 1.37 | CB20: 1.73 | CD20: 1.4 | CE20: 1.13 | CG20: 1.21
A21: 2020 | B21: 1.68 | E21: 1.39 | F21: 1.73 | J21: 1.25 | K21: 1.61 | O21: 1.5 | V21: 2.18 | Z21: 1.95 | AB21: 2.37 | AD21: 1.71 | AE21: 2.62 | AH21: 2.94 | AI21: 1.56 | AK21: 1.72 | AM21: 1.33 | AN21: 1.58 | AO21: 1.72 | AR21: 1.61 | AU21: 2020 | AV21: 1.27 | AY21: 1.07 | AZ21: 1.27 | BD21: 0.93 | BE21: 1.13 | BI21: 1.09 | BP21: 1.59 | BT21: 1.43 | BV21: 2.08 | BX21: 1.3 | BY21: 1.98 | CB21: 2.05 | CC21: 1.17 | CE21: 1.25 | CG21: 0.99 | CH21: 1.23 | CI21: 1.37 | CL21: 1.27
A22: 2021 | B22: 1.35 | J22: 1.16 | K22: 1.05 | N22: 1.49 | O22: 1.51 | U22: 1.4 | Z22: 1.54 | AM22: 1.41 | AN22: 1.11 | AO22: 1.4 | AU22: 2021 | AV22: 1.02 | BD22: 0.9 | BE22: 0.75 | BH22: 1.12 | BI22: 1.17 | BO22: 1.08 | BT22: 1.1 | CG22: 1.04 | CH22: 0.8 | CI22: 1.06
B24: $/WAC Cost Sample Project Capacity | AV24: $/WDC Cost Sample Project Capacity
A25: Solar COD | B25: National | C25: AL | D25: AR | E25: AZ | F25: CA | G25: CO | H25: CT | I25: DE | J25: FL | K25: GA | L25: HI | M25: ID | N25: IL | O25: IN | P25: KS | Q25: KY | R25: LA | S25: MA | T25: MD | U25: ME | V25: MI | W25: MN | X25: MO | Y25: MS | Z25: NC | AA25: NE | AB25: NJ | AC25: NM | AD25: NV | AE25: NY | AF25: OH | AG25: OK | AH25: OR | AI25: PA | AJ25: RI | AK25: SC | AL25: TN | AM25: TX | AN25: UT | AO25: VA | AP25: VT | AQ25: WA | AR25: WI | AS25: WY | AU25: Solar COD | AV25: National | AW25: AL | AX25: AR | AY25: AZ | AZ25: CA | BA25: CO | BB25: CT | BC25: DE | BD25: FL | BE25: GA | BF25: HI | BG25: ID | BH25: IL | BI25: IN | BJ25: KS | BK25: KY | BL25: LA | BM25: MA | BN25: MD | BO25: ME | BP25: MI | BQ25: MN | BR25: MO | BS25: MS | BT25: NC | BU25: NE | BV25: NJ | BW25: NM | BX25: NV | BY25: NY | BZ25: OH | CA25: OK | CB25: OR | CC25: PA | CD25: RI | CE25: SC | CF25: TN | CG25: TX | CH25: UT | CI25: VA | CJ25: VT | CK25: WA | CL25: WI | CM25: WY
A26: 2007 | B26: 19 | AU26: 2007 | AV26: 22
A27: 2008 | B27: 10 | AU27: 2008 | AV27: 12
A28: 2009 | B28: 46 | AU28: 2009 | AV28: 53
A29: 2010 | B29: 175 | AU29: 2010 | AV29: 211
A30: 2011 | B30: 428 | E30: 96 | F30: 122 | AB30: 48 | AC30: 41 | AU30: 2011 | AV30: 517 | AY30: 118 | AZ30: 152 | BV30: 56 | BW30: 50
A31: 2012 | B31: 930 | E31: 269 | F31: 250 | T31: 38 | AB31: 27 | AD31: 186 | AM31: 30 | AU31: 2012 | AV31: 1181 | AY31: 357 | AZ31: 320 | BN31: 52 | BV31: 33 | BX31: 229 | CG31: 35
A32: 2013 | B32: 1344 | E32: 219 | F32: 929 | O32: 39 | AU32: 2013 | AV32: 1754 | AY32: 300 | AZ32: 1206 | BI32: 52
A33: 2014 | B33: 3184 | E33: 406 | F33: 2402 | Z33: 59 | AB33: 43 | AC33: 75 | AU33: 2014 | AV33: 4112 | AY33: 547 | AZ33: 3085 | BT33: 86 | BV33: 54 | BW33: 93
A34: 2015 | B34: 2870 | E34: 122 | F34: 1346 | K34: 177 | O34: 20 | Z34: 420 | AB34: 41 | AC34: 40 | AD34: 349 | AM34: 130 | AU34: 2015 | AV34: 3728 | AY34: 165 | AZ34: 1714 | BE34: 246 | BI34: 27 | BT34: 568 | BV34: 53 | BW34: 49 | BX34: 462 | CG34: 162
A35: 2016 | B35: 7389 | E35: 371 | F35: 2963 | G35: 225 | J35: 229 | K35: 726 | O35: 16 | T35: 39 | Z35: 349 | AB35: 51 | AC35: 165 | AD35: 708 | AH35: 73 | AN35: 680 | AO35: 137 | AU35: 2016 | AV35: 9618 | AY35: 491 | AZ35: 3736 | BA35: 287 | BD35: 376 | BE35: 925 | BI35: 21 | BN35: 50 | BT35: 456 | BV35: 62 | BW35: 224 | BX35: 960 | CB35: 97 | CH35: 882 | CI35: 180
A36: 2017 | B36: 4046 | C36: 107 | E36: 87 | F36: 696 | J36: 175 | L36: 46 | M36: 120 | O36: 30 | S36: 17 | W36: 156 | Y36: 155 | Z36: 675 | AB36: 39 | AD36: 290 | AH36: 104 | AK36: 223 | AM36: 651 | AO36: 271 | AU36: 2017 | AV36: 5382 | AW36: 146 | AY36: 120 | AZ36: 913 | BD36: 237 | BF36: 64 | BG36: 160 | BI36: 41 | BM36: 21 | BQ36: 229 | BS36: 216 | BT36: 910 | BV36: 46 | BX36: 378 | CB36: 136 | CE36: 305 | CG36: 841 | CI36: 356
A37: 2018 | B37: 3949 | F37: 981 | J37: 875 | Z37: 472 | AB37: 54 | AC37: 33 | AH37: 82 | AK37: 71 | AM37: 646 | AO37: 58 | AU37: 2018 | AV37: 5382 | AZ37: 1309 | BD37: 1262 | BT37: 682 | BV37: 67 | BW37: 41 | CB37: 109 | CE37: 101 | CG37: 855 | CI37: 77
A38: 2019 | B38: 4533 | F38: 999 | J38: 743 | K38: 412 | L38: 129 | O38: 20 | Z38: 297 | AB38: 21 | AC38: 100 | AD38: 417 | AE38: 65 | AH38: 73 | AJ38: 48 | AK38: 270 | AM38: 488 | AU38: 2019 | AV38: 5999 | AZ38: 1257 | BD38: 1008 | BE38: 594 | BF38: 138 | BI38: 25 | BT38: 407 | BV38: 26 | BW38: 131 | BX38: 530 | BY38: 87 | CB38: 96 | CD38: 59 | CE38: 376 | CG38: 633
A39: 2020 | B39: 9495 | E39: 290 | F39: 1610 | J39: 1639 | K39: 667 | O39: 24 | V39: 105 | Z39: 281 | AB39: 66 | AD39: 155 | AE39: 22 | AH39: 115 | AI39: 65 | AK39: 426 | AM39: 2495 | AN39: 279 | AO39: 665 | AR39: 164 | AU39: 2020 | AV39: 12589 | AY39: 363 | AZ39: 2095 | BD39: 2260 | BE39: 893 | BI39: 32 | BP39: 150 | BT39: 379 | BV39: 86 | BX39: 192 | BY39: 29 | CB39: 168 | CC39: 83 | CE39: 587 | CG39: 3246 | CH39: 358 | CI39: 854 | CL39: 231
A40: 2021 | B40: 5383 | J40: 1104 | K40: 346 | N40: 208 | O40: 296 | U40: 113 | Z40: 354 | AM40: 1314 | AN40: 260 | AO40: 270 | AU40: 2021 | AV40: 7208 | BD40: 1483 | BE40: 483 | BH40: 280 | BI40: 392 | BO40: 165 | BT40: 492 | CG40: 1747 | CH40: 349 | CI40: 359
B43: $/WAC Cost Sample Project Count | AV43: $/WDC Cost Sample Project Count
A44: Solar COD | B44: National | C44: AL | D44: AR | E44: AZ | F44: CA | G44: CO | H44: CT | I44: DE | J44: FL | K44: GA | L44: HI | M44: ID | N44: IL | O44: IN | P44: KS | Q44: KY | R44: LA | S44: MA | T44: MD | U44: ME | V44: MI | W44: MN | X44: MO | Y44: MS | Z44: NC | AA44: NE | AB44: NJ | AC44: NM | AD44: NV | AE44: NY | AF44: OH | AG44: OK | AH44: OR | AI44: PA | AJ44: RI | AK44: SC | AL44: TN | AM44: TX | AN44: UT | AO44: VA | AP44: VT | AQ44: WA | AR44: WI | AS44: WY | AU44: Solar COD | AV44: National | AW44: AL | AX44: AR | AY44: AZ | AZ44: CA | BA44: CO | BB44: CT | BC44: DE | BD44: FL | BE44: GA | BF44: HI | BG44: ID | BH44: IL | BI44: IN | BJ44: KS | BK44: KY | BL44: LA | BM44: MA | BN44: MD | BO44: ME | BP44: MI | BQ44: MN | BR44: MO | BS44: MS | BT44: NC | BU44: NE | BV44: NJ | BW44: NM | BX44: NV | BY44: NY | BZ44: OH | CA44: OK | CB44: OR | CC44: PA | CD44: RI | CE44: SC | CF44: TN | CG44: TX | CH44: UT | CI44: VA | CJ44: VT | CK44: WA | CL44: WI | CM44: WY
A45: 2007 | B45: 2 | G45: 1 | AD45: 1 | AU45: 2007 | AV45: 2 | BA45: 1 | BX45: 1
A46: 2008 | B46: 1 | AD46: 1 | AU46: 2008 | AV46: 1 | BX46: 1
A47: 2009 | B47: 2 | F47: 1 | J47: 1 | AU47: 2009 | AV47: 2 | AZ47: 1 | BD47: 1
A48: 2010 | B48: 10 | G48: 1 | J48: 2 | N48: 1 | Z48: 1 | AB48: 1 | AC48: 1 | AD48: 1 | AF48: 1 | AM48: 1 | AU48: 2010 | AV48: 10 | BA48: 1 | BD48: 2 | BH48: 1 | BT48: 1 | BV48: 1 | BW48: 1 | BX48: 1 | BZ48: 1 | CG48: 1
A49: 2011 | B49: 29 | E49: 6 | F49: 8 | G49: 2 | I49: 1 | J49: 1 | AB49: 4 | AC49: 4 | AE49: 1 | AF49: 1 | AM49: 1 | AU49: 2011 | AV49: 29 | AY49: 6 | AZ49: 8 | BA49: 2 | BC49: 1 | BD49: 1 | BV49: 4 | BW49: 4 | BY49: 1 | BZ49: 1 | CG49: 1
A50: 2012 | B50: 41 | E50: 7 | F50: 12 | G50: 1 | I50: 1 | L50: 1 | N50: 1 | T50: 3 | Z50: 2 | AB50: 3 | AC50: 1 | AD50: 4 | AI50: 1 | AL50: 1 | AM50: 3 | AU50: 2012 | AV50: 41 | AY50: 7 | AZ50: 12 | BA50: 1 | BC50: 1 | BF50: 1 | BH50: 1 | BN50: 3 | BT50: 2 | BV50: 3 | BW50: 1 | BX50: 4 | CC50: 1 | CF50: 1 | CG50: 3
A51: 2013 | B51: 38 | E51: 6 | F51: 18 | K51: 2 | O51: 4 | Z51: 1 | AB51: 2 | AC51: 2 | AD51: 1 | AM51: 2 | AU51: 2013 | AV51: 38 | AY51: 6 | AZ51: 18 | BE51: 2 | BI51: 4 | BT51: 1 | BV51: 2 | BW51: 2 | BX51: 1 | CG51: 2
A52: 2014 | B52: 65 | E52: 7 | F52: 33 | K52: 1 | L52: 1 | O52: 2 | S52: 2 | Z52: 3 | AB52: 6 | AC52: 4 | AD52: 2 | AL52: 2 | AM52: 2 | AU52: 2014 | AV52: 65 | AY52: 7 | AZ52: 33 | BE52: 1 | BF52: 1 | BI52: 2 | BM52: 2 | BT52: 3 | BV52: 6 | BW52: 4 | BX52: 2 | CF52: 2 | CG52: 2
A53: 2015 | B53: 87 | D53: 1 | E53: 4 | F53: 36 | G53: 1 | J53: 1 | K53: 6 | L53: 1 | O53: 3 | T53: 1 | Z53: 16 | AB53: 4 | AC53: 4 | AD53: 4 | AM53: 3 | AN53: 2 | AU53: 2015 | AV53: 87 | AX53: 1 | AY53: 4 | AZ53: 36 | BA53: 1 | BD53: 1 | BE53: 6 | BF53: 1 | BI53: 3 | BN53: 1 | BT53: 16 | BV53: 4 | BW53: 4 | BX53: 4 | CG53: 3 | CH53: 2
A54: 2016 | B54: 146 | C54: 1 | E54: 6 | F54: 48 | G54: 7 | J54: 4 | K54: 14 | L54: 1 | M54: 2 | O54: 3 | Q54: 1 | S54: 2 | T54: 3 | W54: 1 | Z54: 9 | AB54: 7 | AC54: 3 | AD54: 5 | AE54: 1 | AH54: 8 | AK54: 2 | AL54: 2 | AM54: 2 | AN54: 10 | AO54: 4 | AU54: 2016 | AV54: 145 | AW54: 1 | AY54: 6 | AZ54: 48 | BA54: 7 | BD54: 4 | BE54: 13 | BF54: 1 | BG54: 2 | BI54: 3 | BK54: 1 | BM54: 2 | BN54: 3 | BQ54: 1 | BT54: 9 | BV54: 7 | BW54: 3 | BX54: 5 | BY54: 1 | CB54: 8 | CE54: 2 | CF54: 2 | CG54: 2 | CH54: 10 | CI54: 4
A55: 2017 | B55: 163 | C55: 4 | E55: 3 | F55: 28 | G55: 1 | J55: 7 | L55: 3 | M55: 6 | O55: 3 | Q55: 1 | S55: 3 | U55: 1 | V55: 2 | W55: 13 | X55: 1 | Y55: 3 | Z55: 22 | AA55: 1 | AB55: 4 | AC55: 2 | AD55: 5 | AE55: 2 | AF55: 1 | AG55: 1 | AH55: 6 | AK55: 14 | AL55: 2 | AM55: 14 | AO55: 10 | AU55: 2017 | AV55: 163 | AW55: 4 | AY55: 3 | AZ55: 28 | BA55: 1 | BD55: 7 | BF55: 3 | BG55: 6 | BI55: 3 | BK55: 1 | BM55: 3 | BO55: 1 | BP55: 2 | BQ55: 13 | BR55: 1 | BS55: 3 | BT55: 22 | BU55: 1 | BV55: 4 | BW55: 2 | BX55: 5 | BY55: 2 | BZ55: 1 | CA55: 1 | CB55: 6 | CE55: 14 | CF55: 2 | CG55: 14 | CI55: 10
A56: 2018 | B56: 94 | C56: 1 | D56: 1 | E56: 2 | F56: 10 | G56: 1 | H56: 2 | J56: 13 | K56: 1 | L56: 1 | O56: 1 | T56: 2 | V56: 2 | W56: 1 | X56: 1 | Z56: 9 | AB56: 6 | AC56: 4 | AD56: 1 | AE56: 1 | AG56: 1 | AH56: 9 | AK56: 5 | AL56: 2 | AM56: 10 | AO56: 4 | AP56: 1 | AQ56: 1 | AS56: 1 | AU56: 2018 | AV56: 94 | AW56: 1 | AX56: 1 | AY56: 2 | AZ56: 10 | BA56: 1 | BB56: 2 | BD56: 13 | BE56: 1 | BF56: 1 | BI56: 1 | BN56: 2 | BP56: 2 | BQ56: 1 | BR56: 1 | BT56: 9 | BV56: 6 | BW56: 4 | BX56: 1 | BY56: 1 | CA56: 1 | CB56: 9 | CE56: 5 | CF56: 2 | CG56: 10 | CI56: 4 | CJ56: 1 | CK56: 1 | CM56: 1
A57: 2019 | B57: 103 | D57: 2 | E57: 1 | F57: 12 | G57: 2 | H57: 1 | J57: 13 | K57: 4 | L57: 4 | O57: 3 | P57: 1 | S57: 2 | T57: 1 | Y57: 1 | Z57: 7 | AB57: 3 | AC57: 6 | AD57: 5 | AE57: 5 | AF57: 2 | AH57: 4 | AI57: 1 | AJ57: 3 | AK57: 7 | AM57: 8 | AN57: 1 | AO57: 2 | AP57: 2 | AU57: 2019 | AV57: 103 | AX57: 2 | AY57: 1 | AZ57: 12 | BA57: 2 | BB57: 1 | BD57: 13 | BE57: 4 | BF57: 4 | BI57: 3 | BJ57: 1 | BM57: 2 | BN57: 1 | BS57: 1 | BT57: 7 | BV57: 3 | BW57: 6 | BX57: 5 | BY57: 5 | BZ57: 2 | CB57: 4 | CC57: 1 | CD57: 3 | CE57: 7 | CG57: 8 | CH57: 1 | CI57: 2 | CJ57: 2
A58: 2020 | B58: 159 | D58: 1 | E58: 3 | F58: 19 | G58: 2 | H58: 1 | J58: 22 | K58: 7 | O58: 3 | P58: 1 | R58: 2 | S58: 2 | T58: 2 | U58: 1 | V58: 4 | Z58: 8 | AB58: 6 | AC58: 1 | AD58: 4 | AE58: 4 | AG58: 2 | AH58: 11 | AI58: 4 | AJ58: 1 | AK58: 12 | AM58: 16 | AN58: 3 | AO58: 14 | AR58: 3 | AU58: 2020 | AV58: 159 | AX58: 1 | AY58: 3 | AZ58: 19 | BA58: 2 | BB58: 1 | BD58: 22 | BE58: 7 | BI58: 3 | BJ58: 1 | BL58: 2 | BM58: 2 | BN58: 2 | BO58: 1 | BP58: 4 | BT58: 8 | BV58: 6 | BW58: 1 | BX58: 4 | BY58: 4 | CA58: 2 | CB58: 11 | CC58: 4 | CD58: 1 | CE58: 12 | CG58: 16 | CH58: 3 | CI58: 14 | CL58: 3
A59: 2021 | B59: 62 | D59: 1 | E59: 1 | F59: 2 | G59: 1 | H59: 1 | J59: 15 | K59: 3 | N59: 3 | O59: 6 | U59: 4 | V59: 1 | Z59: 5 | AE59: 1 | AF59: 2 | AM59: 7 | AN59: 3 | AO59: 5 | AR59: 1 | AU59: 2021 | AV59: 62 | AX59: 1 | AY59: 1 | AZ59: 2 | BA59: 1 | BB59: 1 | BD59: 15 | BE59: 3 | BH59: 3 | BI59: 6 | BO59: 4 | BP59: 1 | BT59: 5 | BY59: 1 | BZ59: 2 | CG59: 7 | CH59: 3 | CI59: 5 | CL59: 1

Sheet PV+Storage CapEx
A1: Installed Costs of Solar and Battery Projects
A2: Battery Costs in $/kWh terms in the LBNL sample | H2: Battery cost adder relative to full project costs as a function of battery:PV capacity, 2018-2021 | M2: Battery cost adder relative to PV capacity as a function of battery:PV capacity, 2018-2021 | R2: Battery cost adder relative to PV capacity by battery installation year | W2: Battery cost adder relative to full project price by battery installation year | AC2: Combined PV and Battery Costs by battery installation year | AG2: Combined PV and Battery Costs by Battery:PV Capacity Ratio
A23: Sources: Berkeley Lab (some data points suppressed to protect confidentiality), Energy Information Administration Note: Some of the PV-battery projects are retrofits to earlier PV projects: The solar online date of the 2018 battery projects ranged from 2016 to 2018, the solar online date of the 2019 battery projects ranged from 2017 to 2019, the solar online date of the 2020 battery projects ranged from 2019 to 2020, the solar online date of the 2021 battery projects ranged from 2016 to 2021.
A25: Sample with separate cost estimates for PV and storage components
B26: Battery Count | C26: Battery Capacity (MW) | D26: Battery Energy (MWh) | E26: Median Battery Capacity Ratio | F26: Median Battery Duration (h) | G26: Battery Price ($/kWh) Median | H26: Battery Price ($/kWh) 20th Percentile | I26: Battery Price ($/kWh) 80th Percentile | J26: Battery Price Contribution (Adder/Total) Median | K26: Battery Price Contribution (Adder/Total) 20th Percentile | L26: Battery Price Contribution (Adder/Total) 80th Percentile | M26: Battery Price Adder ($/WAC-PV) Median | N26: Battery Price Adder ($/WAC-PV) 20th Percentile | O26: Battery Price Adder ($/WAC-PV) 80th Percentile | P26: Battery Price Adder ($/WDC-PV) Median | Q26: Battery Price Adder ($/WDC-PV) 20th Percentile | R26: Battery Price Adder ($/WDC-PV) 80th Percentile
A27: 2017 | B27: 2 | C27: 14.6 | D27: 59.12 | E27: 0.5730769231 | F27: 3.1
A28: 2018 | B28: 6 | C28: 89 | D28: 232 | E28: 0.5714285714 | F28: 4 | G28: 442.694573 | H28: 394.8953362 | I28: 636.6971906 | J28: 0.1747249318 | K28: 0.1035806221 | L28: 0.2823861631 | M28: 0.5603727316 | N28: 0.2304756447 | O28: 1.729894254 | P28: 0.4131910166 | Q28: 0.1395970368 | R28: 1.296442243
A29: 2019 | B29: 11 | C29: 48.8 | D29: 118.9 | E29: 0.599880024 | F29: 2.183333333 | G29: 531.0803193 | H29: 506.7208297 | I29: 801.0340713 | J29: 0.2527956529 | K29: 0.1106557717 | L29: 0.4733167187 | M29: 0.8495585992 | N29: 0.4598702216 | O29: 1.327343105 | P29: 0.6666275447 | Q29: 0.2555345531 | R29: 1.14449015
A30: 2020 | B30: 3 | C30: 8.02 | D30: 17.9 | E30: 0.4399120176 | F30: 2.256410256 | G30: 833.1479656 | H30: 606.3518348 | I30: 921.5192613 | J30: 0.2567281745 | K30: 0.2474509415 | L30: 0.26247254 | M30: 0.8009115867 | N30: 0.7601787977 | O30: 0.8732185344 | P30: 0.674870909 | Q30: 0.5927353141 | R30: 0.781952503
A31: 2021 | B31: 7 | C31: 992 | D31: 3348.4 | E31: 0.8369723435 | F31: 4 | G31: 264.45884 | H31: 254.8579626 | I31: 280.1410813 | J31: 0.2757023051 | K31: 0.1909154155 | L31: 0.3963804316 | M31: 0.9990283744 | N31: 0.3651793099 | O31: 1.039897717 | P31: 0.8091158187 | Q31: 0.2477956995 | R31: 0.8830621922
A32: Total | B32: 29 | C32: 1152.42 | D32: 3776.32 | E32: 0.599880024 | F32: 2.291666667
A35: Cost comparison of solar standalone projects vs. component costs of solar+storage projects
A36: Storage COD Year | B36: Type | C36: Median ($/WAC-PV) | F36: Mean ($/WAC-PV) | I36: Sample Count
C37: PV | D37: Battery Adder | E37: Total | F37: PV | G37: Battery Adder | H37: Total | I37: PV | J37: Battery Adder | K37: Total
A38: 2018 | B38: PV only | C38: 1.912824848 | F38: 2.14061057 | I38: 94
B39: PV+Battery | C39: 2.069739327 | D39: 0.5603727316 | E39: 2.832536146 | F39: 2.644888452 | G39: 0.8589254123 | H39: 3.503813864 | I39: 6 | J39: 6 | K39: 6
A40: 2019 | B40: PV only | C40: 1.645387222 | F40: 1.842432807 | I40: 103
B41: PV+Battery | C41: 2.331777698 | D41: 0.8495585992 | E41: 3.344280787 | F41: 2.220091209 | G41: 0.826294499 | H41: 3.036282391 | I41: 10 | J41: 11 | K41: 10
A42: 2020 | B42: PV only | C42: 1.682667289 | F42: 1.85668819 | I42: 159
B43: PV+Battery | C43: 2.36685861 | D43: 0.8009115867 | E43: 3.007529928 | F43: 2.438409448 | G43: 0.818452786 | H43: 3.227299091 | I43: 4 | J43: 3 | K43: 3
A44: 2021 | B44: PV only | C44: 1.352415808 | F44: 1.366327439 | I44: 62
B45: PV+Battery | C45: 2.432972196 | D45: 0.9990283744 | E45: 3.463314986 | F45: 2.270609034 | G45: 1.07500739 | H45: 3.364503681 | I45: 18 | J45: 7 | K45: 20
A46: Note: The total PV+storage system costs in 2021 is based on a larger sample than the individual solar/storage component costs
AW83: =MEDIAN(AW30:AW50) ->  | AX83: =MEDIAN(AX51:AX81) ->  | AY83: =MEDIAN(AY51:AY63) -> 

Sheet CSP CapEx
A1: Installed costs of individual CSP projects
A20: Solar Tech Sub | B20: Solar Capacity AC | C20: Solar COD | D20: Solar Price AC | E20: Core Size | H20: PV Median Cost | I20: Bubble Size
A21: Tower | B21: 370 | C21: 2014 | D21: 7.037443243 | E21: 1 | G21: 2010 | H21: 5.607844427 | I21: 10
A22: Tower | B22: 110 | C22: 2015 | D22: 10.02708183 | E22: 1 | G22: 2011 | H22: 4.917122192 | I22: 10
G23: 2012 | H23: 4.547424281 | I23: 10
G24: 2013 | H24: 4.049192393 | I24: 10
G25: 2014 | H25: 3.441974244 | I25: 10
A26: Solar Tech Sub | B26: Solar Capacity AC | C26: Solar COD | D26: Solar Price AC | E26: Core Size | G26: 2015 | H26: 3.084193248 | I26: 10
A27: Trough | B27: 68.5 | C27: 2007 | D27: 5.150425644 | E27: 1 | G27: 2016 | H27: 2.550281234 | I27: 10
A28: Trough | B28: 75 | C28: 2010 | D28: 6.530665063 | E28: 1 | G28: 2017 | H28: 2.361033225 | I28: 10
A29: Trough | B29: 250 | C29: 2013 | D29: 7.754377341 | E29: 1 | G29: 2018 | H29: 1.912824848 | I29: 10
A30: Trough | B30: 250 | C30: 2014 | D30: 5.87213229 | E30: 1 | G30: 2019 | H30: 1.645387222 | I30: 10
A31: Trough | B31: 250 | C31: 2014 | D31: 7.034862888 | E31: 1 | G31: 2020 | H31: 1.682667289 | I31: 10
G32: 2021 | H32: 1.352415808 | I32: 10
G33: Total

Sheet O&M Cost Time Trend
A1: PV Operation and Maintenance Costs over Time
A22: Sources: Berkeley Lab, FERC
A23: Note: Included in cost scope are project supervision, engineering, maintenance, rents, and training. Excluded are payments for property taxes, insurance, land royalties, performance bonds, various admnistrative and other fees, and overhead.
B26: Project | C26: Capacity | D26: Net Generation | E26: $2021/kWAC-yr | H26: $2021/MWh
B27: Count | C27: GWAC | D27: GWh | E27: All Mean | F27: Min | G27: Max | H27: All Mean | I27: Min | J27: Max
A28: 2011 | B28: 3 | C28: 0.08788 | D28: 103.776 | E28: 32.26612386 | F28: =E28-F41 -> 11.52245212 | G28: =E28+G41 -> 42.63795974 | H28: 20.86582986 | I28: =H28-I41 -> 17.71827744 | J28: =H28+J41 -> 22.43960607
A29: 2012 | B29: 12 | C29: 0.23625 | D29: 406.893 | E29: 30.58926143 | F29: 15.14170916 | G29: 42.61321182 | H29: 16.0046867 | I29: 9.97927254 | J29: 20.30752974
A30: 2013 | B30: 15 | C30: 0.33329 | D30: 644.240814 | E30: 28.96204056 | F30: 17.30724783 | G30: 39.39489386 | H30: 15.44696253 | I30: 9.496867197 | J30: 23.35834437
A31: 2014 | B31: 19 | C31: 0.42479 | D31: 941.403 | E31: 29.34267606 | F31: 1.868987499 | G31: 38.09337963 | H31: 15.12259966 | I31: 6.587564275 | J31: 27.57642025
A32: 2015 | B32: 24 | C32: 0.49736 | D32: 1079.656694 | E32: 17.01816025 | F32: 2.709071318 | G32: 35.67471545 | H32: 8.383196028 | I32: 2.002326613 | J32: 17.84564249
A33: 2016 | B33: 26 | C33: 0.60466 | D33: 1230.571 | E33: 20.60818376 | F33: 7.900409661 | G33: 31.05062015 | H33: 10.18333981 | I33: 3.908900779 | J33: 22.27541764
A34: 2017 | B34: 31 | C34: 0.71012 | D34: 1494.31375 | E34: 17.31674866 | F34: 6.4673286 | G34: 23.51312089 | H34: 8.741225014 | I34: 3.327833875 | J34: 13.7779593
A35: 2018 | B35: 41 | C35: 0.93662 | D35: 1918.439702 | E35: 19.67684308 | F35: 13.75824052 | G35: 42.88664486 | H35: 10.59919399 | I35: 7.199978742 | J35: 25.13209495
A36: 2019 | B36: 63 | C36: 2.13229 | D36: 4334.308327 | E36: 16.18375767 | F36: 6.78956548 | G36: 30.71252861 | H36: 8.82653985 | I36: 3.739827814 | J36: 18.41608652
A37: 2020 | B37: 81 | C37: 2.99417 | D37: 5982.024195 | E37: 14.75455246 | F37: 5.954258848 | G37: 31.43327131 | H37: 7.692741397 | I37: 3.097847103 | J37: 15.93517245
A38: 2021 | B38: 90 | C38: 3.96367 | D38: 7957.479688 | E38: 13.4994115 | F38: 4.61841394 | G38: 31.78749169 | H38: 7.465940339 | I38: 2.33063743 | J38: 28.06411743
F40: Negative Error | G40: Positive Error | I40: Negative Error | J40: Positive Error | K40: x-axis
F41: 20.74367174 | G41: 10.37183587 | I41: 3.14755242 | J41: 1.57377621 | K41: 1.2
F42: 15.44755227 | G42: 12.02395039 | I42: 6.025414158 | J42: 4.302843039 | K42: =K41+1 -> 2.2
F43: 11.65479273 | G43: 10.4328533 | I43: 5.950095338 | J43: 7.911381831 | K43: =K42+1 -> 3.2
F44: 27.47368856 | G44: 8.750703571 | I44: 8.535035389 | J44: 12.45382058 | K44: 4.2
F45: 14.30908893 | G45: 18.6565552 | I45: 6.380869416 | J45: 9.462446459 | K45: 5.2
F46: 12.7077741 | G46: 10.44243639 | I46: 6.274439029 | J46: 12.09207783 | K46: 6.2
F47: 10.84942006 | G47: 6.196372224 | I47: 5.413391139 | J47: 5.036734283 | K47: 7.2
F48: 5.918602556 | G48: 23.20980179 | I48: 3.399215253 | J48: 14.53290096 | K48: 8.2
F49: 9.394192185 | G49: 14.52877095 | I49: 5.086712036 | J49: 9.589546675 | K49: 9.2
F50: 8.800293617 | G50: 16.67871884 | I50: 4.594894294 | J50: 8.242431051 | K50: 10.2
F51: 8.880997558 | G51: 18.28808019 | I51: 5.135302909 | J51: 20.59817709 | K51: 11.2

Sheet O&M Cost by Project Age
A1: PV Operation and Maintenance Costs by project age
A22: Source: EIA, FERC, Berkeley Lab
A24: Years post COD | B24: Median $/kW-AC | K24: Years post COD | L24: $/kW-AC | O24: $/MWh
B25: Pre-2015 | C25: 2015-2017 | D25: 2018-2020 | L25: Median | M25: 25th Percentile | N25: 75th Percentile | O25: Median | P25: 25th Percentile | Q25: 75th Percentile | R25: $/kW-AC Range | S25: $/MWh Range
A26: 1 | B26: 34.39813115 | C26: 21.86821084 | D26: 5.36128 | K26: 1 | L26: 1 | M26: 1 | N26: 1 | O26: 1 | P26: 1 | Q26: 1 | R26: =N26-M26 -> 0 | S26: =Q26-P26 -> 0
A27: 2 | B27: 23.26903608 | C27: 20.9998649 | D27: 9.338410194 | K27: 2 | L27: 0.9727605503 | M27: 0.8507721832 | N27: 1.153978806 | O27: 0.9898429882 | P27: 0.8670772612 | Q27: 1.188730656 | R27: 0.3032066226 | S27: 0.3216533945
A28: 3 | B28: 20.2103859 | C28: 19.11244909 | D28: 4.105853333 | K28: 3 | L28: 0.8935117173 | M28: 0.7224996821 | N28: 1.35744671 | O28: 0.8845398641 | P28: 0.7165779297 | Q28: 1.308307464 | R28: 0.6349470278 | S28: 0.591729534
A29: 4 | B29: 18.2558481 | C29: 17.59766679 | K29: 4 | L29: 0.6495845594 | M29: 0.3874270877 | N29: 1.35315402 | O29: 0.7020329723 | P29: 0.4110612271 | Q29: 1.331606774 | R29: 0.965726932 | S29: 0.9205455473
A30: 5 | B30: 17.59756263 | C30: 18.89736991 | K30: 5 | L30: 0.7576691459 | M30: 0.4150900682 | N30: 1.34772095 | O30: 0.7786001095 | P30: 0.4455254919 | Q30: 1.285931632 | R30: 0.9326308818 | S30: 0.8404061397
A31: 6 | B31: 19.08206607 | C31: 20.89469674 | K31: 6 | L31: 0.834849274 | M31: 0.4528668469 | N31: 1.102703614 | O31: 0.8636701494 | P31: 0.5007224872 | Q31: 1.195619152 | R31: 0.6498367667 | S31: 0.6948966647
A32: 7 | B32: 19.07416413 | K32: 7 | L32: 0.447427396 | M32: 0.233109173 | N32: 1.229576156 | O32: 0.5034309179 | P32: 0.2582481586 | Q32: 1.310065734 | R32: 0.9964669833 | S32: 1.051817576
A33: 8 | B33: 16.684683 | K33: 8 | L33: 0.3180316346 | M33: 0.2166348601 | N33: 0.5729960566 | O33: 0.400964153 | P33: 0.2562780643 | Q33: 0.6376321228 | R33: 0.3563611964 | S33: 0.3813540586
A34: 9 | B34: 19.08204292 | K34: 9 | L34: 0.4537508475 | M34: 0.2719830047 | N34: 0.6213370128 | O34: 0.5119331975 | P34: 0.3388328218 | Q34: 0.6663246307 | R34: 0.349354008 | S34: 0.327491809
A35: 10 | B35: 20.89466667 | K35: 10 | L35: 0.6803545141 | M35: 0.5213824046 | N35: 0.6803574601 | O35: 0.7481432356 | P35: 0.5905955863 | Q35: 0.7523218143 | R35: 0.1589750556 | S35: 0.1617262281

Sheet CF by GHI, Mount, ILR
A1: Cumulative capacity factor by resource strength, fixed-tilt vs. tracking, and inverter loading ratio
A24: Source: EIA, FERC, Berkeley Lab
D26: Median | H26: Individual Projects
A27: GHI | B27: Mount | C27: DC:AC (ILR) | D27: Capacity | E27: Sample | F27: Sample | I27: Capacity
A28: Quartile | B28: Type | C28: Quartile | D28: Factor | E28: Projects | F28: MW | H28: Bin | I28: Factor
A29: 1st Quartile GHI | B29: Fixed-Tilt | C29: 1 | D29: 0.1670581586 | E29: 50 | F29: 537.622 | H29: 1 | I29: 0.09239262983
C30: 2 | D30: 0.1821653794 | E30: 27 | F30: 287.992 | H30: 1 | I30: 0.1242255919
C31: 3 | D31: 0.1819233515 | E31: 21 | F31: 332.419 | H31: 1 | I31: 0.1278212655
C32: 4 | D32: 0.201666623 | E32: 22 | F32: 430.873 | H32: 1 | I32: 0.1400317919
B33: Tracking | C33: 1 | D33: 0.1951810379 | E33: 20 | F33: 464.84 | H33: 1 | I33: 0.1407876712
C34: 2 | D34: 0.2184506356 | E34: 23 | F34: 438.51 | H34: 1 | I34: 0.1474536739
C35: 3 | D35: 0.2152701744 | E35: 25 | F35: 687.45 | H35: 1 | I35: 0.147581234
C36: 4 | D36: 0.2224779325 | E36: 36 | F36: 1276.7 | H36: 1 | I36: 0.1514059888
A37: 2nd Quartile GHI | B37: Fixed-Tilt | C37: 1 | D37: 0.1884924709 | E37: 9 | F37: 163.3 | H37: 1 | I37: 0.1520801907
C38: 2 | D38: 0.1970305202 | E38: 18 | F38: 470.613 | H38: 1 | I38: 0.1548914244
C39: 3 | D39: 0.2030442745 | E39: 16 | F39: 596.9 | H39: 1 | I39: 0.1560344539
C40: 4 | D40: 0.2213958103 | E40: 24 | F40: 859.86 | H40: 1 | I40: 0.1561281936
B41: Tracking | C41: 1 | D41: 0.2158234176 | E41: 16 | F41: 509.4 | H41: 1 | I41: 0.1561910736
C42: 2 | D42: 0.2340013469 | E42: 23 | F42: 1081.9 | H42: 1 | I42: 0.1566578424
C43: 3 | D43: 0.2462916194 | E43: 45 | F43: 1976.65 | H43: 1 | I43: 0.1567163423
C44: 4 | D44: 0.2432391219 | E44: 73 | F44: 2228.581 | H44: 1 | I44: 0.1568212909
A45: 3rd Quartile GHI | B45: Fixed-Tilt | C45: 1 | D45: 0.2137631678 | E45: 8 | F45: 188.84 | H45: 1 | I45: 0.1572094923
C46: 2 | D46: 0.2246991628 | E46: 8 | F46: 99.76 | H46: 1 | I46: 0.160863425
C47: 3 | D47: 0.2226251889 | E47: 10 | F47: 539.6 | H47: 1 | I47: 0.1641765821
C48: 4 | D48: 0.2440527585 | E48: 18 | F48: 1341 | H48: 1 | I48: 0.1645404162
B49: Tracking | C49: 1 | D49: 0.2390797218 | E49: 47 | F49: 2303.236 | H49: 1 | I49: 0.1645639628
C50: 2 | D50: 0.2745876906 | E50: 48 | F50: 2656.185 | H50: 1 | I50: 0.1654125668
C51: 3 | D51: 0.2849157702 | E51: 58 | F51: 3122.688 | H51: 1 | I51: 0.1664416812
C52: 4 | D52: 0.2801215743 | E52: 26 | F52: 1377.95 | H52: 1 | I52: 0.166757472
A53: 4th Quartile GHI | B53: Fixed-Tilt | C53: 1 | D53: 0.2358663297 | E53: 15 | F53: 761.5 | H53: 1 | I53: 0.167012787
C54: 2 | D54: 0.2514420829 | E54: 12 | F54: 1306.16 | H54: 1 | I54: 0.1671035302
C55: 3 | D55: 0.2748590929 | E55: 5 | F55: 859.7 | H55: 1 | I55: 0.1672387664
C56: 4 | D56: 0.2731709946 | E56: 6 | F56: 501.49 | H56: 1 | I56: 0.1676897562
B57: Tracking | C57: 1 | D57: 0.2807322442 | E57: 59 | F57: 2332.278 | H57: 1 | I57: 0.1680072062
C58: 2 | D58: 0.3003892882 | E58: 65 | F58: 4501.376 | H58: 1 | I58: 0.1694839149
C59: 3 | D59: 0.3121128852 | E59: 44 | F59: 2804.86 | H59: 1 | I59: 0.1695950341
C60: 4 | D60: 0.3169265995 | E60: 19 | F60: 993.64 | H60: 1 | I60: 0.1702428597
H61: 1 | I61: 0.1722422589
D62: Total: | E62: =SUM(E29:E60) -> 896 | F62: =SUM(F29:F60) -> 38033.873 | H62: 1 | I62: 0.1723229903
H63: 1 | I63: 0.1733620046
H64: 1 | I64: 0.1744761271
H65: 1 | I65: 0.1751073117
H66: 1 | I66: 0.1766897373
H67: 1 | I67: 0.1772348783
H68: 1 | I68: 0.1778562934
H69: 1 | I69: 0.1785519326
H70: 1 | I70: 0.18163711
H71: 1 | I71: 0.18202076
H72: 1 | I72: 0.1834387769
H73: 1 | I73: 0.1849177011
H74: 1 | I74: 0.1853330116
H75: 1 | I75: 0.1883497929
H76: 1 | I76: 0.189739107
H77: 1 | I77: 0.1939185422
H78: 1 | I78: 0.1939843829
H79: 2 | I79: 0.1556350258
H80: 2 | I80: 0.1592899225
H81: 2 | I81: 0.1635506916
H82: 2 | I82: 0.1650742009
H83: 2 | I83: 0.1690580082
H84: 2 | I84: 0.1692231506
H85: 2 | I85: 0.1752629364
H86: 2 | I86: 0.1754209351
H87: 2 | I87: 0.1770461612
H88: 2 | I88: 0.1771666784
H89: 2 | I89: 0.1781788941
H90: 2 | I90: 0.1787983292
H91: 2 | I91: 0.1793178131
H92: 2 | I92: 0.1821653794
H93: 2 | I93: 0.1833727626
H94: 2 | I94: 0.1840230278
H95: 2 | I95: 0.1848686771
H96: 2 | I96: 0.1853444343
H97: 2 | I97: 0.1878443701
H98: 2 | I98: 0.1878535584
H99: 2 | I99: 0.1884225213
H100: 2 | I100: 0.1896788986
H101: 2 | I101: 0.191715837
H102: 2 | I102: 0.1940247622
H103: 2 | I103: 0.1993223917
H104: 2 | I104: 0.2094461955
H105: 2 | I105: 0.2260593469
H106: 3 | I106: 0.1561571247
H107: 3 | I107: 0.158672106
H108: 3 | I108: 0.1611499284
H109: 3 | I109: 0.1717433708
H110: 3 | I110: 0.1738341789
H111: 3 | I111: 0.1775008034
H112: 3 | I112: 0.1778660783
H113: 3 | I113: 0.1778842643
H114: 3 | I114: 0.1781741958
H115: 3 | I115: 0.1812117813
H116: 3 | I116: 0.1819233515
H117: 3 | I117: 0.1864589182
H118: 3 | I118: 0.1868410348
H119: 3 | I119: 0.1872497532
H120: 3 | I120: 0.1875009949
H121: 3 | I121: 0.1903812804
H122: 3 | I122: 0.1920734634
H123: 3 | I123: 0.1976400297
H124: 3 | I124: 0.2001121502
H125: 3 | I125: 0.2010340633
H126: 3 | I126: 0.2108517269
H127: 4 | I127: 0.1638724148
H128: 4 | I128: 0.1702268233
H129: 4 | I129: 0.1766282831
H130: 4 | I130: 0.1779200886
H131: 4 | I131: 0.1816923798
H132: 4 | I132: 0.1821014079
H133: 4 | I133: 0.1866015375
H134: 4 | I134: 0.1869015048
H135: 4 | I135: 0.189679492
H136: 4 | I136: 0.1941767068
H137: 4 | I137: 0.2007967386
H138: 4 | I138: 0.2025365075
H139: 4 | I139: 0.2045766937
H140: 4 | I140: 0.2114099586
H141: 4 | I141: 0.2118679668
H142: 4 | I142: 0.2130567905
H143: 4 | I143: 0.2144540754
H144: 4 | I144: 0.2201883562
H145: 4 | I145: 0.2210627028
H146: 4 | I146: 0.2238921574
H147: 4 | I147: 0.2244658607
H148: 4 | I148: 0.2316681497
H149: 5 | I149: 0.1725851774
H150: 5 | I150: 0.1751138434
H151: 5 | I151: 0.1786218206
H152: 5 | I152: 0.1832306639
H153: 5 | I153: 0.1855306322
H154: 5 | I154: 0.1861083648
H155: 5 | I155: 0.1891939289
H156: 5 | I156: 0.1905606372
H157: 5 | I157: 0.1912710983
H158: 5 | I158: 0.1950977742
H159: 5 | I159: 0.1952643017
H160: 5 | I160: 0.1956351016
H161: 5 | I161: 0.196776793
H162: 5 | I162: 0.1981110566
H163: 5 | I163: 0.2006254324
H164: 5 | I164: 0.2008000306
H165: 5 | I165: 0.2124078646
H166: 5 | I166: 0.2141762206
H167: 5 | I167: 0.2170531029
H168: 5 | I168: 0.2180628585
H169: 6 | I169: 0.1915967416
H170: 6 | I170: 0.1934496464
H171: 6 | I171: 0.1952886151
H172: 6 | I172: 0.2005646817
H173: 6 | I173: 0.2007458143
H174: 6 | I174: 0.2032269564
H175: 6 | I175: 0.203735807
H176: 6 | I176: 0.2060767894
H177: 6 | I177: 0.2098396685
H178: 6 | I178: 0.2163401209
H179: 6 | I179: 0.2166398702
H180: 6 | I180: 0.2184506356
H181: 6 | I181: 0.2206763699
H182: 6 | I182: 0.2221312289
H183: 6 | I183: 0.2241783675
H184: 6 | I184: 0.2308789954
H185: 6 | I185: 0.2314665983
H186: 6 | I186: 0.2408675799
H187: 6 | I187: 0.2410051703
H188: 6 | I188: 0.2464003044
H189: 6 | I189: 0.2475898973
H190: 6 | I190: 0.2507527372
H191: 6 | I191: 0.2514750608
H192: 7 | I192: 0.1301164591
H193: 7 | I193: 0.167023469
H194: 7 | I194: 0.1716504172
H195: 7 | I195: 0.1800371311
H196: 7 | I196: 0.1876729406
H197: 7 | I197: 0.1936781216
H198: 7 | I198: 0.206281946
H199: 7 | I199: 0.2089489307
H200: 7 | I200: 0.2090410959
H201: 7 | I201: 0.2097896935
H202: 7 | I202: 0.2110746672
H203: 7 | I203: 0.2116856389
H204: 7 | I204: 0.2152701744
H205: 7 | I205: 0.2196789675
H206: 7 | I206: 0.2207018985
H207: 7 | I207: 0.2209752636
H208: 7 | I208: 0.2217199099
H209: 7 | I209: 0.2235180119
H210: 7 | I210: 0.2248183073
H211: 7 | I211: 0.2300108373
H212: 7 | I212: 0.2318734793
H213: 7 | I213: 0.2344141424
H214: 7 | I214: 0.2390806697
H215: 7 | I215: 0.2481925419
H216: 7 | I216: 0.252312256
H217: 8 | I217: 0.1497853881
H218: 8 | I218: 0.1900393127
H219: 8 | I219: 0.1967662493
H220: 8 | I220: 0.1999253313
H221: 8 | I221: 0.2005361624
H222: 8 | I222: 0.2023644464
H223: 8 | I223: 0.2065508784
... 701 more rows

Sheet CF by Region
A1: Cumulative capacity factor by region and fixed-tilt vs. tracking
A24: Source: EIA, FERC, Berkeley Lab
B26: Fixed-Tilt | C26: Fixed-Tilt | D26: Fixed-Tilt | F26: Tracking | G26: Tracking | H26: Tracking | J26: Fixed-Tilt | K26: Tracking
B27: Average | C27: # projects | D27: # MW | F27: Average | G27: # projects | H27: # MW | J27: Labels | K27: Labels
A28: ISO-NE | B28: 0.1673088982 | C28: 14 | D28: 215.752 | J28: =C28&" projects, "&TEXT(D28,"#,##0")&" MW" -> 14 projects, 216 MW | K28: =G28&" projects, "&TEXT(H28,"#,##0")&" MW" -> projects, 0 MW
A29: NYISO | B29: 0.1785476898 | C29: 9 | D29: 127.9 | F29: 0.1710686562 | G29: 2 | H29: 27.7 | J29: 9 projects, 128 MW | K29: 2 projects, 28 MW
A30: MISO | B30: 0.1797829107 | C30: 18 | D30: 325.297 | F30: 0.2102669138 | G30: 24 | H30: 671.31 | J30: 18 projects, 325 MW | K30: 24 projects, 671 MW
A31: Hawaii | B31: 0.2110210658 | C31: 6 | D31: 74 | F31: 0.2166145195 | G31: 5 | H31: 157.2 | J31: 6 projects, 74 MW | K31: 5 projects, 157 MW
A32: PJM | B32: 0.1762442658 | C32: 71 | D32: 826.591 | F32: 0.2172752302 | G32: 68 | H32: 2329.676 | J32: 71 projects, 827 MW | K32: 68 projects, 2,330 MW
A33: Southeast (non-ISO) | B33: 0.2130464506 | C33: 90 | D33: 3651.279 | F33: 0.2312639488 | G33: 112 | H33: 5197.235 | J33: 90 projects, 3,651 MW | K33: 112 projects, 5,197 MW
A34: ERCOT | B34: 0.1976121256 | C34: 2 | D34: 43.66 | F34: 0.23568654 | G34: 57 | H34: 4772.649 | J34: 2 projects, 44 MW | K34: 57 projects, 4,773 MW
A35: SPP | B35: 0.2053661751 | C35: 2 | D35: 16.32 | F35: 0.2531147017 | G35: 11 | H35: 250.62 | J35: 2 projects, 16 MW | K35: 11 projects, 251 MW
A36: West (non-ISO) | B36: 0.2345572844 | C36: 21 | D36: 835.74 | F36: 0.2826565461 | G36: 181 | H36: 5782.239 | J36: 21 projects, 836 MW | K36: 181 projects, 5,782 MW
A37: CAISO | B37: 0.2421540167 | C37: 36 | D37: 3161.09 | F37: 0.2883321658 | G37: 166 | H37: 9518.215 | J37: 36 projects, 3,161 MW | K37: 166 projects, 9,518 MW

Sheet CF by Project Vintage
A1: Cumulative and 2021 capacity factor by project vintage: 2010-2020 projects | M1: 2021 capacity factor by project vintage: 2010-2020 projects
A24: Source: EIA, FERC, Berkeley Lab
D25: Average | E25: Average
D26: 2021 | E26: Cumulative
A27: Sample | B27: Sample | C27: Project | D27: Capacity | E27: Capacity | F27: Average | G27: Average | H27: % | O27: ILR | P27: GHI | Q27: Tracking
A28: GW | B28: Projects | C28: Vintage | D28: Factor | E28: Factor | F28: ILR | G28: GHI | H28: Tracking | O28: Index | P28: Index | Q28: Index
A29: 0.12522 | B29: 6 | C29: 2010 | D29: 0.1843021962 | E29: 0.1997791609 | F29: 1.189691022 | G29: 4.901657572 | H29: 0 | J29: =TEXT($F29,"#.#0")&" ILR; "&TEXT($H29,"#0%")&" tracking;" -> 1.19 ILR; 0% tracking; | M29: =TEXT($G29,"#.00")&" GHI" -> 4.90 GHI | O29: 100 | P29: 100 | Q29: 100
A30: 0.4432 | B30: 31 | C30: 2011 | D30: 0.2156743116 | E30: 0.2279479401 | F30: 1.179028894 | G30: 5.127231198 | H30: 0.5161290323 | J30: 1.18 ILR; 52% tracking; | M30: =TEXT($G30,"#.00")&" GHI" -> 5.13 GHI | O30: =(F30-F29)*100+O29 -> 98.93378719 | P30: =(G30-G29)*100+P29 -> 122.5573625 | Q30: =(H30-H29)*100+Q29 -> 151.6129032
A31: 0.892284 | B31: 37 | C31: 2012 | D31: 0.2155125198 | E31: 0.2366564646 | F31: 1.229409197 | G31: 5.128043268 | H31: 0.4864864865 | J31: 1.23 ILR; 49% tracking; | M31: 5.13 GHI | O31: =(F31-F30)*100+O30 -> 103.9718175 | P31: =(G31-G30)*100+P30 -> 122.6385696 | Q31: =(H31-H30)*100+Q30 -> 148.6486486
A32: 1.65629 | B32: 43 | C32: 2013 | D32: 0.2510942399 | E32: 0.2639980676 | F32: 1.289737806 | G32: 5.356975788 | H32: 0.5581395349 | J32: 1.29 ILR; 56% tracking; | M32: 5.36 GHI | O32: 110.0046783 | P32: 145.5318216 | Q32: 155.8139535
A33: 2.740253 | B33: 51 | C33: 2014 | D33: 0.2463773294 | E33: 0.2532080164 | F33: 1.289397088 | G33: 5.186956464 | H33: 0.6078431373 | J33: 1.29 ILR; 61% tracking; | M33: 5.19 GHI | O33: 109.9706065 | P33: 128.5298892 | Q33: 160.7843137
A34: 2.702917 | B34: 83 | C34: 2015 | D34: 0.2427593721 | E34: 0.2521740623 | F34: 1.307766323 | G34: 5.076537165 | H34: 0.6506024096 | J34: 1.31 ILR; 65% tracking; | M34: 5.08 GHI | O34: 111.8075301 | P34: 117.4879593 | Q34: 165.060241
A35: 7.496579 | B35: 147 | C35: 2016 | D35: 0.2489449577 | E35: 0.2539302003 | F35: 1.309872527 | G35: 5.001406832 | H35: 0.7210884354 | J35: 1.31 ILR; 72% tracking; | M35: 5.00 GHI | O35: 112.0181505 | P35: 109.974926 | Q35: 172.1088435
A36: 3.86011 | B36: 151 | C36: 2017 | D36: 0.227682291 | E36: 0.2295492236 | F36: 1.33017859 | G36: 4.708397724 | H36: 0.7417218543 | J36: 1.33 ILR; 74% tracking; | M36: 4.71 GHI | O36: 114.0487568 | P36: 80.67401522 | Q36: 174.1721854
A37: 3.919415 | B37: 91 | C37: 2018 | D37: 0.2322576235 | E37: 0.231825207 | F37: 1.359342327 | G37: 4.697624326 | H37: 0.6483516484 | J37: 1.36 ILR; 65% tracking; | M37: 4.70 GHI | O37: 116.9651305 | P37: 79.59667541 | Q37: 164.8351648
A38: 4.4427 | B38: 91 | C38: 2019 | D38: 0.2357907487 | E38: 0.2344505105 | F38: 1.309824821 | G38: 4.856601405 | H38: 0.8021978022 | J38: 1.31 ILR; 80% tracking; | M38: 4.86 GHI | O38: 112.0133799 | P38: 95.49438327 | Q38: 180.2197802
A39: 9.32287 | B39: 138 | C39: 2020 | D39: 0.2477790731 | E39: 0.2477790731 | F39: 1.353398332 | G39: 4.784117337 | H39: 0.8333333333 | J39: 1.35 ILR; 83% tracking; | M39: 4.78 GHI | O39: 116.370731 | P39: 88.24597644 | Q39: 183.3333333
C40: 2021 | F40: 1.352304522 | G40: 4.560112974 | H40: 0.75 | J40: 1.35 ILR; 75% tracking; | M40: 4.56 GHI | O40: 116.2613499 | P40: 65.84554019 | Q40: 175

Sheet CF for CSP Plants
A1: Capacity factor of CSP projects (solar portion only) over time
A24: Source: EIA, FERC, Berkeley Lab
R26: Average
R27: PV in | T27: SEGS I&II | V27: SEGS III-IX
B28: SEGS I | C28: SEGS II | D28: SEGS III | E28: SEGS IV | F28: SEGS V | G28: SEGS VI | H28: SEGS VII | I28: SEGS VIII | J28: SEGS IX | K28: Nevada Solar One | L28: Genesis | M28: Solana | N28: Ivanpah | O28: Mojave | P28: Crescent Dunes | R28: CA/NV/AZ | T28: Min | U28: Add | V28: Min | W28: Add
A29: 2008 | B29: 0.08831109263 | C29: 0.1064055859 | D29: 0.2297238999 | E29: 0.2308090734 | F29: 0.2307358408 | G29: 0.2184361176 | H29: 0.2120251106 | I29: 0.1752825385 | J29: 0.1945194776 | K29: 0.2182359261 | R29: 0.3083257438 | T29: 0.08831109263 | U29: 0.01809449328 | V29: 0.06887695259 | W29: 0.05552653488
A30: 2009 | B30: 0.07472205678 | C30: 0.07090943683 | D30: 0.2101891906 | E30: 0.2121652114 | F30: 0.1996715533 | G30: 0.2046640574 | H30: 0.1922700587 | I30: 0.1705505396 | J30: 0.1812941054 | K30: 0.2114494826 | R30: 0.2760882801 | T30: 0.07090943683 | U30: 0.003812619946 | V30: 0.09582848286 | W30: 0.04161467171
A31: 2010 | B31: 0.08808153001 | C31: 0.08686834094 | D31: 0.2003691687 | E31: 0.2105663703 | F31: 0.1813399557 | G31: 0.2073581213 | H31: 0.1918982387 | I31: 0.2022792134 | J31: 0.212612858 | K31: 0.2216445022 | R31: 0.272606796 | T31: 0.08686834094 | U31: 0.001213189068 | V31: 0.09325842566 | W31: 0.03127290236
A32: 2011 | B32: 0.09234994375 | C32: 0.09968797565 | D32: 0.2047784988 | E32: 0.1925418569 | F32: 0.2017777511 | G32: 0.1934996738 | H32: 0.1871428571 | I32: 0.1977778643 | J32: 0.2082113948 | K32: 0.2137502916 | R32: 0.2723102074 | T32: 0.09234994375 | U32: 0.007338031897 | V32: 0.0874548815 | W32: 0.02106853763
A33: 2012 | B33: 0.09623887965 | C33: 0.0953476017 | D33: 0.1893294826 | E33: 0.2077607878 | F33: 0.2093020004 | G33: 0.1824160812 | H33: 0.1761221702 | I33: 0.1879023328 | J33: 0.2124252256 | K33: 0.2142831027 | R33: 0.261339478 | T33: 0.0953476017 | U33: 0.0008912779494 | V33: 0.07988329053 | W33: 0.03630305544
A34: 2013 | B34: 0.07778274105 | C34: 0.08817732116 | D34: 0.1896712863 | E34: 0.1946547304 | F34: 0.1927888595 | G34: 0.1713600783 | H34: 0.1571526419 | I34: 0.1833696555 | J34: 0.1998780614 | K34: 0.1879645369 | R34: 0.2752315595 | T34: 0.07778274105 | U34: 0.01039458011 | V34: 0.06897532072 | W34: 0.04272541956
A35: 2014 | B35: 0.07099960294 | C35: 0.02896118721 | D35: 0.1816036476 | E35: 0.1813165906 | F35: 0.188102486 | G35: 0.1648630137 | H35: 0.1525179387 | I35: 0.1887777605 | J35: 0.1918366023 | K35: 0.1936922974 | L35: 0.2873115074 | M35: 0.2756013699 | N35: 0.1268985502 | R35: 0.2861874014 | T35: 0.02896118721 | U35: 0.04203841572 | V35: 0.08151833574 | W35: 0.03931866364
A36: 2015 | B36: 0.103914367 | C36: - | D36: 0.1738130524 | E36: 0.1772977917 | F36: 0.1757256536 | G36: 0.1530887149 | H36: 0.1231930855 | I36: 0.1792094749 | J36: 0.1892162204 | K36: 0.1760690598 | L36: 0.2837689498 | M36: 0.3282388128 | N36: 0.1951558204 | O36: 0.229953021 | R36: 0.2839862706 | T36: 0.103914367 | U36: 0 | V36: 0.01927871844 | W36: 0.06602313497
A37: 2016 | B37: - | C37: - | D37: 0.1550599708 | E37: 0.1632220731 | F37: 0.1669103314 | G37: 0.1331088993 | H37: 0.09914129586 | I37: 0.1822127525 | J37: 0.1848233876 | K37: 0.1942599684 | L37: 0.2835705978 | M37: 0.2931102004 | N37: 0.2024947095 | O37: 0.2845654135 | P37: 0.1321071152 | R37: 0.2840540078 | T37: 0 | U37: 0 | V37: 0.09914129586 | W37: 0.0856820917
A38: 2017 | B38: - | C38: - | D38: 0.1472502604 | E38: 0.144136025 | F38: 0.1466461054 | G38: 0.1186562296 | H38: 0.1063307241 | I38: 0.1602597032 | J38: 0.1702833126 | K38: 0.1966886645 | L38: 0.2866808219 | M38: 0.3305780822 | N38: 0.2079923816 | O38: 0.2712465753 | P38: 0.04361664591 | R38: 0.2859421771 | T38: 0 | U38: 0 | V38: 0.1063307241 | W38: 0.06395258851
A39: 2018 | B39: - | C39: - | D39: 0.1463623862 | E39: 0.1482215814 | F39: 0.1581584288 | G39: 0.1117482061 | H39: 0.09118069145 | I39: 0.1723627543 | J39: 0.1784506019 | K39: 0.1839466053 | L39: 0.284539726 | M39: 0.3543438356 | N39: 0.2305781646 | O39: 0.2763378995 | P39: 0.2032067248 | R39: 0.2873720282 | T39: 0 | U39: 0 | V39: 0.09118069145 | W39: 0.08726991045
A40: 2019 | B40: - | C40: - | D40: 0.1276469332 | E40: 0.1397400465 | F40: 0.1382680445 | G40: - | H40: - | I40: 0.1563537775 | J40: 0.1613415836 | K40: 0.1837166283 | L40: 0.2817547945 | M40: 0.3614803653 | N40: 0.2239141625 | O40: 0.2349242009 | P40: 0.05206309672 | R40: 0.2774223611 | T40: 0 | U40: 0 | V40: 0.1276469332 | W40: 0.03369465048
A41: 2020 | B41: - | C41: - | D41: - | E41: - | F41: - | G41: - | H41: - | I41: 0.1481994639 | J41: 0.1578864982 | K41: 0.1784365735 | L41: 0.2773811475 | M41: 0.3532349727 | N41: 0.2463536911 | O41: 0.2542868852 | P41: - | R41: 0.2714703613 | T41: 0 | U41: 0 | V41: 0.1481994639 | W41: 0.009687034277
A42: 2021 | B42: - | C42: - | D42: - | E42: - | F42: - | G42: - | H42: - | I42: - | J42: 0.1504942403 | K42: 0.1594990501 | L42: 0.2459392694 | M42: 0.3171547945 | N42: 0.2136843986 | O42: 0.2684826484 | P42: 0.07754358655 | R42: 0.2731728421 | T42: 0 | U42: 0 | V42: 0.1504942403 | W42: 0

Sheet PPA Price by Project (PV only)
A1: Levelized PPA prices by region, contract size, and PPA execution date: full sample (PV only--no PV+battery included here) | L1: Levelized PPA prices by region, contract size, and PPA execution date: recent sample (PV only) | W1: Levelized PPA prices by consolidated region, contract size, and PPA execution date: full sample (PV only) | AH1: Levelized PPA prices by consolidated region, contract size, and PPA execution date: recent sample (PV only) | AT1: Levelized PPA prices by region, contract size, and PPA execution date (with non-Hawaii time trend) -- PV only
A22: Source: Berkeley Lab, FERC | L22: Source: Berkeley Lab, FERC | W22: Source: Berkeley Lab, FERC | AH22: Source: Berkeley Lab, FERC
A24: PPA Execution Date | B24: Capacity (MW) | C24: CAISO | D24: West (non-ISO) | E24: MISO | F24: SPP | G24: ERCOT | H24: PJM | I24: NYISO | J24: ISO-NE | K24: Southeast (non-ISO) | L24: Hawaii | N24: Hawaii | O24: West | P24: Central | Q24: Northeast | R24: Southeast | S24: Note: Hawaii = Hawaii; West = CAISO, West (non-ISO); Central = MISO, SPP, ERCOT; Northeast = PJM, NYISO, ISO-NE; Southeast = Southeast (non-ISO)
A25: 2006-09-01 | B25: 7 | D25: 249.1999782 | O25: 249.1999782
A26: 2007-06-25 | B26: 5 | C26: 226.3527741 | O26: 226.3527741 | U26: Non-HI Gen-Wgtd Avg
A27: 2008-07-01 | B27: 550 | C27: 154.9657371 | O27: 154.9657371 | U27: 2021 $/MWh
A28: 2008-07-23 | B28: 210 | C28: 134.5414406 | O28: 134.5414406 | T28: 2009 | U28: 167.3698965
A29: 2008-12-19 | B29: 10 | C29: 175.4914144 | O29: 175.4914144 | T29: =T28+1 -> 2010 | U29: 138.3755184
A30: 2009-02-23 | B30: 30 | D30: 136.2877374 | O30: 136.2877374 | T30: =T29+1 -> 2011 | U30: 112.6241796
A31: 2009-03-01 | B31: 30 | G31: 162.332173 | P31: 162.332173 | T31: 2012 | U31: 87.36418714
A32: 2009-03-05 | B32: 19 | D32: 153.9354952 | O32: 153.9354952 | T32: 2013 | U32: 68.96915546
A33: 2009-05-01 | B33: 12.6 | K33: 212.5955323 | R33: 212.5955323 | T33: 2014 | U33: 56.38676102
A34: 2009-05-08 | B34: 230 | C34: 149.3575736 | O34: 149.3575736 | T34: 2015 | U34: 46.14064168
A35: 2009-06-01 | B35: 20 | D35: 132.963372 | O35: 132.963372 | T35: 2016 | U35: 39.38272456
A36: 2009-06-01 | B36: 14 | G36: 204.8411228 | P36: 204.8411228 | T36: 2017 | U36: 33.67382034
A37: 2009-06-01 | B37: 10.08 | H37: 232.2523554 | Q37: 232.2523554 | T37: 2018 | U37: 25.71086118
A38: 2009-06-22 | B38: 48 | C38: 173.3804515 | O38: 173.3804515 | T38: 2019 | U38: 21.0348727
A39: 2009-08-17 | B39: 250 | C39: 149.4867475 | O39: 149.4867475 | T39: 2020 | U39: 21.72715333
A40: 2009-09-08 | B40: 250 | C40: 206.0913389 | O40: 206.0913389 | T40: 2021 | U40: 23.10898588
A41: 2009-11-20 | B41: 21 | C41: 121.8561825 | O41: 121.8561825
A42: 2009-12-23 | B42: 50 | F42: 135.4835721 | P42: 135.4835721
A43: 2009-12-24 | B43: 6 | C43: 258.1736725 | O43: 258.1736725
A44: 2009-12-24 | B44: 19 | C44: 258.1736725 | O44: 258.1736725
A45: 2009-12-24 | B45: 20 | C45: 258.1736725 | O45: 258.1736725
A46: 2010-01-26 | B46: 50 | C46: 168.5415202 | O46: 168.5415202
A47: 2010-01-26 | B47: 20 | C47: 168.5415202 | O47: 168.5415202
A48: 2010-01-26 | B48: 20 | C48: 172.1170093 | O48: 172.1170093
A49: 2010-02-02 | B49: 50 | D49: 141.3108956 | O49: 141.3108956
A50: 2010-02-24 | B50: 300 | C50: 145.3820443 | O50: 145.3820443
A51: 2010-03-06 | B51: 40 | C51: 138.9658333 | O51: 138.9658333
A52: 2010-04-19 | B52: 29 | D52: 108.0398242 | O52: 108.0398242
A53: 2010-04-21 | B53: 66 | C53: 144.0227178 | O53: 144.0227178
A54: 2010-04-29 | B54: 25 | D54: 134.9318678 | O54: 134.9318678
A55: 2010-05-10 | B55: 125 | C55: 136.465392 | O55: 136.465392
A56: 2010-05-20 | B56: 25.8 | C56: 163.3522245 | O56: 163.3522245
A57: 2010-06-01 | B57: 32 | I57: 326.1941281 | Q57: 326.1941281
A58: 2010-06-01 | B58: 20 | D58: 134.9318678 | O58: 134.9318678
A59: 2010-06-24 | B59: 23 | D59: 131.562351 | O59: 131.562351
A60: 2010-06-30 | B60: 12 | D60: 102.5004147 | O60: 102.5004147
A61: 2010-06-30 | B61: 10 | D61: 102.4860607 | O61: 102.4860607
A62: 2010-07-26 | B62: 20 | D62: 136.2830601 | O62: 136.2830601
A63: 2010-07-29 | B63: 150 | C63: 160.6826439 | O63: 160.6826439
A64: 2010-07-29 | B64: 45 | C64: 132.0797116 | O64: 132.0797116
A65: 2010-08-10 | B65: 30 | D65: 136.044337 | O65: 136.044337
A66: 2010-08-10 | B66: 5.5 | K66: 197.8741658 | R66: 197.8741658
A67: 2010-08-24 | B67: 23 | D67: 116.0407115 | O67: 116.0407115
A68: 2010-09-20 | B68: 62.5 | C68: 132.4158642 | O68: 132.4158642
A69: 2010-11-10 | B69: 130 | C69: 133.795304 | O69: 133.795304
A70: 2010-11-15 | B70: 14 | C70: 82.59342842 | O70: 82.59342842
A71: 2010-11-15 | B71: 20 | C71: 80.02320996 | O71: 80.02320996
A72: 2010-12-01 | B72: 9 | D72: 141.4055645 | O72: 141.4055645
A73: 2010-12-01 | B73: 7.65 | K73: 150.9312906 | R73: 150.9312906
A74: 2010-12-21 | B74: 60 | C74: 136.4254609 | O74: 136.4254609
A75: 2010-12-30 | B75: 309 | C75: 116.8159982 | O75: 116.8159982
A76: 2010-12-30 | B76: 20 | C76: 152.1434665 | O76: 152.1434665
A77: 2011-01-05 | B77: 270 | C77: 117.0517381 | O77: 117.0517381
A78: 2011-01-07 | B78: 110 | C78: 131.755042 | O78: 131.755042
A79: 2011-01-25 | B79: 26 | C79: 137.7463721 | O79: 137.7463721
A80: 2011-02-07 | B80: 250 | D80: 122.322788 | O80: 122.322788
A81: 2011-02-11 | B81: 30 | D81: 116.2045877 | O81: 116.2045877
A82: 2011-02-11 | B82: 20 | D82: 119.5149504 | O82: 119.5149504
A83: 2011-03-08 | B83: 150 | C83: 96.47782914 | O83: 96.47782914
A84: 2011-06-03 | B84: 110 | C84: 121.6853298 | O84: 121.6853298
A85: 2011-06-03 | B85: 127 | D85: 113.024241 | O85: 113.024241
A86: 2011-06-21 | B86: 150 | C86: 109.4774509 | O86: 109.4774509
A87: 2011-07-08 | B87: 23 | C87: 127.5525299 | O87: 127.5525299
A88: 2011-07-14 | B88: 20 | C88: 102.4047219 | O88: 102.4047219
A89: 2011-07-18 | B89: 6 | L89: 199.8990633 | N89: 199.8990633
A90: 2011-07-21 | B90: 150 | C90: 119.9475371 | O90: 119.9475371
A91: 2011-09-29 | B91: 250 | C91: 87.59061447 | O91: 87.59061447
A92: 2011-10-01 | B92: 9 | D92: 140.1992081 | O92: 140.1992081
A93: 2011-12-01 | B93: 20 | H93: 229.8839228 | Q93: 229.8839228
A94: 2011-12-08 | B94: 19 | D94: 109.8444247 | O94: 109.8444247
A95: 2011-12-20 | B95: 20 | D95: 86.51169273 | O95: 86.51169273
A96: 2011-12-20 | B96: 30 | K96: 116.4148474 | R96: 116.4148474
A97: 2011-12-20 | B97: 20 | D97: 85.18358376 | O97: 85.18358376
A98: 2012-01-01 | B98: 15 | D98: 87.30673861 | O98: 87.30673861
A99: 2012-01-01 | B99: 15 | D99: 78.32991118 | O99: 78.32991118
A100: 2012-02-03 | B100: 200 | C100: 90.01183766 | O100: 90.01183766
A101: 2012-02-27 | B101: 20 | C101: 82.40708151 | O101: 82.40708151
A102: 2012-07-03 | B102: 20 | C102: 93.39217212 | O102: 93.39217212
A103: 2012-07-03 | B103: 20 | C103: 99.48184199 | O103: 99.48184199
A104: 2012-08-03 | B104: 20 | C104: 91.62023585 | O104: 91.62023585
A105: 2012-08-13 | B105: 20 | C105: 97.13615989 | O105: 97.13615989
A106: 2012-08-16 | B106: 102 | C106: 94.39395117 | O106: 94.39395117
A107: 2012-08-29 | B107: 20 | C107: 90.99065243 | O107: 90.99065243
A108: 2012-08-31 | B108: 250 | D108: 93.04400398 | O108: 93.04400398
A109: 2012-09-17 | B109: 20 | C109: 88.72559876 | O109: 88.72559876
A110: 2012-09-17 | B110: 20.8 | C110: 106.6965782 | O110: 106.6965782
A111: 2012-10-17 | B111: 10 | C111: 91.46640785 | O111: 91.46640785
A112: 2012-10-25 | B112: 50 | D112: 56.7068927 | O112: 56.7068927
A113: 2012-11-01 | B113: 20 | C113: 72.23459204 | O113: 72.23459204
A114: 2012-11-15 | B114: 20 | C114: 83.02022092 | O114: 83.02022092
A115: 2012-12-12 | B115: 250 | D115: 81.19439215 | O115: 81.19439215
A116: 2012-12-13 | B116: 20 | D116: 86.82543305 | O116: 86.82543305
A117: 2013-02-04 | B117: 28.8 | E117: 101.9206217 | P117: 101.9206217
A118: 2013-02-28 | B118: 45 | C118: 81.50961867 | O118: 81.50961867
A119: 2013-03-22 | B119: 20 | C119: 92.47577733 | O119: 92.47577733
A120: 2013-03-22 | B120: 20 | C120: 91.05531443 | O120: 91.05531443
A121: 2013-03-25 | B121: 20 | C121: 77.21542982 | O121: 77.21542982
A122: 2013-04-10 | B122: 20 | C122: 88.66515927 | O122: 88.66515927
A123: 2013-04-16 | B123: 20 | C123: 64.94060094 | O123: 64.94060094
A124: 2013-06-01 | B124: 20 | C124: 59.17389466 | O124: 59.17389466
A125: 2013-06-03 | B125: 48 | D125: 66.89243207 | O125: 66.89243207
A126: 2013-06-03 | B126: 40 | D126: 67.78904063 | O126: 67.78904063
A127: 2013-06-19 | B127: 12 | L127: 154.7884115 | N127: 154.7884115
A128: 2013-07-03 | B128: 50 | D128: 57.53298787 | O128: 57.53298787
A129: 2013-07-10 | B129: 40 | C129: 58.97664835 | O129: 58.97664835
A130: 2013-07-10 | B130: 20 | C130: 63.26461173 | O130: 63.26461173
A131: 2013-07-17 | B131: 20 | C131: 82.85189823 | O131: 82.85189823
A132: 2013-07-17 | B132: 12 | C132: 82.85189823 | O132: 82.85189823
A133: 2013-09-06 | B133: 15 | C133: 67.14588716 | O133: 67.14588716
A134: 2013-09-19 | B134: 20 | J134: 100.9317074 | Q134: 100.9317074
A135: 2013-09-27 | B135: 20 | C135: 64.32893496 | O135: 64.32893496
A136: 2013-10-09 | B136: 20 | C136: 66.84126081 | O136: 66.84126081
A137: 2013-10-22 | B137: 20 | C137: 64.56371209 | O137: 64.56371209
A138: 2013-12-01 | B138: 7.314 | C138: 82.32803647 | O138: 82.32803647
A139: 2013-12-06 | B139: 20 | K139: 67.59927818 | R139: 67.59927818
A140: 2013-12-19 | B140: 150 | C140: 56.15843563 | O140: 56.15843563
A141: 2014-01-30 | B141: 7 | C141: 69.50243373 | O141: 69.50243373
A142: 2014-02-20 | B142: 10.416 | D142: 49.29365447 | O142: 49.29365447
A143: 2014-03-17 | B143: 20 | C143: 64.06826916 | O143: 64.06826916
A144: 2014-03-26 | B144: 26.66 | C144: 59.84972581 | O144: 59.84972581
A145: 2014-04-01 | B145: 10.3 | H145: 65.83103707 | Q145: 65.83103707
A146: 2014-05-01 | B146: 157.5 | G146: 44.07336285 | P146: 44.07336285
A147: 2014-05-27 | B147: 30 | D147: 63.21543134 | O147: 63.21543134
A148: 2014-06-01 | B148: 20 | K148: 66.11356 | R148: 66.11356
A149: 2014-06-12 | B149: 30 | C149: 57.53763801 | O149: 57.53763801
A150: 2014-07-18 | B150: 93.6 | C150: 57.28838015 | O150: 57.28838015
A151: 2014-07-23 | B151: 75 | C151: 57.84628874 | O151: 57.84628874
A152: 2014-07-24 | B152: 56 | D152: 57.53298787 | O152: 57.53298787
A153: 2014-07-24 | B153: 56 | D153: 58.0997281 | O153: 58.0997281
A154: 2014-07-31 | B154: 200 | C154: 45.30794223 | O154: 45.30794223
A155: 2014-08-19 | B155: 105 | D155: 60.74746757 | O155: 60.74746757
A156: 2014-08-25 | B156: 60 | D156: 61.32277997 | O156: 61.32277997
A157: 2014-09-03 | B157: 60 | C157: 50.56202033 | O157: 50.56202033
A158: 2014-09-04 | B158: 52 | D158: 46.86151612 | O158: 46.86151612
A159: 2014-09-04 | B159: 120 | D159: 56.20573906 | O159: 56.20573906
A160: 2014-10-03 | B160: 30 | C160: 60.00359348 | O160: 60.00359348
A161: 2014-10-08 | B161: 101.3 | K161: 52.86957401 | R161: 52.86957401
A162: 2014-10-08 | B162: 51 | K162: 53.63667626 | R162: 53.63667626
A163: 2014-10-08 | B163: 76.5 | K163: 53.57985734 | R163: 53.57985734
A164: 2014-10-08 | B164: 30 | K164: 57.38161858 | R164: 57.38161858
A165: 2014-10-08 | B165: 80 | K165: 60.06064306 | R165: 60.06064306
A166: 2014-10-08 | B166: 103 | K166: 57.82912665 | R166: 57.82912665
A167: 2014-10-20 | B167: 40 | C167: 57.16498492 | O167: 57.16498492
A168: 2014-10-21 | B168: 11.4 | C168: 62.25864588 | O168: 62.25864588
A169: 2014-10-21 | B169: 20 | C169: 64.83948736 | O169: 64.83948736
A170: 2014-10-22 | B170: 20 | C170: 56.8733166 | O170: 56.8733166
A171: 2014-10-22 | B171: 20 | C171: 56.8733166 | O171: 56.8733166
A172: 2014-10-22 | B172: 15 | C172: 56.8733166 | O172: 56.8733166
A173: 2014-10-22 | B173: 20 | C173: 56.8733166 | O173: 56.8733166
A174: 2014-10-22 | B174: 20 | C174: 49.87544264 | O174: 49.87544264
A175: 2014-10-22 | B175: 14.7 | C175: 69.85906933 | O175: 69.85906933
A176: 2014-10-22 | B176: 19.5 | C176: 67.75030727 | O176: 67.75030727
A177: 2014-10-22 | B177: 19.5 | C177: 67.76717737 | O177: 67.76717737
A178: 2014-10-24 | B178: 100 | E178: 66.60921741 | P178: 66.60921741
A179: 2014-11-07 | B179: 40 | K179: 70.47439441 | R179: 70.47439441
A180: 2014-11-07 | B180: 50 | K180: 70.47439441 | R180: 70.47439441
A181: 2014-11-13 | B181: 30 | D181: 61.88980333 | O181: 61.88980333
A182: 2014-11-18 | B182: 45 | D182: 49.30146904 | O182: 49.30146904
A183: 2014-12-09 | B183: 130 | C183: 61.9373933 | O183: 61.9373933
A184: 2015-02-01 | B184: 80 | K184: 58.56761179 | R184: 58.56761179
A185: 2015-03-02 | B185: 6 | K185: 101.9054489 | R185: 101.9054489
A186: 2015-03-02 | B186: 25 | F186: 42.50551667 | P186: 42.50551667
A187: 2015-03-03 | B187: 62.25 | E187: 62.57015172 | P187: 62.57015172
A188: 2015-03-04 | B188: 70 | F188: 37.6003601 | P188: 37.6003601
A189: 2015-03-04 | B189: 70 | F189: 38.07848645 | P189: 38.07848645
A190: 2015-03-05 | B190: 10.5 | C190: 84.47394546 | O190: 84.47394546
A191: 2015-03-23 | B191: 20 | C191: 68.58178278 | O191: 68.58178278
A192: 2015-03-25 | B192: 30 | D192: 47.9724213 | O192: 47.9724213
A193: 2015-04-03 | B193: 81 | E193: 47.58947672 | P193: 47.58947672
A194: 2015-04-03 | B194: 54 | C194: 45.56060068 | O194: 45.56060068
A195: 2015-04-14 | B195: 6.8 | C195: 63.62049171 | O195: 63.62049171
A196: 2015-04-17 | B196: 20 | C196: 53.52202876 | O196: 53.52202876
A197: 2015-04-30 | B197: 50.6 | K197: 44.90095595 | R197: 44.90095595
A198: 2015-04-30 | B198: 52 | K198: 59.67586044 | R198: 59.67586044
A199: 2015-04-30 | B199: 80 | K199: 20.03922513 | R199: 20.03922513
A200: 2015-05-27 | B200: 4.9 | K200: 67.48081989 | R200: 67.48081989
A201: 2015-06-01 | B201: 3.6 | F201: 74.49776873 | P201: 74.49776873
A202: 2015-06-05 | B202: 100 | D202: 42.23697273 | O202: 42.23697273
A203: 2015-06-09 | B203: 80 | H203: 67.85731322 | Q203: 67.85731322
A204: 2015-06-19 | B204: 100 | D204: 44.21057935 | O204: 44.21057935
A205: 2015-06-23 | B205: 46 | D205: 48.97427676 | O205: 48.97427676
A206: 2015-06-25 | B206: 100.815 | C206: 55.25886895 | O206: 55.25886895
A207: 2015-06-30 | B207: 7.06 | K207: 61.36733969 | R207: 61.36733969
A208: 2015-07-01 | B208: 13 | K208: 64.27365415 | R208: 64.27365415
A209: 2015-07-01 | B209: 20 | E209: 66.01552527 | P209: 66.01552527
A210: 2015-07-01 | B210: 27.6 | L210: 131.1519549 | N210: 131.1519549
A211: 2015-07-15 | B211: 125 | C211: 52.51249108 | O211: 52.51249108
A212: 2015-07-16 | B212: 150 | C212: 49.14700365 | O212: 49.14700365
A213: 2015-07-16 | B213: 180 | C213: 49.54732491 | O213: 49.54732491
A214: 2015-07-21 | B214: 20 | K214: 46.12307381 | R214: 46.12307381
A215: 2015-08-05 | B215: 30 | D215: 45.50416635 | O215: 45.50416635
A216: 2015-08-09 | B216: 30 | D216: 41.17928559 | O216: 41.17928559
A217: 2015-08-12 | B217: 10 | C217: 50.49154631 | O217: 50.49154631
A218: 2015-08-16 | B218: 10 | C218: 50.49154631 | O218: 50.49154631
A219: 2015-08-28 | B219: 150 | D219: 51.25032516 | O219: 51.25032516
A220: 2015-09-03 | B220: 10.88 | D220: 74.32025095 | O220: 74.32025095
A221: 2015-09-23 | B221: 52 | E221: 43.31529271 | P221: 43.31529271
... 175 more rows

Sheet PPA Price for CSP Plants
A1: Levelized PPA prices for CSP and PV plants in AZ, CA, and NV (by PPA capacity and execution date)
A22: Source: Berkeley Lab, FERC
A24: PV plants in AZ, CA, and NV (for comparison) | E24: CSP plants in AZ, CA, and NV
A25: PPA Execution Date | B25: Capacity (MW) | C25: 2021 $/MWh | E25: PPA Execution Date | F25: Capacity (MW) | G25: 2021 $/MWh
A26: 2007-06-25 | B26: 5 | C26: 226.3527741 | E26: 2009-04-28 | F26: 377 | G26: 160.955116 | H26: CSP tower, no storage
A27: 2008-07-01 | B27: 550 | C27: 154.9657371
A28: 2008-07-23 | B28: 210 | C28: 134.5414406 | E28: 2009-11-04 | F28: 110 | G28: 139.637409 | H28: CSP tower, 10 hours storage
A29: 2008-12-19 | B29: 10 | C29: 175.4914144
A30: 2009-05-08 | B30: 230 | C30: 149.3575736 | E30: 2009-09-28 | F30: 250 | G30: 200.772916 | H30: CSP trough, no storage
A31: 2009-06-01 | B31: 20 | C31: 132.963372 | E31: 2011-07-15 | F31: 250 | G31: 207.9858568 | H31: CSP trough, no storage
A32: 2009-06-22 | B32: 48 | C32: 173.3804515
A33: 2009-08-17 | B33: 250 | C33: 149.4867475 | E33: 2010-12-15 | F33: 250 | G33: 138.1096918 | H33: CSP trough, 6 hours storage
A34: 2009-09-08 | B34: 250 | C34: 206.0913389
A35: 2009-11-20 | B35: 21 | C35: 121.8561825
A36: 2009-12-24 | B36: 6 | C36: 258.1736725
A37: 2009-12-24 | B37: 19 | C37: 258.1736725
A38: 2009-12-24 | B38: 20 | C38: 258.1736725
A39: 2010-01-26 | B39: 50 | C39: 168.5415202
A40: 2010-01-26 | B40: 20 | C40: 168.5415202
A41: 2010-01-26 | B41: 20 | C41: 172.1170093
A42: 2010-02-02 | B42: 50 | C42: 141.3108956
A43: 2010-02-24 | B43: 300 | C43: 145.3820443
A44: 2010-03-06 | B44: 40 | C44: 138.9658333
A45: 2010-04-19 | B45: 29 | C45: 108.0398242
A46: 2010-04-21 | B46: 66 | C46: 144.0227178
A47: 2010-04-29 | B47: 25 | C47: 134.9318678
A48: 2010-05-10 | B48: 125 | C48: 136.465392
A49: 2010-05-20 | B49: 25.8 | C49: 163.3522245
A50: 2010-06-01 | B50: 20 | C50: 134.9318678
A51: 2010-07-26 | B51: 20 | C51: 136.2830601
A52: 2010-07-29 | B52: 150 | C52: 160.6826439
A53: 2010-07-29 | B53: 45 | C53: 132.0797116
A54: 2010-08-24 | B54: 23 | C54: 116.0407115
A55: 2010-09-20 | B55: 62.5 | C55: 132.4158642
A56: 2010-11-10 | B56: 130 | C56: 133.795304
A57: 2010-11-15 | B57: 14 | C57: 82.59342842
A58: 2010-11-15 | B58: 20 | C58: 80.02320996
A59: 2010-12-01 | B59: 9 | C59: 141.4055645
A60: 2010-12-21 | B60: 60 | C60: 136.4254609
A61: 2010-12-30 | B61: 309 | C61: 116.8159982
A62: 2010-12-30 | B62: 20 | C62: 152.1434665
A63: 2011-01-05 | B63: 270 | C63: 117.0517381
A64: 2011-01-07 | B64: 110 | C64: 131.755042
A65: 2011-01-25 | B65: 26 | C65: 137.7463721
A66: 2011-02-07 | B66: 250 | C66: 122.322788
A67: 2011-02-11 | B67: 30 | C67: 116.2045877
A68: 2011-02-11 | B68: 20 | C68: 119.5149504
A69: 2011-03-08 | B69: 150 | C69: 96.47782914
A70: 2011-06-03 | B70: 110 | C70: 121.6853298
A71: 2011-06-03 | B71: 127 | C71: 113.024241
A72: 2011-06-21 | B72: 150 | C72: 109.4774509
A73: 2011-07-08 | B73: 23 | C73: 127.5525299
A74: 2011-07-14 | B74: 20 | C74: 102.4047219
A75: 2011-07-21 | B75: 150 | C75: 119.9475371
A76: 2011-09-29 | B76: 250 | C76: 87.59061447
A77: 2011-10-01 | B77: 9 | C77: 140.1992081
A78: 2011-12-08 | B78: 19 | C78: 109.8444247
A79: 2011-12-20 | B79: 20 | C79: 86.51169273
A80: 2011-12-20 | B80: 20 | C80: 85.18358376
A81: 2012-01-01 | B81: 15 | C81: 87.30673861
A82: 2012-01-01 | B82: 15 | C82: 78.32991118
A83: 2012-02-03 | B83: 200 | C83: 90.01183766
A84: 2012-02-27 | B84: 20 | C84: 82.40708151
A85: 2012-07-03 | B85: 20 | C85: 93.39217212
A86: 2012-07-03 | B86: 20 | C86: 99.48184199
A87: 2012-08-03 | B87: 20 | C87: 91.62023585
A88: 2012-08-13 | B88: 20 | C88: 97.13615989
A89: 2012-08-16 | B89: 102 | C89: 94.39395117
A90: 2012-08-29 | B90: 20 | C90: 90.99065243
A91: 2012-08-31 | B91: 250 | C91: 93.04400398
A92: 2012-09-17 | B92: 20 | C92: 88.72559876
A93: 2012-09-17 | B93: 20.8 | C93: 106.6965782
A94: 2012-10-17 | B94: 10 | C94: 91.46640785
A95: 2012-11-01 | B95: 20 | C95: 72.23459204
A96: 2012-11-15 | B96: 20 | C96: 83.02022092
A97: 2012-12-12 | B97: 250 | C97: 81.19439215
A98: 2012-12-13 | B98: 20 | C98: 86.82543305
A99: 2013-02-28 | B99: 45 | C99: 81.50961867
A100: 2013-03-22 | B100: 20 | C100: 92.47577733
A101: 2013-03-22 | B101: 20 | C101: 91.05531443
A102: 2013-03-25 | B102: 20 | C102: 77.21542982
A103: 2013-04-10 | B103: 20 | C103: 88.66515927
A104: 2013-04-16 | B104: 20 | C104: 64.94060094
A105: 2013-06-01 | B105: 20 | C105: 59.17389466
A106: 2013-06-03 | B106: 48 | C106: 66.89243207
A107: 2013-06-03 | B107: 40 | C107: 67.78904063
A108: 2013-07-03 | B108: 50 | C108: 57.53298787
A109: 2013-07-10 | B109: 40 | C109: 58.97664835
A110: 2013-07-10 | B110: 20 | C110: 63.26461173
A111: 2013-07-17 | B111: 20 | C111: 82.85189823
A112: 2013-07-17 | B112: 12 | C112: 82.85189823
A113: 2013-09-06 | B113: 15 | C113: 67.14588716
A114: 2013-09-27 | B114: 20 | C114: 64.32893496
A115: 2013-10-09 | B115: 20 | C115: 66.84126081
A116: 2013-10-22 | B116: 20 | C116: 64.56371209
A117: 2013-12-01 | B117: 7.314 | C117: 82.32803647
A118: 2013-12-19 | B118: 150 | C118: 56.15843563
A119: 2014-01-30 | B119: 7 | C119: 69.50243373
A120: 2014-03-17 | B120: 20 | C120: 64.06826916
A121: 2014-03-26 | B121: 26.66 | C121: 59.84972581
A122: 2014-05-27 | B122: 30 | C122: 63.21543134
A123: 2014-06-12 | B123: 30 | C123: 57.53763801
A124: 2014-07-18 | B124: 93.6 | C124: 57.28838015
A125: 2014-07-23 | B125: 75 | C125: 57.84628874
A126: 2014-07-24 | B126: 56 | C126: 57.53298787
A127: 2014-07-24 | B127: 56 | C127: 58.0997281
A128: 2014-07-31 | B128: 200 | C128: 45.30794223
A129: 2014-08-19 | B129: 105 | C129: 60.74746757
A130: 2014-08-25 | B130: 60 | C130: 61.32277997
A131: 2014-09-03 | B131: 60 | C131: 50.56202033
A132: 2014-10-03 | B132: 30 | C132: 60.00359348
A133: 2014-10-20 | B133: 40 | C133: 57.16498492
A134: 2014-10-21 | B134: 11.4 | C134: 62.25864588
A135: 2014-10-21 | B135: 20 | C135: 64.83948736
A136: 2014-10-22 | B136: 20 | C136: 56.8733166
A137: 2014-10-22 | B137: 20 | C137: 56.8733166
A138: 2014-10-22 | B138: 15 | C138: 56.8733166
A139: 2014-10-22 | B139: 20 | C139: 56.8733166
A140: 2014-10-22 | B140: 20 | C140: 49.87544264
A141: 2014-10-22 | B141: 14.7 | C141: 69.85906933
A142: 2014-10-22 | B142: 19.5 | C142: 67.75030727
A143: 2014-10-22 | B143: 19.5 | C143: 67.76717737
A144: 2014-11-13 | B144: 30 | C144: 61.88980333
A145: 2014-11-18 | B145: 45 | C145: 49.30146904
A146: 2014-12-09 | B146: 130 | C146: 61.9373933
A147: 2015-03-05 | B147: 10.5 | C147: 84.47394546
A148: 2015-03-23 | B148: 20 | C148: 68.58178278
A149: 2015-04-03 | B149: 54 | C149: 45.56060068
A150: 2015-04-14 | B150: 6.8 | C150: 63.62049171
A151: 2015-04-17 | B151: 20 | C151: 53.52202876
A152: 2015-06-05 | B152: 100 | C152: 42.23697273
A153: 2015-06-19 | B153: 100 | C153: 44.21057935
A154: 2015-06-23 | B154: 46 | C154: 48.97427676
A155: 2015-06-25 | B155: 100.815 | C155: 55.25886895
A156: 2015-07-15 | B156: 125 | C156: 52.51249108
A157: 2015-07-16 | B157: 150 | C157: 49.14700365
A158: 2015-07-16 | B158: 180 | C158: 49.54732491
A159: 2015-08-05 | B159: 30 | C159: 45.50416635
A160: 2015-08-12 | B160: 10 | C160: 50.49154631
A161: 2015-08-16 | B161: 10 | C161: 50.49154631
A162: 2015-08-28 | B162: 150 | C162: 51.25032516
A163: 2015-09-03 | B163: 10.88 | C163: 74.32025095
A164: 2015-10-08 | B164: 55 | C164: 49.35298444
A165: 2015-10-09 | B165: 154.272 | C165: 42.70992597
A166: 2015-10-09 | B166: 103.5 | C166: 38.82346769
A167: 2015-10-15 | B167: 125 | C167: 43.99630467
A168: 2015-11-05 | B168: 85 | C168: 51.8688389
A169: 2015-11-06 | B169: 54 | C169: 44.8997384
A170: 2015-11-20 | B170: 86 | C170: 44.00088024
A171: 2015-11-30 | B171: 50 | C171: 46.3264123
A172: 2015-12-17 | B172: 90 | C172: 41.61631525
A173: 2015-12-18 | B173: 20 | C173: 52.92401192
A174: 2015-12-18 | B174: 20 | C174: 52.90833731
A175: 2015-12-18 | B175: 20 | C175: 52.99391614
A176: 2015-12-18 | B176: 20 | C176: 51.18638386
A177: 2016-01-06 | B177: 26 | C177: 29.00710629
A178: 2016-05-19 | B178: 100 | C178: 34.61363616
A179: 2016-08-04 | B179: 20 | C179: 41.41038984
A180: 2016-09-15 | B180: 100 | C180: 41.97488931
A181: 2016-11-18 | B181: 80 | C181: 34.26234085
A182: 2016-12-15 | B182: 200 | C182: 31.72152887
A183: 2017-01-17 | B183: 60 | C183: 39.33567596
A184: 2017-03-23 | B184: 17 | C184: 32.63080081
A185: 2017-05-22 | B185: 130 | C185: 21.4861273
A186: 2017-08-08 | B186: 252.32 | C186: 48.27417177
A187: 2017-08-25 | B187: 100 | C187: 27.74410981
A188: 2017-09-23 | B188: 200 | C188: 29.77540658
A189: 2017-09-26 | B189: 62.5 | C189: 28.63143599
A190: 2017-09-26 | B190: 50 | C190: 28.11268993
A191: 2017-10-06 | B191: 25 | C191: 27.60569631
A192: 2017-10-06 | B192: 25 | C192: 27.60569631
A193: 2017-10-30 | B193: 50 | C193: 30.11500717
A194: 2017-12-08 | B194: 45 | C194: 19.40277617
A195: 2018-01-09 | B195: 30 | C195: 27.88312813
A196: 2018-01-26 | B196: 100 | C196: 24.26590451
A197: 2018-02-21 | B197: 106.688 | C197: 45.65856623
A198: 2018-05-07 | B198: 100 | C198: 30.27888153
A199: 2018-05-30 | B199: 300 | C199: 18.74888045
A200: 2018-05-30 | B200: 250 | C200: 21.49566994
A201: 2018-05-30 | B201: 50 | C201: 24.12673283
A202: 2018-05-30 | B202: 101 | C202: 20.91099882
A203: 2018-05-30 | B203: 200 | C203: 20.91888976
A204: 2018-05-30 | B204: 100 | C204: 23.64126508
A205: 2018-06-08 | B205: 30 | C205: 21.42072617
A206: 2018-09-09 | B206: 100 | C206: 27.22145782
A207: 2018-09-20 | B207: 100 | C207: 21.37423504
A208: 2018-10-18 | B208: 13 | C208: 36.32328462
A209: 2018-10-25 | B209: 128 | C209: 24.16975929
A210: 2019-03-21 | B210: 160 | C210: 26.77022487
A211: 2019-07-01 | B211: 400 | C211: 15.05748574
A212: 2019-07-09 | B212: 62.5 | C212: 25.06714852
A213: 2019-11-05 | B213: 132 | C213: 22.47887906
A214: 2019-11-26 | B214: 44 | C214: 23.38801774
A215: 2019-12-05 | B215: 100 | C215: 22.61569693
A216: 2020-01-06 | B216: 50.5 | C216: 25.29032004
A217: 2020-02-14 | B217: 50 | C217: 29.79302949
A218: 2020-02-14 | B218: 160.5 | C218: 23.03739024
A219: 2020-03-25 | B219: 200 | C219: 17.97994571
A220: 2020-04-08 | B220: 127.86 | C220: 18.74832906
A221: 2020-05-02 | B221: 100 | C221: 20.86108095
... 11 more rows

Sheet Annual Average PPA Price
A1: Generation-weighted average levelized wind PPA prices by PPA execution date and region | J1: Generation-weighted average levelized wind PPA prices by PPA execution date and consolidated region
A22: Source: Berkeley Lab, FERC
A23: Note: Averages shown only if there are two or more PPAs in a given region-year.
A25: PPA | B25: Lower 48 | C25: Hawaii | D25: CAISO | E25: West (non-ISO) | F25: MISO | G25: SPP | H25: ERCOT | I25: PJM | J25: NYISO | K25: ISO-NE | L25: Southeast (non-ISO) | N25: PPA | O25: Nationwide | Q25: Hawaii | S25: CAISO | U25: West (non-ISO) | W25: MISO | Y25: SPP | AA25: ERCOT | AC25: PJM | AE25: NYISO | AG25: ISO-NE | AI25: Southeast (non-ISO)
A26: Execution | B26: Average PPA | C26: Average PPA | D26: Average PPA | E26: Average PPA | F26: Average PPA | G26: Average PPA | H26: Average PPA | I26: Average PPA | J26: Average PPA | K26: Average PPA | L26: Average PPA | N26: Execution | O26: Sample | Q26: Sample | S26: Sample | U26: Sample | W26: Sample | Y26: Sample | AA26: Sample | AC26: Sample | AE26: Sample | AG26: Sample | AI26: Sample
A27: Year | B27: 2021 $/MWh | C27: 2021 $/MWh | D27: 2021 $/MWh | E27: 2021 $/MWh | F27: 2021 $/MWh | G27: 2021 $/MWh | H27: 2021 $/MWh | I27: 2021 $/MWh | J27: 2021 $/MWh | K27: 2021 $/MWh | L27: 2021 $/MWh | N27: Year | O27: MW | P27: Plants | Q27: MW | R27: Plants | S27: MW | T27: Plants | U27: MW | V27: Plants | W27: MW | X27: Plants | Y27: MW | Z27: Plants | AA27: MW | AB27: Plants | AC27: MW | AD27: Plants | AE27: MW | AF27: Plants | AG27: MW | AH27: Plants | AI27: MW | AJ27: Plants
A28: 2006 | N28: 2006 | O28: 7 | P28: 1 | Q28: 0 | R28: 0 | S28: 0 | T28: 0 | U28: 7 | V28: 1 | W28: 0 | X28: 0 | Y28: 0 | Z28: 0 | AA28: 0 | AB28: 0 | AC28: 0 | AD28: 0 | AE28: 0 | AF28: 0 | AG28: 0 | AH28: 0 | AI28: 0 | AJ28: 0
A29: 2007 | N29: 2007 | O29: 5 | P29: 1 | Q29: 0 | R29: 0 | S29: 5 | T29: 1 | U29: 0 | V29: 0 | W29: 0 | X29: 0 | Y29: 0 | Z29: 0 | AA29: 0 | AB29: 0 | AC29: 0 | AD29: 0 | AE29: 0 | AF29: 0 | AG29: 0 | AH29: 0 | AI29: 0 | AJ29: 0
A30: 2008 | B30: 149.1272448 | D30: 149.1272448 | N30: 2008 | O30: 770 | P30: 3 | Q30: 0 | R30: 0 | S30: 770 | T30: 3 | U30: 0 | V30: 0 | W30: 0 | X30: 0 | Y30: 0 | Z30: 0 | AA30: 0 | AB30: 0 | AC30: 0 | AD30: 0 | AE30: 0 | AF30: 0 | AG30: 0 | AH30: 0 | AI30: 0 | AJ30: 0
A31: 2009 | B31: 167.3698965 | D31: 169.8171928 | E31: 140.8572878 | H31: 174.7223422 | N31: 2009 | O31: 1030 | P31: 16 | Q31: 0 | R31: 0 | S31: 844 | T31: 8 | U31: 69 | V31: 3 | W31: 0 | X31: 0 | Y31: 50 | Z31: 1 | AA31: 44 | AB31: 2 | AC31: 10.08 | AD31: 1 | AE31: 0 | AF31: 0 | AG31: 0 | AH31: 0 | AI31: 12.6 | AJ31: 1
A32: 2010 | B32: 138.3755184 | D32: 137.0979133 | E32: 128.5033104 | H32: =NA() ->  | L32: 170.630771 | N32: 2010 | O32: 1753 | P32: 31 | Q32: 0 | R32: 0 | S32: 1457.3 | T32: 17 | U32: 251 | V32: 11 | W32: 0 | X32: 0 | Y32: 0 | Z32: 0 | AA32: 0 | AB32: 0 | AC32: 0 | AD32: 0 | AE32: 32 | AF32: 1 | AG32: 0 | AH32: 0 | AI32: 13.15 | AJ32: 2
A33: 2011 | B33: 112.6241796 | D33: 109.6262324 | E33: 116.711894 | H33: =NA() ->  | N33: 2011 | O33: 1810 | P33: 21 | Q33: 6 | R33: 1 | S33: 1259 | T33: 10 | U33: 495 | V33: 8 | W33: 0 | X33: 0 | Y33: 0 | Z33: 0 | AA33: 0 | AB33: 0 | AC33: 20 | AD33: 1 | AE33: 0 | AF33: 0 | AG33: 0 | AH33: 0 | AI33: 30 | AJ33: 1
A34: 2012 | B34: 87.36418714 | D34: 91.10723914 | E34: 84.02357664 | H34: =NA() ->  | N34: 2012 | O34: 1113 | P34: 19 | Q34: 0 | R34: 0 | S34: 512.8 | T34: 13 | U34: 600 | V34: 6 | W34: 0 | X34: 0 | Y34: 0 | Z34: 0 | AA34: 0 | AB34: 0 | AC34: 0 | AD34: 0 | AE34: 0 | AF34: 0 | AG34: 0 | AH34: 0 | AI34: 0 | AJ34: 0
A35: 2013 | B35: 68.96915546 | D35: 68.13331078 | E35: 63.76121564 | H35: =NA() ->  | N35: 2013 | O35: 708 | P35: 24 | Q35: 12 | R35: 1 | S35: 489.314 | T35: 17 | U35: 138 | V35: 3 | W35: 28.8 | X35: 1 | Y35: 0 | Z35: 0 | AA35: 0 | AB35: 0 | AC35: 0 | AD35: 0 | AE35: 0 | AF35: 0 | AG35: 20 | AH35: 1 | AI35: 20 | AJ35: 1
A36: 2014 | B36: 56.38676102 | D36: 56.17936082 | E36: 56.95597041 | H36: =NA() ->  | L36: 58.46884481 | N36: 2014 | O36: 2276 | P36: 43 | Q36: 0 | R36: 0 | S36: 892.36 | T36: 21 | U36: 564.416 | V36: 10 | W36: 100 | X36: 1 | Y36: 0 | Z36: 0 | AA36: 157.5 | AB36: 1 | AC36: 10.3 | AD36: 1 | AE36: 0 | AF36: 0 | AG36: 0 | AH36: 0 | AI36: 551.8 | AJ36: 9
A37: 2015 | B37: 46.14064168 | D37: 48.95402355 | E37: 42.98956278 | F37: 52.30471224 | G37: 39.13175474 | H37: 35.61061311 | L37: 48.83752455 | N37: 2015 | O37: 3603 | P37: 60 | Q37: 27.6 | R37: 1 | S37: 1343.887 | T37: 21 | U37: 865.48 | V37: 14 | W37: 215.25 | X37: 4 | Y37: 168.6 | Z37: 4 | AA37: 318.5 | AB37: 3 | AC37: 80 | AD37: 1 | AE37: 0 | AF37: 0 | AG37: 0 | AH37: 0 | AI37: 583.56 | AJ37: 12
A38: 2016 | B38: 39.38272456 | D38: 37.77164986 | E38: 32.87161686 | F38: =NA() ->  | H38: =NA() ->  | I38: 45.38949493 | L38: 46.61877522 | N38: 2016 | O38: 917 | P38: 14 | Q38: 0 | R38: 0 | S38: 226 | T38: 4 | U38: 307.8 | V38: 3 | W38: 0 | X38: 0 | Y38: 0 | Z38: 0 | AA38: 150 | AB38: 1 | AC38: 180 | AD38: 3 | AE38: 24.9 | AF38: 1 | AG38: 0 | AH38: 0 | AI38: 28.56 | AJ38: 2
A39: 2017 | B39: 33.67382034 | C39: 93.46582131 | D39: 35.00005592 | E39: 29.32931815 | F39: 32.28129759 | H39: 21.93347977 | I39: 82.7034376 | K39: 75.76148222 | L39: 28.45622484 | N39: 2017 | O39: 2565 | P39: 39 | Q39: 109.6 | R39: 3 | S39: 786.82 | T39: 8 | U39: 336 | V39: 6 | W39: 200 | X39: 2 | Y39: 0 | Z39: 0 | AA39: 170 | AB39: 2 | AC39: 16.8 | AD39: 2 | AE39: 0 | AF39: 0 | AG39: 206.11 | AH39: 6 | AI39: 739.6 | AJ39: 10
A40: 2018 | B40: 25.71086118 | D40: 31.89754798 | E40: 21.95262007 | F40: 41.68874085 | I40: 31.57674369 | L40: 26.37966246 | N40: 2018 | O40: 3425 | P40: 42 | Q40: 0 | R40: 0 | S40: 434.688 | T40: 4 | U40: 1699 | V40: 18 | W40: 70.5 | X40: 4 | Y40: 5.681481481 | Z40: 1 | AA40: 144 | AB40: 1 | AC40: 236 | AD40: 3 | AE40: 6.3 | AF40: 1 | AG40: 0 | AH40: 0 | AI40: 829 | AJ40: 10
A41: 2019 | B41: 21.0348727 | D41: 18.72580869 | E41: 18.74040351 | F41: 37.36020355 | I41: 31.21958764 | L41: 20.98631863 | N41: 2019 | O41: 2748 | P41: 29 | Q41: 0 | R41: 0 | S41: 738.5 | T41: 5 | U41: 1098 | V41: 11 | W41: 109.3076923 | X41: 2 | Y41: 4.6 | Z41: 1 | AA41: 0 | AB41: 0 | AC41: 265.5 | AD41: 4 | AE41: 0 | AF41: 0 | AG41: 50 | AH41: 1 | AI41: 482 | AJ41: 5
A42: 2020 | B42: 21.72715333 | D42: 22.14019347 | E42: 20.44259831 | F42: =NA() ->  | N42: 2020 | O42: 1518 | P42: 14 | Q42: 0 | R42: 0 | S42: 683 | T42: 7 | U42: 777.86 | V42: 5 | W42: 0 | X42: 0 | Y42: 0 | Z42: 0 | AA42: 0 | AB42: 0 | AC42: 0 | AD42: 0 | AE42: 0 | AF42: 0 | AG42: 50 | AH42: 1 | AI42: 7.5 | AJ42: 1
A43: 2021 | B43: 23.10898588 | D43: 18.51596487 | E43: 17.68441637 | F43: 36.43051114 | J43: 40.30132617 | N43: 2021 | O43: 2605 | P43: 15 | Q43: 0 | R43: 0 | S43: 140 | T43: 2 | U43: 1620 | V43: 8 | W43: 255 | X43: 3 | Y43: 0 | Z43: 0 | AA43: 0 | AB43: 0 | AC43: 0 | AD43: 0 | AE43: 590 | AF43: 2 | AG43: 0 | AH43: 0 | AI43: 0 | AJ43: 0
A44: 2022(P) | N44: 2022(P)
A46: PPA | B46: Lower 48 | C46: Hawaii | D46: West | E46: Central | F46: Northeast | G46: Southeast | H46: LevelTen | N46: PPA | O46: Nationwide | Q46: Hawaii | S46: West | U46: Central | W46: Northeast | Y46: Southeast
A47: Execution | B47: Average PPA | C47: Average PPA | D47: Average PPA | E47: Average PPA | F47: Average PPA | G47: Average PPA | H47: Price Data | N47: Execution | O47: Sample | Q47: Sample | S47: Sample | U47: Sample | W47: Sample | Y47: Sample
A48: Year | B48: 2021 $/MWh | C48: 2021 $/MWh | D48: 2021 $/MWh | E48: 2021 $/MWh | F48: 2021 $/MWh | G48: 2021 $/MWh | H48: 2021 $/MWh | N48: Year | O48: MW | P48: Plants | Q48: MW | R48: Plants | S48: MW | T48: Plants | U48: MW | V48: Plants | W48: MW | X48: Plants | Y48: MW | Z48: Plants
A49: 2006 | N49: 2006 | O49: =Q49+S49+U49+W49+Y49 -> 7 | P49: =R49+T49+V49+X49+Z49 -> 1 | Q49: =Q28 -> 0 | R49: 0 | S49: =S28+U28 -> 7 | T49: =T28+V28 -> 1 | U49: =W28+Y28+AA28 -> 0 | V49: =X28+Z28+AB28 -> 0 | W49: =AC28+AE28+AG28 -> 0 | X49: =AD28+AF28+AH28 -> 0 | Y49: =AI28 -> 0 | Z49: =AJ28 -> 0
A50: 2007 | N50: 2007 | O50: =Q50+S50+U50+W50+Y50 -> 5 | P50: 1 | Q50: 0 | R50: 0 | S50: 5 | T50: 1 | U50: 0 | V50: 0 | W50: 0 | X50: 0 | Y50: 0 | Z50: 0
A51: 2008 | B51: 149.1272448 | D51: 149.1272448 | N51: 2008 | O51: 770 | P51: 3 | Q51: 0 | R51: 0 | S51: 770 | T51: 3 | U51: 0 | V51: 0 | W51: 0 | X51: 0 | Y51: 0 | Z51: 0
A52: 2009 | B52: 167.3698965 | D52: 167.7221001 | E52: 152.9294939 | N52: 2009 | O52: 1029.68 | P52: 16 | Q52: 0 | R52: 0 | S52: 913 | T52: 11 | U52: 94 | V52: 3 | W52: 10.08 | X52: 1 | Y52: 12.6 | Z52: 1
A53: 2010 | B53: 138.3755184 | D53: 135.8573236 | E53: =NA() ->  | G53: 170.630771 | N53: 2010 | O53: 1753.45 | P53: 31 | Q53: 0 | R53: 0 | S53: 1708.3 | T53: 28 | U53: 0 | V53: 0 | W53: 32 | X53: 1 | Y53: 13.15 | Z53: 2
A54: 2011 | B54: 112.6241796 | D54: 111.6422567 | E54: =NA() ->  | G54: =NA() ->  | N54: 2011 | O54: 1810 | P54: 21 | Q54: 6 | R54: 1 | S54: 1754 | T54: 18 | U54: 0 | V54: 0 | W54: 20 | X54: 1 | Y54: 30 | Z54: 1
A55: 2012 | B55: 87.36418714 | D55: 87.36418714 | E55: =NA() ->  | G55: =NA() ->  | N55: 2012 | O55: 1112.8 | P55: 19 | Q55: 0 | R55: 0 | S55: 1112.8 | T55: 19 | U55: 0 | V55: 0 | W55: 0 | X55: 0 | Y55: 0 | Z55: 0
A56: 2013 | B56: 68.96915546 | D56: 67.27845728 | E56: =NA() ->  | G56: =NA() ->  | N56: 2013 | O56: 708.114 | P56: 24 | Q56: 12 | R56: 1 | S56: 627.314 | T56: 20 | U56: 28.8 | V56: 1 | W56: 20 | X56: 1 | Y56: 20 | Z56: 1
A57: 2014 | B57: 56.38676102 | D57: 56.48503406 | E57: 51.70487472 | G57: 58.46884481 | N57: 2014 | O57: 2276.376 | P57: 43 | Q57: 0 | R57: 0 | S57: 1456.776 | T57: 31 | U57: 257.5 | V57: 2 | W57: 10.3 | X57: 1 | Y57: 551.8 | Z57: 9
A58: 2015 | B58: 46.14064168 | D58: 46.58421997 | E58: 40.84934622 | G58: 48.83752455 | N58: 2015 | O58: 3602.877 | P58: 60 | Q58: 27.6 | R58: 1 | S58: 2209.367 | T58: 35 | U58: 702.35 | V58: 11 | W58: 80 | X58: 1 | Y58: 583.56 | Z58: 12
A59: 2016 | B59: 39.38272456 | D59: 34.90075355 | E59: =NA() ->  | F59: 57.03357252 | G59: 46.61877522 | N59: 2016 | O59: 917.26 | P59: 14 | Q59: 0 | R59: 0 | S59: 533.8 | T59: 7 | U59: 150 | V59: 1 | W59: 204.9 | X59: 4 | Y59: 28.56 | Z59: 2
A60: 2017 | B60: 33.67382034 | C60: 93.46582131 | D60: 33.36939865 | E60: 26.92222932 | F60: 76.32967155 | G60: 28.45622484 | N60: 2017 | O60: 2564.93 | P60: 39 | Q60: 109.6 | R60: 3 | S60: 1122.82 | T60: 14 | U60: 370 | V60: 4 | W60: 222.91 | X60: 8 | Y60: 739.6 | Z60: 10
A61: 2018 | B61: 25.71086118 | D61: 23.96769067 | E61: 34.80292278 | F61: 34.47482999 | G61: 26.37966246 | H61: =AVERAGE('LevelTen Solar PPA Prices'!B41:C41) -> 27.23675857 | N61: 2018 | O61: 3425.169481 | P61: 42 | Q61: 0 | R61: 0 | S61: 2133.688 | T61: 22 | U61: 220.1814815 | V61: 6 | W61: 242.3 | X61: 4 | Y61: 829 | Z61: 10
A62: 2019 | B62: 21.0348727 | D62: 18.73426692 | E62: 37.65930571 | F62: 32.82709419 | G62: 20.98631863 | H62: ='LevelTen Solar PPA Prices'!U41 -> 25.38511142 | N62: 2019 | O62: 2747.907692 | P62: 29 | Q62: 0 | R62: 0 | S62: 1836.5 | T62: 16 | U62: 113.9076923 | V62: 3 | W62: 315.5 | X62: 5 | Y62: 482 | Z62: 5
A63: 2020 | B63: 21.72715333 | D63: 21.217807 | E63: =NA() ->  | F63: =NA() ->  | H63: ='LevelTen Solar PPA Prices'!V41 -> 25.87717042 | N63: 2020 | O63: 1518.36 | P63: 14 | Q63: 0 | R63: 0 | S63: 1460.86 | T63: 12 | U63: 0 | V63: 0 | W63: 50 | X63: 1 | Y63: 7.5 | Z63: 1
A64: 2021 | B64: 23.10898588 | D64: 17.76019888 | E64: 36.43051114 | F64: 40.30132617 | H64: ='LevelTen Solar PPA Prices'!W41 -> 28.24329193 | N64: 2021 | O64: =Q64+S64+U64+W64+Y64 -> 2605 | P64: =R64+T64+V64+X64+Z64 -> 15 | Q64: 0 | R64: 0 | S64: 1760 | T64: 10 | U64: 255 | V64: 3 | W64: 590 | X64: 2 | Y64: 0 | Z64: 0
A65: 2022(P) | H65: =AVERAGE('LevelTen Solar PPA Prices'!P41:Q41) -> 32.26792887 | N65: 2022(P) | O65: =Q65+S65+U65+W65+Y65 -> 0 | P65: =R65+T65+V65+X65+Z65 -> 0 | Q65: 0 | R65: 0 | S65: 0 | T65: 0 | U65: 0 | V65: 0 | W65: 0 | X65: 0 | Y65: 0 | Z65: 0
A67: Note: West = CAISO, West (non-ISO); Central = MISO, SPP, ERCOT; Northeast = PJM, NYISO, ISO-NE; Southeast = Southeast (non-ISO)

Sheet LevelTen Solar PPA Prices
A1: LevelTen Energy solar PPA price indices
A21: Source: LevelTen Energy
B23: LevelTen PPA Price Index (25th percentile of first-year offer price) | T23: Average | U23: Average | V23: Average | W23: Average
B24: nominal $/MWh | T24: previous | U24: calendar | V24: calendar | W24: calendar
A25: Region | B25: 3Q18 | C25: 4Q18 | D25: 1Q19 | E25: 2Q19 | F25: 3Q19 | G25: 4Q19 | H25: 1Q20 | I25: 2Q20 | J25: 3Q20 | K25: 4Q20 | L25: 1Q21 | M25: 2Q21 | N25: 3Q21 | O25: 4Q21 | P25: 1Q22 | Q25: 2Q22 | R25: 3Q22 | S25: 4Q22 | T25: four quarters | U25: year 2019 | V25: year 2020 | W25: year 2021
A26: CAISO | B26: 26.4 | C26: 26.4 | D26: 23 | E26: 24.3 | F26: 24.2 | G26: 23.9 | H26: 22 | I26: 25.9 | J26: 25.1 | K26: 25.1 | L26: 28.8 | M26: 27.5 | N26: 29.5 | O26: 28.3 | P26: 30.2 | Q26: 34 | T26: =AVERAGE(N26:Q26) -> 30.5 | U26: =AVERAGE(D26:G26) -> 23.85 | V26: =AVERAGE(H26:K26) -> 24.525 | W26: =AVERAGE(L26:O26) -> 28.525
A27: ERCOT | B27: 25 | C27: 25.5 | D27: 24.1 | E27: 24.4 | F27: 24.4 | G27: 24.2 | H27: 24.2 | I27: 24.7 | J27: 26 | K27: 26.7 | L27: 26.5 | M27: 27.2 | N27: 28 | O27: 28.3 | P27: 32 | Q27: 33 | T27: =AVERAGE(N27:Q27) -> 30.325 | U27: =AVERAGE(D27:G27) -> 24.275 | V27: =AVERAGE(H27:K27) -> 25.4 | W27: =AVERAGE(L27:O27) -> 27.5
A28: SPP | B28: 28.9 | C28: 24.9 | D28: 24.5 | E28: 24.9 | F28: 24.7 | G28: 24.5 | H28: 24.7 | I28: 27.2 | J28: 28.1 | K28: 30.5 | L28: 30.9 | M28: 31.5 | N28: 31.9 | O28: 36.7 | P28: 44 | Q28: 44.5 | T28: 39.275 | U28: 24.65 | V28: 27.625 | W28: 32.75
A29: MISO | B29: 31.7 | C29: 32.4 | D29: 33.4 | E29: 32.4 | F29: 31.3 | G29: 30 | H29: 31.6 | I29: 30.4 | J29: 31.2 | K29: 33.7 | L29: 34.6 | M29: 35.3 | N29: 35 | O29: 36.1 | P29: =Q29-6.2 -> 39.6 | Q29: 45.8 | T29: 39.125 | U29: 31.775 | V29: 31.725 | W29: 35.25
A30: PJM | B30: 33.9 | C30: 34.5 | D30: 33.5 | E30: 33.5 | F30: 34 | G30: 34.9 | H30: 34.9 | I30: 34.9 | J30: 36.8 | K30: 37.5 | L30: 36 | M30: 35.9 | N30: 37.5 | O30: 43.1 | P30: 44 | Q30: =P30+3 -> 47 | T30: =AVERAGE(N30:Q30) -> 42.9 | U30: =AVERAGE(D30:G30) -> 33.975 | V30: =AVERAGE(H30:K30) -> 36.025 | W30: =AVERAGE(L30:O30) -> 38.125
A31: National | B31: 29.2 | C31: 28.8 | D31: 27.7 | E31: 27.8 | F31: 27.7 | G31: 27.5 | H31: 27.2 | I31: 28.6 | J31: 29.3 | K31: 30.6 | L31: 31.4 | M31: 31.4 | N31: 32.4 | O31: 34 | P31: 36.2 | Q31: 39.3 | T31: 35.475 | U31: 27.675 | V31: 28.925 | W31: 32.3
B35: LevelTen PPA Price Index (Levelized 2021 $/MWh)
A36: CAISO | B36: 24.79484228 | C36: 24.79484228 | D36: 21.0969309 | E36: 22.28936613 | F36: 22.19764034 | G36: 21.92246298 | H36: 19.68185823 | I36: 23.17091491 | J36: 22.45521098 | K36: 22.45521098 | L36: 25.1828733 | M36: 24.04614638 | N36: 25.79495703 | O36: 24.74567064 | P36: 25.8143431 | Q36: 29.06250547 | T36: =AVERAGE(N36:Q36) -> 26.35436906 | U36: =AVERAGE(D36:G36) -> 21.87660009 | V36: =AVERAGE(H36:K36) -> 21.94079877 | W36: =AVERAGE(L36:O36) -> 24.94241184
A37: ERCOT | B37: 23.47996428 | C37: 23.94956357 | D37: 22.10591456 | E37: 22.38109192 | F37: 22.38109192 | G37: 22.19764034 | H37: 21.65004405 | I37: 22.09735901 | J37: 23.2603779 | K37: 23.88661885 | L37: 23.17174106 | M37: 23.78382478 | N37: 24.48334904 | O37: 24.74567064 | P37: 27.35294633 | Q37: 28.2077259 | T37: =AVERAGE(N37:Q37) -> 26.19742298 | U37: 22.26643468 | V37: 22.72359995 | W37: 24.04614638
A38: SPP | B38: 27.14283871 | C38: 23.38604443 | D38: 22.4728177 | E38: 22.83972085 | F38: 22.65626927 | G38: 22.4728177 | H38: 22.09735901 | I38: 24.33393381 | J38: 25.13910073 | K38: 27.28621254 | L38: 27.01912448 | M38: 27.54376767 | N38: 27.8935298 | O38: 32.09067535 | P38: 37.6103012 | Q38: 38.03769098 | T38: 33.90804933 | U38: 22.61040638 | V38: 24.71415152 | W38: 28.63677433
A39: MISO | B39: 29.77259471 | C39: 30.43003371 | D39: 30.6364127 | E39: 29.71915484 | F39: 28.71017119 | G39: 27.51773596 | H39: 28.27030545 | I39: 27.19674955 | J39: 27.91245349 | K39: 30.14902828 | L39: 30.25442417 | M39: 30.8665079 | N39: 30.6041863 | O39: 31.56603216 | P39: 33.84927108 | Q39: 39.14890443 | T39: 33.79209849 | U39: 29.14586867 | V39: 28.38213419 | W39: 30.82278763
A40: PJM | B40: 31.83883157 | C40: 32.40235071 | D40: 30.72813849 | E40: 30.72813849 | F40: 31.18676742 | G40: 32.0122995 | H40: 31.22258419 | I40: 31.22258419 | J40: 32.92238103 | K40: 33.54862198 | L40: 31.47859163 | M40: 31.39115109 | N40: 32.79019961 | O40: 37.68686942 | P40: 37.6103012 | Q40: 40.17463992 | T40: =AVERAGE(N40:Q40) -> 37.06550254 | U40: =AVERAGE(D40:G40) -> 31.16383598 | V40: =AVERAGE(H40:K40) -> 32.22904285 | W40: =AVERAGE(L40:O40) -> 33.33670294
A41: National | B41: 27.42459828 | C41: 27.04891885 | D41: 25.40804287 | E41: 25.49976866 | F41: 25.40804287 | G41: 25.2245913 | H41: 24.33393381 | I41: 25.58641569 | J41: 26.21265664 | K41: 27.37567553 | L41: 27.45632714 | M41: 27.45632714 | N41: 28.33073246 | O41: 29.72978098 | P41: 30.94302053 | Q41: 33.59283721 | T41: 30.6490928 | U41: 25.38511142 | V41: 25.87717042 | W41: 28.24329193
A43: LevelTen Energy PPA price data are reported in nominal dollars (the top table shows as-reported nominal prices).
A44: In the bottom table, we convert the as-reported nominal dollar data to levelized real (2021) dollar terms.
A45: The conversion to levelized, real dollar terms assumes that LevelTen’s reported prices in each quarter are for 12-year, flat-priced (in nominal dollars) PPAs that commence in the following calendar year.
A46: In each quarter, we deflate the 12-year nominal dollar price series to 2021 dollars using the GDP deflator (actual deflators historically, along with projected future deflators from the EIA’s Annual Energy Outlook 2022), and then levelize the resulting 12-year real-dollar price series using a 4% real discount rate.

Sheet PV+Battery Hybrid PPA Price
A1: Levelized price of PV+battery PPAs in the LBNL sample (bubble size represents battery:PV capacity) | H1: Levelized price of PV+battery PPAs in the LBNL sample (bubble size represents PV capacity) | N1: Levelized price of PV+battery PPAs in the LBNL sample (bubble size represents battery capacity) | R1: Levelized storage adder time trend in $/MW-month | Z1: Levelized storage adder time trend in $/MWh-stored (assuming 1 full cycle per day) | AJ1: Levelized storage adder time trend in $/MWh-PV | AT1: Levelized storage adder in $/MWh-PV as a function of battery:PV capacity
S21: for graphs | V21: for graphs | W21: for graphs | X21: for graphs | Y21: for graphs
S22: $/MWh-PV | V22: Greenfield | W22: Greenfield | X22: Retrofit | Y22: Retrofit
A23: State | B23: Plant_Name | C23: EIA_Plant_ID | D23: PV MW-AC | E23: BESS MW-AC | F23: BESS MWh | G23: BESS Duration | H23: BESS:PV Ratio | I23: PPA_Execution | J23: Plant_COD | K23: Retrofit_Execution | L23: Retrofit_COD | M23: PV_$_per_MWh_real | N23: BESS_$_per_MWh-PV_real | O23: BESS_$_per_MWh-stored_real | P23: BESS_$_per_MW-month_real | Q23: PV+BESS_$_per_MWh-PV_real | S23: HI | T23: Non-HI | V23: PPA_Execution | W23: BESS:PV Ratio | X23: ESA_Execution | Y23: BESS:PV Ratio
A24: AZ | B24: Pinal_Central_Energy_Center | C24: 61678 | D24: 20 | E24: 10 | F24: 40 | G24: 4 | H24: 0.5 | I24: 2017-04-14 | J24: 2018-04-30 | Q24: 74.32926452 | S24: =IF($A24="HI",Q24,NA()) ->  | T24: =IF($A24="HI",NA(),Q24) -> 74.32926452 | V24: 2017-04-14 | W24: =H24 -> 0.5
A25: AZ | B25: Wilmot | C25: 64426 | D25: 100 | E25: 30 | F25: 120 | G25: 4 | H25: 0.3 | I25: 2017-05-22 | J25: 2021-04-30 | M25: 21.4861273 | N25: 12.550308 | O25: 80.32705615 | P25: 9779.199996 | Q25: 34.0364353 | S25: =IF($A25="HI",Q25,NA()) ->  | T25: =IF($A25="HI",NA(),Q25) -> 34.0364353 | V25: 2017-05-22 | W25: =H25 -> 0.3
A26: AZ | B26: Mesquite_4 | D26: 52.5 | E26: 10 | F26: 40 | G26: 4 | H26: 0.1904761905 | I26: 2020-02-11 | Q26: 19.64443104 | T26: 19.64443104 | V26: 2020-02-11 | W26: 0.1904761905
A27: CA | B27: McCoy | C27: 58462 | D27: 250 | E27: 230 | F27: 920 | G27: 4 | H27: 0.92 | I27: 2011-09-29 | J27: 2016-06-30 | K27: 2020-04-09 | L27: 2021-07-31 | M27: 87.59061447 | N27: 33.56116518 | O27: 68.04772049 | P27: 8284.829292 | Q27: 110.1580521 | T27: 110.1580521 | X27: 2020-04-09 | Y27: =H27 -> 0.92
A28: CA | B28: CA_Flats_130 | C28: 60033 | D28: 130 | E28: 60 | F28: 240 | G28: 4 | H28: 0.4615384615 | I28: 2014-12-09 | J28: 2017-11-30 | K28: 2020-05-29 | L28: 2021-09-30 | M28: 61.9373933 | N28: 22.40963204 | O28: 88.3768125 | P28: 10760.30744 | Q28: 76.79700105 | T28: 76.79700105 | X28: 2020-05-29 | Y28: =H28 -> 0.4615384615
A29: CA | B29: Blythe_II | C29: 60092 | D29: 125 | E29: 115 | F29: 460 | G29: 4 | H29: 0.92 | I29: 2015-07-15 | J29: 2016-10-31 | K29: 2020-04-09 | L29: 2021-03-31 | M29: 52.51249108 | N29: 34.55236432 | O29: 68.04772049 | P29: 8284.829292 | Q29: 75.74643793 | T29: 75.74643793 | X29: 2020-04-09 | Y29: 0.92
A30: CA | B30: RE_Garland | C30: 60233 | D30: 180 | E30: 88 | F30: 352 | G30: 4 | H30: 0.4888888889 | I30: 2015-07-16 | J30: 2016-11-30 | K30: 2020-04-22 | L30: 2021-08-31 | M30: 49.54732491 | N30: 16.86504142 | O30: 61.33761752 | P30: 7467.67859 | Q30: 61.60633741 | T30: 61.60633741 | X30: 2020-04-22 | Y30: 0.4888888889
A31: CA | B31: Blythe_III | C31: 60094 | D31: 125 | E31: 115 | F31: 460 | G31: 4 | H31: 0.92 | I31: 2015-10-15 | J31: 2020-05-31 | K31: 2020-04-09 | L31: 2021-05-31 | M31: 43.99630467 | N31: 33.69715022 | O31: 68.04772049 | P31: 8284.829292 | Q31: 70.50398671 | T31: 70.50398671 | X31: 2020-04-09 | Y31: 0.92
A32: CA | B32: BigBeau | C32: 64993 | D32: 128 | E32: 40 | F32: 160 | G32: 4 | H32: 0.3125 | I32: 2018-10-25 | J32: 2022-08-31 | M32: 24.16975929 | N32: 6.59672675 | O32: 40.30949673 | P32: 4907.565338 | Q32: 30.76648604 | T32: 30.76648604 | V32: 2018-10-25 | W32: =H32 -> 0.3125
A33: CA | B33: Eland | C33: 61168 | D33: 400 | E33: 300 | F33: 1200 | G33: 4 | H33: 0.75 | I33: 2019-07-01 | J33: 2023-07-31 | M33: 15.05748574 | N33: 14.81620404 | O33: 39.11094574 | P33: 4762.224303 | Q33: 29.87368978 | T33: 29.87368978 | V33: 2019-07-01 | W33: 0.75
A34: CA | B34: Camino | C34: 63508 | D34: 44 | E34: 11 | F34: 44 | G34: 4 | H34: 0.25 | I34: 2019-11-26 | J34: 2023-12-31 | M34: 23.38801774 | N34: 4.830147461 | O34: 44.93406121 | P34: 5471.276353 | Q34: 28.2181652 | T34: 28.2181652 | V34: 2019-11-26 | W34: 0.25
A35: CA | B35: Maverick_6 | C35: 64105 | D35: 100 | E35: 50 | F35: 200 | G35: 4 | H35: 0.5 | I35: 2019-12-05 | J35: 2022-05-31 | M35: 22.61569693 | N35: 12.68682489 | O35: 48.37139608 | P35: 5889.078406 | Q35: 35.30252182 | T35: 35.30252182 | V35: 2019-12-05 | W35: 0.5
A36: CA | B36: RE_Slate_SVCE/CCCE | C36: 63727 | D36: 160.5 | E36: 80.25 | F36: 321 | G36: 4 | H36: 0.5 | I36: 2020-02-14 | J36: 2022-03-31 | M36: 23.03739024 | N36: 9.886261691 | O36: 36.73119678 | P36: 4471.816208 | Q36: 32.92365193 | T36: 32.92365193 | V36: 2020-02-14 | W36: 0.5
A37: CA | B37: Arlington_Energy_Center_II | C37: 64481 | D37: 233 | E37: 132 | F37: 528 | G37: 4 | H37: 0.5665236052 | I37: 2020-10-02 | J37: 2022-08-31 | M37: 21.07768534 | N37: 14.02492417 | O37: 50.32085539 | P37: 6126.846923 | Q37: 35.10260951 | T37: 35.10260951 | V37: 2020-10-02 | W37: 0.5665236052
A38: CA | B38: RE_Slate_Stanford | C38: 63727 | D38: 63 | E38: 50 | F38: 200 | G38: 4 | H38: 0.7936507937 | I38: 2020-11-02 | J38: 2022-03-31 | M38: 17.34429261 | N38: 17.09823575 | O38: 39.53711725 | P38: 4813.475201 | Q38: 34.44252836 | T38: 34.44252836 | V38: 2020-11-02 | W38: 0.7936507937
A39: CA | B39: RE_Slate_PWRPA | C39: 63727 | D39: 26 | E39: 10 | F39: 40 | G39: 4 | H39: 0.3846153846 | I39: 2020-11-05 | J39: 2022-03-31 | M39: 21.92863779 | N39: 9.365174219 | O39: 45.01227135 | P39: 5480.114628 | Q39: 31.293812 | T39: 31.293812 | V39: 2020-11-05 | W39: 0.3846153846
A40: CA | B40: Deer_Creek | D40: 50 | E40: 50 | F40: 200 | G40: 4 | H40: 1 | I40: 2021-02-23 | M40: 20.31964773 | N40: 17.38083067 | O40: 44.93080979 | P40: 5470.674389 | Q40: 37.7004784 | T40: 37.7004784 | V40: 2021-02-23 | W40: 1
A41: CA | B41: Jacumba_Valley | D41: 90 | E41: 70 | F41: 280 | G41: 4 | H41: 0.7777777778 | I41: 2021-06-01 | M41: 17.19354808 | N41: 19.63880396 | O41: 49.74482513 | P41: 6056.818074 | Q41: 36.83235204 | T41: 36.83235204 | V41: 2021-06-01 | W41: 0.7777777778
A42: CA | B42: Sacramento_Valley_Energy_Center | D42: 200 | E42: 100 | F42: 400 | G42: 4 | H42: 0.5 | I42: 2021-06-17 | M42: 24.24374619 | N42: 14.91825127 | O42: 50.85736992 | P42: 6192.378546 | Q42: 39.16199746 | T42: 39.16199746 | V42: 2021-06-17 | W42: 0.5
A43: CA | B43: Blythe_110 | C43: 60093 | D43: 110 | E43: 63 | F43: 252 | G43: 4 | H43: 0.5727272727 | J43: 2016-04-30 | K43: 2020-05-13 | L43: 2021-06-30 | N43: 17.23041709 | O43: 52.31212223 | P43: 6369.015735 | Q43: 17.23041709 | T43: 17.23041709 | X43: 2020-05-13 | Y43: =H43 -> 0.5727272727
A44: CO | B44: CO_Buffalo_Flats | C44: 63722 | D44: 22 | E44: 1 | F44: 2 | G44: 2 | H44: 0.04545454545 | I44: 2019-02-14 | J44: 2021-03-31 | Q44: 27.19233401 | T44: 27.19233401 | V44: 2019-02-14 | W44: 0.04545454545
A45: FL | B45: FL_Solar_6 | D45: 50 | E45: 12 | F45: 24 | G45: 2 | H45: 0.24 | I45: 2020-05-01 | Q45: 27.14973125 | T45: 27.14973125 | V45: 2020-05-01 | W45: 0.24
A46: GA | B46: Cool_Springs | C46: 63721 | D46: 213 | E46: 40 | F46: 80 | G46: 2 | H46: 0.1877934272 | I46: 2019-10-01 | J46: 2021-12-31 | Q46: 24.64652012 | T46: 24.64652012 | V46: 2019-10-01 | W46: 0.1877934272
A47: GA | B47: Hickory_Park | C47: 63522 | D47: 195.5 | E47: 40 | F47: 80 | G47: 2 | H47: 0.2046035806 | I47: 2019-10-01 | J47: 2022-05-31 | Q47: 23.92878176 | T47: 23.92878176 | V47: 2019-10-01 | W47: 0.2046035806
A48: HI | B48: SC_KIUC | C48: 60546 | D48: 13 | E48: 13 | F48: 52 | G48: 4 | H48: 1 | I48: 2015-09-09 | J48: 2017-05-31 | Q48: 126.6382458 | S48: 126.6382458 | V48: 2015-09-09 | W48: 1
A49: HI | B49: AES_Lawai | C49: 61068 | D49: 20 | E49: 20 | F49: 100 | G49: 5 | H49: 1 | I49: 2016-12-30 | J49: 2018-12-31 | Q49: 93.75301013 | S49: 93.75301013 | V49: 2016-12-30 | W49: 1
A50: HI | B50: AES_Kekaha | C50: 63280 | D50: 14 | E50: 14 | F50: 70 | G50: 5 | H50: 1 | I50: 2017-09-29 | J50: 2021-04-30 | Q50: 89.70910942 | S50: 89.70910942 | V50: 2017-09-29 | W50: 1
A51: HI | B51: Hoohana Solar 1 | C51: 63723 | D51: 52 | E51: 52 | F51: 208 | G51: 4 | H51: 1 | I51: 2018-12-27 | J51: 2023-08-31 | Q51: 80.85868453 | S51: 80.85868453 | V51: 2018-12-27 | W51: 1
A52: HI | B52: Hale Kuawehi | C52: 62529 | D52: 30 | E52: 30 | F52: 120 | G52: 4 | H52: 1 | I52: 2018-12-27 | J52: 2022-12-31 | Q52: 68.96620065 | S52: 68.96620065 | V52: 2018-12-27 | W52: 1
A53: HI | B53: Paeahu | C53: 62534 | D53: 15 | E53: 15 | F53: 60 | G53: 4 | H53: 1 | I53: 2018-12-27 | J53: 2023-09-30 | Q53: 92.20197701 | S53: 92.20197701 | V53: 2018-12-27 | W53: 1
A54: HI | B54: Waikoloa Solar | C54: 63900 | D54: 30 | E54: 30 | F54: 120 | G54: 4 | H54: 1 | I54: 2018-12-28 | J54: 2022-11-30 | Q54: 62.69755035 | S54: 62.69755035 | V54: 2018-12-28 | W54: 1
A55: HI | B55: Kuihelani Solar | C55: 64256 | D55: 60 | E55: 60 | F55: 240 | G55: 4 | H55: 1 | I55: 2018-12-28 | J55: 2022-12-31 | Q55: 61.38641889 | S55: 61.38641889 | V55: 2018-12-28 | W55: 1
A56: HI | B56: Mililani I Solar | C56: 57242 | D56: 39 | E56: 39 | F56: 156 | G56: 4 | H56: 1 | I56: 2018-12-29 | J56: 2022-07-31 | Q56: 72.10805169 | S56: 72.10805169 | V56: 2018-12-29 | W56: 1
A57: HI | B57: Waiawa Solar | C57: 65058 | D57: 36 | E57: 36 | F57: 144 | G57: 4 | H57: 1 | I57: 2018-12-29 | J57: 2022-10-31 | Q57: 78.46029548 | S57: 78.46029548 | V57: 2018-12-29 | W57: 1
A58: HI | B58: West Oahu | C58: 64656 | D58: 12.5 | E58: 12.5 | F58: 50 | G58: 4 | H58: 1 | I58: 2019-02-28 | J58: 2022-09-30 | Q58: 83.34299369 | S58: 83.34299369 | V58: 2019-02-28 | W58: 1
A59: HI | B59: Kahana | C59: 64095 | D59: 20 | E59: 20 | F59: 80 | G59: 4 | H59: 1 | I59: 2020-09-01 | J59: 2024-12-31 | Q59: 67.46751385 | S59: 67.46751385 | V59: 2020-09-01 | W59: 1
A60: HI | B60: Pulehu | D60: 40 | E60: 40 | F60: 160 | G60: 4 | H60: 1 | I60: 2020-09-01 | Q60: 69.37090144 | S60: 69.37090144 | V60: 2020-09-01 | W60: 1
A61: HI | B61: Kupehau | C61: 63799 | D61: 60 | E61: 60 | F61: 240 | G61: 4 | H61: 1 | I61: 2020-09-01 | Q61: 102.0708957 | S61: 102.0708957 | V61: 2020-09-01 | W61: 1
A62: HI | B62: Barbers Point | C62: 64094 | D62: 15 | E62: 15 | F62: 60 | G62: 4 | H62: 1 | I62: 2020-09-01 | J62: 2024-12-31 | Q62: 84.335168 | S62: 84.335168 | V62: 2020-09-01 | W62: 1
A63: HI | B63: Mahi | D63: 120 | E63: 120 | F63: 480 | G63: 4 | H63: 1 | I63: 2020-09-01 | Q63: 73.17315561 | S63: 73.17315561 | V63: 2020-09-01 | W63: 1
A64: HI | B64: Mountain View | D64: 7 | E64: 7 | F64: 35 | G64: 5 | H64: 1 | I64: 2020-09-01 | Q64: 98.30496641 | S64: 98.30496641 | V64: 2020-09-01 | W64: 1
A65: HI | B65: Waiawa Phase 2 | D65: 30 | E65: 30 | F65: 240 | G65: 8 | H65: 1 | I65: 2020-09-01 | Q65: 97.0628886 | S65: 97.0628886 | V65: 2020-09-01 | W65: 1
A66: HI | B66: Puako | D66: 60 | E66: 60 | F66: 240 | G66: 4 | H66: 1 | I66: 2020-10-20 | Q66: 69.13041146 | S66: 69.13041146 | V66: 2020-10-20 | W66: 1
A67: HI | B67: Kupono | D67: 42 | E67: 42 | F67: 168 | G67: 4 | H67: 1 | I67: 2020-12-01 | Q67: 96.75231841 | S67: 96.75231841 | V67: 2020-12-01 | W67: 1
A68: HI | B68: Kamaole | D68: 40 | E68: 40 | F68: 160 | G68: 4 | H68: 1 | I68: 2020-12-23 | Q68: 62.87764477 | S68: 62.87764477 | V68: 2020-12-23 | W68: 1
A69: HI | B69: West_Kaua'i | D69: 35 | E69: 35 | F69: 70 | G69: 2 | H69: 1 | I69: 2020-12-30 | Q69: 61.07442888 | S69: 61.07442888 | V69: 2020-12-30 | W69: 1
A70: NM | B70: Jicarilla_1 | D70: 50 | E70: 20 | F70: 80 | G70: 4 | H70: 0.4 | I70: 2019-06-27 | M70: 16.13771069 | N70: 14.93509618 | O70: 66.98094707 | P70: 8154.737737 | Q70: 31.07280687 | T70: 31.07280687 | V70: 2019-06-27 | W70: 0.4
A71: NM | B71: Arroyo | C71: 63172 | D71: 300 | E71: 150 | F71: 600 | G71: 4 | H71: 0.5 | I71: 2019-06-27 | J71: 2022-10-31 | M71: 14.91435899 | N71: 13.09553473 | O71: 48.99904009 | P71: 5965.743598 | Q71: 28.00989372 | T71: 28.00989372 | V71: 2019-06-27 | W71: 0.5
A72: NM | B72: Buena_Vista | D72: 100 | E72: 50 | F72: 200 | G72: 4 | H72: 0.5 | I72: 2019-10-17 | M72: 16.78565122 | N72: 7.781319964 | O72: 35.86256822 | P72: 4366.348531 | Q72: 24.56697119 | T72: 24.56697119 | V72: 2019-10-17 | W72: 0.5
A73: NM | B73: Rockmont | C73: 64216 | D73: 100 | E73: 30 | F73: 120 | G73: 4 | H73: 0.3 | I73: 2020-09-23 | J73: 2023-06-30 | M73: 21.87172753 | N73: 7.863864766 | O73: 51.8890639 | P73: 6317.610513 | Q73: 29.7355923 | T73: 29.7355923 | V73: 2020-09-23 | W73: 0.3
A74: NM | B74: San_Juan_Solar_1 | D74: 200 | E74: 100 | F74: 400 | G74: 4 | H74: 0.5 | I74: 2020-09-25 | M74: 21.0400421 | N74: 13.00357805 | O74: 50.57541671 | P74: 6157.671006 | Q74: 34.04362015 | T74: 34.04362015 | V74: 2020-09-25 | W74: 0.5
A75: NM | B75: Sky_Ranch | D75: 190 | E75: 50 | F75: 200 | G75: 4 | H75: 0.2631578947 | I75: 2021-02-01 | M75: 16.1306742 | N75: 5.771114351 | O75: 42.36333495 | P75: 5158.064424 | Q75: 21.90178855 | T75: 21.90178855 | V75: 2021-02-01 | W75: 0.2631578947
A76: NM | B76: Jicarilla_Solar_Energy_Center_I | D76: 150 | E76: 40 | F76: 160 | G76: 4 | H76: 0.2666666667 | I76: 2021-04-01 | M76: 11.63690595 | N76: 7.699599534 | O76: 49.10295641 | P76: 5978.665583 | Q76: 19.33650548 | T76: 19.33650548 | V76: 2021-04-01 | W76: 0.2666666667
A77: NM | B77: Atrisco | D77: 300 | E77: 150 | F77: 600 | G77: 4 | H77: 0.5 | I77: 2021-04-01 | M77: 14.95057158 | N77: 11.05353641 | O77: 42.87682991 | P77: 5220.586417 | Q77: 26.00410799 | T77: 26.00410799 | V77: 2021-04-01 | W77: 0.5
A78: NV | B78: Battle Mountain | C78: 61098 | D78: 101 | E78: 25 | F78: 100 | G78: 4 | H78: 0.2475247525 | I78: 2018-05-30 | J78: 2021-06-30 | M78: 20.91099882 | N78: 7.101556188 | O78: 56.76792386 | P78: 6910.631994 | Q78: 24.59808673 | T78: 24.59808673 | V78: 2018-05-30 | W78: 0.2475247525
A79: NV | B79: Dodge_Flat | C79: 63913 | D79: 200 | E79: 50 | F79: 200 | G79: 4 | H79: 0.25 | I79: 2018-05-30 | J79: 2022-03-31 | M79: 20.91888976 | N79: 6.291542719 | O79: 47.93572671 | P79: 5836.261292 | Q79: 25.39664239 | T79: 25.39664239 | V79: 2018-05-30 | W79: 0.25
A80: NV | B80: Fish_Springs_Ranch | C80: 64148 | D80: 100 | E80: 25 | F80: 100 | G80: 4 | H80: 0.25 | I80: 2018-05-30 | J80: 2022-03-31 | M80: 23.64126508 | N80: 6.773959505 | O80: 48.64181761 | P80: 5922.229135 | Q80: 28.46235846 | T80: 28.46235846 | V80: 2018-05-30 | W80: 0.25
A81: NV | B81: Arrow_Canyon | C81: 62248 | D81: 200 | E81: 75 | F81: 375 | G81: 5 | H81: 0.375 | I81: 2019-06-24 | J81: 2022-12-31 | Q81: 24.59889072 | T81: 24.59889072 | V81: 2019-06-24 | W81: 0.375
A82: NV | B82: Southern_Bighorn | C82: 63113 | D82: 300 | E82: 135 | F82: 540 | G82: 4 | H82: 0.45 | I82: 2019-06-24 | J82: 2024-04-30 | Q82: 24.85272915 | T82: 24.85272915 | V82: 2019-06-24 | W82: 0.45
A83: NV | B83: Gemini | C83: 63352 | D83: 690 | E83: 380 | F83: 1416 | G83: 3.726315789 | H83: 0.5507246377 | I83: 2019-06-24 | J83: 2023-11-30 | Q83: 28.21780323 | T83: 28.21780323 | V83: 2019-06-24 | W83: 0.5507246377
A84: NV | B84: Chuckwalla | C84: 64558 | D84: 200 | E84: 180 | F84: 720 | G84: 4 | H84: 0.9 | I84: 2020-03-25 | J84: 2023-12-31 | M84: 17.97994571 | N84: 18.39308501 | O84: 43.44587506 | P84: 5290.031137 | Q84: 36.37303072 | T84: 36.37303072 | V84: 2020-03-25 | W84: 0.9
A85: NV | B85: Boulder_3 | C85: 65141 | D85: 127.86 | E85: 58 | F85: 232 | G85: 4 | H85: 0.4536211481 | I85: 2020-04-08 | J85: 2023-12-31 | M85: 18.74832906 | N85: 10.12216131 | O85: 46.63998244 | P85: 5678.781186 | Q85: 28.87049037 | T85: 28.87049037 | V85: 2020-04-08 | W85: 0.4536211481
A86: NV | B86: Hot_Pot | C86: 65419 | D86: 350 | E86: 280 | F86: 1120 | G86: 4 | H86: 0.8 | I86: 2021-06-01 | J86: 2024-12-31 | M86: 18.41445013 | N86: 16.86445314 | O86: 41.15900137 | P86: 5010.73473 | Q86: 35.27890327 | T86: 35.27890327 | V86: 2021-06-01 | W86: 0.8
A87: NV | B87: Iron_Point | C87: 65377 | D87: 250 | E87: 200 | F87: 800 | G87: 4 | H87: 0.8 | I87: 2021-06-01 | J87: 2023-12-31 | M87: 19.49857692 | N87: 17.40043109 | O87: 42.10869467 | P87: 5127.236005 | Q87: 36.89900802 | T87: 36.89900802 | V87: 2021-06-01 | W87: 0.8
A88: NY | B88: Moraine | D88: 94 | E88: 5 | F88: 20 | G88: 4 | H88: 0.05319148936 | I88: 2021-01-15 | Q88: 45.97711062 | T88: 45.97711062 | V88: 2021-01-15 | W88: 0.05319148936
A89: NY | B89: Tracy | C89: 65051 | D89: 119 | E89: 5 | F89: 20 | G89: 4 | H89: 0.04201680672 | I89: 2021-01-15 | J89: 2023-11-30 | Q89: 47.43074696 | S89: =IF($A89="HI",Q89,NA()) ->  | T89: =IF($A89="HI",NA(),Q89) -> 47.43074696 | V89: 2021-01-15 | W89: 0.04201680672
A90: OR | B90: Wheatridge | C90: 62745 | D90: 50 | E90: 30 | F90: 120 | G90: 4 | H90: 0.6 | I90: 2019-02-11 | J90: 2022-03-31 | M90: 30.41926425 | N90: 14.50468753 | O90: 39.16739432 | P90: 4768.517654 | Q90: 41.81893216 | T90: 41.81893216 | V90: 2019-02-11 | W90: 0.6

Sheet LCOE of Utility-Scale PV
A1: Estimated levelized cost of energy by commercial operation date, region, and project
A22: Source: Berkeley Lab | K22: Source: Berkeley Lab | V22: Source: Berkeley Lab
A24: GW-AC: | B24: 43.4209855 | C24: 6.139253 | D24: 0.253086 | E24: 1.5474285 | F24: 7.52298 | G24: 4.082211 | H24: 0.479234 | I24: 12.709704 | J24: 10.519185 | K24: 0.175 | L24: 0.167904 | Q24: Project-Level | R24: COD
A25: Projects: | B25: 981 | C25: 68 | D25: 15 | E25: 52 | F25: 214 | G25: 159 | H25: 29 | I25: 204 | J25: 226 | K25: 7 | L25: 14 | O25: Plant | P25: COD | Q25: LCOE | R25: Year
B26: Lower 48 | C26: ERCOT | D26: SPP | E26: MISO | F26: West (non-ISO) | G26: PJM | H26: ISO-NE | I26: CAISO | J26: Southeast (non-ISO) | K26: Hawaii | L26: NYISO | O26: MW | P26: Year | Q26: 2021 $/MWh | R26: Code
A27: 2010 | B27: 227.1510705 | F27: 173.4011749 | G27: 375.4586443 | J27: 326.5167135 | O27: 19 | P27: 2010 | Q27: 182.1964493 | R27: 1
A28: 2011 | B28: 208.5128801 | F28: 178.7578696 | G28: 282.5721526 | I28: 211.6439796 | O28: 10 | P28: 2010 | Q28: 362.3493785 | R28: 1
A29: 2012 | B29: 154.1905576 | C29: 249.7536194 | F29: 166.946674 | G29: 244.1914547 | I29: 122.3106829 | J29: 197.9993428 | O29: 12.6 | P29: 2010 | Q29: 332.626118 | R29: 1
A30: 2013 | B30: 139.4780607 | C30: 152.5162806 | E30: 188.1020138 | F30: 132.2849237 | G30: 309.5262351 | I30: 136.6702078 | J30: 185.9545896 | O30: 8.25 | P30: 2010 | Q30: 445.5038471 | R30: 1
A31: 2014 | B31: 132.8704382 | E31: 175.3328177 | F31: 109.2211024 | G31: 143.6033792 | H31: 236.6670622 | I31: 133.7551123 | J31: 132.9930418 | O31: 17.5 | P31: 2010 | Q31: 304.8981197 | R31: 1
A32: 2015 | B32: 102.8951033 | C32: 106.285902 | E32: 164.1978577 | F32: 82.78949061 | G32: 113.9765126 | I32: 111.0385866 | J32: 101.9381734 | O32: 5.1 | P32: 2010 | Q32: 290.3474397 | R32: 1
A33: 2016 | B33: 77.42178485 | C33: 78.60295999 | D33: 68.20310224 | E33: 93.30671349 | F33: 70.24963256 | G33: 108.5760333 | H33: 175.0023569 | I33: 76.96811769 | J33: 83.44753163 | O33: 30.64 | P33: 2010 | Q33: 166.8853819 | R33: 1
A34: 2017 | B34: 75.24248754 | C34: 70.23307955 | D34: 77.34544664 | E34: 98.51529537 | F34: 64.08183191 | G34: 81.36078612 | H34: 134.99125 | I34: 79.68084014 | J34: 77.63729948 | K34: 130.5880661 | L34: 122.0324118 | O34: 48 | P34: 2010 | Q34: 154.6775785 | R34: 1
A35: 2018 | B35: 59.90351632 | C35: 48.66968801 | D35: 61.0430128 | E35: 47.7141893 | F35: 58.44628423 | G35: 79.83724485 | H35: 99.04134773 | I35: 66.93507237 | J35: 54.66611571 | O35: 10.08 | P35: 2010 | Q35: 353.2194051 | R35: 1
A36: 2019 | B36: 51.09463183 | C36: 49.87640032 | D36: 45.30924295 | E36: 64.35781178 | F36: 45.72858579 | G36: 64.63293133 | H36: 91.32548605 | I36: 51.1386875 | J36: 47.91483255 | K36: 81.88356601 | L36: 90.04211468 | O36: 13.9 | P36: 2010 | Q36: 277.5785654 | R36: 1
A37: 2020 | B37: 44.39765729 | C37: 40.10927675 | D37: 46.48128532 | E37: 57.12501278 | F37: 42.54471673 | G37: 57.65939482 | H37: 81.46902302 | I37: 40.46699768 | J37: 44.28755505 | L37: 87.2372465 | O37: 17.6 | P37: 2011 | Q37: 173.2345682 | R37: 2
A38: 2021 | B38: 32.97857217 | C38: 30.31549426 | E38: 39.82192731 | F38: 28.51693837 | G38: 37.31931462 | H38: 54.06505812 | J38: 32.11741019 | O38: 15 | P38: 2011 | Q38: 248.6605318 | R38: 2
O39: 20 | P39: 2011 | Q39: 164.4364122 | R39: 2
O40: 17 | P40: 2011 | Q40: 198.4073715 | R40: 2
B41: =B38/B27-1 -> -0.8548165672 | O41: 16 | P41: 2011 | Q41: 184.1188878 | R41: 2
B42: =(B38/B27)^(1/11)-1 -> -0.1609059493 | O42: 10.4 | P42: 2011 | Q42: 165.8455517 | R42: 2
O43: 6 | P43: 2011 | Q43: 236.7926869 | R43: 2
O44: 15 | P44: 2011 | Q44: 218.6126653 | R44: 2
O45: 8.91 | P45: 2011 | Q45: 208.8438866 | R45: 2
O46: 19 | P46: 2011 | Q46: 222.3303101 | R46: 2
O47: 18 | P47: 2011 | Q47: 208.3360125 | R47: 2
O48: 20 | P48: 2011 | Q48: 181.4974457 | R48: 2
O49: 20 | P49: 2011 | Q49: 225.9187866 | R49: 2
O50: 15 | P50: 2011 | Q50: 198.884461 | R50: 2
O51: 5.2 | P51: 2011 | Q51: 163.0582849 | R51: 2
O52: 30.4 | P52: 2011 | Q52: 167.7006342 | R52: 2
O53: 10 | P53: 2011 | Q53: 257.8162482 | R53: 2
O54: 5.5 | P54: 2011 | Q54: 236.7393892 | R54: 2
O55: 8 | P55: 2011 | Q55: 270.4885981 | R55: 2
O56: 12 | P56: 2011 | Q56: 335.5428136 | R56: 2
O57: 10 | P57: 2011 | Q57: 297.6967266 | R57: 2
O58: 18 | P58: 2011 | Q58: 312.7779513 | R58: 2
O59: 9 | P59: 2011 | Q59: 142.3569469 | R59: 2
O60: 7 | P60: 2011 | Q60: 166.9131699 | R60: 2
O61: 20.16 | P61: 2011 | Q61: 147.7505447 | R61: 2
O62: 31.5 | P62: 2011 | Q62: 297.8737328 | R62: 2
O63: 8.08 | P63: 2011 | Q63: 179.1365408 | R63: 2
O64: 30 | P64: 2011 | Q64: 216.5955942 | R64: 2
O65: 5.1 | P65: 2012 | Q65: 110.522447 | R65: 3
O66: 9 | P66: 2012 | Q66: 155.7089563 | R66: 3
O67: 19 | P67: 2012 | Q67: 184.5853896 | R67: 3
O68: 20 | P68: 2012 | Q68: 143.0581824 | R68: 3
O69: 170 | P69: 2012 | Q69: 117.9132997 | R69: 3
O70: 26.46 | P70: 2012 | Q70: 145.5576568 | R70: 3
O71: 19 | P71: 2012 | Q71: 148.8121092 | R71: 3
O72: 50 | P72: 2012 | Q72: 151.8263695 | R72: 3
O73: 20 | P73: 2012 | Q73: 155.7732512 | R73: 3
O74: 20 | P74: 2012 | Q74: 138.6281567 | R74: 3
O75: 10 | P75: 2012 | Q75: 221.4833714 | R75: 3
O76: 20 | P76: 2012 | Q76: 164.7640632 | R76: 3
O77: 23 | P77: 2012 | Q77: 187.135428 | R77: 3
O78: 10 | P78: 2012 | Q78: 365.9756051 | R78: 3
O79: 25.8 | P79: 2012 | Q79: 167.6596916 | R79: 3
O80: 30 | P80: 2012 | Q80: 162.0608243 | R80: 3
O81: 11.12 | P81: 2012 | Q81: 170.1662899 | R81: 3
O82: 14.85 | P82: 2012 | Q82: 185.468159 | R82: 3
O83: 14.85 | P83: 2012 | Q83: 180.9137573 | R83: 3
O84: 12 | P84: 2012 | Q84: 231.9638671 | R84: 3
O85: 20 | P85: 2012 | Q85: 220.8680069 | R85: 3
O86: 5.5 | P86: 2012 | Q86: 242.1483376 | R86: 3
O87: 20 | P87: 2012 | Q87: 205.3681038 | R87: 3
O88: 13 | P88: 2012 | Q88: 281.8374869 | R88: 3
O89: 20 | P89: 2012 | Q89: 206.8411633 | R89: 3
O90: 12.5 | P90: 2012 | Q90: 177.6696887 | R90: 3
O91: 5.5 | P91: 2012 | Q91: 302.6361145 | R91: 3
O92: 5.5 | P92: 2012 | Q92: 190.8838437 | R92: 3
O93: 15.904 | P93: 2012 | Q93: 268.2976809 | R93: 3
O94: 12 | P94: 2012 | Q94: 160.5227892 | R94: 3
O95: 20 | P95: 2012 | Q95: 187.0990616 | R95: 3
O96: 92 | P96: 2012 | Q96: 72.26236936 | R96: 3
O97: 52 | P97: 2012 | Q97: 153.9594016 | R97: 3
O98: 21.8 | P98: 2012 | Q98: 176.7010667 | R98: 3
O99: 10 | P99: 2012 | Q99: 315.3479846 | R99: 3
O100: 7.6 | P100: 2012 | Q100: 205.6099609 | R100: 3
O101: 9.9 | P101: 2012 | Q101: 254.0993893 | R101: 3
O102: 9.9 | P102: 2012 | Q102: 247.2988043 | R102: 3
O103: 10.6 | P103: 2012 | Q103: 248.0821081 | R103: 3
O104: 37.44 | P104: 2013 | Q104: 123.8163739 | R104: 4
O105: 129 | P105: 2013 | Q105: 138.6890422 | R105: 4
O106: 15 | P106: 2013 | Q106: 110.981687 | R106: 4
O107: 14 | P107: 2013 | Q107: 144.9140062 | R107: 4
O108: 14.8 | P108: 2013 | Q108: 114.768408 | R108: 4
O109: 9 | P109: 2013 | Q109: 82.9512477 | R109: 4
O110: 130 | P110: 2013 | Q110: 158.9737331 | R110: 4
O111: 66 | P111: 2013 | Q111: 149.118129 | R111: 4
O112: 20.2 | P112: 2013 | Q112: 199.3251372 | R112: 4
O113: 26 | P113: 2013 | Q113: 128.7095977 | R113: 4
O114: 250 | P114: 2013 | Q114: 134.9746875 | R114: 4
O115: 147.4 | P115: 2013 | Q115: 123.2485535 | R115: 4
O116: 110 | P116: 2013 | Q116: 117.1639903 | R116: 4
O117: 20 | P117: 2013 | Q117: 120.5459981 | R117: 4
O118: 20 | P118: 2013 | Q118: 198.7804351 | R118: 4
O119: 20 | P119: 2013 | Q119: 179.6376435 | R119: 4
O120: 12 | P120: 2013 | Q120: 107.8891259 | R120: 4
O121: 8.5 | P121: 2013 | Q121: 114.5921805 | R121: 4
O122: 8.5 | P122: 2013 | Q122: 467.4487611 | R122: 4
O123: 20 | P123: 2013 | Q123: 137.0172797 | R123: 4
O124: 20 | P124: 2013 | Q124: 121.7997071 | R124: 4
O125: 20 | P125: 2013 | Q125: 121.1635598 | R125: 4
O126: 10 | P126: 2013 | Q126: 168.8338729 | R126: 4
O127: 20 | P127: 2013 | Q127: 124.6512415 | R127: 4
O128: 7.65 | P128: 2013 | Q128: 197.8369148 | R128: 4
O129: 16 | P129: 2013 | Q129: 165.6871969 | R129: 4
O130: 10 | P130: 2013 | Q130: 213.9003588 | R130: 4
O131: 10.1 | P131: 2013 | Q131: 172.7004367 | R131: 4
O132: 10.1 | P132: 2013 | Q132: 173.8661356 | R132: 4
O133: 8.6 | P133: 2013 | Q133: 193.9840829 | R133: 4
O134: 20 | P134: 2013 | Q134: 196.64841 | R134: 4
O135: 9.8 | P135: 2013 | Q135: 259.3348347 | R135: 4
O136: 7.5 | P136: 2013 | Q136: 372.497571 | R136: 4
O137: 8 | P137: 2013 | Q137: 103.7841384 | R137: 4
O138: 7.5 | P138: 2013 | Q138: 92.92369697 | R138: 4
O139: 30 | P139: 2013 | Q139: 122.5776434 | R139: 4
O140: 9.999 | P140: 2013 | Q140: 151.6830733 | R140: 4
O141: 40.7 | P141: 2013 | Q141: 152.7597772 | R141: 4
O142: 290 | P142: 2014 | Q142: 150.3177108 | R142: 5
O143: 37.12 | P143: 2014 | Q143: 102.0793171 | R143: 5
O144: 29 | P144: 2014 | Q144: 151.5944194 | R144: 5
O145: 12.6 | P145: 2014 | Q145: 112.5715236 | R145: 5
O146: 17.7 | P146: 2014 | Q146: 97.3676224 | R146: 5
O147: 6 | P147: 2014 | Q147: 129.4014901 | R147: 5
O148: 13.624 | P148: 2014 | Q148: 221.7005181 | R148: 5
O149: 19.568 | P149: 2014 | Q149: 169.5550007 | R149: 5
O150: 241.5 | P150: 2014 | Q150: 170.4304368 | R150: 5
O151: 19.7 | P151: 2014 | Q151: 121.0136091 | R151: 5
O152: 18.5 | P152: 2014 | Q152: 96.1782145 | R152: 5
O153: 170 | P153: 2014 | Q153: 115.9060225 | R153: 5
O154: 19.76 | P154: 2014 | Q154: 128.5108175 | R154: 5
O155: 249.7 | P155: 2014 | Q155: 132.9403656 | R155: 5
O156: 313.7 | P156: 2014 | Q156: 137.8497389 | R156: 5
O157: 10 | P157: 2014 | Q157: 112.677977 | R157: 5
O158: 10 | P158: 2014 | Q158: 89.40486062 | R158: 5
O159: 20 | P159: 2014 | Q159: 84.63062621 | R159: 5
O160: 206.72 | P160: 2014 | Q160: 164.7973039 | R160: 5
O161: 6 | P161: 2014 | Q161: 151.3537803 | R161: 5
O162: 12 | P162: 2014 | Q162: 135.8453346 | R162: 5
O163: 8 | P163: 2014 | Q163: 129.0351518 | R163: 5
O164: 19 | P164: 2014 | Q164: 106.8928815 | R164: 5
O165: 45 | P165: 2014 | Q165: 96.03538909 | R165: 5
O166: 15 | P166: 2014 | Q166: 98.4417501 | R166: 5
O167: 10 | P167: 2014 | Q167: 98.65926147 | R167: 5
O168: 20 | P168: 2014 | Q168: 107.0147026 | R168: 5
O169: 19.406 | P169: 2014 | Q169: 109.052846 | R169: 5
O170: 19.65 | P170: 2014 | Q170: 117.0451107 | R170: 5
O171: 17.5 | P171: 2014 | Q171: 147.0624463 | R171: 5
O172: 20 | P172: 2014 | Q172: 88.53569936 | R172: 5
O173: 20 | P173: 2014 | Q173: 94.17643428 | R173: 5
O174: 60 | P174: 2014 | Q174: 129.3657712 | R174: 5
O175: 155.1 | P175: 2014 | Q175: 149.8747927 | R175: 5
O176: 6.49 | P176: 2014 | Q176: 102.1042142 | R176: 5
O177: 585.9 | P177: 2014 | Q177: 118.8185595 | R177: 5
O178: 19.945 | P178: 2014 | Q178: 82.20584849 | R178: 5
O179: 18 | P179: 2014 | Q179: 101.4122306 | R179: 5
O180: 20 | P180: 2014 | Q180: 89.49126132 | R180: 5
O181: 30 | P181: 2014 | Q181: 152.5363481 | R181: 5
O182: 8.8205 | P182: 2014 | Q182: 130.8880516 | R182: 5
O183: 7.892 | P183: 2014 | Q183: 229.4906995 | R183: 5
O184: 6.25 | P184: 2014 | Q184: 221.9233587 | R184: 5
O185: 14 | P185: 2014 | Q185: 243.8223281 | R185: 5
O186: 19.946 | P186: 2014 | Q186: 110.5951907 | R186: 5
O187: 19.79 | P187: 2014 | Q187: 125.8629091 | R187: 5
O188: 19.646 | P188: 2014 | Q188: 138.7701787 | R188: 5
O189: 8 | P189: 2014 | Q189: 148.6436932 | R189: 5
O190: 7 | P190: 2014 | Q190: 238.0367826 | R190: 5
O191: 5.34 | P191: 2014 | Q191: 171.7173752 | R191: 5
O192: 7.726 | P192: 2014 | Q192: 226.8627703 | R192: 5
O193: 8 | P193: 2014 | Q193: 154.761997 | R193: 5
O194: 7 | P194: 2014 | Q194: 146.6332624 | R194: 5
O195: 7.6 | P195: 2014 | Q195: 68.59147286 | R195: 5
O196: 52.2 | P196: 2014 | Q196: 83.51831551 | R196: 5
O197: 9.12 | P197: 2014 | Q197: 67.03214459 | R197: 5
O198: 6.08 | P198: 2014 | Q198: 81.90728244 | R198: 5
O199: 20 | P199: 2014 | Q199: 96.76879563 | R199: 5
O200: 17.494 | P200: 2014 | Q200: 133.7678313 | R200: 5
O201: 15.84 | P201: 2014 | Q201: 114.5374087 | R201: 5
O202: 15.84 | P202: 2014 | Q202: 112.1791057 | R202: 5
O203: 39.6 | P203: 2014 | Q203: 184.5532366 | R203: 5
O204: 10.416 | P204: 2014 | Q204: 76.25826302 | R204: 5
O205: 12.5 | P205: 2015 | Q205: 115.0729022 | R205: 6
O206: 11.2 | P206: 2015 | Q206: 83.4044748 | R206: 6
O207: 11.2 | P207: 2015 | Q207: 82.95825185 | R207: 6
O208: 55 | P208: 2015 | Q208: 81.18059715 | R208: 6
O209: 45 | P209: 2015 | Q209: 63.14468738 | R209: 6
O210: 12 | P210: 2015 | Q210: 137.1870404 | R210: 6
O211: 20.004 | P211: 2015 | Q211: 120.2309115 | R211: 6
O212: 18.7 | P212: 2015 | Q212: 107.792145 | R212: 6
O213: 18.4 | P213: 2015 | Q213: 105.1689099 | R213: 6
O214: 20.02 | P214: 2015 | Q214: 120.16986 | R214: 6
O215: 19.75 | P215: 2015 | Q215: 105.6861424 | R215: 6
O216: 20 | P216: 2015 | Q216: 117.6034192 | R216: 6
O217: 20 | P217: 2015 | Q217: 104.4548128 | R217: 6
O218: 12 | P218: 2015 | Q218: 126.8843713 | R218: 6
O219: 26.656 | P219: 2015 | Q219: 118.653036 | R219: 6
O220: 20.007 | P220: 2015 | Q220: 118.4439613 | R220: 6
O221: 20 | P221: 2015 | Q221: 73.53024244 | R221: 6
... 786 more rows

Sheet LCOE vs. PPA Price
A1: Average levelized cost of energy versus average levelized PPA price, by commercial operation date
A22: Source: Berkeley Lab | I22: Source: Berkeley Lab | R22: Source: Berkeley Lab
D25: No ITC | E25: No ITC | F25: No ITC | G25: 30% ITC | H25: 30% ITC | I25: 30% ITC
A26: LCOE | B26: LCOE | D26: Median | E26: Cap-Wgtd Avg | F26: Gen-Wgtd Avg | G26: Median | H26: Cap-Wgtd Avg | I26: Gen-Wgtd Avg | K26: Median | L26: Cap-Wgtd Avg | M26: Gen-Wgtd Avg
A27: Sample | B27: Sample | D27: LCOE | E27: LCOE | F27: LCOE | G27: LCOE | H27: LCOE | I27: LCOE | K27: PPA Price | L27: PPA Price | M27: PPA Price
A28: Capacity | B28: Plants | C28: Plant | D28: by COD | E28: by COD | F28: by COD | G28: by COD | H28: by COD | I28: by COD | K28: by COD | L28: by COD | M28: by COD
A29: (MW-AC) | B29: (#) | C29: COD | D29: (2021 $/MWh) | E29: (2021 $/MWh) | F29: (2021 $/MWh) | G29: (2021 $/MWh) | H29: (2021 $/MWh) | I29: (2021 $/MWh) | K29: (2021 $/MWh) | L29: (2021 $/MWh) | M29: (2021 $/MWh)
A30: 175.07 | B30: 10 | C30: 2010 | D30: 297.6227797 | E30: 238.3326482 | F30: 227.1510705 | G30: 226.8565168 | H30: 182.2484362 | I30: 173.808763 | K30: 204.8411228 | L30: 175.6202426 | M30: 171.8390573
A31: 422.75 | B31: 28 | C31: =C30+1 -> 2011 | D31: 208.5899495 | E31: 215.6310833 | F31: 208.5128801 | G31: 160.1554522 | H31: 165.2450022 | I31: 159.8206889 | K31: 180.1031694 | L31: 189.4751782 | M31: 182.335488
A32: 893.884 | B32: 39 | C32: =C31+1 -> 2012 | D32: 184.5853896 | E32: 161.8312004 | F32: 154.1905576 | G32: 140.360274 | H32: 124.925537 | I32: 119.1139804 | K32: 137.5655379 | L32: 144.2659543 | M32: 142.4741029
A33: 1343.789 | B33: 38 | C33: 2013 | D33: 141.8015242 | E33: 143.6430845 | F33: 139.4780607 | G33: 108.9159493 | H33: 110.5692217 | I33: 107.3700045 | K33: 134.1683723 | L33: 132.1690334 | M33: 132.6461088
A34: 3165.7835 | B34: 63 | C34: 2014 | D34: 121.0136091 | E34: 134.2620971 | F34: 132.8704382 | G34: 93.21208694 | H34: 103.4225223 | I34: 102.3193606 | K34: 104.55065 | L34: 133.9774726 | M34: 133.4157979
A35: 2839.682 | B35: 85 | C35: 2015 | D35: 103.7118143 | E35: 103.5342898 | F35: 102.8951033 | G35: 81.54224156 | H35: 80.60165183 | I35: 79.99741428 | K35: 82.85189823 | L35: 99.55801194 | M35: 100.0056002
A36: 7377.194 | B36: 145 | C36: 2016 | D36: 80.63928486 | E36: 79.34512903 | F36: 77.42178485 | G36: 63.2346543 | H36: 62.33876103 | I36: 60.83205404 | K36: 57.53298787 | L36: 61.83638003 | M36: 61.86234914
A37: 3995.823 | B37: 160 | C37: 2017 | D37: 78.5597991 | E37: 77.55622148 | F37: 75.24248754 | G37: 62.28209154 | H37: 61.17029597 | I37: 59.3299554 | K37: 51.93509527 | L37: 51.17987506 | M37: 50.57955972
A38: 3929.416 | B38: 93 | C38: 2018 | D38: 63.2605903 | E38: 60.4268383 | F38: 59.90351632 | G38: 51.47442039 | H38: 48.92644305 | I38: 48.46187523 | K38: 48.97427676 | L38: 48.91950764 | M38: 47.01736827
A39: 4433.31 | B39: 100 | C39: 2019 | D39: 54.86612092 | E39: 52.63293764 | F39: 51.09463183 | G39: 44.45089979 | H39: 42.63959957 | I39: 41.39621472 | K39: 37.61994911 | L39: 38.29283798 | M39: 37.32111251
A40: 9480.943 | B40: 159 | C40: 2020 | D40: 50.62147061 | E40: 45.78824887 | F40: 44.39765729 | G40: 40.83106159 | H40: 37.16977794 | I40: 36.04509083 | K40: 27.60569631 | L40: 30.54726613 | M40: 30.11407198
A41: 5363.341 | B41: 61 | C41: 2021 | D41: 34.89761997 | E41: 33.6614811 | F41: 32.97857217 | G41: 28.69524855 | H41: 27.51573528 | I41: 26.96545417 | K41: 23.00312035 | L41: 23.63717268 | M41: 23.2887783
A42: TBD | B42: TBD | C42: 2022

Sheet PV & Wind PPAs vs. Gas
A1: Levelized PV and wind PPA prices and levelized gas price projections | K1: Levelized PV and wind PPA prices
A22: Sources: Berkeley Lab, FERC, Energy Information Administration
A23: Note: Smallest bubble sizes reflect smallest-volume PPAs (<5 MW), whereas largest reflect largest-volume PPAs (>500 MW)
B25: Levelized Gas | C25: Solar | D25: Wind | F25: Wind | G25: Wind | H25: Wind | J25: Solar | K25: Solar | L25: Solar
B26: Price Projection | C26: Average | D26: Average | F26: PPA | G26: Project | H26: Project | J26: PPA | K26: Project | L26: Project
B27: 2021 $/MWh | C27: 2021 $/MWh | D27: 2021 $/MWh | F27: Date | G27: 2021 $/MWh | H27: Capacity | J27: Date | K27: 2021 $/MWh | L27: Capacity
A28: 2009 | B28: 59.9520311 | C28: 167.3698965 | D28: 75.8194927 | F28: 2009-01-28 | G28: 55.88945604 | H28: 50.4 | J28: 2009-02-23 | K28: 136.2877374 | L28: 30
A29: 2010 | B29: 59.12149135 | C29: 138.3755184 | D29: 66.43686459 | F29: 2009-01-30 | G29: 63.66232591 | H29: 98.9 | J29: 2009-03-01 | K29: 162.332173 | L29: 30
A30: 2011 | B30: 47.91138353 | C30: 112.6241796 | D30: 48.48260549 | F30: 2009-02-02 | G30: 53.93140631 | H30: 99 | J30: 2009-03-05 | K30: 153.9354952 | L30: 19
A31: 2012 | B31: 46.31919401 | C31: 87.36418714 | D31: 40.81615088 | F31: 2009-02-05 | G31: 95.21447691 | H31: 150 | J31: 2009-05-01 | K31: 212.5955323 | L31: 12.6
A32: 2013 | B32: 44.95468842 | C32: 68.96915546 | D32: 29.11661813 | F32: 2009-02-05 | G32: 97.93492809 | H32: 51 | J32: 2009-05-08 | K32: 149.3575736 | L32: 230
A33: 2014 | B33: 48.00567007 | C33: 56.38676102 | D33: 26.84588979 | F33: 2009-02-05 | G33: 97.95525101 | H33: 49.5 | J33: 2009-06-01 | K33: 132.963372 | L33: 20
A34: 2015 | B34: 49.06019824 | C34: 46.14064168 | D34: 31.33861018 | F34: 2009-02-19 | G34: 95.9886783 | H34: 49.5 | J34: 2009-06-01 | K34: 204.8411228 | L34: 14
A35: 2016 | B35: 41.42138603 | C35: 39.38272456 | D35: 25.74292502 | F35: 2009-03-17 | G35: 122.047664 | H35: 24.75 | J35: 2009-06-01 | K35: 232.2523554 | L35: 10.08
A36: 2017 | B36: 39.70824594 | C36: 33.67382034 | D36: 19.4360623 | F36: 2009-03-17 | G36: 119.1022973 | H36: 8 | J36: 2009-06-22 | K36: 173.3804515 | L36: 48
A37: 2018 | B37: 35.90798786 | C37: 25.71086118 | D37: 16.61063168 | F37: 2009-03-24 | G37: 91.06401912 | H37: 63 | J37: 2009-08-17 | K37: 149.4867475 | L37: 250
A38: 2019 | B38: 31.92854672 | C38: 21.0348727 | D38: 22.67748057 | F38: 2009-03-31 | G38: 62.37348815 | H38: 30 | J38: 2009-09-08 | K38: 206.0913389 | L38: 250
A39: 2020 | B39: 26.74323083 | C39: 21.72715333 | D39: 25.66017857 | F39: 2009-03-31 | G39: 62.37272701 | H39: 12 | J39: 2009-11-20 | K39: 121.8561825 | L39: 21
A40: 2021 | B40: 27.69875568 | C40: 23.10898588 | D40: 23.736679 | F40: 2009-04-01 | G40: 83.24084635 | H40: 96.6 | J40: 2009-12-23 | K40: 135.4835721 | L40: 50
A41: 2022 | B41: 27.61259409 | F41: 2009-04-01 | G41: 52.1705366 | H41: 49.5 | J41: 2009-12-24 | K41: 258.1736725 | L41: 6
F42: 2009-04-10 | G42: 108.3473957 | H42: 124.5 | J42: 2009-12-24 | K42: 258.1736725 | L42: 19
F43: 2009-04-29 | G43: 71.06968424 | H43: 70 | J43: 2009-12-24 | K43: 258.1736725 | L43: 20
F44: 2009-04-30 | G44: 65.81783987 | H44: 22.5 | J44: 2010-01-26 | K44: 168.5415202 | L44: 50
F45: 2009-06-10 | G45: 78.74900954 | H45: 102.3 | J45: 2010-01-26 | K45: 168.5415202 | L45: 20
F46: 2009-06-22 | G46: 74.68862612 | H46: 205.5 | J46: 2010-01-26 | K46: 172.1170093 | L46: 20
F47: 2009-06-30 | G47: 75.89468918 | H47: 70 | J47: 2010-02-02 | K47: 141.3108956 | L47: 50
F48: 2009-06-30 | G48: 68.3281844 | H48: 51 | J48: 2010-02-24 | K48: 145.3820443 | L48: 300
F49: 2009-07-09 | G49: 88.24904249 | H49: 22.5 | J49: 2010-03-06 | K49: 138.9658333 | L49: 40
F50: 2009-07-09 | G50: 88.24904294 | H50: 21 | J50: 2010-04-19 | K50: 108.0398242 | L50: 29
F51: 2009-07-09 | G51: 88.24904275 | H51: 21 | J51: 2010-04-21 | K51: 144.0227178 | L51: 66
F52: 2009-07-30 | G52: 56.54180805 | H52: 69 | J52: 2010-04-29 | K52: 134.9318678 | L52: 25
F53: 2009-08-01 | G53: 66.72505672 | H53: 100 | J53: 2010-05-10 | K53: 136.465392 | L53: 125
F54: 2009-08-05 | G54: 75.95683021 | H54: 18.9 | J54: 2010-05-20 | K54: 163.3522245 | L54: 25.8
F55: 2009-08-05 | G55: 75.88130382 | H55: 16.8 | J55: 2010-06-01 | K55: 326.1941281 | L55: 32
F56: 2009-08-17 | G56: 107.9330533 | H56: 90 | J56: 2010-06-01 | K56: 134.9318678 | L56: 20
F57: 2009-08-26 | G57: 69.5001171 | H57: 200.2 | J57: 2010-06-24 | K57: 131.562351 | L57: 23
F58: 2009-09-08 | G58: 57.66484584 | H58: 36 | J58: 2010-06-30 | K58: 102.5004147 | L58: 12
F59: 2009-09-25 | G59: 48.94659282 | H59: 151.8 | J59: 2010-06-30 | K59: 102.4860607 | L59: 10
F60: 2009-09-25 | G60: 50.27484463 | H60: 129.6 | J60: 2010-07-26 | K60: 136.2830601 | L60: 20
F61: 2009-10-01 | G61: 69.47975848 | H61: 150 | J61: 2010-07-29 | K61: 160.6826439 | L61: 150
F62: 2009-10-05 | G62: 51.02205817 | H62: 99 | J62: 2010-07-29 | K62: 132.0797116 | L62: 45
F63: 2009-10-09 | G63: 80.71849937 | H63: 5 | J63: 2010-08-10 | K63: 136.044337 | L63: 30
F64: 2009-11-02 | G64: 72.86024468 | H64: 60 | J64: 2010-08-10 | K64: 197.8741658 | L64: 5.5
F65: 2009-11-16 | G65: 68.21378737 | H65: 50 | J65: 2010-08-24 | K65: 116.0407115 | L65: 23
F66: 2009-11-24 | G66: 80.25844047 | H66: 209.4 | J66: 2010-09-20 | K66: 132.4158642 | L66: 62.5
F67: 2009-11-24 | G67: 68.86185776 | H67: 150 | J67: 2010-11-10 | K67: 133.795304 | L67: 130
F68: 2009-11-30 | G68: 117.7934199 | H68: 168 | J68: 2010-11-15 | K68: 82.59342842 | L68: 14
F69: 2009-11-30 | G69: 117.8087549 | H69: 150 | J69: 2010-11-15 | K69: 80.02320996 | L69: 20
F70: 2009-11-30 | G70: 117.7969739 | H70: 150 | J70: 2010-12-01 | K70: 141.4055645 | L70: 9
F71: 2009-11-30 | G71: 117.7902279 | H71: 150 | J71: 2010-12-01 | K71: 150.9312906 | L71: 7.65
F72: 2009-11-30 | G72: 117.78978 | H72: 102 | J72: 2010-12-21 | K72: 136.4254609 | L72: 60
F73: 2009-12-02 | G73: 102.0377134 | H73: 50 | J73: 2010-12-30 | K73: 116.8159982 | L73: 309
F74: 2009-12-09 | G74: 127.6457623 | H74: 10.25 | J74: 2010-12-30 | K74: 152.1434665 | L74: 20
F75: 2009-12-17 | G75: 130.4969358 | H75: 120 | J75: 2011-01-05 | K75: 117.0517381 | L75: 270
F76: 2009-12-28 | G76: 75.60834438 | H76: 70 | J76: 2011-01-07 | K76: 131.755042 | L76: 110
F77: 2010-01-28 | G77: 106.9175961 | H77: 151.8 | J77: 2011-01-25 | K77: 137.7463721 | L77: 26
F78: 2010-02-05 | G78: 55.05119406 | H78: 81 | J78: 2011-02-07 | K78: 122.322788 | L78: 250
F79: 2010-02-12 | G79: 75.37735 | H79: 198 | J79: 2011-02-11 | K79: 116.2045877 | L79: 30
F80: 2010-03-05 | G80: 113.3003301 | H80: 65.1 | J80: 2011-02-11 | K80: 119.5149504 | L80: 20
F81: 2010-03-29 | G81: 60.18921314 | H81: 250.2 | J81: 2011-03-08 | K81: 96.47782914 | L81: 150
F82: 2010-04-01 | G82: 61.78590741 | H82: 40.5 | J82: 2011-06-03 | K82: 121.6853298 | L82: 110
F83: 2010-04-16 | G83: 43.6851607 | H83: 102.4 | J83: 2011-06-03 | K83: 113.024241 | L83: 127
F84: 2010-04-19 | G84: 89.58006497 | H84: 50.4 | J84: 2011-06-21 | K84: 109.4774509 | L84: 150
F85: 2010-04-23 | G85: 51.47627801 | H85: 51 | J85: 2011-07-08 | K85: 127.5525299 | L85: 23
F86: 2010-04-29 | G86: 116.7987184 | H86: 143.5 | J86: 2011-07-14 | K86: 102.4047219 | L86: 20
F87: 2010-05-04 | G87: 81.14376271 | H87: 32.5 | J87: 2011-07-21 | K87: 119.9475371 | L87: 150
F88: 2010-05-04 | G88: 84.36544041 | H88: 20 | J88: 2011-09-29 | K88: 87.59061447 | L88: 250
F89: 2010-05-19 | G89: 60.83943632 | H89: 250.8 | J89: 2011-10-01 | K89: 140.1992081 | L89: 9
F90: 2010-06-01 | G90: 54.01836151 | H90: 36 | J90: 2011-12-01 | K90: 229.8839228 | L90: 20
F91: 2010-06-02 | G91: 119.2705027 | H91: 102 | J91: 2011-12-08 | K91: 109.8444247 | L91: 19
F92: 2010-06-03 | G92: 50.6156746 | H92: 100 | J92: 2011-12-20 | K92: 86.51169273 | L92: 20
F93: 2010-06-03 | G93: 94.28654903 | H93: 90 | J93: 2011-12-20 | K93: 116.4148474 | L93: 30
F94: 2010-06-03 | G94: 100.7172324 | H94: 36.8 | J94: 2011-12-20 | K94: 85.18358376 | L94: 20
F95: 2010-06-04 | G95: 68.13014283 | H95: 30 | J95: 2012-01-01 | K95: 87.30673861 | L95: 15
F96: 2010-06-09 | G96: 122.5249397 | H96: 168 | J96: 2012-01-01 | K96: 78.32991118 | L96: 15
F97: 2010-06-09 | G97: 120.1805381 | H97: 150 | J97: 2012-02-03 | K97: 90.01183766 | L97: 200
F98: 2010-06-09 | G98: 120.1805381 | H98: 150 | J98: 2012-02-27 | K98: 82.40708151 | L98: 20
F99: 2010-06-09 | G99: 122.5249397 | H99: 132 | J99: 2012-07-03 | K99: 93.39217212 | L99: 20
F100: 2010-06-21 | G100: 92.77937506 | H100: 81.6 | J100: 2012-07-03 | K100: 99.48184199 | L100: 20
F101: 2010-06-30 | G101: 57.29948761 | H101: 114 | J101: 2012-08-03 | K101: 91.62023585 | L101: 20
F102: 2010-07-07 | G102: 38.70595294 | H102: 78.2 | J102: 2012-08-13 | K102: 97.13615989 | L102: 20
F103: 2010-07-09 | G103: 57.38856251 | H103: 42.5 | J103: 2012-08-16 | K103: 94.39395117 | L103: 102
F104: 2010-07-15 | G104: 46.11147171 | H104: 99.2 | J104: 2012-08-29 | K104: 90.99065243 | L104: 20
F105: 2010-07-21 | G105: 82.40646368 | H105: 99.2 | J105: 2012-08-31 | K105: 93.04400398 | L105: 250
F106: 2010-07-22 | G106: 116.1160266 | H106: 102.5 | J106: 2012-09-17 | K106: 88.72559876 | L106: 20
F107: 2010-08-10 | G107: 92.53674198 | H107: 110.4 | J107: 2012-09-17 | K107: 106.6965782 | L107: 20.8
F108: 2010-08-16 | G108: 57.41027011 | H108: 199.8 | J108: 2012-10-17 | K108: 91.46640785 | L108: 10
F109: 2010-08-20 | G109: 127.7734987 | H109: 49 | J109: 2012-10-25 | K109: 56.7068927 | L109: 50
F110: 2010-09-01 | G110: 71.4652165 | H110: 79.2 | J110: 2012-11-01 | K110: 72.23459204 | L110: 20
F111: 2010-09-08 | G111: 83.63112105 | H111: 55.2 | J111: 2012-11-15 | K111: 83.02022092 | L111: 20
F112: 2010-09-17 | G112: 35.95329749 | H112: 148.8 | J112: 2012-12-12 | K112: 81.19439215 | L112: 250
F113: 2010-09-22 | G113: 44.89580987 | H113: 80 | J113: 2012-12-13 | K113: 86.82543305 | L113: 20
F114: 2010-10-11 | G114: 113.9494104 | H114: 49.8 | J114: 2013-02-04 | K114: 101.9206217 | L114: 28.8
F115: 2010-10-18 | G115: 113.0932446 | H115: 31.68 | J115: 2013-02-28 | K115: 81.50961867 | L115: 45
F116: 2010-11-05 | G116: 40.56568613 | H116: 161 | J116: 2013-03-22 | K116: 92.47577733 | L116: 20
F117: 2010-11-12 | G117: 67.00016574 | H117: 99 | J117: 2013-03-22 | K117: 91.05531443 | L117: 20
F118: 2010-12-06 | G118: 34.89699303 | H118: 201 | J118: 2013-03-25 | K118: 77.21542982 | L118: 20
F119: 2010-12-09 | G119: 29.33666287 | H119: 167.9 | J119: 2013-04-10 | K119: 88.66515927 | L119: 20
F120: 2010-12-17 | G120: 106.1362024 | H120: 78.2 | J120: 2013-04-16 | K120: 64.94060094 | L120: 20
F121: 2010-12-17 | G121: 99.68689344 | H121: 78.2 | J121: 2013-06-01 | K121: 59.17389466 | L121: 20
F122: 2010-12-17 | G122: 57.32659222 | H122: 50 | J122: 2013-06-03 | K122: 66.89243207 | L122: 48
F123: 2010-12-17 | G123: 54.10168208 | H123: 38.46 | J123: 2013-06-03 | K123: 67.78904063 | L123: 40
F124: 2010-12-22 | G124: 45.56690716 | H124: 27.3 | J124: 2013-07-03 | K124: 57.53298787 | L124: 50
F125: 2010-12-23 | G125: 56.11678372 | H125: 48 | J125: 2013-07-10 | K125: 58.97664835 | L125: 40
F126: 2010-12-23 | G126: 74.70449259 | H126: 34.2 | J126: 2013-07-10 | K126: 63.26461173 | L126: 20
F127: 2010-12-23 | G127: 68.063372 | H127: 28.5 | J127: 2013-07-17 | K127: 82.85189823 | L127: 20
F128: 2011-02-01 | G128: 104.9470083 | H128: 257.6 | J128: 2013-07-17 | K128: 82.85189823 | L128: 12
F129: 2011-03-10 | G129: 66.424771 | H129: 100 | J129: 2013-09-06 | K129: 67.14588716 | L129: 15
F130: 2011-04-06 | G130: 101.5166754 | H130: 155.1 | J130: 2013-09-19 | K130: 100.9317074 | L130: 20
F131: 2011-04-20 | G131: 34.05519086 | H131: 100.8 | J131: 2013-09-27 | K131: 64.32893496 | L131: 20
F132: 2011-05-05 | G132: 64.73645084 | H132: 165.6 | J132: 2013-10-09 | K132: 66.84126081 | L132: 20
F133: 2011-05-06 | G133: 31.86889917 | H133: 131.1 | J133: 2013-10-22 | K133: 64.56371209 | L133: 20
F134: 2011-05-13 | G134: 70.3301641 | H134: 214.4 | J134: 2013-12-01 | K134: 82.32803647 | L134: 7.314
F135: 2011-05-16 | G135: 30.73559432 | H135: 150.36 | J135: 2013-12-06 | K135: 67.59927818 | L135: 20
F136: 2011-05-16 | G136: 21.99077167 | H136: 108 | J136: 2013-12-19 | K136: 56.15843563 | L136: 150
F137: 2011-05-20 | G137: 53.87015056 | H137: 115 | J137: 2014-01-30 | K137: 69.50243373 | L137: 7
F138: 2011-06-07 | G138: 37.71728053 | H138: 202 | J138: 2014-02-20 | K138: 49.29365447 | L138: 10.416
F139: 2011-06-21 | G139: 48.16851689 | H139: 40 | J139: 2014-03-17 | K139: 64.06826916 | L139: 20
F140: 2011-06-27 | G140: 34.1042394 | H140: 200 | J140: 2014-03-26 | K140: 59.84972581 | L140: 26.66
F141: 2011-06-28 | G141: 62.45343549 | H141: 104.4 | J141: 2014-04-01 | K141: 65.83103707 | L141: 10.3
F142: 2011-06-29 | G142: 79.72307347 | H142: 20 | J142: 2014-05-01 | K142: 44.07336285 | L142: 157.5
F143: 2011-07-06 | G143: 41.35820449 | H143: 199.92 | J143: 2014-05-27 | K143: 63.21543134 | L143: 30
F144: 2011-07-15 | G144: 83.792246 | H144: 162 | J144: 2014-06-01 | K144: 66.11356 | L144: 20
F145: 2011-07-28 | G145: 86.20165087 | H145: 102.5 | J145: 2014-06-12 | K145: 57.53763801 | L145: 30
F146: 2011-08-03 | G146: 59.86976947 | H146: 120 | J146: 2014-07-18 | K146: 57.28838015 | L146: 93.6
F147: 2011-08-08 | G147: 47.12665533 | H147: 42 | J147: 2014-07-23 | K147: 57.84628874 | L147: 75
F148: 2011-08-15 | G148: 34.45459377 | H148: 200 | J148: 2014-07-24 | K148: 57.53298787 | L148: 56
F149: 2011-08-17 | G149: 42.93193585 | H149: 50 | J149: 2014-07-24 | K149: 58.0997281 | L149: 56
F150: 2011-08-17 | G150: 42.93193585 | H150: 37.5 | J150: 2014-07-31 | K150: 45.30794223 | L150: 200
F151: 2011-08-30 | G151: 26.88642402 | H151: 100.8 | J151: 2014-08-19 | K151: 60.74746757 | L151: 105
F152: 2011-09-07 | G152: 28.56001294 | H152: 104 | J152: 2014-08-25 | K152: 61.32277997 | L152: 60
F153: 2011-09-12 | G153: 41.46221609 | H153: 201.6 | J153: 2014-09-03 | K153: 50.56202033 | L153: 60
F154: 2011-09-12 | G154: 36.88208757 | H154: 92.34 | J154: 2014-09-04 | K154: 46.86151612 | L154: 52
F155: 2011-09-13 | G155: 71.7205295 | H155: 100.65 | J155: 2014-09-04 | K155: 56.20573906 | L155: 120
F156: 2011-10-01 | G156: 37.98082203 | H156: 48 | J156: 2014-10-03 | K156: 60.00359348 | L156: 30
F157: 2011-11-03 | G157: 29.8091126 | H157: 100.8 | J157: 2014-10-08 | K157: 52.86957401 | L157: 101.3
F158: 2011-11-03 | G158: 28.17821308 | H158: 98.9 | J158: 2014-10-08 | K158: 53.63667626 | L158: 51
F159: 2011-11-08 | G159: 30.66451632 | H159: 59.8 | J159: 2014-10-08 | K159: 53.57985734 | L159: 76.5
F160: 2011-11-16 | G160: 80.31581006 | H160: 49.5 | J160: 2014-10-08 | K160: 57.38161858 | L160: 30
F161: 2011-11-16 | G161: 55.14859309 | H161: 39.9 | J161: 2014-10-08 | K161: 60.06064306 | L161: 80
F162: 2011-11-28 | G162: 79.0529807 | H162: 20.65 | J162: 2014-10-08 | K162: 57.82912665 | L162: 103
F163: 2011-12-09 | G163: 38.59077643 | H163: 75 | J163: 2014-10-20 | K163: 57.16498492 | L163: 40
F164: 2011-12-13 | G164: 30.65539049 | H164: 201.25 | J164: 2014-10-21 | K164: 62.25864588 | L164: 11.4
F165: 2011-12-13 | G165: 31.48410248 | H165: 79.6 | J165: 2014-10-21 | K165: 64.83948736 | L165: 20
F166: 2011-12-15 | G166: 31.39557572 | H166: 49.2 | J166: 2014-10-22 | K166: 56.8733166 | L166: 20
F167: 2011-12-20 | G167: 65.30702399 | H167: 110.4 | J167: 2014-10-22 | K167: 56.8733166 | L167: 20
F168: 2011-12-20 | G168: 31.98385013 | H168: 78.4 | J168: 2014-10-22 | K168: 56.8733166 | L168: 15
F169: 2011-12-20 | G169: 67.64241159 | H169: 30.4 | J169: 2014-10-22 | K169: 56.8733166 | L169: 20
F170: 2011-12-22 | G170: 47.86724126 | H170: 14.4 | J170: 2014-10-22 | K170: 49.87544264 | L170: 20
F171: 2012-01-19 | G171: 34.65469875 | H171: 310.4 | J171: 2014-10-22 | K171: 69.85906933 | L171: 14.7
F172: 2012-02-07 | G172: 45.20692298 | H172: 21 | J172: 2014-10-22 | K172: 67.75030727 | L172: 19.5
F173: 2012-02-15 | G173: 29.48511184 | H173: 30.4 | J173: 2014-10-22 | K173: 67.76717737 | L173: 19.5
F174: 2012-02-17 | G174: 94.95205509 | H174: 50 | J174: 2014-10-24 | K174: 66.60921741 | L174: 100
F175: 2012-02-28 | G175: 31.44045339 | H175: 91 | J175: 2014-11-07 | K175: 70.47439441 | L175: 40
F176: 2012-03-13 | G176: 31.48410248 | H176: 51.2 | J176: 2014-11-07 | K176: 70.47439441 | L176: 50
F177: 2012-03-17 | G177: 39.24011273 | H177: 202 | J177: 2014-11-13 | K177: 61.88980333 | L177: 30
F178: 2012-03-29 | G178: 32.95220148 | H178: 48 | J178: 2014-11-18 | K178: 49.30146904 | L178: 45
F179: 2012-04-11 | G179: 46.9076092 | H179: 54 | J179: 2014-12-09 | K179: 61.9373933 | L179: 130
F180: 2012-05-27 | G180: 59.591036 | H180: 69 | J180: 2015-02-01 | K180: 58.56761179 | L180: 80
F181: 2012-08-31 | G181: 48.23513757 | H181: 100.3 | J181: 2015-03-02 | K181: 101.9054489 | L181: 6
F182: 2012-11-01 | G182: 54.54536503 | H182: 50 | J182: 2015-03-02 | K182: 42.50551667 | L182: 25
F183: 2012-12-14 | G183: 56.72263253 | H183: 15 | J183: 2015-03-03 | K183: 62.57015172 | L183: 62.25
F184: 2013-01-16 | G184: 29.8569238 | H184: 74.8 | J184: 2015-03-04 | K184: 37.6003601 | L184: 70
F185: 2013-02-07 | G185: 29.58258167 | H185: 200.6 | J185: 2015-03-04 | K185: 38.07848645 | L185: 70
F186: 2013-04-16 | G186: 48.82583239 | H186: 74.8 | J186: 2015-03-05 | K186: 84.47394546 | L186: 10.5
F187: 2013-05-06 | G187: 30.34052026 | H187: 62.4 | J187: 2015-03-23 | K187: 68.58178278 | L187: 20
F188: 2013-05-24 | G188: 88.80535241 | H188: 39 | J188: 2015-03-25 | K188: 47.9724213 | L188: 30
F189: 2013-06-01 | G189: 22.97612458 | H189: 200 | J189: 2015-04-03 | K189: 47.58947672 | L189: 81
F190: 2013-06-01 | G190: 22.48359032 | H190: 200 | J190: 2015-04-03 | K190: 45.56060068 | L190: 54
F191: 2013-06-05 | G191: 47.40275593 | H191: 200 | J191: 2015-04-14 | K191: 63.62049171 | L191: 6.8
F192: 2013-06-15 | G192: 24.26583031 | H192: 250 | J192: 2015-04-17 | K192: 53.52202876 | L192: 20
F193: 2013-06-15 | G193: 21.93392298 | H193: 199 | J193: 2015-04-30 | K193: 44.90095595 | L193: 50.6
F194: 2013-06-21 | G194: 31.27485807 | H194: 102.4 | J194: 2015-04-30 | K194: 59.67586044 | L194: 52
F195: 2013-06-28 | G195: 56.34651237 | H195: 80 | J195: 2015-04-30 | K195: 20.03922513 | L195: 80
F196: 2013-07-02 | G196: 25.0593914 | H196: 200 | J196: 2015-05-27 | K196: 67.48081989 | L196: 4.9
F197: 2013-07-02 | G197: 52.37721928 | H197: 50.4 | J197: 2015-06-01 | K197: 74.49776873 | L197: 3.6
F198: 2013-07-07 | G198: 56.34651237 | H198: 80 | J198: 2015-06-05 | K198: 42.23697273 | L198: 100
F199: 2013-07-08 | G199: 21.44065162 | H199: 100 | J199: 2015-06-09 | K199: 67.85731322 | L199: 80
F200: 2013-07-10 | G200: 23.63515746 | H200: 249.9 | J200: 2015-06-19 | K200: 44.21057935 | L200: 100
F201: 2013-07-17 | G201: 24.57282324 | H201: 150 | J201: 2015-06-23 | K201: 48.97427676 | L201: 46
F202: 2013-07-24 | G202: 27.16994709 | H202: 205.7 | J202: 2015-06-25 | K202: 55.25886895 | L202: 100.815
F203: 2013-08-12 | G203: 50.85355844 | H203: 20 | J203: 2015-06-30 | K203: 61.36733969 | L203: 7.06
F204: 2013-08-20 | G204: 56.45129122 | H204: 184.8 | J204: 2015-07-01 | K204: 64.27365415 | L204: 13
F205: 2013-08-20 | G205: 57.74283355 | H205: 147.6 | J205: 2015-07-01 | K205: 66.01552527 | L205: 20
F206: 2013-09-11 | G206: 31.6467504 | H206: 60 | J206: 2015-07-15 | K206: 52.51249108 | L206: 125
F207: 2013-10-09 | G207: 21.46067245 | H207: 198.9 | J207: 2015-07-16 | K207: 49.14700365 | L207: 150
F208: 2013-10-10 | G208: 20.1082065 | H208: 200 | J208: 2015-07-16 | K208: 49.54732491 | L208: 180
F209: 2013-10-10 | G209: 21.45863013 | H209: 200 | J209: 2015-07-21 | K209: 46.12307381 | L209: 20
F210: 2013-10-10 | G210: 20.1082065 | H210: 199.8 | J210: 2015-08-05 | K210: 45.50416635 | L210: 30
F211: 2013-10-17 | G211: 22.29835261 | H211: 400 | J211: 2015-08-09 | K211: 41.17928559 | L211: 30
F212: 2013-10-25 | G212: 56.8750613 | H212: 19.8 | J212: 2015-08-12 | K212: 50.49154631 | L212: 10
F213: 2013-11-01 | G213: 31.07349649 | H213: 249.2 | J213: 2015-08-16 | K213: 50.49154631 | L213: 10
F214: 2013-11-06 | G214: 24.64487891 | H214: 172 | J214: 2015-08-28 | K214: 51.25032516 | L214: 150
F215: 2013-11-06 | G215: 24.64487891 | H215: 106 | J215: 2015-09-03 | K215: 74.32025095 | L215: 10.88
F216: 2013-11-18 | G216: 24.65159916 | H216: 201.6 | J216: 2015-09-23 | K216: 43.31529271 | L216: 52
F217: 2013-11-18 | G217: 90.44060534 | H217: 34.2 | J217: 2015-09-23 | K217: 47.1675972 | L217: 52
F218: 2013-12-11 | G218: 50.47530104 | H218: 51 | J218: 2015-09-24 | K218: 41.32968722 | L218: 25
F219: 2013-12-20 | G219: 20.78718014 | H219: 98 | J219: 2015-09-28 | K219: 19.63583688 | L219: 46.2
F220: 2013-12-27 | G220: 29.72152891 | H220: 149.6 | J220: 2015-09-28 | K220: 19.63583688 | L220: 71.4
F221: 2014-01-21 | G221: 20.9482665 | H221: 100.3 | J221: 2015-10-01 | K221: 36.35845875 | L221: 118.5
... 167 more rows

Sheet Recent PV PPAs vs. Gas Forecast
A1: PV PPA prices and natural gas fuel cost projections by calendar year over time
A22: Sources: Berkeley Lab, FERC, Energy Information Administration
A23: Note: PPA sample excludes projects located in Hawaii
C24: 1 | D24: =C24+1 -> 2 | E24: 3 | F24: 4 | G24: 5 | H24: 6 | I24: 7 | J24: 8 | K24: 9 | L24: 10 | M24: 11 | N24: 12 | O24: 13 | P24: 14 | Q24: 15 | R24: 16 | S24: 17 | T24: 18 | U24: 19 | V24: 20 | W24: 21 | X24: 22 | Y24: 23 | Z24: 24 | AA24: 25 | AB24: 26 | AC24: 27 | AD24: 28 | AE24: 29
C25: 2022 | E25: 2024 | G25: 2026 | I25: 2028 | K25: 2030 | M25: 2032 | O25: 2034 | Q25: 2036 | S25: 2038 | U25: 2040 | W25: 2042 | Y25: 2044 | AA25: 2046 | AC25: 2048 | AE25: 2050
A26: Aggregate PV PPA prices among 29 PPAs executed 2020-2021 (2021 $/MWh)
B27: 10th Percentile | C27: 22.9382342 | D27: 21.50147437 | E27: 19.29177274 | F27: 18.86167354 | G27: 18.42712991 | H27: 17.97137607 | I27: 17.53070783 | J27: 17.11419141 | K27: 16.72465213 | L27: 16.34759298 | M27: 15.99229044 | N27: 15.64598208 | O27: 15.30426508 | P27: 14.97270241 | Q27: 14.63553937 | R27: 14.29207285 | S27: 13.96769776 | T27: 13.6401113 | U27: 13.33754678 | V27: 13.04175391 | W27: 12.72737103 | X27: 12.20127629 | Y27: 13.72651431 | Z27: 13.42161787 | AA27: 13.23547059 | AB27: 13.61002834 | AC27: 13.72509978 | AD27: 13.71493705 | AE27: 17.24628881
B28: 50th Percentile (Median) | C28: 26.86151979 | D28: 25.72079813 | E28: 24.68228656 | F28: 23.96769525 | G28: 23.53255936 | H28: 22.95053415 | I28: 22.38777414 | J28: 21.85585749 | K28: 21.35839227 | L28: 20.87686494 | M28: 20.4231221 | N28: 19.98086538 | O28: 19.5444721 | P28: 19.12104652 | Q28: 18.88548441 | R28: 18.47639109 | S28: 18.24388468 | T28: 17.51617182 | U28: 17.12762865 | V28: 16.7477814 | W28: 16.18149862 | X28: 15.4691059 | Y28: 15.38254724 | Z28: 15.04086661 | AA28: 14.70481481 | AB28: 14.37726033 | AC28: 16.05093646 | AD28: 15.45992381 | AE28: 17.24628881
B29: 90th Percentile | C29: 38.46538388 | D29: 36.42057174 | E29: 44.67885974 | F29: 43.69533702 | G29: 43.61203896 | H29: 42.58197954 | I29: 41.585503 | J29: 40.64424532 | K29: 39.76510467 | L29: 38.91377861 | M29: 38.11246222 | N29: 37.33087113 | O29: 36.55854873 | P29: 35.80882358 | Q29: 35.34922017 | R29: 35.14291798 | S29: 34.65333195 | T29: 34.40452692 | U29: 33.65110548 | V29: 32.9143849 | W29: 32.61194337 | X29: 32.10942237 | Y29: 29.62924738 | Z29: 29.00689288 | AA29: 26.91159154 | AB29: 23.86038248 | AC29: 24.23744154 | AD29: 17.20491057 | AE29: 17.24628881
B30: Diff | C30: =C29-C27 -> 15.52714968 | D30: 14.91909738 | E30: 25.387087 | F30: 24.83366348 | G30: 25.18490905 | H30: 24.61060347 | I30: 24.05479518 | J30: 23.53005391 | K30: 23.04045254 | L30: 22.56618562 | M30: 22.12017177 | N30: 21.68488905 | O30: 21.25428365 | P30: 20.83612118 | Q30: 20.7136808 | R30: 20.85084513 | S30: 20.68563418 | T30: 20.76441562 | U30: 20.3135587 | V30: 19.87263099 | W30: 19.88457234 | X30: 19.90814608 | Y30: 15.90273307 | Z30: 15.58527501 | AA30: 13.67612095 | AB30: 10.25035414 | AC30: 10.51234176 | AD30: 3.489973521 | AE30: 0
A31: AEO 2022 Gas Price Projection (converted from $/MMBtu to 2021 $/MWh using the heat rates implied by the modeling output)
B32: Min | C32: 29.21139431 | D32: 26.08694629 | E32: 23.10138538 | F32: 21.38863433 | G32: 20.84700179 | H32: 20.76213594 | I32: 21.56038727 | J32: 21.63496699 | K32: 21.8841776 | L32: 21.93326707 | M32: 21.85282114 | N32: 22.42951433 | O32: 22.28941697 | P32: 21.87712697 | Q32: 21.66454349 | R32: 21.48785348 | S32: 21.25965659 | T32: 21.32497439 | U32: 21.1383048 | V32: 20.91992704 | W32: 20.50097287 | X32: 20.34518155 | Y32: 20.16540562 | Z32: 20.07430401 | AA32: 19.9056538 | AB32: 19.79116832 | AC32: 19.59465691 | AD32: 19.54673925 | AE32: 19.54142356
B33: Reference Case | C33: 31.1762976 | D33: 29.03651633 | E33: 26.45939931 | F33: 24.79226344 | G33: 24.58692811 | H33: 24.93033834 | I33: 25.89719143 | J33: 26.32498628 | K33: 26.79241886 | L33: 27.07316033 | M33: 27.12474455 | N33: 27.39340504 | O33: 27.09970693 | P33: 26.78042979 | Q33: 26.66820051 | R33: 26.64149061 | S33: 26.72333138 | T33: 26.68645739 | U33: 26.88834834 | V33: 26.82778138 | W33: 26.68059466 | X33: 26.61718422 | Y33: 26.23126665 | Z33: 26.13957996 | AA33: 26.10284013 | AB33: 26.04392697 | AC33: 26.16721441 | AD33: 26.02057942 | AE33: 25.93901265
B34: Max | C34: 35.38832955 | D34: 34.78563721 | E34: 33.54500778 | F34: 33.16926135 | G34: 33.70826119 | H34: 34.35566213 | I34: 36.21522504 | J34: 38.16961679 | K34: 39.2595416 | L34: 40.41964842 | M34: 41.60028032 | N34: 42.53565131 | O34: 43.53339603 | P34: 44.10598133 | Q34: 45.58293476 | R34: 45.99418638 | S34: 46.56011937 | T34: 47.4667159 | U34: 48.69836019 | V34: 48.77807668 | W34: 48.54214693 | X34: 48.37578898 | Y34: 49.32941852 | Z34: 49.68171975 | AA34: 50.04647129 | AB34: 50.46888589 | AC34: 50.83616132 | AD34: 51.48170297 | AE34: 52.18647247
B35: Diff | C35: =C34-C32 -> 6.17693524 | D35: 8.69869092 | E35: 10.4436224 | F35: 11.78062702 | G35: 12.86125941 | H35: 13.59352619 | I35: 14.65483777 | J35: 16.5346498 | K35: 17.37536401 | L35: 18.48638135 | M35: 19.74745919 | N35: 20.10613698 | O35: 21.24397906 | P35: 22.22885436 | Q35: 23.91839127 | R35: 24.5063329 | S35: 25.30046278 | T35: 26.1417415 | U35: 27.56005539 | V35: 27.85814964 | W35: 28.04117407 | X35: 28.03060742 | Y35: 29.1640129 | Z35: 29.60741574 | AA35: 30.14081749 | AB35: 30.67771757 | AC35: 31.24150442 | AD35: 31.93496373 | AE35: 32.64504891

Sheet PV Curtailment
A1: PV curtailment by quarter or month and region
A2: Note: The curtailment percentage rate depicts reported utility-scale solar curtailment relative to the combined sum of utility-scale and distributed solar generation (on a pre-curtailment basis).
A24: Sources: Berkeley Lab, CAISO, ERCOT | K24: Sources: Berkeley Lab, CAISO, ERCOT
C26: CAISO | D26: ERCOT | H26: Q1 | I26: Q2 | J26: Q3 | K26: Q4 | L26: Total
A27: Jan-Dec 2015 | C27: 0.005310133542 | D27: 0.0001981975683 | F27: CAISO | G27: 2015 | H27: 0.001522299986 | I27: 0.002823132085 | J27: 0.0006153888195 | K27: 0.0009082030599 | L27: =SUM(H27:K27) -> 0.005869023951
C28: 0.007010735603 | D28: 6.940476033e-05 | G28: 2016 | H28: 0.002244205481 | I28: 0.002490951958 | J28: 0.0009988134916 | K28: 0.002288723538 | L28: =SUM(H28:K28) -> 0.008022694469
C29: 0.009825266783 | D29: 0.0004604261798 | G29: 2017 | H29: 0.004008816592 | I29: 0.003696345148 | J29: 0.0008031361179 | K29: 0.001036992049 | L29: 0.009545289907
C30: 0.009400263437 | D30: 0.0007122766821 | G30: 2018 | H30: 0.003380756502 | I30: 0.003327384543 | J30: 0.0008883137991 | K30: 0.002758949257 | L30: 0.0103554041
C31: 0.01532814854 | D31: 0.001335190326 | G31: 2019 | H31: 0.005853829206 | I31: 0.01042906255 | J31: 0.002236066 | K31: 0.005550466214 | L31: 0.02406942397
C32: 0.00397147438 | D32: 0.002660737013 | G32: 2020 | H32: 0.01006577682 | I32: 0.01717597123 | J32: 0.00234793362 | K32: 0.004297106969 | L32: 0.03388678864
C33: 0.002210287946 | D33: 0.0005539867684 | G33: 2021 | H33: 0.008971459771 | I33: 0.01077072969 | J33: 0.001927265447 | K33: 0.004191598402 | L33: 0.02586105331
C34: 0.002551148097 | D34: 5.446053071e-05
C35: 0.001343580248 | D35: 0.002548297809 | F35: ERCOT | G35: 2015 | H35: 4.868331906e-05 | I35: 0.0004489266615 | J35: 0.0003152909469 | K35: 9.003954686e-05 | L35: 0.0009029404743
C36: 0.002072744361 | D36: 0.000448710413 | G36: 2016 | H36: 0.000246387031 | I36: 0.0003172988205 | J36: 0.0003022200933 | K36: 0.0009145219814 | L36: 0.001780427926
C37: 0.005703078895 | D37: 0.0001670292689 | G37: 2017 | H37: 0.00089057146 | I37: 0.009894657689 | J37: 0.002658764391 | K37: 0.002180437698 | L37: 0.01562443124
C38: 0.005524721616 | D38: 0.0005838907181 | G38: 2018 | H38: 0.004462266158 | I38: 0.03199124275 | J38: 0.01878174436 | K38: 0.01180006718 | L38: 0.06703532046
G39: 2019 | H39: 0.02114010273 | I39: 0.01519969588 | J39: 0.004301019581 | K39: 0.008885301371 | L39: =SUM(H39:K39) -> 0.04952611956
A40: Jan-Dec 2016 | C40: 0.005160875641 | D40: 0.0001628615982 | G40: 2020 | H40: 0.007162339929 | I40: 0.01314493336 | J40: 0.008474337989 | K40: 0.03231496911 | L40: =SUM(H40:K40) -> 0.0610965804
C41: 0.008583280084 | D41: 0.002351624957 | G41: 2021 | H41: 0.02497989437 | I41: 0.02675204947 | J41: 0.01517482817 | K41: 0.02952994037 | L41: =SUM(H41:K41) -> 0.09643671239
C42: 0.01932890354 | D42: 0.0009745234468
C43: 0.01268460851 | D43: 0.001723654116
C44: 0.008721399621 | D44: 0.00146803774
C45: 0.005066998676 | D45: 0.0007279660317
C46: 0.001282209183 | D46: 0.001340616587
C47: 0.001857959925 | D47: 0.0002546800843
C48: 0.006799980593 | D48: 0.001418682037
C49: 0.009254049726 | D49: 0.004370542201
C50: 0.01133316538 | D50: 0.003533672626
C51: 0.01179791096 | D51: 0.002514583894
A53: Jan-Dec 2017 | C53: 0.01296411146 | D53: 0.004259895321
C54: 0.02735602622 | D54: 0.002364955788
C55: 0.02446516639 | D55: 0.0100617422
C56: 0.02497849233 | D56: 0.03621847289
C57: 0.007653473355 | D57: 0.04696111151
C58: 0.005263348666 | D58: 0.02007824362
C59: 0.001707237189 | D59: 0.01082587214
C60: 0.00132466044 | D60: 0.008904492927
C61: 0.005174753803 | D61: 0.005477629769
C62: 0.004895246998 | D62: 0.008422246448
C63: 0.005456304196 | D63: 0.01138574772
C64: 0.004694335651 | D64: 0.005587173813
A66: Jan-Dec 2018 | C66: 0.005762108928 | D66: 0.01154728577
C67: 0.01323503379 | D67: 0.0102265141
C68: 0.02858532677 | D68: 0.04234260807
C69: 0.01518046597 | D69: 0.1156109459
C70: 0.01362375645 | D70: 0.1434625454
C71: 0.0038337879 | D71: 0.07249522096
C72: 0.001821026267 | D72: 0.04524072215
C73: 0.003383681022 | D73: 0.07680286726
C74: 0.003742982386 | D74: 0.05859189134
C75: 0.02458468677 | D75: 0.04804185552
C76: 0.009101778986 | D76: 0.06696771832
C77: 0.0039008327 | D77: 0.05978460121
A79: Jan-Dec 2019 | C79: 0.008085677975 | D79: 0.08738677457
C80: 0.04206433232 | D80: 0.116452806
C81: 0.03814761989 | D81: 0.1181593814
C82: 0.04717729888 | D82: 0.06033441
C83: 0.04973320095 | D83: 0.06659874972
C84: 0.008261208492 | D84: 0.02974977414
C85: 0.00405761023 | D85: 0.009264623748
C86: 0.003011801946 | D86: 0.001585532793
C87: 0.01553308124 | D87: 0.0370040673
C88: 0.01583655889 | D88: 0.0892219729
C89: 0.03499755813 | D89: 0.02190267433
C90: 0.04461499365 | D90: 0.005482158505
A92: Jan-Dec 2020 | C92: 0.05524784732 | D92: 0.04513031828
C93: 0.04956929824 | D93: 0.0537541005
C94: 0.05071031434 | D94: 0.04741491403
C95: 0.07660285546 | D95: 0.07878909002
C96: 0.05108145521 | D96: 0.05222269564
C97: 0.04124634838 | D97: 0.02794063284
C98: 0.005757843576 | D98: 0.01220848255
C99: 0.004958766129 | D99: 0.03215876887
C100: 0.01408496353 | D100: 0.03230494196
C101: 0.02547956358 | D101: 0.1322681774
C102: 0.01936892202 | D102: 0.1393254063
C103: 0.02055440622 | D103: 0.103896946
A105: Jan-Dec 2021 | C105: 0.02022254936 | D105: 0.09155148508
C106: 0.03665057036 | D106: 0.1638842744
C107: 0.06769737498 | D107: 0.1642334277
C108: 0.03176397827 | D108: 0.1709275259
C109: 0.05321874961 | D109: 0.1021644602
C110: 0.0155825822 | D110: 0.04688829796
C111: 0.00594817096 | D111: 0.04241486654
C112: 0.005931923011 | D112: 0.04638326302
C113: 0.007617204676 | D113: 0.05345754156
C114: 0.03129336339 | D114: 0.1445670044
C115: 0.01148637264 | D115: 0.09837603698
C116: 0.02238999629 | D116: 0.1231240281

Sheet Energy and Capacity Value
A1: Solar's energy and capacity value by region and year
A19: Sources: Berkeley Lab, ABB, ISOs
A20: Notes: Solar Value describes generation-weighted value of utility-scale solar generation. For more details on methodology see Berkeley Lab publication "Mills et al, 2021, Solar-to-Grid" https://emp.lbl.gov/renewable-grid-insights
A25: ISOs Only | L25: Non-ISO BAs Only | W25: ISOs and non-ISO BAs Combined | AH25: National generation-weighted average
C26: Solar | D26: Solar | E26: Solar | F26: Combined | G26: Combined | N26: Solar | O26: Solar | P26: Solar | Q26: Combined | R26: Combined | Y26: Solar | Z26: Solar | AA26: Solar | AB26: Combined | AC26: Combined | AI26: Solar | AJ26: Solar | AK26: Solar
C27: Energy | D27: Capacity | E27: Combined | F27: Value | G27: Value | N27: Energy | O27: Capacity | P27: Combined | Q27: Value | R27: Value | Y27: Energy | Z27: Capacity | AA27: Combined | AB27: Value | AC27: Value | AH27: Year | AI27: Energy | AJ27: Capacity | AK27: Combined
C28: Value | D28: Value | E28: Value | F28: 10th % | G28: 90th % | H28: Subtract | I28: Add | J28: Year | N28: Value | O28: Value | P28: Value | Q28: 10th % | R28: 90th % | S28: Subtract | T28: Add | U28: Year | Y28: Value | Z28: Value | AA28: Value | AB28: 10th % | AC28: 90th % | AD28: Subtract | AE28: Add | AF28: Year | AI28: Value | AJ28: Value | AK28: Value
A29: CAISO | C29: 36.31161113 | D29: 17.815806 | E29: 54.12741713 | F29: 52.65 | G29: 76.825 | H29: 1.47741713 | I29: 22.69758287 | J29: 2012 | L29: PNM | N29: 22.09590391 | O29: 23.85882295 | P29: 45.95472686 | Q29: 40.89 | R29: 49.685 | S29: 5.064726855 | T29: 3.730273145 | U29: 2012 | W29: CAISO | Y29: 36.31161113 | Z29: 17.815806 | AA29: 54.12741713 | AB29: 52.65 | AC29: 76.825 | AD29: 1.47741713 | AE29: 22.69758287 | AF29: 2012 | AH29: 2012 | AI29: 36.81259234 | AJ29: 17.8374648 | AK29: 54.65005714
C30: 43.97547788 | D30: 17.12378226 | E30: 61.09926014 | F30: 59.436 | G30: 76.506 | H30: 1.663260141 | I30: 15.40673986 | J30: 2013 | N30: 44.12011992 | O30: 18.83204938 | P30: 62.95216929 | Q30: 57.228 | R30: 71.492 | S30: 5.724169293 | T30: 8.539830707 | U30: 2013 | Y30: 43.97547788 | Z30: 17.12378226 | AA30: 61.09926014 | AB30: 59.436 | AC30: 76.506 | AD30: 1.663260141 | AE30: 15.40673986 | AF30: 2013 | AH30: 2013 | AI30: 45.02536443 | AJ30: 17.25605945 | AK30: 62.28142388
C31: 45.38541703 | D31: 16.74369318 | E31: 62.12911021 | F31: 60.994 | G31: 82.182 | H31: 1.135110211 | I31: 20.05288979 | J31: 2014 | N31: 48.38671154 | O31: 10.38472659 | P31: 58.77143813 | Q31: 55.686 | R31: 64.306 | S31: 3.085438131 | T31: 5.534561869 | U31: 2014 | Y31: 45.38541703 | Z31: 16.74369318 | AA31: 62.12911021 | AB31: 60.994 | AC31: 82.182 | AD31: 1.135110211 | AE31: 20.05288979 | AF31: 2014 | AH31: 2014 | AI31: 47.13390948 | AJ31: 14.71550245 | AK31: 61.84941193
C32: 27.10198771 | D32: 12.187461 | E32: 39.28944872 | F32: 38.502 | G32: 55.996 | H32: 0.7874487175 | I32: 16.70655128 | J32: 2015 | N32: 28.24890943 | O32: 14.69181423 | P32: 42.94072366 | Q32: 39.748 | R32: 47.008 | S32: 3.192723655 | T32: 4.067276345 | U32: 2015 | Y32: 27.10198771 | Z32: 12.187461 | AA32: 39.28944872 | AB32: 38.502 | AC32: 55.996 | AD32: 0.7874487175 | AE32: 16.70655128 | AF32: 2015 | AH32: 2015 | AI32: 29.41982262 | AJ32: 12.37812697 | AK32: 41.79794959
C33: 23.89235432 | D33: 9.351516273 | E33: 33.2438706 | F33: 32.97 | G33: 43.616 | H33: 0.2738705964 | I33: 10.3721294 | J33: 2016 | N33: 25.17326108 | O33: 15.24043769 | P33: 40.41369877 | Q33: 36.655 | R33: 44.448 | S33: 3.758698766 | T33: 4.034301234 | U33: 2016 | Y33: 23.89235432 | Z33: 9.351516273 | AA33: 33.2438706 | AB33: 32.97 | AC33: 43.616 | AD33: 0.2738705964 | AE33: 10.3721294 | AF33: 2016 | AH33: 2016 | AI33: 26.29028432 | AJ33: 10.74330494 | AK33: 37.03358925
B34: CAISO | C34: 25.67406864 | D34: 9.174713416 | E34: 34.84878206 | F34: 34.108 | G34: 44.102 | H34: 0.7407820578 | I34: 9.253217942 | J34: 2017 | N34: 21.31257796 | O34: 9.326315699 | P34: 30.63889366 | Q34: 27.548 | R34: 32.489 | S34: 3.090893656 | T34: 1.850106344 | U34: 2017 | Y34: 25.67406864 | Z34: 9.174713416 | AA34: 34.84878206 | AB34: 34.108 | AC34: 44.102 | AD34: 0.7407820578 | AE34: 9.253217942 | AF34: 2017 | AH34: 2017 | AI34: 27.75307082 | AJ34: 10.57634176 | AK34: 38.32941258
C35: 26.14620041 | D35: 5.099748209 | E35: 31.24594862 | F35: 28.38 | G35: 40.95 | H35: 2.865948621 | I35: 9.704051379 | J35: 2018 | N35: 28.72493283 | O35: 12.54103423 | P35: 41.26596706 | Q35: 36.3 | R35: 42.88 | S35: 4.965967061 | T35: 1.614032939 | U35: 2018 | Y35: 26.14620041 | Z35: 5.099748209 | AA35: 31.24594862 | AB35: 28.38 | AC35: 40.95 | AD35: 2.865948621 | AE35: 9.704051379 | AF35: 2018 | AH35: 2018 | AI35: 30.57991164 | AJ35: 7.814589299 | AK35: 38.39450094
C36: 23.60369353 | D36: 6.400426296 | E36: 30.00411983 | F36: 25.964 | G36: 40.256 | H36: 4.040119831 | I36: 10.25188017 | J36: 2019 | M36: PNM | N36: 26.80290182 | O36: 11.03646528 | P36: 37.8393671 | Q36: 34.236 | R36: 40.252 | S36: 3.603367098 | T36: 2.412632902 | U36: 2019 | Y36: 23.60369353 | Z36: 6.400426296 | AA36: 30.00411983 | AB36: 25.964 | AC36: 40.256 | AD36: 4.040119831 | AE36: 10.25188017 | AF36: 2019 | AH36: 2019 | AI36: 28.46037623 | AJ36: 8.508900021 | AK36: 36.96927626
C37: 20.12061168 | D37: 7.185490493 | E37: 27.30610218 | F37: 25.9 | G37: 38.047 | H37: 1.406102175 | I37: 10.74089782 | J37: 2020 | N37: 22.02485709 | O37: 17.97429183 | P37: 39.99914892 | Q37: 36.92 | R37: 44.412 | S37: 3.079148924 | T37: 4.412851076 | U37: 2020 | Y37: 20.12061168 | Z37: 7.185490493 | AA37: 27.30610218 | AB37: 25.9 | AC37: 38.047 | AD37: 1.406102175 | AE37: 10.74089782 | AF37: 2020 | AH37: 2020 | AI37: 21.76407821 | AJ37: 8.586616604 | AK37: 30.35069482
C38: 27.18057017 | D38: 7.157638436 | E38: 34.33820861 | F38: 34.135 | G38: 49.445 | H38: 0.2032086098 | I38: 15.10679139 | J38: 2021 | N38: 27.54223872 | O38: 26.5394201 | P38: 54.08165881 | Q38: 50.5 | R38: 59.77 | S38: 3.581658812 | T38: 5.688341188 | U38: 2021 | X38: CAISO | Y38: 27.18057017 | Z38: 7.157638436 | AA38: 34.33820861 | AB38: 34.135 | AC38: 49.445 | AD38: 0.2032086098 | AE38: 15.10679139 | AF38: 2021 | AH38: 2021 | AI38: 38.1632965 | AJ38: 9.014671451 | AK38: 47.17796795
A40: ISO-NE | C40: 49.50973755 | D40: 4.552656818 | E40: 54.06239437 | F40: 50.696 | G40: 56.015 | H40: 3.366394372 | I40: 1.952605628 | J40: 2012 | L40: NEVP | N40: 25.03773254 | O40: 18.8324082 | P40: 43.87014074 | Q40: 43.736 | R40: 46.576 | S40: 0.1341407354 | T40: 2.705859265 | U40: 2012 | W40: PNM | Y40: 22.09590391 | Z40: 23.85882295 | AA40: 45.95472686 | AB40: 40.89 | AC40: 49.685 | AD40: 5.064726855 | AE40: 3.730273145 | AF40: 2012
C41: 67.06557916 | D41: 4.13087596 | E41: 71.19645512 | F41: 62.674 | G41: 75.94 | H41: 8.522455115 | I41: 4.743544885 | J41: 2013 | N41: 41.84514483 | O41: 13.65613581 | P41: 55.50128064 | Q41: 53.77 | R41: 60.015 | S41: 1.731280642 | T41: 4.513719358 | U41: 2013 | Y41: 44.12011992 | Z41: 18.83204938 | AA41: 62.95216929 | AB41: 57.228 | AC41: 71.492 | AD41: 5.724169293 | AE41: 8.539830707 | AF41: 2013
C42: 65.71469013 | D42: 4.370550047 | E42: 70.08524018 | F42: 51.861 | G42: 80.982 | H42: 18.22424018 | I42: 10.89675982 | J42: 2014 | N42: 43.64455139 | O42: 9.559685377 | P42: 53.20423677 | Q42: 49.989 | R42: 57.295 | S42: 3.215236771 | T42: 4.090763229 | U42: 2014 | Y42: 48.38671154 | Z42: 10.38472659 | AA42: 58.77143813 | AB42: 55.686 | AC42: 64.306 | AD42: 3.085438131 | AE42: 5.534561869 | AF42: 2014
C43: 43.69344767 | D43: 4.687083515 | E43: 48.38053119 | F43: 41.02 | G43: 53.674 | H43: 7.360531187 | I43: 5.293468813 | J43: 2015 | N43: 28.73527643 | O43: 10.84367388 | P43: 39.57895032 | Q43: 36.837 | R43: 43.178 | S43: 2.741950316 | T43: 3.599049684 | U43: 2015 | Y43: 28.24890943 | Z43: 14.69181423 | AA43: 42.94072366 | AB43: 39.748 | AC43: 47.008 | AD43: 3.192723655 | AE43: 4.067276345 | AF43: 2015
C44: 33.82737457 | D44: 4.783723298 | E44: 38.61109787 | F44: 35.508 | G44: 41.066 | H44: 3.10309787 | I44: 2.45490213 | J44: 2016 | N44: 24.29282799 | O44: 12.04061275 | P44: 36.33344074 | Q44: 33.734 | R44: 39.829 | S44: 2.599440745 | T44: 3.495559255 | U44: 2016 | Y44: 25.17326108 | Z44: 15.24043769 | AA44: 40.41369877 | AB44: 36.655 | AC44: 44.448 | AD44: 3.758698766 | AE44: 4.034301234 | AF44: 2016
B45: ISO-NE | C45: 33.16968784 | D45: 8.631878069 | E45: 41.80156591 | F45: 37.19 | G45: 46.3 | H45: 4.611565908 | I45: 4.498434092 | J45: 2017 | N45: 31.76970436 | O45: 5.549629102 | P45: 37.31933347 | Q45: 35.49 | R45: 41.628 | S45: 1.829333466 | T45: 4.308666534 | U45: 2017 | Y45: 21.31257796 | Z45: 9.326315699 | AA45: 30.63889366 | AB45: 27.548 | AC45: 32.489 | AD45: 3.090893656 | AE45: 1.850106344 | AF45: 2017
C46: 41.33611311 | D46: 14.88831939 | E46: 56.22443251 | F46: 48.97 | G46: 64.775 | H46: 7.254432508 | I46: 8.550567492 | J46: 2018 | N46: 28.99529657 | O46: 7.004828342 | P46: 36.00012491 | Q46: 33.492 | R46: 38.596 | S46: 2.508124913 | T46: 2.595875087 | U46: 2018 | Y46: 28.72493283 | Z46: 12.54103423 | AA46: 41.26596706 | AB46: 36.3 | AC46: 42.88 | AD46: 4.965967061 | AE46: 1.614032939 | AF46: 2018
C47: 28.81604647 | D47: 12.42921274 | E47: 41.24525921 | F47: 37.769 | G47: 46.51 | H47: 3.47625921 | I47: 5.26474079 | J47: 2019 | M47: NEVP | N47: 26.6801517 | O47: 4.808293172 | P47: 31.48844487 | Q47: 28.158 | R47: 34.646 | S47: 3.33044487 | T47: 3.15755513 | U47: 2019 | Y47: 26.80290182 | Z47: 11.03646528 | AA47: 37.8393671 | AB47: 34.236 | AC47: 40.252 | AD47: 3.603367098 | AE47: 2.412632902 | AF47: 2019
C48: 21.65755472 | D48: 8.154320206 | E48: 29.81187493 | F48: 28.68 | G48: 31.22 | H48: 1.131874927 | I48: 1.408125073 | J48: 2020 | N48: 23.51760424 | O48: 8.929136543 | P48: 32.44674078 | Q48: 27.706 | R48: 34.763 | S48: 4.740740779 | T48: 2.316259221 | U48: 2020 | Y48: 22.02485709 | Z48: 17.97429183 | AA48: 39.99914892 | AB48: 36.92 | AC48: 44.412 | AD48: 3.079148924 | AE48: 4.412851076 | AF48: 2020
C49: 38.58420613 | D49: 6.732626495 | E49: 45.31683263 | F49: 43.91 | G49: 46.7 | H49: 1.406832625 | I49: 1.383167375 | J49: 2021 | N49: 25.32962518 | O49: 15.8024551 | P49: 41.13208028 | Q49: 35.53 | R49: 45.51 | S49: 5.602080279 | T49: 4.377919721 | U49: 2021 | X49: PNM | Y49: 27.54223872 | Z49: 26.5394201 | AA49: 54.08165881 | AB49: 50.5 | AC49: 59.77 | AD49: 3.581658812 | AE49: 5.688341188 | AF49: 2021
A51: ERCOT | C51: 38.61332076 | D51: 0 | E51: 38.61332076 | F51: 38.203 | G51: 39.907 | H51: 0.4103207554 | I51: 1.293679245 | J51: 2012 | L51: AZPS | N51: 22.5701979 | O51: 19.54273551 | P51: 42.11293341 | Q51: 41.076 | R51: 43.742 | S51: 1.036933414 | T51: 1.629066586 | U51: 2012 | W51: NEVP | Y51: 25.03773254 | Z51: 18.8324082 | AA51: 43.87014074 | AB51: 43.736 | AC51: 46.576 | AD51: 0.1341407354 | AE51: 2.705859265 | AF51: 2012
C52: 44.13885573 | D52: 0 | E52: 44.13885573 | F52: 43.8 | G52: 45.655 | H52: 0.3388557275 | I52: 1.516144273 | J52: 2013 | N52: 39.35049015 | O52: 14.37699573 | P52: 53.72748588 | Q52: 51.352 | R52: 57.444 | S52: 2.375485881 | T52: 3.716514119 | U52: 2013 | Y52: 41.84514483 | Z52: 13.65613581 | AA52: 55.50128064 | AB52: 53.77 | AC52: 60.015 | AD52: 1.731280642 | AE52: 4.513719358 | AF52: 2013
C53: 46.39650445 | D53: 0 | E53: 46.39650445 | F53: 45.902 | G53: 49.157 | H53: 0.4945044533 | I53: 2.760495547 | J53: 2014 | N53: 39.59114107 | O53: 8.683171642 | P53: 48.27431271 | Q53: 46.65 | R53: 52.704 | S53: 1.624312714 | T53: 4.429687286 | U53: 2014 | Y53: 43.64455139 | Z53: 9.559685377 | AA53: 53.20423677 | AB53: 49.989 | AC53: 57.295 | AD53: 3.215236771 | AE53: 4.090763229 | AF53: 2014
C54: 34.20139457 | D54: 0 | E54: 34.20139457 | F54: 33.255 | G54: 35.258 | H54: 0.946394566 | I54: 1.056605434 | J54: 2015 | N54: 26.7992558 | O54: 10.05069891 | P54: 36.84995471 | Q54: 34.821 | R54: 42.028 | S54: 2.028954713 | T54: 5.178045287 | U54: 2015 | Y54: 28.73527643 | Z54: 10.84367388 | AA54: 39.57895032 | AB54: 36.837 | AC54: 43.178 | AD54: 2.741950316 | AE54: 3.599049684 | AF54: 2015
C55: 32.90804952 | D55: 0 | E55: 32.90804952 | F55: 30.268 | G55: 37.168 | H55: 2.640049516 | I55: 4.259950484 | J55: 2016 | N55: 21.69960739 | O55: 11.60695025 | P55: 33.30655764 | Q55: 32.15 | R55: 36.77 | S55: 1.156557639 | T55: 3.463442361 | U55: 2016 | Y55: 24.29282799 | Z55: 12.04061275 | AA55: 36.33344074 | AB55: 33.734 | AC55: 39.829 | AD55: 2.599440745 | AE55: 3.495559255 | AF55: 2016
B56: ERCOT | C56: 25.46612168 | D56: 0 | E56: 25.46612168 | F56: 18.046 | G56: 35.53 | H56: 7.420121675 | I56: 10.06387832 | J56: 2017 | N56: 21.48837688 | O56: 7.677217148 | P56: 29.16559403 | Q56: 26.36 | R56: 32.47 | S56: 2.805594028 | T56: 3.304405972 | U56: 2017 | Y56: 31.76970436 | Z56: 5.549629102 | AA56: 37.31933347 | AB56: 35.49 | AC56: 41.628 | AD56: 1.829333466 | AE56: 4.308666534 | AF56: 2017
C57: 36.64610057 | D57: 0 | E57: 36.64610057 | F57: 36.508 | G57: 44.748 | H57: 0.1381005675 | I57: 8.101899432 | J57: 2018 | N57: 28.69763366 | O57: 10.60644887 | P57: 39.30408253 | Q57: 35.52 | R57: 43.05 | S57: 3.784082531 | T57: 3.745917469 | U57: 2018 | Y57: 28.99529657 | Z57: 7.004828342 | AA57: 36.00012491 | AB57: 33.492 | AC57: 38.596 | AD57: 2.508124913 | AE57: 2.595875087 | AF57: 2018
C58: 60.78797586 | D58: 0 | E58: 60.78797586 | F58: 59.236 | G58: 76.918 | H58: 1.551975864 | I58: 16.13002414 | J58: 2019 | M58: AZPS | N58: 25.19248293 | O58: 8.098539674 | P58: 33.29102261 | Q58: 29.518 | R58: 36.631 | S58: 3.773022609 | T58: 3.339977391 | U58: 2019 | Y58: 26.6801517 | Z58: 4.808293172 | AA58: 31.48844487 | AB58: 28.158 | AC58: 34.646 | AD58: 3.33044487 | AE58: 3.15755513 | AF58: 2019
C59: 24.52992413 | D59: 0 | E59: 24.52992413 | F59: 21.768 | G59: 29.691 | H59: 2.761924126 | I59: 5.161075874 | J59: 2020 | N59: 22.56677558 | O59: 14.74926701 | P59: 37.31604259 | Q59: 32.07 | R59: 41.994 | S59: 5.246042593 | T59: 4.677957407 | U59: 2020 | Y59: 23.51760424 | Z59: 8.929136543 | AA59: 32.44674078 | AB59: 27.706 | AC59: 34.763 | AD59: 4.740740779 | AE59: 2.316259221 | AF59: 2020
C60: 78.48390839 | D60: 0 | E60: 78.48390839 | F60: 70.825 | G60: 99.85 | H60: 7.658908391 | I60: 21.36609161 | J60: 2021 | N60: 27.77841899 | O60: 24.93048134 | P60: 52.70890033 | Q60: 46.71 | R60: 58.2 | S60: 5.998900325 | T60: 5.491099675 | U60: 2021 | X60: NEVP | Y60: 25.32962518 | Z60: 15.8024551 | AA60: 41.13208028 | AB60: 35.53 | AC60: 45.51 | AD60: 5.602080279 | AE60: 4.377919721 | AF60: 2021
A62: NYISO | C62: 69.93594 | D62: 3.177890501 | E62: 73.1138305 | F62: 73.552 | G62: 75.7 | H62: -0.4381695009 | I62: 2.586169501 | J62: 2012 | L62: PACE | U62: 2012 | W62: AZPS | Y62: 22.5701979 | Z62: 19.54273551 | AA62: 42.11293341 | AB62: 41.076 | AC62: 43.742 | AD62: 1.036933414 | AE62: 1.629066586 | AF62: 2012
C63: 90.01476625 | D63: 16.45696685 | E63: 106.4717331 | F63: 105.29 | G63: 112.268 | H63: 1.181733102 | I63: 5.796266898 | J63: 2013 | N63: 37.7 | O63: 19.03 | P63: 56.73 | Q63: 56.73 | R63: 56.73 | S63: 0 | T63: 0 | U63: 2013 | Y63: 39.35049015 | Z63: 14.37699573 | AA63: 53.72748588 | AB63: 51.352 | AC63: 57.444 | AD63: 2.375485881 | AE63: 3.716514119 | AF63: 2013
C64: 76.65138548 | D64: 13.31674184 | E64: 89.96812733 | F64: 80.742 | G64: 90.916 | H64: 9.226127328 | I64: 0.9478726719 | J64: 2014 | N64: 40.8 | O64: 15.46 | P64: 56.26 | Q64: 56.26 | R64: 56.26 | S64: 0 | T64: 0 | U64: 2014 | Y64: 39.59114107 | Z64: 8.683171642 | AA64: 48.27431271 | AB64: 46.65 | AC64: 52.704 | AD64: 1.624312714 | AE64: 4.429687286 | AF64: 2014
C65: 51.67512767 | D65: 11.23878163 | E65: 62.9139093 | F65: 41.348 | G65: 69.974 | H65: 21.5659093 | I65: 7.060090704 | J65: 2015 | N65: 25.12 | O65: 17.97 | P65: 43.09 | Q65: 43.09 | R65: 43.09 | S65: 0 | T65: 0 | U65: 2015 | Y65: 26.7992558 | Z65: 10.05069891 | AA65: 36.84995471 | AB65: 34.821 | AC65: 42.028 | AD65: 2.028954713 | AE65: 5.178045287 | AF65: 2015
C66: 41.02347259 | D66: 9.311049713 | E66: 50.3345223 | F66: 36.89 | G66: 55.749 | H66: 13.4445223 | I66: 5.414477698 | J66: 2016 | N66: 22.99394361 | O66: 16.69290707 | P66: 39.68685068 | Q66: 40.77 | R66: 47.592 | S66: -1.083149323 | T66: 7.905149323 | U66: 2016 | Y66: 21.69960739 | Z66: 11.60695025 | AA66: 33.30655764 | AB66: 32.15 | AC66: 36.77 | AD66: 1.156557639 | AE66: 3.463442361 | AF66: 2016
B67: NYISO | C67: 36.47810601 | D67: 11.4064079 | E67: 47.88451392 | F67: 34.04 | G67: 57.688 | H67: 13.84451392 | I67: 9.803486081 | J67: 2017 | N67: 22.54257034 | O67: 7.671236753 | P67: 30.21380709 | Q67: 29.177 | R67: 35.426 | S67: 1.036807092 | T67: 5.212192908 | U67: 2017 | Y67: 21.48837688 | Z67: 7.677217148 | AA67: 29.16559403 | AB67: 26.36 | AC67: 32.47 | AD67: 2.805594028 | AE67: 3.304405972 | AF67: 2017
C68: 43.11214932 | D68: 9.037559325 | E68: 52.14970864 | F68: 38.63 | G68: 63.608 | H68: 13.51970864 | I68: 11.45829136 | J68: 2018 | N68: 26.27987275 | O68: 10.49902162 | P68: 36.77889437 | Q68: 35.702 | R68: 39.026 | S68: 1.07689437 | T68: 2.24710563 | U68: 2018 | Y68: 28.69763366 | Z68: 10.60644887 | AA68: 39.30408253 | AB68: 35.52 | AC68: 43.05 | AD68: 3.784082531 | AE68: 3.745917469 | AF68: 2018
C69: 31.02198559 | D69: 6.400566311 | E69: 37.4225519 | F69: 25.695 | G69: 48.093 | H69: 11.7275519 | I69: 10.6704481 | J69: 2019 | M69: PACE | N69: 23.98859214 | O69: 9.071364217 | P69: 33.05995636 | Q69: 31.986 | R69: 34.976 | S69: 1.07395636 | T69: 1.91604364 | U69: 2019 | Y69: 25.19248293 | Z69: 8.098539674 | AA69: 33.29102261 | AB69: 29.518 | AC69: 36.631 | AD69: 3.773022609 | AE69: 3.339977391 | AF69: 2019
C70: 22.7433154 | D70: 7.190934031 | E70: 29.93424943 | F70: 22.49 | G70: 38.302 | H70: 7.44424943 | I70: 8.36775057 | J70: 2020 | N70: 20.61802173 | O70: 15.55563114 | P70: 36.17365287 | Q70: 33.08 | R70: 39.57 | S70: 3.093652865 | T70: 3.396347135 | U70: 2020 | Y70: 22.56677558 | Z70: 14.74926701 | AA70: 37.31604259 | AB70: 32.07 | AC70: 41.994 | AD70: 5.246042593 | AE70: 4.677957407 | AF70: 2020
C71: 40.34296168 | D71: 8.595361348 | E71: 48.93832303 | F71: 36.412 | G71: 53.472 | H71: 12.52632303 | I71: 4.533676974 | J71: 2021 | N71: 27.04287199 | O71: 24.19760036 | P71: 51.24047235 | Q71: 50.061 | R71: 57.656 | S71: 1.179472347 | T71: 6.415527653 | U71: 2021 | X71: AZPS | Y71: 27.77841899 | Z71: 24.93048134 | AA71: 52.70890033 | AB71: 46.71 | AC71: 58.2 | AD71: 5.998900325 | AE71: 5.491099675 | AF71: 2021
A73: PJM | C73: 47.34110273 | D73: 16.48522065 | E73: 63.82632339 | F73: 60.473 | G73: 70.233 | H73: 3.353323386 | I73: 6.406676614 | J73: 2012 | L73: CPLE | N73: 42.10893782 | O73: 26.37458801 | P73: 68.48352583 | Q73: 67.302 | R73: 70.854 | S73: 1.181525827 | T73: 2.370474173 | U73: 2012 | W73: PACE | AF73: 2012
C74: 52.0573788 | D74: 22.2337203 | E74: 74.29109911 | F74: 63.429 | G74: 87.882 | H74: 10.86209911 | I74: 13.59090089 | J74: 2013 | N74: 44.18513831 | O74: 14.6399832 | P74: 58.82512151 | Q74: 57.69 | R74: 60.987 | S74: 1.135121509 | T74: 2.161878491 | U74: 2013 | Y74: 37.7 | Z74: 19.03 | AA74: 56.73 | AB74: 56.73 | AC74: 56.73 | AD74: 0 | AE74: 0 | AF74: 2013
C75: 62.84967003 | D75: 22.00899524 | E75: 84.85866527 | F75: 78.647 | G75: 95.959 | H75: 6.21166527 | I75: 11.10033473 | J75: 2014 | N75: 53.35116012 | O75: 9.766766755 | P75: 63.11792688 | Q75: 58.859 | R75: 68.869 | S75: 4.258926877 | T75: 5.751073123 | U75: 2014 | Y75: 40.8 | Z75: 15.46 | AA75: 56.26 | AB75: 56.26 | AC75: 56.26 | AD75: 0 | AE75: 0 | AF75: 2014
C76: 41.94392569 | D76: 19.85983934 | E76: 61.80376503 | F76: 56.698 | G76: 71.856 | H76: 5.105765026 | I76: 10.05223497 | J76: 2015 | N76: 37.68435089 | O76: 9.868921079 | P76: 47.55327197 | Q76: 42.01 | R76: 53.89 | S76: 5.543271969 | T76: 6.336728031 | U76: 2015 | Y76: 25.12 | Z76: 17.97 | AA76: 43.09 | AB76: 43.09 | AC76: 43.09 | AD76: 0 | AE76: 0 | AF76: 2015
C77: 34.69343459 | D77: 16.22284137 | E77: 50.91627596 | F77: 46.64 | G77: 61.625 | H77: 4.276275964 | I77: 10.70872404 | J77: 2016 | N77: 35.43398815 | O77: 10.68209678 | P77: 46.11608493 | Q77: 41.906 | R77: 49.88 | S77: 4.210084934 | T77: 3.763915066 | U77: 2016 | Y77: 22.99394361 | Z77: 16.69290707 | AA77: 39.68685068 | AB77: 40.77 | AC77: 47.592 | AD77: -1.083149323 | AE77: 7.905149323 | AF77: 2016
B78: PJM | C78: 36.27951172 | D78: 15.88855699 | E78: 52.16806871 | F78: 47.98 | G78: 64.235 | H78: 4.188068707 | I78: 12.06693129 | J78: 2017 | N78: 34.96126849 | O78: 11.72584677 | P78: 46.68711526 | Q78: 44.545 | R78: 50.32 | S78: 2.142115264 | T78: 3.632884736 | U78: 2017 | Y78: 22.54257034 | Z78: 7.671236753 | AA78: 30.21380709 | AB78: 29.177 | AC78: 35.426 | AD78: 1.036807092 | AE78: 5.212192908 | AF78: 2017
C79: 42.33027614 | D79: 21.07378744 | E79: 63.40406359 | F79: 59.88 | G79: 71.7 | H79: 3.524063585 | I79: 8.295936415 | J79: 2018 | N79: 39.31276223 | O79: 5.159005552 | P79: 44.47176778 | Q79: 40.384 | R79: 46.726 | S79: 4.08776778 | T79: 2.25423222 | U79: 2018 | Y79: 26.27987275 | Z79: 10.49902162 | AA79: 36.77889437 | AB79: 35.702 | AC79: 39.026 | AD79: 1.07689437 | AE79: 2.24710563 | AF79: 2018
C80: 30.40004268 | D80: 16.46425152 | E80: 46.8642942 | F80: 43.414 | G80: 52.092 | H80: 3.450294197 | I80: 5.227705803 | J80: 2019 | M80: CPLE | N80: 30.89447853 | O80: 5.537936557 | P80: 36.43241509 | Q80: 32.322 | R80: 38.334 | S80: 4.110415091 | T80: 1.901584909 | U80: 2019 | Y80: 23.98859214 | Z80: 9.071364217 | AA80: 33.05995636 | AB80: 31.986 | AC80: 34.976 | AD80: 1.07395636 | AE80: 1.91604364 | AF80: 2019
C81: 23.46227808 | D81: 13.48580318 | E81: 36.94808126 | F81: 33.33 | G81: 44.865 | H81: 3.618081261 | I81: 7.916918739 | J81: 2020 | N81: 23.69199666 | O81: 3.270042013 | P81: 26.96203867 | Q81: 26.239 | R81: 27.933 | S81: 0.7230386722 | T81: 0.9709613278 | U81: 2020 | Y81: 20.61802173 | Z81: 15.55563114 | AA81: 36.17365287 | AB81: 33.08 | AC81: 39.57 | AD81: 3.093652865 | AE81: 3.396347135 | AF81: 2020
C82: 40.37393712 | D82: 14.99207081 | E82: 55.36600793 | F82: 51.693 | G82: 64.268 | H82: 3.673007926 | I82: 8.901992074 | J82: 2021 | N82: 40.73446472 | O82: 2.039412794 | P82: 42.77387752 | Q82: 42.23 | R82: 43.17 | S82: 0.5438775159 | T82: 0.3961224841 | U82: 2021 | X82: PACE | Y82: 27.04287199 | Z82: 24.19760036 | AA82: 51.24047235 | AB82: 50.061 | AC82: 57.656 | AD82: 1.179472347 | AE82: 6.415527653 | AF82: 2021
A84: MISO | C84: 42.95068463 | D84: 0.02 | E84: 42.97068463 | F84: 41.837 | G84: 44.053 | H84: 1.133684633 | I84: 1.082315367 | J84: 2012 | L84: FPL | N84: 39.2450995 | O84: 28.51018595 | P84: 67.75528545 | Q84: 67.455 | R84: 68.935 | S84: 0.300285447 | T84: 1.179714553 | U84: 2012 | W84: ISO-NE | Y84: 49.50973755 | Z84: 4.552656818 | AA84: 54.06239437 | AB84: 50.696 | AC84: 56.015 | AD84: 3.366394372 | AE84: 1.952605628 | AF84: 2012
C85: 41.80509123 | D85: 0.09440786481 | E85: 41.8994991 | F85: 38.237 | G85: 45.945 | H85: 3.662499097 | I85: 4.045500903 | J85: 2013 | N85: 40.0077331 | O85: 37.93955483 | P85: 77.94728793 | Q85: 77.755 | R85: 78.675 | S85: 0.1922879287 | T85: 0.7277120713 | U85: 2013 | Y85: 67.06557916 | Z85: 4.13087596 | AA85: 71.19645512 | AB85: 62.674 | AC85: 75.94 | AD85: 8.522455115 | AE85: 4.743544885 | AF85: 2013
C86: 48.22211822 | D86: 1.435161494 | E86: 49.65727972 | F86: 44.88 | G86: 51.435 | H86: 4.777279716 | I86: 1.777720284 | J86: 2014 | N86: 45.97075402 | O86: 50.82776719 | P86: 96.79852121 | Q86: 96.642 | R86: 97.378 | S86: 0.1565212091 | T86: 0.5794787909 | U86: 2014 | Y86: 65.71469013 | Z86: 4.370550047 | AA86: 70.08524018 | AB86: 51.861 | AC86: 80.982 | AD86: 18.22424018 | AE86: 10.89675982 | AF86: 2014
C87: 37.11960965 | D87: 1.204431157 | E87: 38.32404081 | F87: 31.155 | G87: 40.255 | H87: 7.169040811 | I87: 1.930959189 | J87: 2015 | N87: 34.22788919 | O87: 47.18039281 | P87: 81.40828199 | Q87: 80.817 | R87: 83.753 | S87: 0.591281993 | T87: 2.344718007 | U87: 2015 | Y87: 43.69344767 | Z87: 4.687083515 | AA87: 48.38053119 | AB87: 41.02 | AC87: 53.674 | AD87: 7.360531187 | AE87: 5.293468813 | AF87: 2015
C88: 36.00303327 | D88: 6.043062741 | E88: 42.04609601 | F88: 36.632 | G88: 44.365 | H88: 5.414096012 | I88: 2.318903988 | J88: 2016 | N88: 30.54951967 | O88: 40.40680123 | P88: 70.9563209 | Q88: 70.81 | R88: 73.498 | S88: 0.1463208993 | T88: 2.541679101 | U88: 2016 | Y88: 33.82737457 | Z88: 4.783723298 | AA88: 38.61109787 | AB88: 35.508 | AC88: 41.066 | AD88: 3.10309787 | AE88: 2.45490213 | AF88: 2016
